Workbook

Sheet Kold
B2: Bruger | C2: =HD9 -> Bruger skal registreres | K2: Bjælke-/søjlemodul version 1.0 | M2: Betonelement-Foreningen juni 2012 | AP2: Basisgeometri
B3: Sagsnavn: | C3: Betonelementhuset | H3: Sag nr.: | I3: 23 - 4545 | K3: =IF(HE9=1,"For ny bruger: Klik på knappen 'angiv nyt brugernavn' for ibrugtagning.",IF(AU52=0,AV52,Snitkræfter!C41)) -> For ny bruger: Klik på knappen 'angiv nyt brugernavn' for ibrugtagning. | AP3: Graf mm | AR3: 0 | AS3: 0 | AT3: 1 | AU3: 1 | AV3: 0 | AW3: =C22/L7 -> 0.6111111111 | AX3: =AW3 -> 0.6111111111 | AY3: =D22/L7 -> 0.2222222222 | AZ3: =AY3 -> 0.2222222222 | BA3: =E22/L7 -> 1.111111111 | BB3: =BA3 -> 1.111111111 | BC3: 1 | BD3: 1.05 | BE3: 1 | BF3: 1 | BG3: =E25/L7 -> 0.5 | BH3: =BG3+0.05 -> 0.55 | BI3: =BG3 -> 0.5 | BJ3: =BG3 -> 0.5 | BK3: 0 | BL3: =IF($AT$46=3,$AQ$29,0)/$AQ$25 -> 0 | BM3: =BL3 -> 0 | BN3: =IF($AT$46=2,$AQ$29,$AQ$25)/$AQ$25 -> 0.5 | BO3: =BN3 -> 0.5 | BP3: =BL3 -> 0 | BQ3: =O21/$L$7 -> 0.6111111111 | BR3: =BQ3 -> 0.6111111111 | BS3: 1 | BT3: =IF(MAX(AW3:BB3)<=1,1,MAX(AW3:BB3)) -> 1.111111111
B4: Bygningsdel: | C4: Søjle i modul D-E/12, stueetage + 1. sal | H4: Dato: | I4: 2012-06-10 | AQ4: Bjælke | AR4: -0.01 | AS4: 0 | AT4: 0 | AU4: -0.01 | AV4: -0.01
B5: Emne: | C5: Normale lastkombinationer | H5: Init: | I5: JFJ | AQ5: R0 | AR5: -0.1 | AS5: 0
K6: Spændvidde | M6: Tværsnit | N6: h | O6: 540 | AQ6: R10 | AT6: -0.1 | AU6: 0
K7: L | L7: 9 | N7: b | O7: 420 | Q7: =HE9 -> 1 | AP7: =IF(AND(G22=0,H22=0),10,0) -> 0 | AQ7: p1 | AR7: =AP7+0.1 -> 0.1 | AS7: =IF(G22=0,0.1,0.1*$G$22/MAX(ABS($G$22),ABS($H$22))+0.1)+AP7 -> 0.2 | AT7: =IF(G22=0,IF(H22=0,0.1,0.2),0.1*$H$22/MAX(ABS($G$22),ABS($H$22))+0.1)+AP7 -> 0.2 | AU7: =AP7+0.1 -> 0.1 | AV7: =AP7+0.1 -> 0.1
K8: Længdearmering | M8: d (mm) | N8: c (mm) | O8: antal | AP8: =IF(AND(I22=0,J22=0),10,0) -> 0 | AQ8: p2 | BL8: =$AP$8+0.3 -> 0.3 | BM8: =IF($I$22=0,0.3,0.1*$I$22/MAX(ABS($I$22),ABS($J$22))+0.3)+$AP$8 -> 0.4 | BN8: =IF($I$22=0,IF($J$22=0,0.3,0.4),0.1*$J$22/MAX(ABS($I$22),ABS($J$22))+0.3)+$AP$8 -> 0.3 | BO8: =$AP$8+0.3 -> 0.3 | BP8: =$AP$8+0.3 -> 0.3
K9: Overside | M9: 16 | N9: 60 | O9: 3 | AP9: =IF(C21=0,10,0) -> 0 | AQ9: P1 | AW9: =AP9+0.5 -> 0.5 | AX9: =AP9+0.6 -> 0.6 | HA9: =IF(HE9=1,0,1000000) -> 0 | HB9: 1 | HD9: Bruger skal registreres | HE9: 1
K10: Underside | M10: 16 | N10: 60 | O10: 3 | AP10: =IF(D21=0,10,0) -> 0 | AQ10: P2 | AY10: =AP10+0.5 -> 0.5 | AZ10: =AP10+0.6 -> 0.6
K11: Sideafstand til armering, c' (mm) : | N11: 60 | AP11: =IF(E21=0,10,0) -> 0 | AQ11: P3 | BA11: =AP11+0.5 -> 0.5 | BB11: =AP11+0.6 -> 0.6
K12: Beton | M12: Længdearmering | AP12: =IF(D24=0,10,0) -> 0 | AQ12: N10 | BC12: =AP12+0.05 -> 0.05 | BD12: =AP12+0.05 -> 0.05
K13: fck | L13: 25 | N13: fyk | O13: 550 | AP13: =IF(D24=0,10,0) -> 0 | AQ13: eN10 | BE13: =AP13+0 -> 0 | BF13: =AP13+0.07 -> 0.07
K14: fcd | L14: =L13/L16 -> 17.85714286 | N14: fyd | O14: =O13/L17 -> 458.3333333 | AP14: =IF(E24=0,10,0) -> 0 | AQ14: NA | BG14: =AP14+0.05 -> 0.05 | BH14: =AP14+0.05 -> 0.05
K15: Partialkoefficienter | M15: Krybetal | N15: RH | O15: 0.68 | AP15: 0 | AQ15: eNA | BI15: 0 | BJ15: =AP15+0.07 -> 0.07
K16: gc | L16: 1.4 | N16: to | O16: 28 | AQ16: Reaktioner | BQ16: -0.17 | BR16: -0.07
K17: gs | L17: 1.2 | N17: fo | O17: =AQ45 -> 2.167904645 | AQ17: simpel | BS17: 0 | BT17: 0
N18: M0Eqp/M0Ed | O18: 0.8 | AQ18: indspændt
N19: fef | O19: =O18*O17 -> 1.734323716
B20: Punktlaste | C20: P1 | D20: P2 | E20: P3 | F20: Fordelte laste (kN/m) | I20: =INDEX(AT47:AT49,AT46) -> p_2 i 0 < s < s_A | K20: Snitanalyse ved : | M20: Største | N20: Mindste | O20: Valgt s (m)
B21: P (kN) | C21: 20 | D21: 1 | E21: 10 | G21: p1-0 | H21: p1-L | I21: p2-venstre | J21: p2-højre | M21: moment | N21: moment | O21: 5.5 | AP21: L | AQ21: h | AR21: b | AS21: fck | AT21: fcd | AU21: Ecd | AV21: Ac | AW21: ac | AX21: Esc | AY21: fyd_c | AZ21: At | BA21: at | BB21: Est | BC21: fyd_t | BD21: Modenhed | BE21: 1+f | BF21: uterm | BG21: g | BH21: Aos | BI21: aos | BJ21: Aus | BK21: aus | BL21: emax | BN21: =0.0028 -> 0.0028
B22: s (m) | C22: 5.5 | D22: 2 | E22: 10 | G22: 3 | H22: 3 | I22: 3 | J22: 0 | K22: NEd | L22: (kN) | M22: =IF(Snitkræfter!$B$44=0,"-",AV36) -> 1200.1 | N22: =IF(Snitkræfter!$B$44=0,"-",AW36) -> 1200.1 | O22: =IF(Snitkræfter!$B$44=0,"-",AX36) -> 500.1 | AP22: (m) | AQ22: (m) | AR22: (m) | AS22: (Mpa) | AT22: (Mpa) | AU22: (Mpa) | AV22: (m2) | AW22: (m) | AX22: (Mpa) | AY22: (Mpa) | AZ22: (m2) | BA22: (m) | BB22: (Mpa) | BC22: (Mpa) | BD22: (døgn) | BF22: (m) | BH22: (m2) | BI22: (m) | BJ22: (m2) | BK22: (m) | BL22: e1 | BN22: =0.7*(AS23+8)^0.31/1000 -> 0.002069366248
B23: Normalkræfter | C23: N0 | D23: NL | E23: NA | F23: Reaktioner | I23: R0 | J23: RL | K23: Mtot | L23: (kNm) | M23: =IF(Snitkræfter!$B$44=0,"-",AV37) -> 88.78358152 | N23: =IF(Snitkræfter!$B$44=0,"-",AW37) -> -105.5089686 | O23: =IF(Snitkræfter!$B$44=0,"-",AX37) -> 38.54280161 | AP23: =L7 -> 9 | AQ23: =O6/1000 -> 0.54 | AR23: =O7/1000 -> 0.42 | AS23: =L13 -> 25 | AT23: =L14 -> 17.85714286 | AU23: =1000*22*((AS23+8)/10)^0.3/BG23 -> 22482.71872 | AX23: 200000 | AY23: =O14 -> 458.3333333 | BB23: 200000 | BC23: =O14 -> 458.3333333 | BD23: =O16 -> 28 | BE23: =1+O19 -> 2.734323716 | BF23: 0 | BG23: =L16 -> 1.4 | BH23: =O9*(M9/1000)^2*PI()/4 -> 0.0006031857895 | BI23: =N9/1000 -> 0.06 | BJ23: =O10*(M10/1000)^2*PI()/4 -> 0.0006031857895 | BK23: =N10/1000 -> 0.06 | BL23: k | BN23: =1.05*AU23*BN22/AT23 -> 2.735668782
B24: N (kN) | C24: =D24+E24 -> 1200 | D24: 500 | E24: 700 | G24: Type | I24: =IF(Snitkræfter!D36=0,"simpel","indspændt") -> indspændt | J24: simpel | K24: e0 / (1+f) | L24: (o/oo) | M24: =IF(Snitkræfter!$B$44=0,"-",AV38) -> 0.4081991778 | N24: =IF(Snitkræfter!$B$44=0,"-",AW38) -> 0.4441845568 | O24: =IF(Snitkræfter!$B$44=0,"-",AX38) -> 0.1578856866
B25: sA (m) | C25: 0 | D25: =L7 -> 9 | E25: 4.5 | G25: R | H25: (kN) | I25: =(Snitkræfter!$G$95+Snitkræfter!$G$62)*1000 -> 52.99839127 | J25: =(Snitkræfter!$U$95+Snitkræfter!$U$62)*1000 -> 11.75160873 | K25: sc0 | L25: (Mpa) | M25: =IF(Snitkræfter!$B$44=0,"-",AV39) -> 7.808343678 | N25: =IF(Snitkræfter!$B$44=0,"-",AW39) -> 8.345260874 | O25: =IF(Snitkræfter!$B$44=0,"-",AX39) -> 3.430674361 | AP25: L | AQ25: =L7 -> 9 | AR25: m | AT25: p_0 | AV25: p_10 | AZ25: =Snitkræfter!G47 -> 0 | BA25: =Snitkræfter!H47 -> 1 | BB25: =Snitkræfter!I47 -> 2 | BC25: =Snitkræfter!J47 -> 2.222222222 | BD25: =Snitkræfter!K47 -> 3 | BE25: =Snitkræfter!L47 -> 4 | BF25: =Snitkræfter!M47 -> 5 | BG25: =Snitkræfter!N47 -> 5.000011111 | BH25: =Snitkræfter!O47 -> 6.111111111 | BI25: =Snitkræfter!P47 -> 7 | BJ25: =Snitkræfter!Q47 -> 8 | BK25: =Snitkræfter!R47 -> 9 | BL25: =Snitkræfter!S47 -> 10 | BM25: =Snitkræfter!T47 -> 10 | BN25: =Snitkræfter!U47 -> 10
B26: exc. (mm) | C26: 20 | D26: 115 | E26: 115 | K26: sst | L26: (Mpa) | M26: =IF(Snitkræfter!$B$44=0,"-",AV40) -> -46.27409856 | N26: =IF(Snitkræfter!$B$44=0,"-",AW40) -> -32.96771671 | O26: =IF(Snitkræfter!$B$44=0,"-",AX40) -> -17.80051374 | AP26: N10 | AQ26: =D24/1000 -> 0.5 | AR26: MN | AT26: =G22/1000 -> 0.003 | AU26: MN/m | AV26: =H22/1000 -> 0.003 | AW26: MN/m | AY26: u_skønnet | AZ26: =Snitkræfter!$B$44*1000*Snitkræfter!G48 -> 0 | BA26: =Snitkræfter!$B$44*1000*Snitkræfter!H48 -> 0.6999737054 | BB26: =Snitkræfter!$B$44*1000*Snitkræfter!I48 -> 2.421562491 | BC26: =Snitkræfter!$B$44*1000*Snitkræfter!J48 -> 2.880508308 | BD26: =Snitkræfter!$B$44*1000*Snitkræfter!K48 -> 4.461464294 | BE26: =Snitkræfter!$B$44*1000*Snitkræfter!L48 -> 6.091974519 | BF26: =Snitkræfter!$B$44*1000*Snitkræfter!M48 -> 6.750077414 | BG26: =Snitkræfter!$B$44*1000*Snitkræfter!N48 -> 6.750077783 | BH26: =Snitkræfter!$B$44*1000*Snitkræfter!O48 -> 6.566536628 | BI26: =Snitkræfter!$B$44*1000*Snitkræfter!P48 -> 5.995614041 | BJ26: =Snitkræfter!$B$44*1000*Snitkræfter!Q48 -> 4.724012801 | BK26: =Snitkræfter!$B$44*1000*Snitkræfter!R48 -> 2.731489655 | BL26: =Snitkræfter!$B$44*1000*Snitkræfter!S48 -> -4.380176777e-16 | BM26: =Snitkræfter!$B$44*1000*Snitkræfter!T48 -> -4.380176777e-16 | BN26: =Snitkræfter!$B$44*1000*Snitkræfter!U48 -> -4.380176777e-16
B27: Geometri | K27: ssc | L27: (Mpa) | M27: =IF(Snitkræfter!$B$44=0,"-",AV41) -> 201.1102835 | N27: =IF(Snitkræfter!$B$44=0,"-",AW41) -> 216.6662289 | O27: =IF(Snitkræfter!$B$44=0,"-",AX41) -> 77.77441524 | AP27: Na | AQ27: =E24/1000 -> 0.7 | AR27: MN | AT27: =I22/1000 -> 0.003 | AU27: MN/m | AV27: =J22/1000 -> 0 | AW27: MN/m | AY27: u_kontrol | AZ27: =Snitkræfter!$B$44*1000*Snitkræfter!G49 -> 0 | BA27: =Snitkræfter!$B$44*1000*Snitkræfter!H49 -> 0.6912757078 | BB27: =Snitkræfter!$B$44*1000*Snitkræfter!I49 -> 2.38576461 | BC27: =Snitkræfter!$B$44*1000*Snitkræfter!J49 -> 2.836290976 | BD27: =Snitkræfter!$B$44*1000*Snitkræfter!K49 -> 4.389364646 | BE27: =Snitkræfter!$B$44*1000*Snitkræfter!L49 -> 5.996213484 | BF27: =Snitkræfter!$B$44*1000*Snitkræfter!M49 -> 6.649221042 | BG27: =Snitkræfter!$B$44*1000*Snitkræfter!N49 -> 6.64922146 | BH27: =Snitkræfter!$B$44*1000*Snitkræfter!O49 -> 6.474348889 | BI27: =Snitkræfter!$B$44*1000*Snitkræfter!P49 -> 5.915725829 | BJ27: =Snitkræfter!$B$44*1000*Snitkræfter!Q49 -> 4.663775874 | BK27: =Snitkræfter!$B$44*1000*Snitkræfter!R49 -> 2.697667189 | BL27: =Snitkræfter!$B$44*1000*Snitkræfter!S49 -> 0 | BM27: =Snitkræfter!$B$44*1000*Snitkræfter!T49 -> 0 | BN27: =Snitkræfter!$B$44*1000*Snitkræfter!U49 -> 0
K28: x | L28: (mm) | M28: =IF(Snitkræfter!$B$44=0,"-",AV42) -> 605.520539 | N28: =IF(Snitkræfter!$B$44=0,"-",AW42) -> 555.3759018 | O28: =IF(Snitkræfter!$B$44=0,"-",AX42) -> 604.6578192 | AT28: P | AV28: x | AZ28: 1
K29: Stivhed, EI | L29: (kNm2) | M29: =IF(OR(Snitkræfter!$B$44=0,ABS(M23)<0.0001*ABS(M30)),"-",ROUND(ABS(M23)/(0.001*M24*(1+$O$19)/(0.001*M28)),-2)) -> 48200 | N29: =IF(OR(Snitkræfter!$B$44=0,ABS(N23)<0.001*ABS(N30)),"-",ROUND(ABS(N23)/(0.001*N24*(1+$O$19)/(0.001*N28)),-2)) -> 48200 | O29: =IF(OR(Snitkræfter!$B$44=0,ABS(O23)<0.001*MAX(ABS(M30),ABS(N30))),"-",ROUND(ABS(O23)/(0.001*O24*(1+$O$19)/(0.001*O28)),-2)) -> 54000 | AP29: a | AQ29: =E25 -> 4.5 | AR29: m | AT29: =C21/1000 -> 0.02 | AU29: MN | AV29: =C22 -> 5.5 | AW29: m | AZ29: =AZ25 -> 0 | BA29: 1 | BB29: 2 | BC29: 2.222222222 | BD29: 3 | BE29: 4 | BF29: 5 | BG29: 5.000011111 | BH29: 6.111111111 | BI29: 7 | BJ29: 8 | BK29: 9 | BL29: 10 | BM29: 10 | BN29: 10
K30: Momentkapaciteter, Mtot (kNm) | M30: =Stivheder!Q528*1000 -> 233.5040394 | N30: =-Stivheder!Q496*1000 -> -233.5040394 | O30: s > sA | AP30: e_N10 | AQ30: =D26/1000 -> 0.115 | AR30: m | AT30: =D21/1000 -> 0.001 | AU30: MN | AV30: =D22 -> 2 | AW30: m | AY30: M_o | AZ30: =1000*Snitkræfter!G55 -> -107.6356987 | BA30: =1000*Snitkræfter!H55 -> -60.32995518 | BB30: =1000*Snitkræfter!I55 -> -16.33616552 | BC30: =1000*Snitkræfter!J55 -> -7.043028842 | BD30: =1000*Snitkræfter!K55 -> 23.35754531 | BE30: =1000*Snitkræfter!L55 -> 59.07074763 | BF30: =1000*Snitkræfter!M55 -> 86.76666127 | BG30: =1000*Snitkræfter!N55 -> 6.26699185 | BH30: =1000*Snitkræfter!O55 -> 37.72594312 | BI30: =1000*Snitkræfter!P55 -> 44.53710108 | BJ30: =1000*Snitkræfter!Q55 -> 49.61643698 | BK30: =1000*Snitkræfter!R55 -> 51.95567956 | BL30: =1000*Snitkræfter!S55 -> 51.55347037 | BM30: =1000*Snitkræfter!T55 -> 51.55347037 | BN30: =1000*Snitkræfter!U55 -> 51.55347037
M31: =Stivheder!Q465*1000 -> 338.6314221 | N31: =-Stivheder!Q433*1000 -> -338.6314221 | O31: s < sA | AP31: e_Na | AQ31: =E26/1000 -> 0.115 | AR31: m | AT31: =E21/1000 -> 0.01 | AU31: MN | AV31: =E22 -> 10 | AW31: m | AY31: M_tot | AZ31: =1000*Snitkræfter!G61 -> -105.5089686 | BA31: =1000*Snitkræfter!H61 -> -59.14610868 | BB31: =1000*Snitkræfter!I61 -> -15.9313107 | BC31: =1000*Snitkræfter!J61 -> -6.798599848 | BD31: =1000*Snitkræfter!K61 -> 23.0354629 | BE31: =1000*Snitkræfter!L61 -> 57.95096661 | BF31: =1000*Snitkræfter!M61 -> 88.78358152 | BG31: =1000*Snitkræfter!N61 -> 8.283900211 | BH31: =1000*Snitkræfter!O61 -> 38.54280161 | BI31: =1000*Snitkræfter!P61 -> 44.37813271 | BJ31: =1000*Snitkræfter!Q61 -> 48.33322352 | BK31: =1000*Snitkræfter!R61 -> 49.49785339 | BL31: =1000*Snitkræfter!S61 -> 47.863 | BM31: =1000*Snitkræfter!T61 -> 47.863 | BN31: =1000*Snitkræfter!U61 -> 47.863
K32: Minimumsexcentriciteter: Der indlægges som minimum +/- | O32: =1000*Snitkræfter!$F$5 -> 16.2 | AP32: e0 | AQ32: =C26/1000 -> 0.02 | AR32: m | AZ32: 1
K33: Revnevidder - kun i anvendelsesgrænsetilstand, ved gc = gs = 1,0 : | AP33: x | AQ33: =O21 -> 5.5 | AR33: m
K34: Revnevidder, w (mm) | M34: =IF(AND($L$16=1,$L$17=1,M26<$O$13),BA65,"-") -> - | N34: =IF(AND($L$16=1,$L$17=1,N26<$O$13),BB65,"-") -> - | O34: =IF(AND($L$16=1,$L$17=1,O26<$O$13),BC65,"-") -> -
B35: Vejledning: | C35: PC-statik: Tværsnitsanalyse for søjler og bjælker efter EC2 | K35: NB: Resultaterne skal altid kontrolleres af ansvarlig statiker | AP35: Beregning af krybetal | AV35: =Snitkræfter!D64 -> 6 | AW35: =Snitkræfter!D67 -> 0 | AZ35: Revnevidder | BA35: Max M | BB35: Min M | BC35: Valgt
AP36: to | AQ36: =O16 -> 28 | AT36: NEd | AU36: (kN) | AV36: =INDEX(Resultat,77+$AV$35*100,14)*1000 -> 1200.1 | AW36: =INDEX(Resultat,77+$AW$35*100,14)*1000 -> 1200.1 | AX36: =A0!O1578*1000 -> 500.1 | AZ36: h | BA36: =O6/1000 -> 0.54 | BB36: =BA36 -> 0.54 | BC36: =BA36 -> 0.54
AP37: RH | AQ37: =O15*100 -> 68 | AT37: Mtot | AU37: (kNm) | AV37: =INDEX(Snitkræfter!$G$292:$U$292,1,1+AV35)*1000 -> 88.78358152 | AW37: =INDEX(Snitkræfter!$G$292:$U$292,1,1+AW35)*1000 -> -105.5089686 | AX37: =A0!Q1508*1000 -> 38.54280161 | AZ37: b | BA37: =O7/1000 -> 0.42 | BB37: =BA37 -> 0.42 | BC37: =BA37 -> 0.42
AP38: h | AQ38: =O6 -> 540 | AT38: e0 / (1+f) | AU38: (o/oo) | AV38: =INDEX(Resultat,97+$AV$35*100,2)*1000 -> 0.4081991778 | AW38: =INDEX(Resultat,97+$AW$35*100,2)*1000 -> 0.4441845568 | AX38: =A0!C1578*1000 -> 0.1578856866 | AZ38: d | BA38: =IF(M23>=0,$M$10,$M$9)/1000 -> 0.016 | BB38: =IF(N23>=0,$M$10,$M$9)/1000 -> 0.016 | BC38: =IF(O23>=0,$M$10,$M$9)/1000 -> 0.016
AP39: b | AQ39: =O7 -> 420 | AT39: sc0 | AU39: (Mpa) | AV39: =($BN$23*AV44-AV44^2)*$AT$23/(1+($BN$23-2)*AV44) -> 7.808343678 | AW39: =($BN$23*AW44-AW44^2)*$AT$23/(1+($BN$23-2)*AW44) -> 8.345260874 | AX39: =($BN$23*AX44-AX44^2)*$AT$23/(1+($BN$23-2)*AX44) -> 3.430674361 | AZ39: n | BA39: =IF(M23>=0,$O$10,$O$9) -> 3 | BB39: =IF(N23>=0,$O$10,$O$9) -> 3 | BC39: =IF(O23>=0,$O$10,$O$9) -> 3
AP40: ho | AQ40: =2*AQ38*AQ39/(2*(AQ38+AQ39)) -> 236.25 | AT40: sst | AU40: (Mpa) | AV40: =INDEX(Resultat,97+$AV$35*100,11) -> -46.27409856 | AW40: =INDEX(Resultat,97+$AW$35*100,11) -> -32.96771671 | AX40: =A0!L1578 -> -17.80051374 | AZ40: fck | BA40: =L13 -> 25 | BB40: =BA40 -> 25 | BC40: =BA40 -> 25
AP41: fck | AQ41: =L13 -> 25 | AT41: ssc | AU41: (Mpa) | AV41: =INDEX(Resultat,97+$AV$35*100,9) -> 201.1102835 | AW41: =INDEX(Resultat,97+$AW$35*100,9) -> 216.6662289 | AX41: =A0!J1578 -> 77.77441524 | AZ41: fctm | BA41: =0.3*BA40^(2/3) -> 2.56496392 | BB41: =0.3*BB40^(2/3) -> 2.56496392 | BC41: =0.3*BC40^(2/3) -> 2.56496392
AP42: fcm | AQ42: =AQ41+8 -> 33 | AT42: x | AU42: (mm) | AV42: =INDEX(Resultat,97+$AV$35*100,1)*1000 -> 605.520539 | AW42: =INDEX(Resultat,97+$AW$35*100,1)*1000 -> 555.3759018 | AX42: =A0!B1578*1000 -> 604.6578192 | AZ42: Ec | BA42: =22000*((BA40+8)/10)^0.3 -> 31475.80621 | BB42: =22000*((BB40+8)/10)^0.3 -> 31475.80621 | BC42: =22000*((BC40+8)/10)^0.3 -> 31475.80621
AP43: a1 | AQ43: =IF(AQ42<35,1,(35/AQ42)^0.7) -> 1 | AT43: EI0Ed | AU43: (MNm2) | AV43: =INDEX(Resultat,98+$AV$35*100,26) -> 44.8085366 | AW43: =INDEX(Resultat,98+$AW$35*100,26) -> -48.94375924 | AX43: =A0!AA1579 -> 54.01816429 | AZ43: Es | BA43: 200000 | BB43: 200000 | BC43: 200000
AP44: a2 | AQ44: =IF(AQ42<35,1,(35/AQ42)^0.2) -> 1 | AT44: e0 /fe1 | AV44: =0.001*AV38/$BN$22 -> 0.197258063 | AW44: =0.001*AW38/$BN$22 -> 0.2146476281 | AX44: =0.001*AX38/$BN$22 -> 0.07629663756 | AZ44: At | BA44: =BA39*BA38^2*PI()/4 -> 0.0006031857895 | BB44: =BB39*BB38^2*PI()/4 -> 0.0006031857895 | BC44: =BC39*BC38^2*PI()/4 -> 0.0006031857895
AP45: f | AQ45: =(1/(0.1+AQ36^0.2))*(16.8/AQ42^0.5)*(1+10*AQ43*(1-AQ37/100)/AQ40^(1/3))*AQ44 -> 2.167904645 | AZ45: at | BA45: =IF(M23>=0,$N$10,$N$9)/1000 -> 0.06 | BB45: =IF(N23>=0,$N$10,$N$9)/1000 -> 0.06 | BC45: =IF(O23>=0,$N$10,$N$9)/1000 -> 0.06 | BE45: Reg.kontrol
AT46: =Snitkræfter!X80 -> 2 | AZ46: hc | BA46: =IF(BA47=0,0,M28/1000) -> 0 | BB46: =IF(BB47=0,0,N28/1000) -> 0 | BC46: =IF(BC47=0,0,O28/1000) -> 0 | BE46: =HE9 -> 1
AT47: p_2 i 0 < s < L | AZ47: sat2 | BA47: =MAX(M26,0) -> 0 | BB47: =MAX(N26,0) -> 0 | BC47: =MAX(O26,0) -> 0
AP48: Tilstand | AR48: 1 | AT48: p_2 i 0 < s < s_A | AZ48: (1+ f) | BA48: =1+$O$19 -> 2.734323716 | BB48: =1+$O$19 -> 2.734323716 | BC48: =1+$O$19 -> 2.734323716
AT49: p_2 i A < s < L | AZ49: aeff | BA49: =BA48*BA43/BA42 -> 17.37412982 | BB49: =BB48*BB43/BB42 -> 17.37412982 | BC49: =BC48*BC43/BC42 -> 17.37412982
AZ50: kt | BA50: 0.4 | BB50: 0.4 | BC50: 0.4
AZ51: x1 | BA51: 0 | BB51: 0 | BC51: 0
AP52: Fejltabel | AU52: =MIN(AU53:AU84) -> 1 | AV52: =AV53&AV54&AV55&AV56&AV57&AV58&AV59&AV60&AV61&AV62&AV63&AV64&AV65&AV66&AV67&AV68&AV69 ->  | AZ52: As | BA52: =BA44 -> 0.0006031857895 | BB52: =BB44 -> 0.0006031857895 | BC52: =BC44 -> 0.0006031857895
AP53: Kun tværlaste og excentriciteter må have negative værdier ! | AU53: =IF(MIN(O6,O7,M9,N9,O9,M10,N10,O10,N11,L16,L17,O15,O16,O18,D24+0.0000001,E24+0.0000001)>0,1,0) -> 1 | AV53: =IF(AU53=0,AP53,"") ->  | AZ53: d | BA53: =BA36-BA45 -> 0.48 | BB53: =BB36-BB45 -> 0.48 | BC53: =BC36-BC45 -> 0.48
AP54: Punkt A skal ligge i intervalet [0;L] ! | AU54: =IF(AND(E25>=0,E25<=L7),1,0) -> 1 | AV54: =IF(AU54=0,AP54,"") ->  | AZ54: hc,eff | BA54: =MIN(2.5*(BA36-BA53),(BA36-BA46)/3,BA36/2) -> 0.15 | BB54: =MIN(2.5*(BB36-BB53),(BB36-BB46)/3,BB36/2) -> 0.15 | BC54: =MIN(2.5*(BC36-BC53),(BC36-BC46)/3,BC36/2) -> 0.15
AP55: Analyse-snit skal indlægges i intervalet [L/50;L] ! | AU55: =IF(AND(O21>L7/50,O21<=L7),1,0) -> 1 | AZ55: Ac,eff | BA55: =BA54*BA37 -> 0.063 | BB55: =BB54*BB37 -> 0.063 | BC55: =BC54*BC37 -> 0.063
AP56: Armeringens kantafstand (c) skal være mindre end h/3 ! | AU56: =IF(AND(N9<=O6/3,N10<=O6/3),1,0) -> 1 | AZ56: rp,eff | BA56: =BA52/BA55 -> 0.009574377611 | BB56: =BB52/BB55 -> 0.009574377611 | BC56: =BC52/BC55 -> 0.009574377611
AP57: Armeringens sideafstand (c') skal være mindre end b/3 ! | AU57: =IF(N11<=O7/3,1,0) -> 1 | AZ57: esm-ecm | BA57: =MAX(BA47-BA50*BA41*(1+BA49*BA56)/BA56,0.6*BA47)/BA43 -> 0 | BB57: =MAX(BB47-BB50*BB41*(1+BB49*BB56)/BB56,0.6*BB47)/BB43 -> 0 | BC57: =MAX(BC47-BC50*BC41*(1+BC49*BC56)/BC56,0.6*BC47)/BC43 -> 0
AP58: Program indstillet til brand ! | AU58: =IF(AR48=1,1,0) -> 1 | AZ58: seq | BA58: =BA38 -> 0.016 | BB58: =BB38 -> 0.016 | BC58: =BC38 -> 0.016
AP59: Relativ fugtighed må højst være 100% ! | AU59: =IF(O15<=1,1,0) -> 1 | AZ59: c | BA59: =BA36-BA53-0.5*BA58 -> 0.052 | BB59: =BB36-BB53-0.5*BB58 -> 0.052 | BC59: =BC36-BC53-0.5*BC58 -> 0.052
AP60: M_0Eqd / M_0Ed må højst være 1,0 ! | AU60: =IF(O18<=1,1,0) -> 1 | AZ60: k1 | BA60: 0.8 | BB60: 0.8 | BC60: 0.8
AP61: Betonstyrken (f_ck) skal ligge i intervalet [16 MPa ; 50 MPa] ! | AU61: =IF(AND(L13>=16,L13<=50),1,0) -> 1 | AZ61: k2 | BA61: 0.5 | BB61: 0.5 | BC61: 0.5
AP62: Armeringsstyrken (f_yk) skal ligge i intervalet [400 MPa , 600 MPa] ! | AU62: =IF(AND(O13>=400,O13<=600),1,0) -> 1 | AZ62: k3 | BA62: =3.4*(25/(BA45*1000))^(2/3) -> 1.896726692 | BB62: =3.4*(25/(BB45*1000))^(2/3) -> 1.896726692 | BC62: =3.4*(25/(BC45*1000))^(2/3) -> 1.896726692
AP63: Partialkoefficienter skal mindst være 1,0 ! | AU63: =IF(AND(L16>=1,L17>=1),1,0) -> 1 | AZ63: k4 | BA63: 0.425 | BB63: 0.425 | BC63: 0.425
AP64: L skal være større end 2h ! | AU64: =IF(L7>=2*O6/1000,1,0) -> 1 | AZ64: s,rmaks | BA64: =MIN(1.3*(BA36-BA46),BA62*BA59+BA60*BA61*BA63*BA58/BA56) -> 0.3827213614 | BB64: =MIN(1.3*(BB36-BB46),BB62*BB59+BB60*BB61*BB63*BB58/BB56) -> 0.3827213614 | BC64: =MIN(1.3*(BC36-BC46),BC62*BC59+BC60*BC61*BC63*BC58/BC56) -> 0.3827213614
AP65: b og h skal mindst være 80 mm | AU65: =IF(MIN(O6,O7)>80,1,0) -> 1 | AZ65: wk | BA65: =1000*BA64*BA57 -> 0 | BB65: =1000*BB64*BB57 -> 0 | BC65: =1000*BC64*BC57 -> 0
AU66: 1
AU67: 1
AU68: 1
AP69: Alle parametre af typen s skal være mindst 0 ! | AU69: =IF(MIN(C22,D22,E22,E25,O21)>=0,1,0) -> 1

Sheet Brand
K2: Bjælke-/søjlemodul version 1.0 | M2: Betonelement-Foreningen juni 2012 | AP2: Basisgeometri
B3: Sagsnavn: | C3: =Kold!C3 -> Betonelementhuset | D3: =Kold!D3 -> 0 | E3: =Kold!E3 -> 0 | F3: =Kold!F3 -> 0 | G3: =Kold!G3 -> 0 | H3: Sag nr.: | I3: =Kold!I3 -> 23 - 4545 | J3: =Kold!J3 -> 0 | K3: =IF(AU52=0,AV52,Snitkræfter!C41) -> Program indstillet til kold tilstand ! | AP3: Graf mm | AR3: 0 | AS3: 0 | AT3: 1 | AU3: 1 | AV3: 0 | AW3: =C22/L7 -> 0.6111111111 | AX3: =AW3 -> 0.6111111111 | AY3: =D22/L7 -> 0.2222222222 | AZ3: =AY3 -> 0.2222222222 | BA3: =E22/L7 -> 1.111111111 | BB3: =BA3 -> 1.111111111 | BC3: 1 | BD3: 1.05 | BE3: 1 | BF3: 1 | BG3: =E25/L7 -> 0.5 | BH3: =BG3+0.05 -> 0.55 | BI3: =BG3 -> 0.5 | BJ3: =BG3 -> 0.5 | BK3: 0 | BL3: =IF($AT$46=3,$AQ$29,0)/$AQ$25 -> 0 | BM3: =BL3 -> 0 | BN3: =IF($AT$46=2,$AQ$29,$AQ$25)/$AQ$25 -> 0.5 | BO3: =BN3 -> 0.5 | BP3: =BL3 -> 0 | BQ3: =O21/$L$7 -> 0 | BR3: =BQ3 -> 0 | BS3: 1 | BT3: =IF(MAX(AW3:BB3)<=1,1,MAX(AW3:BB3)) -> 1.111111111
B4: Bygningsdel: | C4: =Kold!C4 -> Søjle i modul D-E/12, stueetage + 1. sal | D4: =Kold!D4 -> 0 | E4: =Kold!E4 -> 0 | F4: =Kold!F4 -> 0 | G4: =Kold!G4 -> 0 | H4: Dato: | I4: =Kold!I4 -> 2012-06-10 | J4: =Kold!J4 -> 00:00:00 | AQ4: Bjælke | AR4: -0.01 | AS4: 0 | AT4: 0 | AU4: -0.01 | AV4: -0.01
B5: Emne: | C5: Brandlastkombinationer | H5: Init: | I5: =Kold!I5 -> JFJ | J5: =Kold!J5 -> 0 | AQ5: R0 | AR5: -0.1 | AS5: 0
K6: Spændvidde | M6: Tværsnit | N6: h | O6: =Kold!O6 -> 540 | AQ6: R10 | AT6: -0.1 | AU6: 0
K7: L | L7: =Kold!L7 -> 9 | N7: b | O7: =Kold!O7 -> 420 | AP7: =IF(AND(G22=0,H22=0),10,0) -> 0 | AQ7: p1 | AR7: =AP7+0.1 -> 0.1 | AS7: =IF(G22=0,0.1,0.1*$G$22/MAX(ABS($G$22),ABS($H$22))+0.1)+AP7 -> 0.2 | AT7: =IF(G22=0,IF(H22=0,0.1,0.2),0.1*$H$22/MAX(ABS($G$22),ABS($H$22))+0.1)+AP7 -> 0.2 | AU7: =AP7+0.1 -> 0.1 | AV7: =AP7+0.1 -> 0.1
K8: Længdearmering | M8: d (mm) | N8: c (mm) | O8: antal | AP8: =IF(AND(I22=0,J22=0),10,0) -> 0 | AQ8: p2 | BL8: =$AP$8+0.3 -> 0.3 | BM8: =IF($I$22=0,0.3,0.1*$I$22/MAX(ABS($I$22),ABS($J$22))+0.3)+$AP$8 -> 0.4 | BN8: =IF($I$22=0,IF($J$22=0,0.3,0.4),0.1*$J$22/MAX(ABS($I$22),ABS($J$22))+0.3)+$AP$8 -> 0.3 | BO8: =$AP$8+0.3 -> 0.3 | BP8: =$AP$8+0.3 -> 0.3
K9: Overside | M9: =Kold!M9 -> 16 | N9: =Kold!N9 -> 60 | O9: =Kold!O9 -> 3 | AP9: =IF(C21=0,10,0) -> 0 | AQ9: P1 | AW9: =AP9+0.5 -> 0.5 | AX9: =AP9+0.6 -> 0.6
K10: Underside | M10: =Kold!M10 -> 16 | N10: =Kold!N10 -> 60 | O10: =Kold!O10 -> 3 | AP10: =IF(D21=0,10,0) -> 0 | AQ10: P2 | AY10: =AP10+0.5 -> 0.5 | AZ10: =AP10+0.6 -> 0.6
K11: Sideafstand til armering, c' (mm) : | N11: =Kold!N11 -> 60 | AP11: =IF(E21=0,10,0) -> 0 | AQ11: P3 | BA11: =AP11+0.5 -> 0.5 | BB11: =AP11+0.6 -> 0.6
K12: Beton | M12: Armering | N12: fyk | O12: =Kold!O13 -> 550 | AP12: =IF(D24=0,10,0) -> 0 | AQ12: N10 | BC12: =AP12+0.05 -> 0.05 | BD12: =AP12+0.05 -> 0.05
K13: fck | L13: =Kold!L13 -> 25 | N13: fc,yd | O13: =O31*O12/L17 -> 449.2060403 | AP13: =IF(D24=0,10,0) -> 0 | AQ13: eN10 | BE13: =AP13+0 -> 0 | BF13: =AP13+0.07 -> 0.07
K14: fcd | L14: =O30*L13/L16 -> 25 | N14: ft,yd | O14: =O33*O12/L17 -> 449.2060403 | AP14: =IF(E24=0,10,0) -> 0 | AQ14: NA | BG14: =AP14+0.05 -> 0.05 | BH14: =AP14+0.05 -> 0.05
K15: Partialkoefficienter | M15: Eksponerede overflader | AP15: 0 | AQ15: eNA | BI15: 0 | BJ15: =AP15+0.07 -> 0.07
K16: gc | L16: 1 | N16: Overside: | O16: =IF(BK49=1,BK50,BK51) -> Ja | AQ16: Reaktioner | BQ16: -0.17 | BR16: -0.07
K17: gs | L17: 1 | N17: Underside: | O17: =IF(BK52=1,BK53,BK54) -> Ja | AQ17: simpel | BS17: 0 | BT17: 0
N18: Sider: | O18: =IF(BK55=1,BK56,IF(BK55=2,BK57,BK58)) -> To sider | AQ18: indspændt
M19: =IF(BK63=1,BJ64,IF(BK63=2,BJ65,BJ66)) -> Ingen termisk udvidelse på overside
B20: Punktlaste | C20: P1 | D20: P2 | E20: P3 | F20: Fordelte laste (kN/m) | I20: =Kold!I20 -> p_2 i 0 < s < s_A | J20: =Kold!J20 -> 0 | K20: Snitanalyse ved : | M20: Største | N20: Mindste | O20: Valgt s (m)
B21: P (kN) | C21: 15 | D21: 1 | E21: 10 | G21: p1-0 | H21: p1-L | I21: p2-venstre | J21: p2-højre | M21: moment | N21: moment | O21: 0 | AP21: L | AQ21: h | AR21: b | AS21: fck | AT21: fcd | AU21: Ecd | AV21: Ac | AW21: ac | AX21: Esc | AY21: fyd_c | AZ21: At | BA21: at | BB21: Est | BC21: fyd_t | BD21: Modenhed | BE21: 1+f | BF21: uterm | BG21: g | BH21: Aos | BI21: aos | BJ21: Aus | BK21: aus | BL21: emax | BN21: =IF($C$2=1,0.0035,Firsidig!$G$21) -> 0.02
B22: s (m) | C22: 5.5 | D22: 2 | E22: 10 | G22: 2 | H22: 2 | I22: 3 | J22: 0 | K22: NEd | L22: (kN) | M22: =IF(Snitkræfter!$B$44=0,"-",AV36) -> 1200.1 | N22: =IF(Snitkræfter!$B$44=0,"-",AW36) -> 1200.1 | O22: =IF(Snitkræfter!$B$44=0,"-",AX36) -> 500.1 | AP22: (m) | AQ22: (m) | AR22: (m) | AS22: (Mpa) | AT22: (Mpa) | AU22: (Mpa) | AV22: (m2) | AW22: (m) | AX22: (Mpa) | AY22: (Mpa) | AZ22: (m2) | BA22: (m) | BB22: (Mpa) | BC22: (Mpa) | BD22: (døgn) | BF22: (m) | BH22: (m2) | BI22: (m) | BJ22: (m2) | BK22: (m) | BL22: e1 | BN22: =IF($C$2=1,0.7*(AO23+8)^0.31/1000,Firsidig!$F$21) -> 0.0025
B23: Normalkræfter | C23: N0 | D23: NL | E23: NA | F23: Reaktioner | I23: R0 | J23: RL | K23: Mtot | L23: (kNm) | M23: =IF(Snitkræfter!$B$44=0,"-",AV37) -> 88.78358152 | N23: =IF(Snitkræfter!$B$44=0,"-",AW37) -> -105.5089686 | O23: =IF(Snitkræfter!$B$44=0,"-",AX37) -> 38.54280161 | AP23: =L7 -> 9 | AQ23: =BG38/1000 -> 0.4508789329 | AR23: =BG39/1000 -> 0.3308789329 | AS23: =L13 -> 25 | AT23: =L14/L16 -> 25 | AU23: =1000*22*((AS23+8)/10)^0.3/BG23 -> 31475.80621 | AX23: =O32*200000 -> 192801.9088 | AY23: =O13/L17 -> 449.2060403 | BB23: =O34*200000 -> 192801.9088 | BC23: =O14/L17 -> 449.2060403 | BD23: =BG49 -> 28 | BE23: =1+BG52 -> 1 | BF23: =0.125*BF43*Snitkræfter!$D$38^2 -> 0.05892139456 | BG23: =L16 -> 1 | BH23: =O9*(M9/1000)^2*PI()/4 -> 0.0006031857895 | BI23: =(N9-L33*Firsidig!D2)/1000 -> 0.01543946647 | BJ23: =O10*(M10/1000)^2*PI()/4 -> 0.0006031857895 | BK23: =(N10-L33*Firsidig!D11)/1000 -> 0.01543946647 | BL23: k | BN23: =1.05*AQ23*BN22/AP23 -> 0.0001315063554
B24: N (kN) | C24: =D24+E24 -> 850 | D24: 350 | E24: 500 | G24: Type | I24: =IF(Snitkræfter!D36=0,"simpel","indspændt") -> indspændt | J24: simpel | K24: e0 / (1+f) | L24: (o/oo) | M24: =IF(Snitkræfter!$B$44=0,"-",AV38) -> 0.4081991778 | N24: =IF(Snitkræfter!$B$44=0,"-",AW38) -> 0.4441845568 | O24: =IF(Snitkræfter!$B$44=0,"-",AX38) -> 0.1578856866
B25: sA (m) | C25: 0 | D25: =L7 -> 9 | E25: 4.5 | G25: R | H25: (kN) | I25: =(Snitkræfter!$G$95+Snitkræfter!$G$62)*1000 -> 52.99839127 | J25: =(Snitkræfter!$U$95+Snitkræfter!$U$62)*1000 -> 11.75160873 | K25: sc0 | L25: (Mpa) | M25: =IF(Snitkræfter!$B$44=0,"-",AV39) -> 6.109689691 | N25: =IF(Snitkræfter!$B$44=0,"-",AW39) -> 6.644135521 | O25: =IF(Snitkræfter!$B$44=0,"-",AX39) -> 2.367987065 | AP25: L | AQ25: =L7 -> 9 | AR25: m | AT25: p_0 | AV25: p_10 | AZ25: =Snitkræfter!G47 -> 0 | BA25: =Snitkræfter!H47 -> 1 | BB25: =Snitkræfter!I47 -> 2 | BC25: =Snitkræfter!J47 -> 2.222222222 | BD25: =Snitkræfter!K47 -> 3 | BE25: =Snitkræfter!L47 -> 4 | BF25: =Snitkræfter!M47 -> 5 | BG25: =Snitkræfter!N47 -> 5.000011111 | BH25: =Snitkræfter!O47 -> 6.111111111 | BI25: =Snitkræfter!P47 -> 7 | BJ25: =Snitkræfter!Q47 -> 8 | BK25: =Snitkræfter!R47 -> 9 | BL25: =Snitkræfter!S47 -> 10 | BM25: =Snitkræfter!T47 -> 10 | BN25: =Snitkræfter!U47 -> 10
B26: exc. (mm) | C26: 20 | D26: 115 | E26: 115 | K26: sst | L26: (Mpa) | M26: =IF(Snitkræfter!$B$44=0,"-",AV40) -> -46.27409856 | N26: =IF(Snitkræfter!$B$44=0,"-",AW40) -> -32.96771671 | O26: =IF(Snitkræfter!$B$44=0,"-",AX40) -> -17.80051374 | AP26: N10 | AQ26: =D24/1000 -> 0.35 | AR26: MN | AT26: =G22/1000 -> 0.002 | AU26: MN/m | AV26: =H22/1000 -> 0.002 | AW26: MN/m | AY26: u_skønnet | AZ26: =Snitkræfter!$B$44*1000*Snitkræfter!G48 -> 0 | BA26: =Snitkræfter!$B$44*1000*Snitkræfter!H48 -> 0.6999737054 | BB26: =Snitkræfter!$B$44*1000*Snitkræfter!I48 -> 2.421562491 | BC26: =Snitkræfter!$B$44*1000*Snitkræfter!J48 -> 2.880508308 | BD26: =Snitkræfter!$B$44*1000*Snitkræfter!K48 -> 4.461464294 | BE26: =Snitkræfter!$B$44*1000*Snitkræfter!L48 -> 6.091974519 | BF26: =Snitkræfter!$B$44*1000*Snitkræfter!M48 -> 6.750077414 | BG26: =Snitkræfter!$B$44*1000*Snitkræfter!N48 -> 6.750077783 | BH26: =Snitkræfter!$B$44*1000*Snitkræfter!O48 -> 6.566536628 | BI26: =Snitkræfter!$B$44*1000*Snitkræfter!P48 -> 5.995614041 | BJ26: =Snitkræfter!$B$44*1000*Snitkræfter!Q48 -> 4.724012801 | BK26: =Snitkræfter!$B$44*1000*Snitkræfter!R48 -> 2.731489655 | BL26: =Snitkræfter!$B$44*1000*Snitkræfter!S48 -> -4.380176777e-16 | BM26: =Snitkræfter!$B$44*1000*Snitkræfter!T48 -> -4.380176777e-16 | BN26: =Snitkræfter!$B$44*1000*Snitkræfter!U48 -> -4.380176777e-16
B27: Geometri | K27: ssc | L27: (Mpa) | M27: =IF(Snitkræfter!$B$44=0,"-",AV41) -> 201.1102835 | N27: =IF(Snitkræfter!$B$44=0,"-",AW41) -> 216.6662289 | O27: =IF(Snitkræfter!$B$44=0,"-",AX41) -> 77.77441524 | AP27: Na | AQ27: =E24/1000 -> 0.5 | AR27: MN | AT27: =I22/1000 -> 0.003 | AU27: MN/m | AV27: =J22/1000 -> 0 | AW27: MN/m | AY27: u_kontrol | AZ27: =Snitkræfter!$B$44*1000*Snitkræfter!G49 -> 0 | BA27: =Snitkræfter!$B$44*1000*Snitkræfter!H49 -> 0.6912757078 | BB27: =Snitkræfter!$B$44*1000*Snitkræfter!I49 -> 2.38576461 | BC27: =Snitkræfter!$B$44*1000*Snitkræfter!J49 -> 2.836290976 | BD27: =Snitkræfter!$B$44*1000*Snitkræfter!K49 -> 4.389364646 | BE27: =Snitkræfter!$B$44*1000*Snitkræfter!L49 -> 5.996213484 | BF27: =Snitkræfter!$B$44*1000*Snitkræfter!M49 -> 6.649221042 | BG27: =Snitkræfter!$B$44*1000*Snitkræfter!N49 -> 6.64922146 | BH27: =Snitkræfter!$B$44*1000*Snitkræfter!O49 -> 6.474348889 | BI27: =Snitkræfter!$B$44*1000*Snitkræfter!P49 -> 5.915725829 | BJ27: =Snitkræfter!$B$44*1000*Snitkræfter!Q49 -> 4.663775874 | BK27: =Snitkræfter!$B$44*1000*Snitkræfter!R49 -> 2.697667189 | BL27: =Snitkræfter!$B$44*1000*Snitkræfter!S49 -> 0 | BM27: =Snitkræfter!$B$44*1000*Snitkræfter!T49 -> 0 | BN27: =Snitkræfter!$B$44*1000*Snitkræfter!U49 -> 0
K28: x | L28: (mm) | M28: =IF(Snitkræfter!$B$44=0,"-",AV42) -> 605.520539 | N28: =IF(Snitkræfter!$B$44=0,"-",AW42) -> 555.3759018 | O28: =IF(Snitkræfter!$B$44=0,"-",AX42) -> 604.6578192 | AT28: P | AV28: x | AZ28: 1
K29: Brandtid: | L29: 120 | M29: Reduktionsparametre | AP29: a | AQ29: =E25 -> 4.5 | AR29: m | AT29: =C21/1000 -> 0.015 | AU29: MN | AV29: =C22 -> 5.5 | AW29: m | AZ29: =AZ25 -> 0 | BA29: 1 | BB29: 2 | BC29: 2.222222222 | BD29: 3 | BE29: 4 | BF29: 5 | BG29: 5.000011111 | BH29: 6.111111111 | BI29: 7 | BJ29: 8 | BK29: 9 | BL29: 10 | BM29: 10 | BN29: 10
K30: =INDEX(BE36:BE37,BE35,1) -> Tilslag: Søsand / granit | M30: Beton: | N30: kc,M | O30: =Firsidig!E21 -> 1 | AP30: e_N10 | AQ30: =D26/1000 -> 0.115 | AR30: m | AT30: =D21/1000 -> 0.001 | AU30: MN | AV30: =D22 -> 2 | AW30: m | AY30: M_o | AZ30: =1000*Snitkræfter!G55 -> -107.6356987 | BA30: =1000*Snitkræfter!H55 -> -60.32995518 | BB30: =1000*Snitkræfter!I55 -> -16.33616552 | BC30: =1000*Snitkræfter!J55 -> -7.043028842 | BD30: =1000*Snitkræfter!K55 -> 23.35754531 | BE30: =1000*Snitkræfter!L55 -> 59.07074763 | BF30: =1000*Snitkræfter!M55 -> 86.76666127 | BG30: =1000*Snitkræfter!N55 -> 6.26699185 | BH30: =1000*Snitkræfter!O55 -> 37.72594312 | BI30: =1000*Snitkræfter!P55 -> 44.53710108 | BJ30: =1000*Snitkræfter!Q55 -> 49.61643698 | BK30: =1000*Snitkræfter!R55 -> 51.95567956 | BL30: =1000*Snitkræfter!S55 -> 51.55347037 | BM30: =1000*Snitkræfter!T55 -> 51.55347037 | BN30: =1000*Snitkræfter!U55 -> 51.55347037
K31: =INDEX(BE39:BE41,BE38,1) -> Stål: Bratkølet | M31: Armering: | N31: fsy,q / fyk | O31: =Firsidig!E35 -> 0.8167382551 | AP31: e_Na | AQ31: =E26/1000 -> 0.115 | AR31: m | AT31: =E21/1000 -> 0.01 | AU31: MN | AV31: =E22 -> 10 | AW31: m | AY31: M_tot | AZ31: =1000*Snitkræfter!G61 -> -105.5089686 | BA31: =1000*Snitkræfter!H61 -> -59.14610868 | BB31: =1000*Snitkræfter!I61 -> -15.9313107 | BC31: =1000*Snitkræfter!J61 -> -6.798599848 | BD31: =1000*Snitkræfter!K61 -> 23.0354629 | BE31: =1000*Snitkræfter!L61 -> 57.95096661 | BF31: =1000*Snitkræfter!M61 -> 88.78358152 | BG31: =1000*Snitkræfter!N61 -> 8.283900211 | BH31: =1000*Snitkræfter!O61 -> 38.54280161 | BI31: =1000*Snitkræfter!P61 -> 44.37813271 | BJ31: =1000*Snitkræfter!Q61 -> 48.33322352 | BK31: =1000*Snitkræfter!R61 -> 49.49785339 | BL31: =1000*Snitkræfter!S61 -> 47.863 | BM31: =1000*Snitkræfter!T61 -> 47.863 | BN31: =1000*Snitkræfter!U61 -> 47.863
N32: Es,q / Es | O32: =Firsidig!E34 -> 0.9640095439 | AP32: e0 | AQ32: =C26/1000 -> 0.02 | AR32: m | AZ32: 1
K33: Randzone, a | L33: =IF(C24>0,Firsidig!E24*1000,Firsidig!E23*1000) -> 44.56053353 | M33: Trækarm: | N33: fsy,q / fyk | O33: =Firsidig!E41 -> 0.8167382551 | AP33: x | AQ33: =O21 -> 0 | AR33: m
N34: Es,q / Es | O34: =Firsidig!E40 -> 0.9640095439
B35: Vejledning: | C35: PC-statik: Tværsnitsanalyse for søjler og bjælker efter EC2 | J35: Udgivet på www.bef.dk juni 2012 | K35: NB: Resultaterne skal altid kontrolleres af ansvarlig statiker | AP35: Beregning af krybetal | AV35: =Snitkræfter!D64 -> 6 | AW35: =Snitkræfter!D67 -> 0 | AZ35: Revnevidder | BA35: Max M | BB35: Min M | BC35: Valgt | BE35: 2
AP36: to | AQ36: =BG49 -> 28 | AT36: NEd | AU36: (kN) | AV36: =INDEX(Resultat,77+$AV$35*100,14)*1000 -> 1200.1 | AW36: =INDEX(Resultat,77+$AW$35*100,14)*1000 -> 1200.1 | AX36: =A0!O1578*1000 -> 500.1 | AZ36: h | BA36: =O6/1000 -> 0.54 | BB36: =BA36 -> 0.54 | BC36: =BA36 -> 0.54 | BE36: Tilslag: Kvartsholdigt | BJ36: =Kold!C21 -> 20 | BK36: =Kold!D21 -> 1 | BL36: =Kold!E21 -> 10
AP37: RH | AQ37: =BG48*100 -> 68 | AT37: Mtot | AU37: (kNm) | AV37: =INDEX(Snitkræfter!$G$292:$U$292,1,1+AV35)*1000 -> 88.78358152 | AW37: =INDEX(Snitkræfter!$G$292:$U$292,1,1+AW35)*1000 -> -105.5089686 | AX37: =A0!Q1508*1000 -> 38.54280161 | AZ37: b | BA37: =O7/1000 -> 0.42 | BB37: =BA37 -> 0.42 | BC37: =BA37 -> 0.42 | BE37: Tilslag: Søsand / granit | BJ37: =Kold!C22 -> 5.5 | BK37: =Kold!D22 -> 2 | BL37: =Kold!E22 -> 10 | BN37: =Kold!G22 -> 3 | BO37: =Kold!H22 -> 3 | BP37: =Kold!I22 -> 3 | BQ37: =Kold!J22 -> 0
AP38: h | AQ38: =O6 -> 540 | AT38: e0 / (1+f) | AU38: (o/oo) | AV38: =INDEX(Resultat,97+$AV$35*100,2)*1000 -> 0.4081991778 | AW38: =INDEX(Resultat,97+$AW$35*100,2)*1000 -> 0.4441845568 | AX38: =A0!C1578*1000 -> 0.1578856866 | AZ38: d | BA38: =IF(M23>=0,$M$10,$M$9)/1000 -> 0.016 | BB38: =IF(N23>=0,$M$10,$M$9)/1000 -> 0.016 | BC38: =IF(O23>=0,$M$10,$M$9)/1000 -> 0.016 | BE38: 2 | BF38: h | BG38: =O6-(Firsidig!D2+Firsidig!D11)*L33 -> 450.8789329
AP39: b | AQ39: =O7 -> 420 | AT39: sc0 | AU39: (Mpa) | AV39: =(3*AV38/1000*$AT$23)/($BN$22*(2+((AV38/1000)/$BN$22)^3)) -> 6.109689691 | AW39: =(3*AW38/1000*$AT$23)/($BN$22*(2+((AW38/1000)/$BN$22)^3)) -> 6.644135521 | AX39: =(3*AX38/1000*$AT$23)/($BN$22*(2+((AX38/1000)/$BN$22)^3)) -> 2.367987065 | AZ39: n | BA39: =IF(M23>=0,$O$10,$O$9) -> 3 | BB39: =IF(N23>=0,$O$10,$O$9) -> 3 | BC39: =IF(O23>=0,$O$10,$O$9) -> 3 | BE39: Stål: Varmvalset | BF39: b | BG39: =O7-(Firsidig!B6+Firsidig!F6)*L33 -> 330.8789329 | BK39: =Kold!D24 -> 500 | BL39: =Kold!E24 -> 700
AP40: ho | AQ40: =2*AQ38*AQ39/(2*(AQ38+AQ39)) -> 236.25 | AT40: sst | AU40: (Mpa) | AV40: =INDEX(Resultat,97+$AV$35*100,11) -> -46.27409856 | AW40: =INDEX(Resultat,97+$AW$35*100,11) -> -32.96771671 | AX40: =A0!L1578 -> -17.80051374 | AZ40: fck | BA40: =L13 -> 25 | BB40: =BA40 -> 25 | BC40: =BA40 -> 25 | BE40: Stål: Bratkølet | BF40: ac | BG40: =N9-L33 -> 15.43946647 | BL40: =Kold!E25 -> 4.5
AP41: fck | AQ41: =L13 -> 25 | AT41: ssc | AU41: (Mpa) | AV41: =INDEX(Resultat,97+$AV$35*100,9) -> 201.1102835 | AW41: =INDEX(Resultat,97+$AW$35*100,9) -> 216.6662289 | AX41: =A0!J1578 -> 77.77441524 | AZ41: fctm | BA41: =0.3*BA40^(2/3) -> 2.56496392 | BB41: =0.3*BB40^(2/3) -> 2.56496392 | BC41: =0.3*BC40^(2/3) -> 2.56496392 | BE41: Stål: Kolddeformeret | BF41: at | BG41: =N10-L33 -> 15.43946647 | BJ41: =Kold!C26 -> 20 | BK41: =Kold!D26 -> 115 | BL41: =Kold!E26 -> 115
AP42: fcm | AQ42: =AQ41+8 -> 33 | AT42: x | AU42: (mm) | AV42: =INDEX(Resultat,97+$AV$35*100,1)*1000 -> 605.520539 | AW42: =INDEX(Resultat,97+$AW$35*100,1)*1000 -> 555.3759018 | AX42: =A0!B1578*1000 -> 604.6578192 | AZ42: Ec | BA42: =22000*((BA40+8)/10)^0.3 -> 31475.80621 | BB42: =22000*((BB40+8)/10)^0.3 -> 31475.80621 | BC42: =22000*((BC40+8)/10)^0.3 -> 31475.80621 | BE42: =IF(BE38=1,"Q",IF(BE38=2,"AC","C")) -> AC
AP43: a1 | AQ43: =IF(AQ42<35,1,(35/AQ42)^0.7) -> 1 | AT43: EI0Ed | AU43: (MNm2) | AV43: =INDEX(Resultat,98+$AV$35*100,26) -> 44.8085366 | AW43: =INDEX(Resultat,98+$AW$35*100,26) -> -48.94375924 | AX43: =A0!AA1579 -> 54.01816429 | AZ43: Es | BA43: 200000 | BB43: 200000 | BC43: 200000 | BE43: k revnet | BF43: =1.1*MAX(Firsidig!X34,Firsidig!X30)/(100000*(BG38/1000-BG41/1000)) -> 0.008313424276 | BG43: m_-1
AP44: a2 | AQ44: =IF(AQ42<35,1,(35/AQ42)^0.2) -> 1 | AT44: e0 /fe1 | AV44: =0.001*AV38/$BN$22 -> 0.1632796711 | AW44: =0.001*AW38/$BN$22 -> 0.1776738227 | AX44: =0.001*AX38/$BN$22 -> 0.06315427465 | AZ44: At | BA44: =BA39*BA38^2*PI()/4 -> 0.0006031857895 | BB44: =BB39*BB38^2*PI()/4 -> 0.0006031857895 | BC44: =BC39*BC38^2*PI()/4 -> 0.0006031857895 | BE44: k urevnet | BF44: =1.1*MAX(Firsidig!V13,Firsidig!N6)/(100000*(BG38/1000)) -> 0.008467979494 | BG44: m_-1
AP45: f | AQ45: =(1/(0.1+AQ36^0.2))*(16.8/AQ42^0.5)*(1+10*AQ43*(1-AQ37/100)/AQ40^(1/3))*AQ44 -> 2.167904645 | AZ45: at | BA45: =IF(M23>=0,$N$10,$N$9)/1000 -> 0.06 | BB45: =IF(N23>=0,$N$10,$N$9)/1000 -> 0.06 | BC45: =IF(O23>=0,$N$10,$N$9)/1000 -> 0.06
AT46: =Snitkræfter!X80 -> 2 | AZ46: hc | BA46: =IF(BA47=0,0,M28/1000) -> 0 | BB46: =IF(BB47=0,0,N28/1000) -> 0 | BC46: =IF(BC47=0,0,O28/1000) -> 0
AT47: p_2 i 0 < s < L | AZ47: sat2 | BA47: =MAX(M26,0) -> 0 | BB47: =MAX(N26,0) -> 0 | BC47: =MAX(O26,0) -> 0
AP48: Tilstand | AR48: =Kold!AR48 -> 1 | AT48: p_2 i 0 < s < a | AZ48: (1+ f) | BA48: =1+$BG$52 -> 1 | BB48: =1+$BG$52 -> 1 | BC48: =1+$BG$52 -> 1 | BE48: Krybetal | BF48: RH | BG48: =Kold!O15 -> 0.68 | BI48: Brandpåvirkning
AT49: p_2 i a < s < L | AZ49: aeff | BA49: =BA48*BA43/BA42 -> 6.354086649 | BB49: =BB48*BB43/BB42 -> 6.354086649 | BC49: =BC48*BC43/BC42 -> 6.354086649 | BF49: to | BG49: =Kold!O16 -> 28 | BJ49: Overside | BK49: 1
AZ50: kt | BA50: 0.4 | BB50: 0.4 | BC50: 0.4 | BF50: fo | BG50: =AQ45 -> 2.167904645 | BK50: Ja
AZ51: x1 | BA51: 0 | BB51: 0 | BC51: 0 | BF51: M0Eqp/M0Ed | BG51: 0 | BK51: Nej
AP52: Fejltabel | AU52: =MIN(AU53:AU84) -> 0 | AV52: =AV53&AV54&AV55&AV56&AV57&AV58&AV59&AV60&AV61&AV62&AV63&AV64&AV65&AV66&AV67&AV68&AV69 -> Program indstillet til kold tilstand ! | AZ52: As | BA52: =BA44 -> 0.0006031857895 | BB52: =BB44 -> 0.0006031857895 | BC52: =BC44 -> 0.0006031857895 | BF52: fef | BG52: =BG51*BG50 -> 0 | BJ52: Underside | BK52: 1
AP53: Kun tværlaste og excentriciteter må have negative værdier ! | AU53: =IF(MIN(O6,O7,M9,N9,O9,M10,N10,O10,N11,L16,L17,O15,O16,O18,D24+0.0000001,E24+0.0000001)>0,1,0) -> 1 | AV53: =IF(AU53=0,AP53,"") ->  | AZ53: d | BA53: =BA36-BA45 -> 0.48 | BB53: =BB36-BB45 -> 0.48 | BC53: =BC36-BC45 -> 0.48 | BK53: Ja
AP54: Punkt A skal ligge i intervalet [0;L] ! | AU54: =IF(AND(E25>=0,E25<=L7),1,0) -> 1 | AV54: =IF(AU54=0,AP54,"") ->  | AZ54: hc,eff | BA54: =MIN(2.5*(BA36-BA53),(BA36-BA46)/3,BA36/2) -> 0.15 | BB54: =MIN(2.5*(BB36-BB53),(BB36-BB46)/3,BB36/2) -> 0.15 | BC54: =MIN(2.5*(BC36-BC53),(BC36-BC46)/3,BC36/2) -> 0.15 | BK54: Nej
AP55: Analyse-snit skal indlægges i intervalet [0;L] ! | AU55: =IF(AND(O21>=0,O21<=L7),1,0) -> 1 | AZ55: Ac,eff | BA55: =BA54*BA37 -> 0.063 | BB55: =BB54*BB37 -> 0.063 | BC55: =BC54*BC37 -> 0.063 | BJ55: Sider | BK55: 3
AP56: Armeringens kantafstand (c) skal være mindre end h/3 ! | AU56: =IF(AND(N9<=O6/3,N10<=O6/3),1,0) -> 1 | AZ56: rp,eff | BA56: =BA52/BA55 -> 0.009574377611 | BB56: =BB52/BB55 -> 0.009574377611 | BC56: =BC52/BC55 -> 0.009574377611 | BK56: Ingen
AP57: Armeringens sideafstand (c') skal være mindre end b/3 ! | AU57: =IF(N11<=O7/3,1,0) -> 1 | AZ57: esm-ecm | BA57: =MAX(BA47-BA50*BA41*(1+BA49*BA56)/BA56,0.6*BA47)/BA43 -> 0 | BB57: =MAX(BB47-BB50*BB41*(1+BB49*BB56)/BB56,0.6*BB47)/BB43 -> 0 | BC57: =MAX(BC47-BC50*BC41*(1+BC49*BC56)/BC56,0.6*BC47)/BC43 -> 0 | BK57: Èn side
AP58: Program indstillet til kold tilstand ! | AU58: =IF(AR48=-1,1,0) -> 0 | AV58: Program indstillet til kold tilstand ! | AZ58: seq | BA58: =BA38 -> 0.016 | BB58: =BB38 -> 0.016 | BC58: =BC38 -> 0.016 | BK58: To sider
AP59: Brandtid skal mindst være 15 min ! | AU59: =IF(L29>=15,1,0) -> 1 | AV59: =IF(AU59=0,AP59,"") ->  | AZ59: c | BA59: =BA36-BA53-0.5*BA58 -> 0.052 | BB59: =BB36-BB53-0.5*BB58 -> 0.052 | BC59: =BC36-BC53-0.5*BC58 -> 0.052 | BI59: Input til firsidig
AU60: 1 | AZ60: k1 | BA60: 0.8 | BB60: 0.8 | BC60: 0.8 | BJ60: =IF(BK49=1,1,0) -> 1
AP61: Betonstyrken (f_ck) skal ligge i intervalet [16 MPa ; 50 MPa] ! | AU61: =IF(AND(L13>=16,L13<=50),1,0) -> 1 | AV61: =IF(AU61=0,AP61,"") ->  | AZ61: k2 | BA61: 0.5 | BB61: 0.5 | BC61: 0.5 | BI61: =IF(BK55=1,0,1) -> 1 | BK61: =IF(BK55=3,1,0) -> 1
AP62: Armeringsstyrken (f_yk) skal ligge i intervalet [400 MPa , 600 MPa] ! | AU62: =IF(AND(O12>=400,O12<=600),1,0) -> 1 | AV62: =IF(AU62=0,AP62,"") ->  | AZ62: k3 | BA62: 3.4 | BB62: 3.4 | BC62: 3.4 | BJ62: =IF(BK52=1,1,0) -> 1
AP63: Partialkoefficienter skal mindst være 1,0 ! | AU63: =IF(AND(L16>=1,L17>=1),1,0) -> 1 | AV63: =IF(AU63=0,AP63,"") ->  | AZ63: k4 | BA63: 0.425 | BB63: 0.425 | BC63: 0.425 | BI63: Krumning | BK63: 2
AP64: L skal være større end 2h ! | AU64: =IF(L7>=2*O6/1000,1,0) -> 1 | AV64: =IF(AU64=0,AP64,"") ->  | AZ64: s,rmaks | BA64: =MIN(1.3*(BA36-BA46),BA62*BA59+BA60*BA61*BA63*BA58/BA56) -> 0.4608915734 | BB64: =MIN(1.3*(BB36-BB46),BB62*BB59+BB60*BB61*BB63*BB58/BB56) -> 0.4608915734 | BC64: =MIN(1.3*(BC36-BC46),BC62*BC59+BC60*BC61*BC63*BC58/BC56) -> 0.4608915734 | BJ64: =IF(OR(BK49=1,BK52=1),"Fuld termisk krumning","Ingen termisk krumning") -> Fuld termisk krumning
AP65: b og h skal mindst være 80 mm | AU65: =IF(MIN(O6,O7)>80,1,0) -> 1 | AV65: =IF(AU65=0,AP65,"") ->  | AZ65: wk | BA65: =1000*BA64*BA57 -> 0 | BB65: =1000*BB64*BB57 -> 0 | BC65: =1000*BC64*BC57 -> 0 | BJ65: =IF(BK49=1,"Ingen termisk udvidelse på overside",IF(BK52=2,"Ingen termisk krumning","Kun termisk udvidelse på underside")) -> Ingen termisk udvidelse på overside
AU66: 1 | BJ66: =IF(BK52=1,"Ingen termisk udvidelse på underside",IF(BK49=2,"Ingen termisk krumning","Kun termisk udvidelse på overside")) -> Ingen termisk udvidelse på underside
AU67: 1
AU68: 1
AP69: Alle parametre af typen s skal være mindst 0 ! | AU69: =IF(MIN(C22,D22,E22,E25,O21)>=0,1,0) -> 1

Sheet Snitkræfter
B2: Spændvidde | C2: L | D2: =IF($C$21=1,Kold!AQ25,Brand!AQ25) -> 9 | E2: m | S2: x_Na | T2: =MIN(MAX(D6,$T$16/100),$T$16) -> 4.5 | U2: =T2 -> 4.5 | V2: =IF(U2=U$18,$T$16,U2) -> 4.5 | W2: 4.5 | X2: 4.5 | Y2: 4.5 | Z2: 4.5 | AA2: 4.5 | AB2: 9 | AC2: 9 | AD2: 9 | AE2: 9 | AF2: 9 | AG2: 9 | AH2: 9 | AI2: 9
B3: Normalkraft i punkt 10 | C3: N10 | D3: =MAX(IF($C$21=1,Kold!AQ26,Brand!AQ26),0.00001) -> 0.5 | E3: MN | S3: x_P1 | T3: =MIN(MAX(E87,$T$16/100),$T$16) -> 5.5 | U3: =T3 -> 5.5 | V3: =IF(U3=U$18,$T$16,U3) -> 5.5 | W3: 5.5 | X3: 5.5 | Y3: 5.5 | Z3: 5.5 | AA3: 5.5 | AB3: 5.5 | AC3: 5.5 | AD3: 9 | AE3: 9 | AF3: 9 | AG3: 9 | AH3: 9 | AI3: 9
B4: Normalkraft i punkt a | C4: Na | D4: =IF($C$21=1,IF(Kold!AQ29=0,0,Kold!AQ27),IF(Brand!AQ29=0,0,Brand!AQ27)) -> 0.7 | E4: MN | F4: Min exc. | S4: x_P2 | T4: =MIN(MAX(E88,$T$16/100),$T$16) -> 2 | U4: 2 | V4: =IF(U4=U$18,$T$16,U4) -> 2 | W4: 2 | X4: 2 | Y4: 9 | Z4: 9 | AA4: 9 | AB4: 9 | AC4: 9 | AD4: 9 | AE4: 9 | AF4: 9 | AG4: 9 | AH4: 9 | AI4: 9
B5: Normalkraft i punkt 0 | C5: N0 | D5: =D4+D3 -> 1.2 | E5: MN | F5: =0.03*Stivheder!C6 -> 0.0162 | S5: x_P3 | T5: =MIN(MAX(E89,$T$16/100),$T$16) -> 9 | U5: 9 | V5: =IF(U5=U$18,$T$16,U5) -> 9 | W5: 9 | X5: 9 | Y5: 9 | Z5: 9 | AA5: 9 | AB5: 9 | AC5: 9 | AD5: 9 | AE5: 9 | AF5: 9 | AG5: 9 | AH5: 9 | AI5: 9
B6: Afstand fra punkt 0 til Na | C6: a | D6: =IF($C$21=1,Kold!AQ29,Brand!AQ29) -> 4.5 | E6: m | F6: Forsætning | S6: 0 | T6: =0 -> 0 | U6: 0 | V6: =IF(U6=U$18,$T$16,U6) -> 9 | W6: 9 | X6: 9 | Y6: 9 | Z6: 9 | AA6: 9 | AB6: 9 | AC6: 9 | AD6: 9 | AE6: 9 | AF6: 9 | AG6: 9 | AH6: 9 | AI6: 9
B7: Excentriciteter | C7: e_N10 | D7: =IF($C$21=1,IF(Kold!AQ30>=0,1,-1)*MAX(ABS(Kold!AQ30),$F$5),IF(Brand!AQ30+F9>=0,1,-1)*MAX(ABS(Brand!AQ30+F9),$F$5)) -> 0.115 | E7: m | F7: og krybetillæg | S7: 1 | T7: =IF(AND(T6<=$T$2,$T$2<$T$16*S7/10),$T$2+0.00001,$T$16*S7/10) -> 0.9 | U7: 0.9 | V7: =IF(U7=U$18,$T$16,U7) -> 0.9 | W7: 9 | X7: 9 | Y7: 9 | Z7: 9 | AA7: 9 | AB7: 9 | AC7: 9 | AD7: 9 | AE7: 9 | AF7: 9 | AG7: 9 | AH7: 9 | AI7: 9
C8: e_Na | D8: =IF($C$21=1,IF(Kold!AQ31>=0,1,-1)*MAX(ABS(Kold!AQ31),$F$5),IF(Brand!AQ31+F9>=0,1,-1)*MAX(ABS(Brand!AQ31+F9),$F$5)) -> 0.115 | E8: m | F8: De - brand | S8: 2 | T8: =IF(AND(T7<=$T$2,$T$2<$T$16*S8/10),$T$2+0.00001,$T$16*S8/10) -> 1.8 | U8: 1.8 | V8: =IF(U8=U$18,$T$16,U8) -> 1.8 | W8: 1.8 | X8: 9 | Y8: 9 | Z8: 9 | AA8: 9 | AB8: 9 | AC8: 9 | AD8: 9 | AE8: 9 | AF8: 9 | AG8: 9 | AH8: 9 | AI8: 9
C9: e0 | D9: =IF($C$21=1,IF(Kold!AQ32>=0,1,-1)*MAX(ABS(Kold!AQ32),$F$5),IF(Brand!AQ32+F9>=0,1,-1)*MAX(ABS(Brand!AQ32+F9),$F$5)) -> 0.02 | E9: m | F9: =IF(C21=1,0,0.5*(Firsidig!E25-Firsidig!E27))+Stivheder!F538 -> 0.004746128981 | S9: 3 | T9: 2.7 | U9: 2.7 | V9: =IF(U9=U$18,$T$16,U9) -> 2.7 | W9: 2.7 | X9: 2.7 | Y9: 2.7 | Z9: 9 | AA9: 9 | AB9: 9 | AC9: 9 | AD9: 9 | AE9: 9 | AF9: 9 | AG9: 9 | AH9: 9 | AI9: 9
B10: Ekstra tværsnitsanalyse i snit | C10: x | D10: =IF($C$21=1,Kold!AQ33,Brand!AQ33) -> 5.5 | E10: m | S10: 4 | T10: 3.6 | U10: 3.6 | V10: =IF(U10=U$18,$T$16,U10) -> 3.6 | W10: 3.6 | X10: 3.6 | Y10: 3.6 | Z10: 3.6 | AA10: 9 | AB10: 9 | AC10: 9 | AD10: 9 | AE10: 9 | AF10: 9 | AG10: 9 | AH10: 9 | AI10: 9
S11: 5 | T11: 4.5 | U11: 4.5 | V11: =IF(U11=U$18,$T$16,U11) -> 4.5 | W11: 4.5 | X11: 4.5 | Y11: 4.5 | Z11: 4.5 | AA11: 4.5 | AB11: 9 | AC11: 9 | AD11: 9 | AE11: 9 | AF11: 9 | AG11: 9 | AH11: 9 | AI11: 9
B12: Indspænding i 1. endepunkt | S12: 6 | T12: =IF(AND(T11<=$T$2,$T$2<$T$16*S12/10),$T$2+0.00001,$T$16*S12/10) -> 4.50001 | U12: 4.50001 | V12: =IF(U12=U$18,$T$16,U12) -> 4.50001 | W12: 4.50001 | X12: 4.50001 | Y12: 4.50001 | Z12: 4.50001 | AA12: 4.50001 | AB12: 4.50001 | AC12: 9 | AD12: 9 | AE12: 9 | AF12: 9 | AG12: 9 | AH12: 9 | AI12: 9
S13: 7 | T13: 6.3 | U13: 6.3 | V13: =IF(U13=U$18,$T$16,U13) -> 6.3 | W13: 6.3 | X13: 6.3 | Y13: 6.3 | Z13: 6.3 | AA13: 6.3 | AB13: 6.3 | AC13: 6.3 | AD13: 6.3 | AE13: 9 | AF13: 9 | AG13: 9 | AH13: 9 | AI13: 9
B14: Belastninger | C14: p_0 | E14: p_10 | S14: 8 | T14: 7.2 | U14: 7.2 | V14: =IF(U14=U$18,$T$16,U14) -> 7.2 | W14: 7.2 | X14: 7.2 | Y14: 7.2 | Z14: 7.2 | AA14: 7.2 | AB14: 7.2 | AC14: 7.2 | AD14: 7.2 | AE14: 7.2 | AF14: 9 | AG14: 9 | AH14: 9 | AI14: 9
B15: Jævnt fordelt last | C15: =IF($C$21=1,Kold!AT26,Brand!AT26) -> 0.003 | D15: MN/m | E15: =IF($C$21=1,Kold!AV26,Brand!AV26) -> 0.003 | F15: MN/m | S15: 9 | T15: 8.1 | U15: 8.1 | V15: =IF(U15=U$18,$T$16,U15) -> 8.1 | W15: 8.1 | X15: 8.1 | Y15: 8.1 | Z15: 8.1 | AA15: 8.1 | AB15: 8.1 | AC15: 8.1 | AD15: 8.1 | AE15: 8.1 | AF15: 8.1 | AG15: 9 | AH15: 9 | AI15: 9
B16: Trekantlast | C16: =IF($C$21=1,Kold!AT27,Brand!AT27) -> 0.003 | D16: MN/m | E16: =IF($C$21=1,Kold!AV27,Brand!AV27) -> 0 | F16: MN/m | S16: L = | T16: =D2 -> 9 | U16: =T16 -> 9 | V16: =IF(U16=U$18,$T$16,U16) -> 9 | W16: 9 | X16: 9 | Y16: 9 | Z16: 9 | AA16: 9 | AB16: 9 | AC16: 9 | AD16: 9 | AE16: 9 | AF16: 9 | AG16: 9 | AH16: 9 | AI16: 9
B17: Punktlaste | C17: P | E17: x | S17: punkt | U17: 0 | V17: 1 | W17: 2 | X17: 3 | Y17: 4 | Z17: 5 | AA17: 6 | AB17: 7 | AC17: 8 | AD17: 9 | AE17: 10 | AF17: 11 | AG17: 12 | AH17: 13 | AI17: 14
C18: =IF($C$21=1,Kold!AT29,Brand!AT29) -> 0.02 | D18: MN | E18: =IF($C$21=1,Kold!AV29,Brand!AV29) -> 5.5 | F18: m | S18: x = | U18: =MIN(U2:U16) -> 0 | V18: 0.9 | W18: 1.8 | X18: 2 | Y18: 2.7 | Z18: 3.6 | AA18: 4.5 | AB18: 4.50001 | AC18: 5.5 | AD18: 6.3 | AE18: 7.2 | AF18: 8.1 | AG18: 9 | AH18: 9 | AI18: 9
C19: =IF($C$21=1,Kold!AT30,Brand!AT30) -> 0.001 | D19: MN | E19: =IF($C$21=1,Kold!AV30,Brand!AV30) -> 2 | F19: m
C20: =IF($C$21=1,Kold!AT31,Brand!AT31) -> 0.01 | D20: MN | E20: =IF($C$21=1,Kold!AV31,Brand!AV31) -> 10 | F20: m
B21: Tilstand (kold =1 / brand = -1) | C21: =Kold!AR48 -> 1 | D21: Dk,brand_rev | E21: =IF(C21=1,0,Brand!BF43) -> 0 | F21: m-1
D22: Dk,brand_urev | E22: =IF(C21=1,0,Brand!BF44) -> 0 | F22: m-1
B23: Maksimalt udgangsmoment | C23: M_max | D23: M_min | E23: | M_rev+ | | F23: | M_rev- |
B24: N = N_10: | C24: =MAX(G54:U54) -> 0.05195567956 | D24: =MIN(G54:U54) -> 0 | E24: =Stivheder!AA109 -> 0.04089655112 | F24: =Stivheder!AA309 -> 0.04089655112
B25: N = N_0: | C25: =MAX(G55:U55) -> 0.08676666127 | D25: =MIN(G55:U55) -> -0.1076356987 | E25: =Stivheder!AA9 -> 0.09815172268 | F25: =Stivheder!AA209 -> 0.09815172268
B26: Reaktioner | C26: R_0 | D26: =G95 -> 0.05323469462 | E26: MN
C27: R_10 | D27: =U95 -> 0.01151530538 | E27: MN | S27: =(MAX(G48:U48)-MIN(G48:U48)) -> 0.006750077783 | T27: =MAX(G48:U48)-MIN(G48:U48) -> 0.006750077783
B28: Moment-krumningsrelationer | C28: M_0 | D28: EI+ | E28: EI- | S28: =(MAX(G49:U49)-MIN(G49:U49)) -> 0.00664922146 | T28: =MAX(G49:U49)-MIN(G49:U49) -> 0.00664922146
C29: (MNm) | D29: (MNm2) | E29: (MNm2) | S29: =S27/S28 -> 1.01516814 | T29: =T28-T27 -> -0.0001008563227
B30: N = N_10: | C30: =-D3*Stivheder!$O$2 -> 0 | D30: =MIN(Stivheder!$AA$179,Stivheder!$Y$102) -> 52.65832451 | E30: =MIN(Stivheder!$AA$379,Stivheder!$Y$302) -> 53.41130259
B31: N = N_0: | C31: =-D5*Stivheder!O2 -> 0 | D31: =MIN(Stivheder!$AA$79,Stivheder!$Y$2) -> 45.09655981 | E31: =MIN(Stivheder!$AA$279,Stivheder!$Y$202) -> 44.34086277
B32: N = N_10, 90% M: | D32: =MIN(Stivheder!$AA$199,Stivheder!$Y$102) -> 52.65832451 | E32: =MIN(Stivheder!$AA$399,Stivheder!$Y$302) -> 53.41130259
B33: N = N_0, 90% M: | D33: =MIN(Stivheder!$AA$99,Stivheder!$Y$2) -> 45.09655981 | E33: =MIN(Stivheder!$AA$299,Stivheder!$Y$202) -> 44.34086277
B34: Flydeled i indspænding: | C34: =IF(SIGN(Y249)=-1,IF(AND($D$36=1,ABS(D25)>ABS(D34)),1,0),IF(AND($D$36=1,ABS(C25)>ABS(D34)),1,0)) -> 0 | D34: =IF(SIGN(Y249)=-1,-Stivheder!$N$433,Stivheder!$N$465)*IF(C21=1,1,0.8) -> -0.3386314221
B35: Interne kontrolparametre
B36: Indspændt i punkt 0 | D36: =E36-1 -> 1 | E36: 2
B37: Indspændt i punkt 10 | D37: 0
B38: Eff. søjlelængde | C38: =IF(AND(D36=0,D37=0),1,IF(AND(D36=1,D37=1),0.5,0.7)) -> 0.7 | D38: =D2*C38^0.5 -> 7.529940239 | E38: m
F39: NEJ
F40: JA
B41: Kontrol | C41: =IF($C$44=1,"# # # # INSTABIL KONSTRUKTION # # # #",$D$41) -> Stabilitet OK | D41: =IF(MAX(ABS(MAX(G110:U110)),ABS(MIN(G110:U110)),ABS(MAX(G110:U110)-MIN(G110:U110)))<0.003*Stivheder!Q433,"MOMENT UNDER BAGATELGRÆNSE",IF(OR($D$299=0,ABS(H49)-ABS(H48)>0.0001*$D$2,$F$196=1,$F$198=1,AND((MAX(G48:U48)-MIN(G48:U48))<0.98*(MAX(G49:U49)-MIN(G49:U49)),ABS(((MAX(G48:U48)-MIN(G48:U48)))-((MAX(G49:U49)-MIN(G49:U49))))>IF(C21=1,0.0001,0.0003)*$D$2)),"# # # # INSTABIL KONSTRUKTION # # # #","Stabilitet OK")) -> Stabilitet OK | F41: 1
B42: Udbøjningafvigelse | C42: Du/u | D42: =1-(MAX(G284:U284)/MAX(G297:U297)-MIN(G284:U284)/MAX(G297:U297)) -> -0.01516814011 | F42: =0.0001*D2 -> 0.0009
B43: Instabilitetsparameter | D43: =MAX(1,D44+2*D42) -> 1 | G43: =($D$2-G45)*G44 -> 4.05 | H43: =($D$2-H45)*H44 -> 7.29 | I43: 3.96 | J43: 3.15 | K43: 5.04 | L43: 4.86 | M43: 2.0250225 | N43: 2.249995 | O43: 3.1499825 | P43: 2.295 | Q43: 1.62 | R43: 0.81 | S43: 0 | T43: 0 | U43: 0 | V43: =SUM(G43:U43) -> 40.5
B44: =IF(MAX(ABS(MAX(G110:U110)),ABS(MIN(G110:U110)),ABS(MAX(G110:U110)-MIN(G110:U110)))<0.003*Stivheder!Q433,1,IF(OR($D$299=0,ABS(H49)-ABS(H48)>0.0001*$D$2,$F$196=1,$F$198=1,AND((MAX(G48:U48)-MIN(G48:U48))<0.98*(MAX(G49:U49)-MIN(G49:U49)),ABS(((MAX(G48:U48)-MIN(G48:U48)))-((MAX(G49:U49)-MIN(G49:U49))))>IF(C21=1,0.0001,0.0003)*$D$2)),0,1))*IF(C21=1,Kold!AU52,Brand!AU52) -> 1 | C44: =IF(ISERROR(B44),1,0) -> 0 | D44: 1 | F44: 0 | G44: =0.5*(H45-G45) -> 0.45 | H44: =0.5*(I45-G45) -> 0.9 | I44: =0.5*(J45-H45) -> 0.55 | J44: 0.45 | K44: 0.8 | L44: 0.9 | M44: 0.450005 | N44: 0.5 | O44: 0.899995 | P44: 0.85 | Q44: 0.9 | R44: 0.9 | S44: 0.45 | T44: 0 | U44: =0.5*(U45-T45) -> 0
B45: Modelkontrol | C45: x | E45: m | G45: =U18 -> 0 | H45: =V18 -> 0.9 | I45: 1.8 | J45: 2 | K45: 2.7 | L45: 3.6 | M45: 4.5 | N45: 4.50001 | O45: 5.5 | P45: 6.3 | Q45: 7.2 | R45: 8.1 | S45: 9 | T45: 9 | U45: 9
C46: Punkt | G46: 0 | H46: 1 | I46: 2 | J46: 3 | K46: 4 | L46: 5 | M46: 6 | N46: 7 | O46: 8 | P46: 9 | Q46: 10 | R46: 11 | S46: 12 | T46: 13 | U46: 14
G47: =10*G45/$D$2 -> 0 | H47: =10*H45/$D$2 -> 1 | I47: 2 | J47: 2.222222222 | K47: 3 | L47: 4 | M47: 5 | N47: 5.000011111 | O47: 6.111111111 | P47: 7 | Q47: =10*Q45/$D$2 -> 8 | R47: =10*R45/$D$2 -> 9 | S47: =10*S45/$D$2 -> 10 | T47: =10*T45/$D$2 -> 10 | U47: =10*U45/$D$2 -> 10
B48: Skønnet udbøjning | C48: u_skønnet | F48: u_skønnet | G48: =G284 -> 0 | H48: =H284 -> 0.0006999737054 | I48: 0.002421562491 | J48: 0.002880508308 | K48: 0.004461464294 | L48: 0.006091974519 | M48: 0.006750077414 | N48: 0.006750077783 | O48: 0.006566536628 | P48: 0.005995614041 | Q48: 0.004724012801 | R48: 0.002731489655 | S48: -4.380176777e-19 | T48: -4.380176777e-19 | U48: -4.380176777e-19
B49: Udbøjninger efter omlejring | C49: u_beregnet | E49: m | F49: u_kontrol | G49: =G297 -> 0 | H49: =H297 -> 0.0006912757078 | I49: 0.00238576461 | J49: 0.002836290976 | K49: 0.004389364646 | L49: 0.005996213484 | M49: 0.006649221042 | N49: 0.00664922146 | O49: 0.006474348889 | P49: 0.005915725829 | Q49: 0.004663775874 | R49: 0.002697667189 | S49: 0 | T49: 0 | U49: 0
B50: Snitnormalkræfter | C50: N10 | E50: MN | G50: =$D$3 -> 0.5 | H50: =$D$3 -> 0.5 | I50: 0.5 | J50: 0.5 | K50: 0.5 | L50: 0.5 | M50: 0.5 | N50: 0.5 | O50: 0.5 | P50: 0.5 | Q50: 0.5 | R50: 0.5 | S50: 0.5 | T50: 0.5 | U50: 0.5
C51: Na | E51: MN | G51: =IF(G$45>$D$6,0,$D$4) -> 0.7 | H51: =IF(H$45>$D$6,0,$D$4) -> 0.7 | I51: 0.7 | J51: 0.7 | K51: 0.7 | L51: 0.7 | M51: 0.7 | N51: 0 | O51: 0 | P51: 0 | Q51: 0 | R51: 0 | S51: 0 | T51: 0 | U51: =IF(U$45>$D$6,0,$D$4) -> 0
C52: Ntot | E52: MN | G52: =G51+G50 -> 1.2 | H52: =H51+H50 -> 1.2 | I52: 1.2 | J52: 1.2 | K52: 1.2 | L52: 1.2 | M52: 1.2 | N52: 0.5 | O52: 0.5 | P52: 0.5 | Q52: =Q51+Q50 -> 0.5 | R52: =R51+R50 -> 0.5 | S52: =S51+S50 -> 0.5 | T52: =T51+T50 -> 0.5 | U52: =U51+U50 -> 0.5
C53: x_Na | E53: m | F53: =MAX(G53:U53) -> 4.5 | G53: =IF(G45=$D$6,G45,0) -> 0 | H53: =IF(H45=$D$6,H45,0) -> 0 | I53: 0 | J53: 0 | K53: 0 | L53: 0 | M53: 4.5 | N53: 0 | O53: 0 | P53: 0 | Q53: =IF(Q45=$D$6,Q45,0) -> 0 | R53: =IF(R45=$D$6,R45,0) -> 0 | S53: =IF(S45=$D$6,S45,0) -> 0 | T53: =IF(T45=$D$6,T45,0) -> 0 | U53: =IF(U45=$D$6,U45,0) -> 0
G54: =IF($D$6>=G$45,0,G55) -> 0 | H54: =IF($D$6>=H$45,0,H55) -> 0 | I54: =IF($D$6>=I$45,0,I55) -> 0 | J54: =IF($D$6>=J$45,0,J55) -> 0 | K54: 0 | L54: 0 | M54: 0 | N54: =IF($D$6>=N$45,0,N55) -> 0.00626699185 | O54: 0.03772594312 | P54: 0.04453710108 | Q54: 0.04961643698 | R54: 0.05195567956 | S54: 0.05155347037 | T54: 0.05155347037 | U54: =IF($D$6>=U$45,0,U55) -> 0.05155347037
B55: Første ordens snitmomenter | C55: =SUMPRODUCT(G44:U44,G56:U56)/D2 -> 48.68011706 | D55: Mo | E55: MNm | F55: Mo (MNm) | G55: =$F$41*Y249 -> -0.1076356987 | H55: -0.06032995518 | I55: -0.01633616552 | J55: -0.007043028842 | K55: 0.02335754531 | L55: 0.05907074763 | M55: 0.08676666127 | N55: 0.00626699185 | O55: 0.03772594312 | P55: 0.04453710108 | Q55: 0.04961643698 | R55: 0.05195567956 | S55: 0.05155347037 | T55: 0.05155347037 | U55: 0.05155347037
B56: 1. skønnede stivheder,indspændingseffekt | C56: =SUMPRODUCT(G43:U43,G56:U56)/V43 -> 46.6427348 | D56: MNm2 | G56: =IF(AND(G55>=0,G52=$D$5),IF(ABS(G55)>0.9*ABS($C$25),$D$31,$D$33),IF(AND(G55>=0,G52=$D$3),IF(ABS(G55)>0.9*ABS($C$24),$D$30,$D$32),IF(AND(G55<0,G52=$D$5),IF(ABS(G55)>0.9*ABS($D$25-$C$31),$E$31,$E$33),IF(ABS(G55)>0.9*ABS($D$24),$E$30,$E$32))))*$F$41 -> 44.34086277 | H56: 44.34086277 | I56: 44.34086277 | J56: 44.34086277 | K56: 45.09655981 | L56: 45.09655981 | M56: 45.09655981 | N56: 52.65832451 | O56: 52.65832451 | P56: 52.65832451 | Q56: 52.65832451 | R56: 52.65832451 | S56: 52.65832451 | T56: 52.65832451 | U56: 52.65832451
B57: Snitmomenter 2. skønnede stivheder | C57: Mtot | E57: MNm | F57: Mtot (MNm) | G57: =$F$41*G193 -> -0.1046392295 | H57: =$F$41*H193 -> -0.05833421078 | I57: -0.01510757231 | J57: -0.005968730762 | K57: 0.02387912786 | L57: 0.05877493356 | M57: 0.08951033707 | N57: 0.009010654363 | O57: 0.03912579452 | P57: 0.04483918573 | Q57: 0.04864848808 | R57: 0.04965901186 | S57: 0.04786299996 | T57: 0.04786299996 | U57: 0.04786299996
C58: |Mtot| | E58: =IF(E187=0,MIN(G199:U199),MIN(H199:U199)) -> -0.1046392295 | F58: =IF(E187=0,MAX(G199:U199),MAX(H199:U199)) -> 0.08951033704 | G58: =ABS(G193) -> 0.1046392295 | H58: =ABS(H193) -> 0.05833421078 | I58: 0.01510757231 | J58: 0.005968730762 | K58: 0.02387912786 | L58: 0.05877493356 | M58: 0.08951033707 | N58: 0.009010654363 | O58: 0.03912579452 | P58: 0.04483918573 | Q58: =ABS(Q193) -> 0.04864848808 | R58: =ABS(R193) -> 0.04965901186 | S58: =ABS(S193) -> 0.04786299996 | T58: =ABS(T193) -> 0.04786299996 | U58: =ABS(U193) -> 0.04786299996
B59: Nulpunktsmoment | C59: =IF(AND(E58=0,F58=0),A0!AA79,(F58-E58)/(F60-E60)) -> 48.12812674 | D59: MNm2 | G59: =IF(G52=$D$5,$C$31,$C$30) -> 0 | H59: =IF(H52=$D$5,$C$31,$C$30) -> 0 | I59: 0 | J59: 0 | K59: 0 | L59: 0 | M59: 0 | N59: 0 | O59: 0 | P59: 0 | Q59: 0 | R59: 0 | S59: 0 | T59: 0 | U59: 0
B60: Stivhed til 2. skønnede udbøjning | C60: =C56*C59/C55 -> 46.11384663 | D60: MNm2 | E60: =IF(E187=0,MIN(G60:U60),MIN(H60:U60)) -> -0.002174520722 | F60: =IF(E187=0,MAX(G60:U60),MAX(G60:U60)) -> 0.00185949389 | G60: =A0!$P$79 -> -0.002174520722 | H60: =A0!$P$179 -> -0.001218741969 | I60: =A0!$P$279 -> -0.0003245114716 | J60: =A0!$P$379 -> -0.0001363935396 | K60: =A0!$P$479 -> 0.0005047417909 | L60: =A0!$P$579 -> 0.001227557163 | M60: =A0!$P$679 -> 0.00185949389 | N60: =A0!$P$779 -> 0.0001753587277 | O60: =A0!$P$879 -> 0.0007249736722 | P60: =A0!$P$979 -> 0.0008300505582 | Q60: =A0!$P$1079 -> 0.0009007778029 | R60: =A0!$P$1179 -> 0.0009200781298 | S60: =A0!$P$1279 -> 0.0008859259052 | T60: =A0!$P$1379 -> 0.0008861606419 | U60: =A0!$P$1479 -> 0.0008859259052
B61: Endelige snitmomenter | F61: Mtot (MNm) | G61: =G292 -> -0.1055089686 | H61: =H292 -> -0.05914610868 | I61: -0.0159313107 | J61: -0.006798599848 | K61: 0.0230354629 | L61: 0.05795096661 | M61: 0.08878358152 | N61: 0.008283900211 | O61: 0.03854280161 | P61: 0.04437813271 | Q61: 0.04833322352 | R61: 0.04949785339 | S61: 0.047863 | T61: 0.047863 | U61: 0.047863
B62: Reaktionstillæg fra 2. ordens effekter | F62: DR (MN) | G62: =(G55-G61)/$D$2 -> -0.0002363033518 | U62: =-G62 -> 0.0002363033518
G63: =(G57-G59)/G60 -> 48.1205943 | H63: =(H57-H59)/H60 -> 47.86428322 | I63: 46.55481742 | J63: 43.76109588 | K63: 47.30959133 | L63: 47.8795899 | M63: 48.1369353 | N63: 51.3841226 | O63: 53.96857296 | P63: 54.01982481 | Q63: 54.00720125 | R63: 53.97260326 | S63: 54.02596276 | T63: 54.01165173 | U63: 54.02596276
B64: Tværsnitsanalyse ved max | C64: Punkt | D64: =MAX(G64:U64) -> 6 | G64: =IF(G292=$E$65,G46,0) -> 0 | H64: 0 | I64: 0 | J64: 0 | K64: 0 | L64: 0 | M64: 6 | N64: 0 | O64: 0 | P64: 0 | Q64: 0 | R64: 0 | S64: 0 | T64: 0 | U64: 0
C65: Mtot | D65: =ABS(MAX(G286:U286)) -> 0.08887305144 | E65: =MAX(G292:U292) -> 0.08878358152 | F65: =IF(ABS(INDEX(Resultat,97+D64*100,16))<0.99*ABS(D65),INDEX(Resultat,97+D64*100,16)*SIGN(E65),"") -> 
C66: EIberegn | D66: =INDIRECT("A0!$T$"&ROUND(D64*10/$D$2,0)*100+6) -> 54.02960495 | E66: MNm2
B67: Tværsnitsanalyse ved min | C67: x | D67: =MIN(G67:U67) -> 0 | G67: =IF(G292=$E$68,G46,$U$46) -> 0 | H67: 14 | I67: 14 | J67: 14 | K67: 14 | L67: 14 | M67: 14 | N67: 14 | O67: 14 | P67: 14 | Q67: 14 | R67: 14 | S67: 14 | T67: 14 | U67: 14
C68: Mtot | D68: =ABS(MIN(G286:U286)) -> 0.1053300287 | E68: =MIN(G292:U292) -> -0.1055089686 | F68: =IF(ABS(INDEX(Resultat,97+D67*100,16))<0.997*ABS(D68),INDEX(Resultat,97+D67*100,16)*SIGN(E68),"") -> 
C69: EIberegn | D69: =INDIRECT("A0!$T$"&ROUND(D67*10/$D$2,0)*100+6) -> 48.11857797 | E69: MNm2
B70: Tværsnitsanalyse i snit: | C70: x = | D70: =MIN(D10,0.9999999999*D2) -> 5.5 | E70: m | F70: =MAX(G70:U70) -> 5.5 | G70: =IF(AND($D$70>=G80,$D$70<H80),G80,0) -> 0 | H70: =IF(AND($D$70>=H80,$D$70<I80),H80,0) -> 0 | I70: 0 | J70: 0 | K70: 0 | L70: 0 | M70: 0 | N70: 0 | O70: 5.5 | P70: 0 | Q70: 0 | R70: 0 | S70: 0 | T70: 0 | U70: 0
C71: Nulpunkts-M | D71: =SUMPRODUCT(G59:U59,G71:U71) -> 0 | F71: =SUMPRODUCT(G71:U71,$G$292:$U$292) -> 0.03854280161 | G71: =IF(AND($D$70>=G80,$D$70<H80),1,0) -> 0 | H71: =IF(AND($D$70>=H80,$D$70<I80),1,0) -> 0 | I71: 0 | J71: 0 | K71: 0 | L71: 0 | M71: 0 | N71: 0 | O71: 1 | P71: 0 | Q71: 0 | R71: 0 | S71: 0 | T71: 0 | U71: 0
C72: Mtot | D72: =IF(F70=F73,F71,(F74*($D$70-$F$70)+F71*($F$73-$D$70))/($F$73-$F$70)) -> 0.03854280161 | E72: MNm | F72: =SUMPRODUCT(G71:U71,$G$297:$U$297) -> 0.006474348889
C73: u(X) | D73: =IF(F71=F74,F72,(F75*($D$70-$F$70)+F72*($F$73-$D$70))/($F$73-$F$70)) -> 0.006474348889 | E73: m | F73: =MAX(G73:U73) -> 6.3 | G73: =IF(AND($D$70>=F80,$D$70<G80),G80,0) -> 0 | H73: =IF(AND($D$70>=G80,$D$70<H80),H80,0) -> 0 | I73: 0 | J73: 0 | K73: 0 | L73: 0 | M73: 0 | N73: =IF(AND($D$70>=M80,$D$70<N80),N80,0) -> 0 | O73: 0 | P73: 6.3 | Q73: 0 | R73: 0 | S73: 0 | T73: 0 | U73: 0
C74: EIsnit | D74: =A0!T1506 -> 54.01816429 | E74: MNm2 | F74: =SUMPRODUCT(G74:U74,$G$292:$U$292) -> 0.04437813271 | G74: =IF(AND($D$70>=F80,$D$70<G80),1,0) -> 0 | H74: =IF(AND($D$70>=G80,$D$70<H80),1,0) -> 0 | I74: 0 | J74: 0 | K74: 0 | L74: 0 | M74: 0 | N74: 0 | O74: 0 | P74: 1 | Q74: 0 | R74: 0 | S74: 0 | T74: 0 | U74: 0
F75: =SUMPRODUCT(G74:U74,$G$297:$U$297) -> 0.005915725829
B78: Numerisk beregning af udbøjninger | W78: L | X78: =D2 -> 9
C79: Punkt | G79: 0 | H79: 1 | I79: 2 | J79: 3 | K79: 4 | L79: 5 | M79: 6 | N79: 7 | O79: 8 | P79: 9 | Q79: 10 | R79: 11 | S79: 12 | T79: 13 | U79: 14 | W79: a | X79: =D6 -> 4.5
E80: x | F80: (m) | G80: =G45 -> 0 | H80: =H45 -> 0.9 | I80: 1.8 | J80: 2 | K80: 2.7 | L80: 3.6 | M80: 4.5 | N80: 4.50001 | O80: 5.5 | P80: 6.3 | Q80: =Q45 -> 7.2 | R80: =R45 -> 8.1 | S80: =S45 -> 9 | T80: =T45 -> 9 | U80: =U45 -> 9 | W80: p_2-type | X80: 2 | Y80: =IF(X80=1,"0<s<L",IF(X80=2,"0<s<a","a<s<L")) -> 0<s<a
E81: e_N10 | F81: (m) | G81: =C93 -> 0.02 | H81: =($D$2-H$80)*$G$81/$D$2+H$80*$U$81/$D$2 -> 0.0295 | I81: 0.039 | J81: 0.04111111111 | K81: 0.0485 | L81: 0.058 | M81: 0.0675 | N81: 0.06750010556 | O81: 0.07805555556 | P81: 0.0865 | Q81: 0.096 | R81: 0.1055 | S81: 0.115 | T81: 0.115 | U81: =E93 -> 0.115 | W81: p_0 | X81: =C84+IF(X80=3,0,C85) -> 0.006
C82: Punkt Na | D82: =HLOOKUP(F53,G45:U46,2) -> 6 | E82: e_Na | F82: (m) | G82: =D8 -> 0.115 | W82: p_a1 | X82: =C84+(E84-C84)*X79/X78+IF(X80=1,C85+(E85-C85)*X79/X78,IF(X80=2,E85,0)) -> 0.003
B83: Reaktioner og forskydningskræfter | C83: p_0 | E83: p_10 | W83: p_a2 | X83: =IF(X80=3,X82+C85,IF(X80=2,X82-E85,X82)) -> 0.003
B84: Jævnt fordelt last 1 | C84: =C15 -> 0.003 | D84: (MN/m) | E84: =E15 -> 0.003 | F84: (MN/m) | G84: =Y111 -> 0.02324558283 | H84: =Z111 -> 0.01811558283 | I84: 0.01352558283 | J84: 0.01257891616 | K84: 0.009475582828 | L84: 0.005965582828 | M84: 0.002995582828 | N84: 0.002995552828 | O84: -4.41717246e-06 | P84: -0.002404417172 | Q84: -0.005104417172 | R84: -0.007804417172 | S84: -0.01050441717 | T84: -0.01050441717 | U84: -0.01050441717 | W84: p_L | X84: =E84+IF(X80=2,0,E85) -> 0.003
B85: Jævnt fordelt last 2 | C85: =C16 -> 0.003 | D85: (MN/m) | E85: =E16 -> 0 | F85: (MN/m) | W85: EI | X85: 100
C86: P | E86: x | W86: indsp | X86: =D36 -> 1 | Y86: R2_0 | Z86: =(X81*X79^2/2+(X82-X81)*X79^2/3)/X78+((X79+0.5*(X78-X79))*(X78-X79)*X83+0.5*(X79+2*(X78-X79)/3)*(X78-X79)*(X84-X83))/X78 -> 0.014625
B87: Punktlaste | C87: =C18 -> 0.02 | D87: (MN) | E87: =E18 -> 5.5 | F87: (m) | G87: =IF($D$36=0,C87*($D$2-E87)/$D$2,IF(E87<$D$2,C87*($D$2-E87)*(3-(($D$2-E87)/$D$2)^2)/(2*$D$2),-1.5*C87*(E87-$D$2)/$D$2)) -> 0.01107853224 | H87: =IF(H$80<$E87,$G87,$U87) -> 0.01107853224 | I87: 0.01107853224 | J87: 0.01107853224 | K87: 0.01107853224 | L87: 0.01107853224 | M87: 0.01107853224 | N87: 0.01107853224 | O87: -0.008921467764 | P87: -0.008921467764 | Q87: =IF(Q$80<$E87,$G87,$U87) -> -0.008921467764 | R87: -0.008921467764 | S87: -0.008921467764 | T87: -0.008921467764 | U87: =IF($D$36=0,-C87*$E87/$D$2,G87-C87) -> -0.008921467764 | W87: x | Y87: =$G$80 -> 0 | Z87: =$H$80 -> 0.9 | AA87: =$I$80 -> 1.8 | AB87: =$J$80 -> 2 | AC87: =$K$80 -> 2.7 | AD87: =$L$80 -> 3.6 | AE87: =$M$80 -> 4.5 | AF87: =$N$80 -> 4.50001 | AG87: =$O$80 -> 5.5 | AH87: =$P$80 -> 6.3 | AI87: =$Q$80 -> 7.2 | AJ87: =$R$80 -> 8.1 | AK87: =$S$80 -> 9 | AL87: =$T$80 -> 9 | AM87: =$U$80 -> 9
C88: =C19 -> 0.001 | D88: (MN) | E88: =E19 -> 2 | F88: (m) | G88: =IF($D$36=0,C88*($D$2-E88)/$D$2,IF(E88<$D$2,C88*($D$2-E88)*(3-(($D$2-E88)/$D$2)^2)/(2*$D$2),-1.5*C88*(E88-$D$2)/$D$2)) -> 0.0009314128944 | H88: 0.0009314128944 | I88: 0.0009314128944 | J88: -6.858710562e-05 | K88: -6.858710562e-05 | L88: -6.858710562e-05 | M88: -6.858710562e-05 | N88: -6.858710562e-05 | O88: -6.858710562e-05 | P88: -6.858710562e-05 | Q88: -6.858710562e-05 | R88: -6.858710562e-05 | S88: -6.858710562e-05 | T88: -6.858710562e-05 | U88: =IF($D$36=0,-C88*$E88/$D$2,G88-C88) -> -6.858710562e-05 | W88: p_1 | Y88: =X81 -> 0.006 | Z88: =IF(AND(Z87>=$X$79,Y87>=$X$79),0,$Y88+($X$82-$X$81)*Z87/$X$79) -> 0.0054 | AA88: 0.0048 | AB88: 0.004666666667 | AC88: 0.0042 | AD88: 0.0036 | AE88: 0.003 | AF88: 0 | AG88: 0 | AH88: 0 | AI88: 0 | AJ88: 0 | AK88: 0 | AL88: 0 | AM88: 0
C89: =C20 -> 0.01 | D89: (MN) | E89: =E20 -> 10 | F89: (m) | G89: =IF($D$36=0,C89*($D$2-E89)/$D$2,IF(E89<$D$2,C89*($D$2-E89)*(3-(($D$2-E89)/$D$2)^2)/(2*$D$2),-1.5*C89*(E89-$D$2)/$D$2)) -> -0.001666666667 | H89: -0.001666666667 | I89: -0.001666666667 | J89: -0.001666666667 | K89: -0.001666666667 | L89: -0.001666666667 | M89: -0.001666666667 | N89: -0.001666666667 | O89: -0.001666666667 | P89: -0.001666666667 | Q89: -0.001666666667 | R89: -0.001666666667 | S89: -0.001666666667 | T89: -0.001666666667 | U89: =IF($D$36=0,-C89*$E89/$D$2,G89-C89) -> -0.01166666667 | W89: p_2 | Y89: =IF(AND(Y87<=$X$79,Z87<=$X$79),0,Z89-($X$84-$X$83)*(Z87-Y87)/($X$78-$X$79)) -> 0 | Z89: 0 | AA89: 0 | AB89: 0 | AC89: 0 | AD89: 0 | AE89: 0.003 | AF89: 0.003 | AG89: 0.003 | AH89: 0.003 | AI89: 0.003 | AJ89: 0.003 | AK89: 0.003 | AL89: 0.003 | AM89: =X84 -> 0.003
B90: Moment, Na | C90: M | E90: x | W90: Q_0 | Y90: =0.5*(X82+X81)*X79+0.5*(X83+X84)*(X78-X79)-Z86 -> 0.019125 | Z90: =IF(Z87>$X$79,Y90-0.5*(Y89+Z89)*(Z87-Y87),Y90-0.5*(Y88+Z88)*(Z87-Y87)) -> 0.013995 | AA90: 0.009405 | AB90: 0.008458333333 | AC90: 0.005355 | AD90: 0.001845 | AE90: -0.001125 | AF90: -0.00112503 | AG90: -0.004125 | AH90: -0.006525 | AI90: -0.009225 | AJ90: -0.011925 | AK90: -0.014625 | AL90: -0.014625 | AM90: -0.014625
C91: =$D$4*$D$8 -> 0.0805 | D91: (MN) | E91: =D6 -> 4.5 | F91: (m) | G91: =IF($D$36=0,(C91-D4*D9)/$D$2,3*C91*(0.5*E91^2+E91*($D$2-E91))/$D$2^3) -> 0.0100625 | H91: =G91 -> 0.0100625 | I91: =H91 -> 0.0100625 | J91: 0.0100625 | K91: 0.0100625 | L91: 0.0100625 | M91: 0.0100625 | N91: 0.0100625 | O91: 0.0100625 | P91: 0.0100625 | Q91: =P91 -> 0.0100625 | R91: =Q91 -> 0.0100625 | S91: =R91 -> 0.0100625 | T91: =S91 -> 0.0100625 | U91: =P91 -> 0.0100625 | W91: M_0 | Y91: 0 | Z91: =Y91-$Y91*(Z$87-Y$87)/$X$78+Y$90*(Z$87-Y$87)-IF(Z$87>$X$79,Y$89*(Z$87-Y$87)^2/2+(Z$89-Y$89)*(Z$87-Y$87)^2/6,0)-IF(Z$87<=$X$79,Y$88*(Z$87-Y$87)^2/2+(Z$88-Y$88)*(Z$87-Y$87)^2/3,0) -> 0.0149445 | AA91: 0.025515 | AB91: 0.02730177778 | AC91: 0.0321555 | AD91: 0.035436 | AE91: 0.0358005 | AF91: 0.03580048875 | AG91: 0.0331755 | AH91: 0.0289155 | AI91: 0.021828 | AJ91: 0.0123105 | AK91: 0.000363 | AL91: 0.000363 | AM91: 0.000363
B92: Excentriciteter, N10 | C92: e_0 | E92: e_10 | W92: k | Y92: =Y91/$X$85 -> 0 | Z92: 0.000149445 | AA92: 0.00025515 | AB92: 0.0002730177778 | AC92: 0.000321555 | AD92: 0.00035436 | AE92: 0.000358005 | AF92: 0.0003580048875 | AG92: 0.000331755 | AH92: 0.000289155 | AI92: 0.00021828 | AJ92: 0.000123105 | AK92: 3.63e-06 | AL92: 3.63e-06 | AM92: 3.63e-06
C93: =D9 -> 0.02 | D93: m | E93: =D7 -> 0.115 | F93: m | G93: =IF($D$36=0,(E93-C93)*$D$3/$D$2,0.5*3*E93*$D$3/$D$2) -> 0.009583333333 | H93: =G93 -> 0.009583333333 | I93: =H93 -> 0.009583333333 | J93: 0.009583333333 | K93: 0.009583333333 | L93: 0.009583333333 | M93: 0.009583333333 | N93: 0.009583333333 | O93: 0.009583333333 | P93: 0.009583333333 | Q93: =P93 -> 0.009583333333 | R93: =Q93 -> 0.009583333333 | S93: =R93 -> 0.009583333333 | T93: =S93 -> 0.009583333333 | U93: =P93 -> 0.009583333333 | W93: a | Y93: 0 | Z93: =Y93+0.5*(Z92+Y92)*(Z$87-Y$87) -> 6.725025e-05 | AA93: 0.000249318 | AB93: 0.0003021347778 | AC93: 0.00051023525 | AD93: 0.000814397 | AE93: 0.00113496125 | AF93: 0.00113496483 | AG93: 0.001479841325 | AH93: 0.001728205325 | AI93: 0.001956551075 | AJ93: 0.002110174325 | AK93: 0.002167205075 | AL93: 0.002167205075 | AM93: 0.002167205075
B94: Forskydning i alt | G94: =SUM(G84:G93) -> 0.05323469462 | H94: =SUM(H84:H93) -> 0.04810469462 | I94: 0.04351469462 | J94: 0.04156802796 | K94: 0.03846469462 | L94: 0.03495469462 | M94: 0.03198469462 | N94: 0.03198466462 | O94: 0.008984694625 | P94: 0.006584694625 | Q94: =SUM(Q84:Q93) -> 0.003884694625 | R94: =SUM(R84:R93) -> 0.001184694625 | S94: =SUM(S84:S93) -> -0.001515305375 | T94: =SUM(T84:T93) -> -0.001515305375 | U94: =SUM(U84:U93) -> -0.01151530538 | W94: u | Y94: 0 | Z94: 3.02626125e-05 | AA94: 0.000172718325 | AB94: 0.0002278636028 | AC94: 0.0005121931125 | AD94: 0.001108277625 | AE94: 0.001985488838 | AF94: 0.001985500187 | AG94: 0.003292890191 | AH94: 0.004576108851 | AI94: 0.006234249231 | AJ94: 0.008064275661 | AK94: 0.009989096391 | AL94: 0.009989096391 | AM94: 0.009989096391
B95: Udgangsreaktioner, R0 | G95: =G94 -> 0.05323469462 | U95: =-U94 -> 0.01151530538 | W95: a | Y95: =-AM94/$X$78 -> -0.001109899599 | Z95: =Y95+0.5*(Z92+Y92)*(Z$87-Y$87) -> -0.001042649349 | AA95: -0.000860581599 | AB95: -0.0008077648212 | AC95: -0.000599664349 | AD95: -0.000295502599 | AE95: 2.506165104e-05 | AF95: 2.506523109e-05 | AG95: 0.000369941726 | AH95: 0.000618305726 | AI95: 0.000846651476 | AJ95: 0.001000274726 | AK95: 0.001057305476 | AL95: 0.001057305476 | AM95: 0.001057305476
W96: u | Y96: 0 | Z96: =Y96+0.5*(Z95+Y95)*(Z$87-Y$87) -> -0.0009686470266 | AA96: -0.001825100953 | AB96: -0.001991935595 | AC96: -0.002484535805 | AD96: -0.002887360931 | AE96: -0.003009059358 | AF96: -0.003009059107 | AG96: -0.002811557604 | AH96: -0.002416258623 | AI96: -0.001757027882 | AJ96: -0.0009259110909 | AK96: -1.19262239e-18 | AL96: -1.19262239e-18 | AM96: -1.19262239e-18
B97: Snitmomenter | C97: p0 | E97: p10 | W97: M_1 | Y97: =-MAX(Y91:AM91)*X86 -> -0.0358005 | Z97: =Y97-$Y97*(Z$87-Y$87)/$X$78+Y$90*(Z$87-Y$87)-IF(Z$87>$X$79,Y$89*(Z$87-Y$87)^2/2+(Z$89-Y$89)*(Z$87-Y$87)^2/6,0)-IF(Z$87<=$X$79,Y$88*(Z$87-Y$87)^2/2+(Z$88-Y$88)*(Z$87-Y$87)^2/3,0) -> -0.01727595 | AA97: -0.0031254 | AB97: -0.0005430555556 | AC97: 0.00709515 | AD97: 0.0139557 | AE97: 0.01790025 | AF97: 0.01790027853 | AG97: 0.01925308333 | AH97: 0.01817535 | AI97: 0.0146679 | AJ97: 0.00873045 | AK97: 0.000363 | AL97: 0.000363 | AM97: 0.000363
B98: Jævnt fordelt last | C98: =C84 -> 0.003 | D98: (MN/m) | E98: =E84 -> 0.003 | F98: (MN/m) | G98: =Y109 -> -0.03708524545 | H98: =Z109 -> -0.0184322209 | I98: -0.004153196358 | J98: -0.001542302015 | K98: 0.006195828186 | L98: 0.01318485273 | M98: 0.01725787728 | N98: 0.01725790723 | O98: 0.0187534601 | P98: 0.01778992637 | Q98: 0.01441095091 | R98: 0.008601975455 | S98: 0.000363 | T98: 0.000363 | U98: 0.000363 | W98: k | Y98: =Y97/$X$85 -> -0.000358005 | Z98: -0.0001727595 | AA98: -3.1254e-05 | AB98: -5.430555556e-06 | AC98: 7.09515e-05 | AD98: 0.000139557 | AE98: 0.0001790025 | AF98: 0.0001790027853 | AG98: 0.0001925308333 | AH98: 0.0001817535 | AI98: 0.000146679 | AJ98: 8.73045e-05 | AK98: 3.63e-06 | AL98: 3.63e-06 | AM98: 3.63e-06
B99: Trekantlast | C99: =C85 -> 0.003 | D99: (MN/m) | E99: =E85 -> 0 | F99: (MN/m) | W99: a | Y99: 0 | Z99: =Y99+0.5*(Z98+Y98)*(Z$87-Y$87) -> -0.000238844025 | AA99: -0.0003306501 | AB99: -0.0003343185556 | AC99: -0.000311386225 | AD99: -0.0002166574 | AE99: -7.3305625e-05 | AF99: -7.330383497e-05 | AG99: 0.0001124611167 | AH99: 0.00026217485 | AI99: 0.000409969475 | AJ99: 0.00051526205 | AK99: 0.000556182575 | AL99: 0.000556182575 | AM99: 0.000556182575
C100: P | E100: x | W100: u | Y100: 0 | Z100: -0.0001074798113 | AA100: -0.0003637521675 | AB100: -0.0004302490331 | AC100: -0.0006562457063 | AD100: -0.0008938653375 | AE100: -0.001024348699 | AF100: -0.001024349432 | AG100: -0.001004770987 | AH100: -0.0008549166001 | AI100: -0.0005524516538 | AJ100: -0.0001360974676 | AK100: 0.0003460526137 | AL100: 0.0003460526137 | AM100: 0.0003460526137
B101: Punktlast | C101: =C87 -> 0.02 | D101: (MN) | E101: =E18 -> 5.5 | F101: (m) | G101: =IF($D$36=0,0,IF(E101<$D$2,-0.5*C101*($D$2-E101)*(1-(($D$2-E101)/$D$2)^2),0.5*C101*(E101-$D$2))) -> -0.02970679012 | H101: =IF(H$80<$E101,G101+G87*(H$80-G$80),G101+G87*(H$80-G$80)-IF(AND($E101>G$80,$E101<H$80),$C101*(H$80-$E101),0)) -> -0.01973611111 | I101: =IF(I$80<$E101,H101+H87*(I$80-H$80),H101+H87*(I$80-H$80)-IF(AND($E101>H$80,$E101<I$80),$C101*(I$80-$E101),0)) -> -0.009765432099 | J101: =IF(J$80<$E101,I101+I87*(J$80-I$80),I101+I87*(J$80-I$80)-IF(AND($E101>I$80,$E101<J$80),$C101*(J$80-$E101),0)) -> -0.007549725652 | K101: =IF(K$80<$E101,J101+J87*(K$80-J$80),J101+J87*(K$80-J$80)-IF(AND($E101>J$80,$E101<K$80),$C101*(K$80-$E101),0)) -> 0.0002052469136 | L101: =IF(L$80<$E101,K101+K87*(L$80-K$80),K101+K87*(L$80-K$80)-IF(AND($E101>K$80,$E101<L$80),$C101*(L$80-$E101),0)) -> 0.01017592593 | M101: 0.02014660494 | N101: 0.02014671572 | O101: 0.03122513717 | P101: 0.02408796296 | Q101: 0.01605864198 | R101: 0.008029320988 | S101: 1.387778781e-17 | T101: 1.387778781e-17 | U101: =IF(U$80<$E101,P101+P87*(U$80-P$80),P101+P87*(U$80-P$80)-IF(AND($E101>P$80,$E101<U$80),$C101*(U$80-$E101),0)) -> 1.387778781e-17 | W101: a | Y101: =-AM100/$X$78 -> -3.845029041e-05 | Z101: =Y101+0.5*(Z98+Y98)*(Z$87-Y$87) -> -0.0002772943154 | AA101: -0.0003691003904 | AB101: -0.000372768846 | AC101: -0.0003498365154 | AD101: -0.0002551076904 | AE101: -0.0001117559154 | AF101: -0.0001117541254 | AG101: 7.401082626e-05 | AH101: 0.0002237245596 | AI101: 0.0003715191846 | AJ101: 0.0004768117596 | AK101: 0.0005177322846 | AL101: 0.0005177322846 | AM101: 0.0005177322846
C102: =C88 -> 0.001 | D102: (MN) | E102: =E88 -> 2 | F102: (m) | G102: =IF($D$36=0,0,IF(E102<$D$2,-0.5*C102*($D$2-E102)*(1-(($D$2-E102)/$D$2)^2),0.5*C102*(E102-$D$2))) -> -0.001382716049 | H102: =IF(H$80<$E102,G102+G88*(H$80-G$80),G102+G88*(H$80-G$80)-IF(AND($E102>G$80,$E102<H$80),$C102*(H$80-$E102),0)) -> -0.0005444444444 | I102: 0.0002938271605 | J102: 0.0004801097394 | K102: 0.0004320987654 | L102: 0.0003703703704 | M102: 0.0003086419753 | N102: 0.0003086412894 | O102: 0.0002400548697 | P102: 0.0001851851852 | Q102: 0.0001234567901 | R102: 6.172839506e-05 | S102: 4.065758147e-19 | T102: 4.065758147e-19 | U102: =IF(U$80<$E102,P102+P88*(U$80-P$80),P102+P88*(U$80-P$80)-IF(AND($E102>P$80,$E102<U$80),$C102*(U$80-$E102),0)) -> 4.065758147e-19 | W102: u | Y102: 0 | Z102: =Y102+0.5*(Z101+Y101)*(Z$87-Y$87) -> -0.0001420850726 | AA102: -0.0004329626902 | AB102: -0.0005071496139 | AC102: -0.0007600614904 | AD102: -0.001032286383 | AE102: -0.001197375006 | AF102: -0.001197376123 | AG102: -0.001216247584 | AH102: -0.00109715343 | AI102: -0.0008292937448 | AJ102: -0.0004475448199 | AK102: 0 | AL102: 0 | AM102: 0
C103: =C89 -> 0.01 | D103: (MN) | E103: =E89 -> 10 | F103: (m) | G103: =IF($D$36=0,0,IF(E103<$D$2,-0.5*C103*($D$2-E103)*(1-(($D$2-E103)/$D$2)^2),0.5*C103*(E103-$D$2))) -> 0.005 | H103: =IF(H$80<$E103,G103+G89*(H$80-G$80),G103+G89*(H$80-G$80)-IF(AND($E103>G$80,$E103<H$80),$C103*(H$80-$E103),0)) -> 0.0035 | I103: 0.002 | J103: 0.001666666667 | K103: 0.0005 | L103: =IF(L$80<$E103,K103+K89*(L$80-K$80),K103+K89*(L$80-K$80)-IF(AND($E103>K$80,$E103<L$80),$C103*(L$80-$E103),0)) -> -0.001 | M103: -0.0025 | N103: -0.002500016667 | O103: -0.004166666667 | P103: -0.0055 | Q103: -0.007 | R103: -0.0085 | S103: -0.01 | T103: -0.01 | U103: =IF(U$80<$E103,P103+P89*(U$80-P$80),P103+P89*(U$80-P$80)-IF(AND($E103>P$80,$E103<U$80),$C103*(U$80-$E103),0)) -> -0.01 | W103: M_2 | Y103: =IF($X$86=0,0,IF(Y101=Y95,Y97,Y97-(Y97-Y91)*Y101/(Y101-Y95))) -> -0.03708524545 | Z103: =Y103-$Y103*(Z$87-Y$87)/$X$78+Y$90*(Z$87-Y$87)-IF(Z$87>$X$79,Y$89*(Z$87-Y$87)^2/2+(Z$89-Y$89)*(Z$87-Y$87)^2/6,0)-IF(Z$87<=$X$79,Y$88*(Z$87-Y$87)^2/2+(Z$88-Y$88)*(Z$87-Y$87)^2/3,0) -> -0.0184322209 | AA103: -0.004153196358 | AB103: -0.001542302015 | AC103: 0.006195828186 | AD103: 0.01318485273 | AE103: 0.01725787728 | AF103: 0.01725790723 | AG103: 0.0187534601 | AH103: 0.01778992637 | AI103: 0.01441095091 | AJ103: 0.008601975455 | AK103: 0.000363 | AL103: 0.000363 | AM103: 0.000363
B104: Moment, Na | C104: M | E104: a | W104: k | Y104: =Y103/$X$85 -> -0.0003708524545 | Z104: -0.000184322209 | AA104: -4.153196358e-05 | AB104: -1.542302015e-05 | AC104: 6.195828186e-05 | AD104: 0.0001318485273 | AE104: 0.0001725787728 | AF104: 0.0001725790723 | AG104: 0.000187534601 | AH104: 0.0001778992637 | AI104: 0.0001441095091 | AJ104: 8.601975455e-05 | AK104: 3.63e-06 | AL104: 3.63e-06 | AM104: 3.63e-06
C105: =C91 -> 0.0805 | D105: (MNm) | E105: =E91 -> 4.5 | F105: (m) | G105: =IF(D36=0,-$U$91*($D$2-G$80)+IF($E105>=G$80,$C105,0),C105*($D$2^2-3*(0.5*E105^2+E105*($D$2-E105)))/$D$2^2) -> -0.0100625 | H105: =G105+$G$91*(H$80-G$80)-IF($T$2+0.00001=H$80,$C105,0) -> -0.00100625 | I105: =H105+$G$91*(I$80-H$80)-IF($T$2+0.00001=I$80,$C105,0) -> 0.00805 | J105: 0.0100625 | K105: 0.01710625 | L105: 0.0261625 | M105: 0.03521875 | N105: -0.04528114938 | O105: -0.03521875 | P105: -0.02716875 | Q105: -0.0181125 | R105: -0.00905625 | S105: 1.734723476e-18 | T105: 1.734723476e-18 | U105: 1.734723476e-18 | W105: a | Y105: 0 | Z105: =Y105+0.5*(Z104+Y104)*(Z$87-Y$87) -> -0.0002498285986 | AA105: -0.0003514629763 | AB105: -0.0003571584746 | AC105: -0.000340871133 | AD105: -0.0002536580689 | AE105: -0.0001166657839 | AF105: -0.0001166640581 | AG105: 6.339097803e-05 | AH105: 0.0002095645239 | AI105: 0.0003544684717 | AJ105: 0.0004580266403 | AK105: 0.0004983690298 | AL105: 0.0004983690298 | AM105: 0.0004983690298
W106: u | Y106: 0 | Z106: -0.0001124228694 | AA106: -0.000383004078 | AB106: -0.0004538662231 | AC106: -0.0006981765858 | AD106: -0.0009657147267 | AE106: -0.00113236046 | AF106: -0.001132361627 | AG106: -0.001158997901 | AH106: -0.0010498157 | AI106: -0.0007960008519 | AJ106: -0.0004303780516 | AK106: 0 | AL106: 0 | AM106: 0
B107: Moment pga. termisk krumning | W107: a | Y107: =-AM106/$X$78 -> 0 | Z107: =Y107+0.5*(Z104+Y104)*(Z$87-Y$87) -> -0.0002498285986 | AA107: -0.0003514629763 | AB107: -0.0003571584746 | AC107: -0.000340871133 | AD107: -0.0002536580689 | AE107: -0.0001166657839 | AF107: -0.0001166640581 | AG107: 6.339097803e-05 | AH107: 0.0002095645239 | AI107: 0.0003544684717 | AJ107: 0.0004580266403 | AK107: 0.0004983690298 | AL107: 0.0004983690298 | AM107: 0.0004983690298
B108: Momenter fra tværlast, i alt | G108: =IF(ABS(SUM(G98:G106))<0.000001*Stivheder!$C$6^2*Stivheder!$D$6*Stivheder!$F$6,0,SUM(G98:G106)) -> -0.07323725162 | H108: =IF(ABS(SUM(H98:H106))<0.000001*Stivheder!$C$6^2*Stivheder!$D$6*Stivheder!$F$6,0,SUM(H98:H106)) -> -0.03621902646 | I108: =IF(ABS(SUM(I98:I106))<0.000001*Stivheder!$C$6^2*Stivheder!$D$6*Stivheder!$F$6,0,SUM(I98:I106)) -> -0.003574801297 | J108: =IF(ABS(SUM(J98:J106))<0.000001*Stivheder!$C$6^2*Stivheder!$D$6*Stivheder!$F$6,0,SUM(J98:J106)) -> 0.003117248739 | K108: =IF(ABS(SUM(K98:K106))<0.000001*Stivheder!$C$6^2*Stivheder!$D$6*Stivheder!$F$6,0,SUM(K98:K106)) -> 0.02443942387 | L108: =IF(ABS(SUM(L98:L106))<0.000001*Stivheder!$C$6^2*Stivheder!$D$6*Stivheder!$F$6,0,SUM(L98:L106)) -> 0.04889364903 | M108: =IF(ABS(SUM(M98:M106))<0.000001*Stivheder!$C$6^2*Stivheder!$D$6*Stivheder!$F$6,0,SUM(M98:M106)) -> 0.07043187419 | N108: =IF(ABS(SUM(N98:N106))<0.000001*Stivheder!$C$6^2*Stivheder!$D$6*Stivheder!$F$6,0,SUM(N98:N106)) -> -0.0100679018 | O108: =IF(ABS(SUM(O98:O106))<0.000001*Stivheder!$C$6^2*Stivheder!$D$6*Stivheder!$F$6,0,SUM(O98:O106)) -> 0.01083323548 | P108: =IF(ABS(SUM(P98:P106))<0.000001*Stivheder!$C$6^2*Stivheder!$D$6*Stivheder!$F$6,0,SUM(P98:P106)) -> 0.009394324514 | Q108: =IF(ABS(SUM(Q98:Q106))<0.000001*Stivheder!$C$6^2*Stivheder!$D$6*Stivheder!$F$6,0,SUM(Q98:Q106)) -> 0.005480549676 | R108: =IF(ABS(SUM(R98:R106))<0.000001*Stivheder!$C$6^2*Stivheder!$D$6*Stivheder!$F$6,0,SUM(R98:R106)) -> -0.0008632251621 | S108: =IF(ABS(SUM(S98:S106))<0.000001*Stivheder!$C$6^2*Stivheder!$D$6*Stivheder!$F$6,0,SUM(S98:S106)) -> -0.009637 | T108: =IF(ABS(SUM(T98:T106))<0.000001*Stivheder!$C$6^2*Stivheder!$D$6*Stivheder!$F$6,0,SUM(T98:T106)) -> -0.009637 | U108: =IF(ABS(SUM(U98:U106))<0.000001*Stivheder!$C$6^2*Stivheder!$D$6*Stivheder!$F$6,0,SUM(U98:U106)) -> -0.009637 | W108: u | Y108: 0 | Z108: =Y108+0.5*(Z107+Y107)*(Z$87-Y$87) -> -0.0001124228694 | AA108: -0.000383004078 | AB108: -0.0004538662231 | AC108: -0.0006981765858 | AD108: -0.0009657147267 | AE108: -0.00113236046 | AF108: -0.001132361627 | AG108: -0.001158997901 | AH108: -0.0010498157 | AI108: -0.0007960008519 | AJ108: -0.0004303780516 | AK108: 0 | AL108: 0 | AM108: 0
B109: Momenter fra excentriciteter | C109: =$D$3*$D$7 -> 0.0575 | E109: =$D$2 -> 9 | G109: =IF($D$36=0,$D$3*G$81,C109*($D$2^2-3*(0.5*E109^2+E109*($D$2-E109)))/$D$2^2) -> -0.02875 | H109: =G109+$G$93*(H$80-G$80) -> -0.020125 | I109: =H109+$G$93*(I$80-H$80) -> -0.0115 | J109: =I109+$G$93*(J$80-I$80) -> -0.009583333333 | K109: -0.002875 | L109: 0.00575 | M109: 0.014375 | N109: =M109+$G$93*(N$80-M$80) -> 0.01437509583 | O109: 0.02395833333 | P109: =O109+$G$93*(P$80-O$80) -> 0.031625 | Q109: =P109+$G$93*(Q$80-P$80) -> 0.04025 | R109: =Q109+$G$93*(R$80-Q$80) -> 0.048875 | S109: =R109+$G$93*(S$80-R$80) -> 0.0575 | T109: =S109+$G$93*(T$80-S$80) -> 0.0575 | U109: =P109+$G$93*(U$80-P$80) -> 0.0575 | W109: M_3 | Y109: =IF($X$86=0,0,IF(Y107=Y101,Y103,Y103-(Y103-Y97)*Y107/(Y107-Y101))) -> -0.03708524545 | Z109: =Y109-$Y109*(Z$87-Y$87)/$X$78+Y$90*(Z$87-Y$87)-IF(Z$87>$X$79,Y$89*(Z$87-Y$87)^2/2+(Z$89-Y$89)*(Z$87-Y$87)^2/6,0)-IF(Z$87<=$X$79,Y$88*(Z$87-Y$87)^2/2+(Z$88-Y$88)*(Z$87-Y$87)^2/3,0) -> -0.0184322209 | AA109: -0.004153196358 | AB109: -0.001542302015 | AC109: 0.006195828186 | AD109: 0.01318485273 | AE109: 0.01725787728 | AF109: 0.01725790723 | AG109: 0.0187534601 | AH109: 0.01778992637 | AI109: 0.01441095091 | AJ109: 0.008601975455 | AK109: 0.000363 | AL109: 0.000363 | AM109: 0.000363
G110: =SUM(G108:G109) -> -0.1019872516 | H110: =SUM(H108:H109) -> -0.05634402646 | I110: -0.0150748013 | J110: -0.006466084594 | K110: 0.02156442387 | L110: 0.05464364903 | M110: 0.08480687419 | N110: 0.004307194036 | O110: 0.03479156881 | P110: 0.04101932451 | Q110: 0.04573054968 | R110: 0.04801177484 | S110: 0.047863 | T110: 0.047863 | U110: 0.047863
E111: =IF($C$34=1,$D$34-G112,($G$119-$G$112)*$U$116/($U$116-$U$122)) -> 0.001838564145 | G111: =$E$111*($D$2-G$80)/$D$2 -> 0.001838564145 | H111: =$E$111*($D$2-H$80)/$D$2 -> 0.00165470773 | I111: 0.001470851316 | J111: 0.001429994335 | K111: 0.001286994901 | L111: 0.001103138487 | M111: 0.0009192820724 | N111: 0.0009192800296 | O111: 0.0007149971674 | P111: 0.0005515692434 | Q111: 0.000367712829 | R111: 0.0001838564145 | S111: 0 | T111: 0 | U111: 0 | W111: V | Y111: =Y90-$Y$109/$X$78 -> 0.02324558283 | Z111: =Z90-$Y$109/$X$78 -> 0.01811558283 | AA111: 0.01352558283 | AB111: 0.01257891616 | AC111: 0.009475582828 | AD111: 0.005965582828 | AE111: 0.002995582828 | AF111: 0.002995552828 | AG111: -4.41717246e-06 | AH111: -0.002404417172 | AI111: -0.005104417172 | AJ111: -0.007804417172 | AK111: -0.01050441717 | AL111: -0.01050441717 | AM111: -0.01050441717
B112: Udgangsmoment, M0 | E112: =IF(ABS(Y249)>ABS(D34),D34-Y249,0) -> 0 | G112: =Y249+$E$112*($D$2-G$80)/$D$2 -> -0.1076356987 | H112: -0.06032995518 | I112: -0.01633616552 | J112: -0.007043028842 | K112: 0.02335754531 | L112: 0.05907074763 | M112: 0.08676666127 | N112: 0.00626699185 | O112: 0.03772594312 | P112: 0.04453710108 | Q112: 0.04961643698 | R112: 0.05195567956 | S112: 0.05155347037 | T112: 0.05155347037 | U112: 0.05155347037 | W112: Tværlast i alt, M | Y112: =SUM(G98:G103) -> -0.06317475162 | Z112: =SUM(H98:H103) -> -0.03521277646 | AA112: -0.0116248013 | AB112: -0.006945251261 | AC112: 0.007333173866 | AD112: 0.02273114903 | AE112: 0.03521312419 | AF112: 0.03521324758 | AG112: 0.04605198548 | AH112: 0.03656307451 | AI112: 0.02359304968 | AJ112: 0.008193024838 | AK112: -0.009637 | AL112: -0.009637 | AM112: -0.009637
B113: EI | G113: =G56 -> 44.34086277 | H113: =H56 -> 44.34086277 | I113: 44.34086277 | J113: 44.34086277 | K113: 45.09655981 | L113: 45.09655981 | M113: 45.09655981 | N113: 52.65832451 | O113: 52.65832451 | P113: 52.65832451 | Q113: 52.65832451 | R113: 52.65832451 | S113: 52.65832451 | T113: 52.65832451 | U113: 52.65832451
B114: h'' | G114: =Y$248+(G112-G$59)/G113 -> -0.002427460631 | H114: -0.001360594977 | I114: -0.0003684223648 | J114: -0.0001588383356 | K114: 0.0005179451693 | L114: 0.001309872591 | M114: 0.001924019518 | N114: 0.0001190123672 | O114: 0.0007164288548 | P114: 0.0008457751266 | Q114: 0.0009422334919 | R114: 0.0009866565266 | S114: 0.0009790184334 | T114: 0.0009790184334 | U114: 0.0009790184334 | W114: Brand - behandling af transiente tøjninger : optræder kun ved spændingsniveauer i elastisk område
B115: a'' | G115: 0 | H115: =G115+0.5*(G114+H114)*(H$80-G$80) -> -0.001704625024 | I115: =H115+0.5*(H114+I114)*(I$80-H$80) -> -0.002482682828 | J115: -0.002535408898 | K115: -0.002409721506 | L115: -0.001587203514 | M115: -0.0001319520649 | N115: -0.0001319418498 | O115: 0.000285774584 | P115: =O115+0.5*(O114+P114)*(P$80-O$80) -> 0.0009106561766 | Q115: 0.001715260055 | R115: 0.002583260563 | S115: 0.003467814295 | T115: 0.003467814295 | U115: 0.003467814295
B116: u'' | G116: 0 | H116: =G116-0.5*(G115+H115)*(H$80-G$80) -> 0.0007670812607 | I116: =H116-0.5*(H115+I115)*(I$80-H$80) -> 0.002651369794 | J116: 0.003153178967 | K116: 0.004883974608 | L116: 0.006682590867 | M116: =L116-0.5*(L115+M115)*(M$80-L$80) -> 0.007456210877 | N116: 0.007456212197 | O116: 0.007379296599 | P116: 0.006900724295 | Q116: =P116-0.5*(P115+Q115)*(Q$80-P$80) -> 0.005719061991 | R116: =Q116-0.5*(Q115+R115)*(R$80-Q$80) -> 0.003784727712 | S116: =R116-0.5*(R115+S115)*(S$80-R$80) -> 0.001061744026 | T116: =S116-0.5*(S115+T115)*(T$80-S$80) -> 0.001061744026 | U116: =T116-0.5*(T115+U115)*(U$80-T$80) -> 0.001061744026 | W116: Tværsnitskonstanter | AE116: Termiske tøjninger før transient virkning, overside
B117: a' | E117: 0 | G117: =G115+U116/$D$2 -> 0.0001179715585 | H117: =G117+0.5*(G114+H114)*(H$80-G$80) -> -0.001586653465 | I117: =H117+0.5*(H114+I114)*(I$80-H$80) -> -0.002364711269 | J117: =I117+0.5*(I114+J114)*(J$80-I$80) -> -0.002417437339 | K117: -0.002291749948 | L117: -0.001469231956 | M117: -1.398050649e-05 | N117: -1.397029133e-05 | O117: 0.0004037461424 | P117: 0.001028627735 | Q117: =P117+0.5*(P114+Q114)*(Q$80-P$80) -> 0.001833231613 | R117: =Q117+0.5*(Q114+R114)*(R$80-Q$80) -> 0.002701232122 | S117: =R117+0.5*(R114+S114)*(S$80-R$80) -> 0.003585785854 | T117: =S117+0.5*(S114+T114)*(T$80-S$80) -> 0.003585785854 | U117: =T117+0.5*(T114+U114)*(U$80-T$80) -> 0.003585785854 | W117: a | X117: =Stivheder!Q6*200000/Stivheder!U2 -> 45.26653767 | Z117: h | AA117: =Stivheder!C6 -> 0.54 | AB117: m | AE117: eQ_urev | AF117: =1.1*Firsidig!N6/100000 -> 0.003776603005
C118: =(C119-D119)/(C120-D120) -> 44.66606492 | E118: =SUMPRODUCT(G43:U43,G113:U113)/V43 -> 46.6427348 | G118: 0 | H118: =IF($C$34=1,H116,G118-0.5*(G117+H117)*(H$80-G$80)) -> 0.0006609068581 | I118: =H118-0.5*(H117+I117)*(I$80-H$80) -> 0.002439020989 | J118: =I118-0.5*(I117+J117)*(J$80-I$80) -> 0.00291723585 | K118: 0.0045654514 | L118: 0.006257893256 | M118: 0.006925338864 | N118: 0.006925339004 | O118: 0.006730453027 | P118: 0.006157503476 | Q118: =P118-0.5*(P117+Q117)*(Q$80-P$80) -> 0.00486966677 | R118: =Q118-0.5*(Q117+R117)*(R$80-Q$80) -> 0.002829158089 | S118: =R118-0.5*(R117+S117)*(S$80-R$80) -> 0 | T118: =S118-0.5*(S117+T117)*(T$80-S$80) -> 0 | U118: =T118-0.5*(T117+U117)*(U$80-T$80) -> 0 | W118: A | X118: =Stivheder!I2 -> 0.256143519 | Y118: m2 | Z118: b | AA118: =Stivheder!D6 -> 0.42 | AB118: m | AE118: eQ_rev | AF118: =MAX((1.1*Firsidig!X30/100000)*AA117/(AA117-AA120),0) -> 0.00407249216
B119: M' | C119: =MAX(G119:U119) -> 0.08768374729 | D119: =MIN(G119:U119) -> -0.1058015267 | E119: =IF(AND($D$36=0,$D$37=0),0,IF(AND($D$36=1,$D$37=0),3*$D$36*G117*$E$118/$D$2)) -> 0.001834172038 | G119: =IF(AND($D$36=0,D$37=0),G112,IF(AND($D$36=1,$D$37=0),G112+E119)) -> -0.1058015267 | H119: =$E119*($D$2-H$80)/$D$2+H112 -> -0.05867920034 | I119: -0.01486882789 | J119: -0.00561645059 | K119: 0.02464146573 | L119: 0.06017125085 | M119: 0.08768374729 | N119: 0.007184075831 | O119: =$E119*($D$2-O$80)/$D$2+O112 -> 0.03843923225 | P119: 0.04508735269 | Q119: 0.04998327139 | R119: 0.05213909676 | S119: 0.05155347037 | T119: 0.05155347037 | U119: 0.05155347037 | W119: h | X119: =Stivheder!O2 -> 0 | Y119: m | Z119: Aos | AA119: =Stivheder!T6*Stivheder!V6/200000 -> 0.0006031857895 | AB119: m2 | AE119: Termiske tøjninger før transient virkning underside
B120: h' | C120: =MAX(G120:U120) -> 0.001943681445 | D120: =MIN(G120:U120) -> -0.002388136778 | G120: =G114+(G119-G112)/$E$118 -> -0.002388136778 | H120: =H114+(H119-H112)/$E$118 -> -0.00132520351 | I120: -0.0003369632825 | J120: -0.0001282531167 | K120: 0.0005454718663 | L120: 0.001333466902 | M120: 0.001943681445 | N120: 0.0001386742499 | O120: 0.0007317214642 | P120: 0.0008575722824 | Q120: 0.0009500982625 | R120: 0.0009905889119 | S120: 0.0009790184334 | T120: 0.0009790184334 | U120: 0.0009790184334 | W120: Io | X120: =Stivheder!Q2 -> 0.006805289187 | Y120: m4 | Z120: aos | AA120: =Stivheder!U6 -> 0.06 | AB120: m | AE120: eQ_urev | AF120: =1.1*Firsidig!V12/100000 -> 0.003776603005
B121: a' | C121: =(C119-D119)/(C120-D120) -> 44.66606492 | G121: =G117-E119*$D$2/(3*$C$56) -> 0 | H121: =G121+0.5*(G120+H120)*(H$80-G$80) -> -0.00167100313 | I121: =H121+0.5*(H120+I120)*(I$80-H$80) -> -0.002418978186 | J121: -0.002465499826 | K121: -0.002319473264 | L121: -0.001473950818 | M121: 7.659383147e-07 | N121: 7.763500932e-07 | O121: 0.0004359698552 | P121: 0.001071687354 | Q121: =P121+0.5*(P120+Q120)*(Q$80-P$80) -> 0.001885139099 | R121: =Q121+0.5*(Q120+R120)*(R$80-Q$80) -> 0.002758448328 | S121: =R121+0.5*(R120+S120)*(S$80-R$80) -> 0.003644771633 | T121: =S121+0.5*(S120+T120)*(T$80-S$80) -> 0.003644771633 | U121: =T121+0.5*(T120+U120)*(U$80-T$80) -> 0.003644771633 | W121: EI_urev | X121: =Stivheder!S2 -> 55.95584815 | Y121: MNm2 | Z121: Aus | AA121: =Stivheder!X6*Stivheder!Z6/200000 -> 0.0006031857895 | AB121: m2 | AE121: eQ_rev | AF121: =MAX((1.1*Firsidig!X34/100000)*AA117/(AA117-AA122),0) -> 0.00407249216 | AH121: =AF121/AA117 -> 0.007541652149 | AI121: =0.125*AH121*D2^2 -> 0.07635922801
B122: u | D122: Max / u_Na | E122: =MAX(ABS(MAX(G122:U122)),ABS(MIN(G122:U122))) -> 0.007125605416 | G122: 0 | H122: =G122-0.5*(G121+H121)*(H$80-G$80) -> 0.0007519514084 | I122: =H122-0.5*(H121+I121)*(I$80-H$80) -> 0.002592443001 | J122: 0.003080890802 | K122: 0.004755631383 | L122: 0.00646267222 | M122: 0.007125605416 | N122: 0.007125605408 | O122: 0.006907234489 | P122: 0.006304171606 | Q122: 0.004973599702 | R122: 0.00288398536 | S122: 2.536377584e-06 | T122: 2.536377584e-06 | U122: 2.536377584e-06 | W122: W+ | X122: =X120/(0.5*Stivheder!C6+Snitkræfter!X119) -> 0.02520477477 | Y122: m3 | Z122: aus | AA122: =Stivheder!Y6 -> 0.06 | AB122: m
B123: Korrigeret moment | E123: =G119-F123 -> -0.003814275076 | F123: =G$110+G122*$D$3+IF($D$6>G$80,G122*$D$4,INDEX($G122:$U122,1+$D$82)*$D$4)-INDEX($G122:$U122,1+$D$82)*$D$4*G$80/$D$2 -> -0.1019872516 | G123: =G$110+$E123*($D$2-G$45)/$D$2+G122*$D$3+IF($D$6>G$80,G122*$D$4,INDEX($G122:$U122,1+$D$82)*$D$4)-INDEX($G122:$U122,1+$D$82)*$D$4*G$80/$D$2 -> -0.1058015267 | H123: =H$110+$E123*($D$2-H$45)/$D$2+H122*$D$3+IF($D$6>H$80,H122*$D$4,INDEX($G122:$U122,1+$D$82)*$D$4)-INDEX($G122:$U122,1+$D$82)*$D$4*H$80/$D$2 -> -0.05937332472 | I123: -0.01601287451 | J123: -0.006844101533 | K123: 0.02310481184 | L123: 0.05811512113 | M123: 0.08895650126 | N123: 0.008456819794 | O123: 0.038701605 | P123: 0.04452350493 | Q123: 0.04845207927 | R123: 0.04957113239 | S123: 0.04786426819 | T123: 0.04786426819 | U123: 0.04786426819 | W123: W- | X123: =X120/(0.5*Stivheder!C6-Snitkræfter!X119) -> 0.02520477477 | Y123: m3
B124: h'' | G124: =Y$248+(G123-G$59)/G$113 -> -0.002386095355 | H124: -0.001339020511 | I124: -0.0003611313248 | J124: -0.0001543520154 | K124: 0.0005123408955 | L124: 0.001288681917 | M124: 0.001972578432 | N124: 0.0001605979657 | O124: 0.0007349570152 | P124: 0.000845516931 | Q124: 0.0009201219318 | R124: 0.0009413731419 | S124: 0.0009089591937 | T124: 0.0009089591937 | U124: 0.0009089591937 | AO124: =128/(9*48) -> 0.2962962963
B125: a'' | G125: 0 | H125: =G125+0.5*(G124+H124)*(H$80-G$80) -> -0.00167630214 | I125: -0.002441370466 | J125: -0.0024929188 | K125: -0.002367622692 | L125: -0.001557162426 | M125: -8.959526897e-05 | N125: -8.958460309e-05 | O125: 0.0003581884096 | P125: 0.000990377988 | Q125: =P125+0.5*(P124+Q124)*(Q$80-P$80) -> 0.001784915476 | R125: =Q125+0.5*(Q124+R124)*(R$80-Q$80) -> 0.002622588259 | S125: =R125+0.5*(R124+S124)*(S$80-R$80) -> 0.00345523781 | T125: =S125+0.5*(S124+T124)*(T$80-S$80) -> 0.00345523781 | U125: =T125+0.5*(T124+U124)*(U$80-T$80) -> 0.00345523781 | W125: N | Y125: =G52 -> 1.2 | Z125: 1.2 | AA125: 1.2 | AB125: 1.2 | AC125: 1.2 | AD125: 1.2 | AE125: 1.2 | AF125: 0.5 | AG125: 0.5 | AH125: 0.5 | AI125: 0.5 | AJ125: 0.5 | AK125: 0.5 | AL125: 0.5 | AM125: 0.5
B126: u'' | G126: 0 | H126: =G126-0.5*(G125+H125)*(H$80-G$80) -> 0.0007543359628 | I126: 0.002607288635 | J126: 0.003100717562 | K126: 0.004801907083 | L126: 0.006568060386 | M126: 0.007309101349 | N126: 0.007309102245 | O126: 0.007174801685 | P126: 0.006635375126 | Q126: =P126-0.5*(P125+Q125)*(Q$80-P$80) -> 0.005386493067 | R126: =Q126-0.5*(Q125+R125)*(R$80-Q$80) -> 0.003403116386 | S126: =R126-0.5*(R125+S125)*(S$80-R$80) -> 0.0006680946543 | T126: =S126-0.5*(S125+T125)*(T$80-S$80) -> 0.0006680946543 | U126: =T126-0.5*(T125+U125)*(U$80-T$80) -> 0.0006680946543 | W126: s(M-nulpunkt) | Y126: =Y125/$X$118 -> 4.684873561 | Z126: =Z125/$X$118 -> 4.684873561 | AA126: 4.684873561 | AB126: 4.684873561 | AC126: 4.684873561 | AD126: 4.684873561 | AE126: 4.684873561 | AF126: 1.952030651 | AG126: 1.952030651 | AH126: 1.952030651 | AI126: 1.952030651 | AJ126: 1.952030651 | AK126: 1.952030651 | AL126: 1.952030651 | AM126: 1.952030651
B127: a' | E127: =IF(ABS(G129)>=ABS($D$34),1,0) -> 0 | G127: =IF(E117=1,0,G125+U126/$D$2) -> 7.423273937e-05 | H127: =IF(E117=1,H125+U126/($D$2-$H$80),G127+0.5*(G124+H124)*(H$80-G$80)) -> -0.0016020694 | I127: =H127+0.5*(H124+I124)*(I$80-H$80) -> -0.002367137726 | J127: -0.00241868606 | K127: -0.002293389952 | L127: -0.001482929687 | M127: -1.53625296e-05 | N127: -1.535186372e-05 | O127: 0.0004324211489 | P127: 0.001064610727 | Q127: =P127+0.5*(P124+Q124)*(Q$80-P$80) -> 0.001859148216 | R127: =Q127+0.5*(Q124+R124)*(R$80-Q$80) -> 0.002696820999 | S127: =R127+0.5*(R124+S124)*(S$80-R$80) -> 0.00352947055 | T127: =S127+0.5*(S124+T124)*(T$80-S$80) -> 0.00352947055 | U127: =T127+0.5*(T124+U124)*(U$80-T$80) -> 0.00352947055 | W127: s(s_u = 0) | Y127: =2*Y126 -> 9.369747123 | Z127: =2*Z126 -> 9.369747123 | AA127: 9.369747123 | AB127: 9.369747123 | AC127: 9.369747123 | AD127: 9.369747123 | AE127: 9.369747123 | AF127: 3.904061301 | AG127: 3.904061301 | AH127: 3.904061301 | AI127: 3.904061301 | AJ127: 3.904061301 | AK127: 3.904061301 | AL127: 3.904061301 | AM127: 3.904061301
G128: 0 | H128: =G128-0.5*(G127+H127)*(H$80-G$80) -> 0.0006875264974 | I128: =H128-0.5*(H127+I127)*(I$80-H$80) -> 0.002473669704 | J128: 0.002952252083 | K128: 0.004601478687 | L128: 0.006300822525 | M128: 0.006975054022 | N128: 0.006975054176 | O128: 0.006766521618 | P128: 0.006167708868 | Q128: =P128-0.5*(P127+Q127)*(Q$80-P$80) -> 0.004852017343 | R128: =Q128-0.5*(Q127+R127)*(R$80-Q$80) -> 0.002801831197 | S128: =R128-0.5*(R127+S127)*(S$80-R$80) -> 0 | T128: =S128-0.5*(S127+T127)*(T$80-S$80) -> 0 | U128: =T128-0.5*(T127+U127)*(U$80-T$80) -> 0 | W128: s(et = 0) | Y128: =Stivheder!F6/2.35 -> 7.598784195
B129: M' | D129: =3*$D$36*G127*$C$118/$D$2 -> 0.001105228119 | E129: =IF(AND($D$36=0,$D$37=0),0,IF(AND($D$36=1,$D$37=0),IF(E117=1,$D$34-G123,IF(ABS(3*$D$36*G127*$C$118/$D$2)>ABS($D$34-G123),$D$34-G123,3*$D$36*G127*$C$118/$D$2)))) -> 0.001105228119 | G129: =IF(AND($D$36=0,$D$37=0),G123,IF(AND($D$36=1,$D$37=0),G123+E129)) -> -0.1046962986 | H129: =$E129*($D$2-H$80)/$D$2+H123 -> -0.05837861941 | I129: =$E129*($D$2-I$80)/$D$2+I123 -> -0.01512869202 | J129: -0.005984479663 | K129: 0.02387847152 | L129: 0.058778258 | M129: 0.08950911531 | N129: 0.009009432625 | O129: 0.03913141594 | P129: 0.04485507337 | Q129: =$E129*($D$2-Q$80)/$D$2+Q123 -> 0.04867312489 | R129: =$E129*($D$2-R$80)/$D$2+R123 -> 0.0496816552 | S129: =$E129*($D$2-S$80)/$D$2+S123 -> 0.04786426819 | T129: =$E129*($D$2-T$80)/$D$2+T123 -> 0.04786426819 | U129: =$E129*($D$2-U$80)/$D$2+U123 -> 0.04786426819
B130: h' | G130: =G124+(G129-G123)/$C$118 -> -0.002361351109 | H130: -0.001316750689 | I130: -0.0003413359276 | J130: -0.0001351064904 | K130: 0.000529661868 | L130: 0.001303528465 | M130: 0.001984950556 | N130: 0.0001729700615 | O130: 0.0007445797777 | P130: 0.000852940205 | Q130: 0.000925070781 | R130: 0.0009438475665 | S130: 0.0009089591937 | T130: 0.0009089591937 | U130: 0.0009089591937 | W130: Positive momenter
B131: a' | G131: =IF(E117=1,0,G127-E129*$D$2/(3*$C$56)) -> 3.14590515e-06 | H131: =IF(E117=1,H127+U128/($D$2-$H$80),G131+0.5*(G130+H130)*(H$80-G$80)) -> -0.001651999904 | I131: =H131+0.5*(H130+I130)*(I$80-H$80) -> -0.002398138881 | J131: -0.002445783123 | K131: -0.002307688741 | L131: -0.001482753091 | M131: -2.937532029e-06 | N131: -2.926742426e-06 | O131: 0.0004558435894 | P131: 0.001094851582 | Q131: =P131+0.5*(P130+Q130)*(Q$80-P$80) -> 0.001894956526 | R131: =Q131+0.5*(Q130+R130)*(R$80-Q$80) -> 0.002735969783 | S131: =R131+0.5*(R130+S130)*(S$80-R$80) -> 0.003569732825 | T131: =S131+0.5*(S130+T130)*(T$80-S$80) -> 0.003569732825 | U131: =T131+0.5*(T130+U130)*(U$80-T$80) -> 0.003569732825 | W131: M-nulpunkt | Y131: =G59 -> 0 | Z131: 0 | AA131: 0 | AB131: 0 | AC131: 0 | AD131: 0 | AE131: 0 | AF131: 0 | AG131: 0 | AH131: 0 | AI131: 0 | AJ131: 0 | AK131: 0 | AL131: 0 | AM131: 0
B132: u | D132: =E132/E122 -> 0.9945700507 | E132: =MAX(ABS(MAX(G132:U132)),ABS(MIN(G132:U132))) -> 0.007086913739 | G132: 0 | H132: =IF(E117=1,H128,G132-0.5*(G131+H131)*(H$80-G$80)) -> 0.0007419842993 | I132: =H132-0.5*(H131+I131)*(I$80-H$80) -> 0.002564546753 | J132: 0.003048938953 | K132: 0.004712654105 | L132: 0.00641835293 | M132: 0.00708691371 | N132: 0.007086913739 | O132: 0.00686045758 | P132: 0.006240179512 | Q132: 0.004894765863 | R132: 0.002810849024 | S132: -2.671714933e-05 | T132: -2.671714933e-05 | U132: -2.671714933e-05 | W132: M (s_u = 0) | Y132: =Y125*$X$122/$X$118 -> 0.1180811829 | Z132: 0.1180811829 | AA132: 0.1180811829 | AB132: 0.1180811829 | AC132: 0.1180811829 | AD132: 0.1180811829 | AE132: 0.1180811829 | AF132: 0.04920049289 | AG132: 0.04920049289 | AH132: 0.04920049289 | AI132: 0.04920049289 | AJ132: 0.04920049289 | AK132: 0.04920049289 | AL132: 0.04920049289 | AM132: 0.04920049289
B133: Korrigeret moment | E133: =IF(E127=1,$D$34-F133,G129-F133) -> -0.002709046957 | F133: =G$110+G132*$D$3+IF($D$6>G$80,G132*$D$4,INDEX($G132:$U132,1+$D$82)*$D$4)-INDEX($G132:$U132,1+$D$82)*$D$4*G$80/$D$2 -> -0.1019872516 | G133: =G$110+$E133*($D$2-G$45)/$D$2+G132*$D$3+IF($D$6>G$80,G132*$D$4,INDEX($G132:$U132,1+$D$82)*$D$4)-INDEX($G132:$U132,1+$D$82)*$D$4*G$80/$D$2 -> -0.1046962986 | H133: -0.05838787152 | I133: -0.01515675068 | J133: -0.006016803172 | K133: 0.02383502404 | L133: 0.05873590853 | M133: 0.08947622736 | N133: 0.008976544724 | O133: 0.03909749474 | P133: 0.04481495206 | Q133: 0.04862829114 | R133: 0.04964237861 | S133: 0.04784964143 | T133: 0.04784964143 | U133: 0.04784964143 | W133: M (et = 0) | Y133: =(0.5*$AA$117-Y134/3)*0.5*$AA$118*Y134*$Y$128+$Y$128*(0.5*$AA$117-$AA$120)*$X$117*$AA$119*(Y134-$AA$120)/Y134+$Y$128*(0.5*$AA$117-$AA$122)*$X$117*$AA$121*($AA$117-$AA$122-Y134)/Y134 -> 0.09555076552 | Z133: =(0.5*$AA$117-Z134/3)*0.5*$AA$118*Z134*$Y$128+$Y$128*(0.5*$AA$117-$AA$120)*$X$117*$AA$119*(Z134-$AA$120)/Z134+$Y$128*(0.5*$AA$117-$AA$122)*$X$117*$AA$121*($AA$117-$AA$122-Z134)/Z134 -> 0.09555076552 | AA133: 0.09555076552 | AB133: 0.09555076552 | AC133: 0.09555076552 | AD133: 0.09555076552 | AE133: 0.09555076552 | AF133: 0.1430349994 | AG133: 0.1430349994 | AH133: 0.1430349994 | AI133: 0.1430349994 | AJ133: 0.1430349994 | AK133: 0.1430349994 | AL133: 0.1430349994 | AM133: 0.1430349994
B134: h'' | G134: =Y$248+(G133-G$59)/G$113 -> -0.002361169631 | H134: -0.001316796018 | I134: -0.00034182354 | J134: -0.0001356943189 | K134: 0.0005285330886 | L134: 0.001302447654 | M134: 0.001984103172 | N134: 0.0001704677239 | O134: 0.0007424750998 | P134: 0.000851051614 | Q134: 0.0009234682567 | R134: 0.0009427261326 | S134: 0.0009086814264 | T134: 0.0009086814264 | U134: 0.0009086814264 | W134: x( (et = 0) | Y134: =((-$X$117*$AA$119-$X$117*$AA$121+Y125/$Y$128)+((-$X$117*$AA$119-$X$117*$AA$121+Y125/$Y$128)^2+2*$AA$118*($X$117*$AA$119*$AA$120+$X$117*$AA$121*$AA$117-$X$117*$AA$121*$AA$122))^0.5)/$AA$118 -> 0.6075283068 | Z134: =((-$X$117*$AA$119-$X$117*$AA$121+Z125/$Y$128)+((-$X$117*$AA$119-$X$117*$AA$121+Z125/$Y$128)^2+2*$AA$118*($X$117*$AA$119*$AA$120+$X$117*$AA$121*$AA$117-$X$117*$AA$121*$AA$122))^0.5)/$AA$118 -> 0.6075283068 | AA134: 0.6075283068 | AB134: 0.6075283068 | AC134: 0.6075283068 | AD134: 0.6075283068 | AE134: 0.6075283068 | AF134: 0.2929563729 | AG134: 0.2929563729 | AH134: 0.2929563729 | AI134: 0.2929563729 | AJ134: 0.2929563729 | AK134: 0.2929563729 | AL134: 0.2929563729 | AM134: 0.2929563729
B135: a'' | G135: 0 | H135: =G135+0.5*(G134+H134)*(H$80-G$80) -> -0.001655084542 | I135: =H135+0.5*(H134+I134)*(I$80-H$80) -> -0.002401463343 | J135: -0.002449215129 | K135: -0.002311721559 | L135: -0.001487780225 | M135: -8.832353224e-06 | N135: -8.821580369e-06 | O135: 0.0004476452668 | P135: 0.001085055952 | Q135: =P135+0.5*(P134+Q134)*(Q$80-P$80) -> 0.001883589894 | R135: =Q135+0.5*(Q134+R134)*(R$80-Q$80) -> 0.002723377369 | S135: =R135+0.5*(R134+S134)*(S$80-R$80) -> 0.003556510771 | T135: =S135+0.5*(S134+T134)*(T$80-S$80) -> 0.003556510771 | U135: =T135+0.5*(T134+U134)*(U$80-T$80) -> 0.003556510771 | W135: EI_rev | Y135: =(Y133-Y$131)/($Y$128/(Y134*Stivheder!$U$2)) -> 92.29097315 | Z135: =(Z133-Z$131)/($Y$128/(Z134*Stivheder!$U$2)) -> 92.29097315 | AA135: =(AA133-AA$131)/($Y$128/(AA134*Stivheder!$U$2)) -> 92.29097315 | AB135: =(AB133-AB$131)/($Y$128/(AB134*Stivheder!$U$2)) -> 92.29097315 | AC135: =(AC133-AC$131)/($Y$128/(AC134*Stivheder!$U$2)) -> 92.29097315 | AD135: =(AD133-AD$131)/($Y$128/(AD134*Stivheder!$U$2)) -> 92.29097315 | AE135: =(AE133-AE$131)/($Y$128/(AE134*Stivheder!$U$2)) -> 92.29097315 | AF135: =(AF133-AF$131)/($Y$128/(AF134*Stivheder!$U$2)) -> 66.61987373 | AG135: =(AG133-AG$131)/($Y$128/(AG134*Stivheder!$U$2)) -> 66.61987373 | AH135: =(AH133-AH$131)/($Y$128/(AH134*Stivheder!$U$2)) -> 66.61987373 | AI135: =(AI133-AI$131)/($Y$128/(AI134*Stivheder!$U$2)) -> 66.61987373 | AJ135: =(AJ133-AJ$131)/($Y$128/(AJ134*Stivheder!$U$2)) -> 66.61987373 | AK135: =(AK133-AK$131)/($Y$128/(AK134*Stivheder!$U$2)) -> 66.61987373 | AL135: =(AL133-AL$131)/($Y$128/(AL134*Stivheder!$U$2)) -> 66.61987373 | AM135: =(AM133-AM$131)/($Y$128/(AM134*Stivheder!$U$2)) -> 66.61987373
B136: u'' | G136: 0 | H136: =G136-0.5*(G135+H135)*(H$80-G$80) -> 0.0007447880438 | I136: =H136-0.5*(H135+I135)*(I$80-H$80) -> 0.002570234592 | J136: 0.003055302439 | K136: 0.00472163028 | L136: 0.006431406083 | M136: 0.007104881743 | N136: 0.007104881831 | O136: 0.006885472182 | P136: 0.006272391694 | Q136: =P136-0.5*(P135+Q135)*(Q$80-P$80) -> 0.004936501064 | R136: =Q136-0.5*(Q135+R135)*(R$80-Q$80) -> 0.002863365795 | S136: =R136-0.5*(R135+S135)*(S$80-R$80) -> 3.741613208e-05 | T136: =S136-0.5*(S135+T135)*(T$80-S$80) -> 3.741613208e-05 | U136: =T136-0.5*(T135+U135)*(U$80-T$80) -> 3.741613208e-05 | W136: Termiske tøjninger i overside
B137: a' | E137: =IF(ABS(G139)>=ABS($D$34),1,0) -> 0 | G137: =IF(E127=1,0,G135+U136/$D$2) -> 4.157348009e-06 | H137: =IF(E127=1,H135+U136/($D$2-$H$80),G137+0.5*(G134+H134)*(H$80-G$80)) -> -0.001650927194 | I137: =H137+0.5*(H134+I134)*(I$80-H$80) -> -0.002397305995 | J137: -0.002445057781 | K137: -0.002307564211 | L137: -0.001483622877 | M137: -4.675005215e-06 | N137: -4.66423236e-06 | O137: 0.0004518026148 | P137: 0.0010892133 | Q137: =P137+0.5*(P134+Q134)*(Q$80-P$80) -> 0.001887747242 | R137: =Q137+0.5*(Q134+R134)*(R$80-Q$80) -> 0.002727534717 | S137: =R137+0.5*(R134+S134)*(S$80-R$80) -> 0.003560668119 | T137: =S137+0.5*(S134+T134)*(T$80-S$80) -> 0.003560668119 | U137: =T137+0.5*(T134+U134)*(U$80-T$80) -> 0.003560668119 | W137: et (nulpunkt) | Y137: =$AF$117*(1-2.35*Y$126/Stivheder!$F$6) -> 0.001448216369 | Z137: =$AF$117*(1-2.35*Z$126/Stivheder!$F$6) -> 0.001448216369 | AA137: =$AF$117*(1-2.35*AA$126/Stivheder!$F$6) -> 0.001448216369 | AB137: =$AF$117*(1-2.35*AB$126/Stivheder!$F$6) -> 0.001448216369 | AC137: =$AF$117*(1-2.35*AC$126/Stivheder!$F$6) -> 0.001448216369 | AD137: =$AF$117*(1-2.35*AD$126/Stivheder!$F$6) -> 0.001448216369 | AE137: =$AF$117*(1-2.35*AE$126/Stivheder!$F$6) -> 0.001448216369 | AF137: =$AF$117*(1-2.35*AF$126/Stivheder!$F$6) -> 0.002806441907 | AG137: =$AF$117*(1-2.35*AG$126/Stivheder!$F$6) -> 0.002806441907 | AH137: =$AF$117*(1-2.35*AH$126/Stivheder!$F$6) -> 0.002806441907 | AI137: =$AF$117*(1-2.35*AI$126/Stivheder!$F$6) -> 0.002806441907 | AJ137: =$AF$117*(1-2.35*AJ$126/Stivheder!$F$6) -> 0.002806441907 | AK137: =$AF$117*(1-2.35*AK$126/Stivheder!$F$6) -> 0.002806441907 | AL137: =$AF$117*(1-2.35*AL$126/Stivheder!$F$6) -> 0.002806441907 | AM137: =$AF$117*(1-2.35*AM$126/Stivheder!$F$6) -> 0.002806441907
G138: 0 | H138: =G138-0.5*(G137+H137)*(H$80-G$80) -> 0.0007410464306 | I138: =H138-0.5*(H137+I137)*(I$80-H$80) -> 0.002562751365 | J138: 0.003046987743 | K138: 0.00471040544 | L138: 0.00641643963 | M138: 0.007086173677 | N138: 0.007086173723 | O138: 0.006862606768 | P138: 0.006246200402 | Q138: =P138-0.5*(P137+Q137)*(Q$80-P$80) -> 0.004906568158 | R138: =Q138-0.5*(Q137+R137)*(R$80-Q$80) -> 0.002829691276 | S138: =R138-0.5*(R137+S137)*(S$80-R$80) -> 0 | T138: =S138-0.5*(S137+T137)*(T$80-S$80) -> 0 | U138: =T138-0.5*(T137+U137)*(U$80-T$80) -> 0 | W138: et (s_u = 0) | Y138: =MAX($AF$117*(1-2.35*Y$127/Stivheder!$F$6),0) -> 0 | Z138: =MAX($AF$117*(1-2.35*Z$127/Stivheder!$F$6),0) -> 0 | AA138: =MAX($AF$117*(1-2.35*AA$127/Stivheder!$F$6),0) -> 0 | AB138: =MAX($AF$117*(1-2.35*AB$127/Stivheder!$F$6),0) -> 0 | AC138: =MAX($AF$117*(1-2.35*AC$127/Stivheder!$F$6),0) -> 0 | AD138: =MAX($AF$117*(1-2.35*AD$127/Stivheder!$F$6),0) -> 0 | AE138: =MAX($AF$117*(1-2.35*AE$127/Stivheder!$F$6),0) -> 0 | AF138: =MAX($AF$117*(1-2.35*AF$127/Stivheder!$F$6),0) -> 0.001836280808 | AG138: =MAX($AF$117*(1-2.35*AG$127/Stivheder!$F$6),0) -> 0.001836280808 | AH138: =MAX($AF$117*(1-2.35*AH$127/Stivheder!$F$6),0) -> 0.001836280808 | AI138: =MAX($AF$117*(1-2.35*AI$127/Stivheder!$F$6),0) -> 0.001836280808 | AJ138: =MAX($AF$117*(1-2.35*AJ$127/Stivheder!$F$6),0) -> 0.001836280808 | AK138: =MAX($AF$117*(1-2.35*AK$127/Stivheder!$F$6),0) -> 0.001836280808 | AL138: =MAX($AF$117*(1-2.35*AL$127/Stivheder!$F$6),0) -> 0.001836280808 | AM138: =MAX($AF$117*(1-2.35*AM$127/Stivheder!$F$6),0) -> 0.001836280808
B139: M' | E139: =IF(AND($D$36=0,$D$37=0),0,IF(AND($D$36=1,$D$37=0),IF(E127=1,$D$34-G133,IF(ABS(3*$D$36*G137*$C$118/$D$2)>ABS($D$34-G133),$D$34-G133,3*$D$36*G137*$C$118/$D$2)))) -> 6.189745869e-05 | G139: =IF(AND($D$36=0,$D$37=0),G133,IF(AND($D$36=1,$D$37=0),G133+E139)) -> -0.1046344011 | H139: =$E139*($D$2-H$80)/$D$2+H133 -> -0.05833216381 | I139: =$E139*($D$2-I$80)/$D$2+I133 -> -0.01510723271 | J139: -0.005968660704 | K139: 0.02387835226 | L139: 0.05877304701 | M139: 0.08950717609 | N139: 0.009007493385 | O139: 0.03912156598 | P139: 0.0448335213 | Q139: =$E139*($D$2-Q$80)/$D$2+Q133 -> 0.04864067063 | R139: =$E139*($D$2-R$80)/$D$2+R133 -> 0.04964856836 | S139: =$E139*($D$2-S$80)/$D$2+S133 -> 0.04784964143 | T139: =$E139*($D$2-T$80)/$D$2+T133 -> 0.04784964143 | U139: =$E139*($D$2-U$80)/$D$2+U133 -> 0.04784964143 | W139: et (=0) | Y139: 0 | Z139: 0 | AA139: 0 | AB139: 0 | AC139: 0 | AD139: 0 | AE139: 0 | AF139: 0 | AG139: 0 | AH139: 0 | AI139: 0 | AJ139: 0 | AK139: 0 | AL139: 0 | AM139: 0
B140: h' | G140: =G134+(G139-G133)/$C$118 -> -0.002359783848 | H140: -0.001315548813 | I140: -0.0003407149138 | J140: -0.0001346164879 | K140: 0.0005295031365 | L140: 0.001303279124 | M140: 0.001984796063 | N140: 0.0001711606137 | O140: 0.0007430140152 | P140: 0.0008514673488 | Q140: 0.0009237454132 | R140: 0.0009428647109 | S140: 0.0009086814264 | T140: 0.0009086814264 | U140: 0.0009086814264 | W140: Termiske tøjninger i underside
B141: a' | G141: =IF(E127=1,0,G137-E139*$D$2/(3*$C$56)) -> 1.76184021e-07 | H141: =IF(E127=1,H135+(U136+U138)/($D$2-$H$80),G141+0.5*(G140+H140)*(H$80-G$80)) -> -0.001653723514 | I141: =H141+0.5*(H140+I140)*(I$80-H$80) -> -0.002399042191 | J141: -0.002446575331 | K141: -0.002308365004 | L141: -0.001483612987 | M141: -3.979152693e-06 | N141: -3.968372909e-06 | O141: 0.0004531143707 | P141: 0.001090906916 | Q141: =P141+0.5*(P140+Q140)*(Q$80-P$80) -> 0.001889752659 | R141: =Q141+0.5*(Q140+R140)*(R$80-Q$80) -> 0.002729727215 | S141: =R141+0.5*(R140+S140)*(S$80-R$80) -> 0.003562922977 | T141: =S141+0.5*(S140+T140)*(T$80-S$80) -> 0.003562922977 | U141: =T141+0.5*(T140+U140)*(U$80-T$80) -> 0.003562922977 | W141: et (nulpunkt) | Y141: =$AF$120*(1-2.35*Y$126/Stivheder!$F$6) -> 0.001448216369 | Z141: =$AF$120*(1-2.35*Z$126/Stivheder!$F$6) -> 0.001448216369 | AA141: =$AF$120*(1-2.35*AA$126/Stivheder!$F$6) -> 0.001448216369 | AB141: =$AF$120*(1-2.35*AB$126/Stivheder!$F$6) -> 0.001448216369 | AC141: =$AF$120*(1-2.35*AC$126/Stivheder!$F$6) -> 0.001448216369 | AD141: =$AF$120*(1-2.35*AD$126/Stivheder!$F$6) -> 0.001448216369 | AE141: =$AF$120*(1-2.35*AE$126/Stivheder!$F$6) -> 0.001448216369 | AF141: =$AF$120*(1-2.35*AF$126/Stivheder!$F$6) -> 0.002806441907 | AG141: =$AF$120*(1-2.35*AG$126/Stivheder!$F$6) -> 0.002806441907 | AH141: =$AF$120*(1-2.35*AH$126/Stivheder!$F$6) -> 0.002806441907 | AI141: =$AF$120*(1-2.35*AI$126/Stivheder!$F$6) -> 0.002806441907 | AJ141: =$AF$120*(1-2.35*AJ$126/Stivheder!$F$6) -> 0.002806441907 | AK141: =$AF$120*(1-2.35*AK$126/Stivheder!$F$6) -> 0.002806441907 | AL141: =$AF$120*(1-2.35*AL$126/Stivheder!$F$6) -> 0.002806441907 | AM141: =$AF$120*(1-2.35*AM$126/Stivheder!$F$6) -> 0.002806441907
B142: u | D142: =E142/E132 -> 1.000779549 | E142: =MAX(ABS(MAX(G142:U142)),ABS(MIN(G142:U142))) -> 0.007092438333 | G142: 0 | H142: =IF(E127=1,H138,G142-0.5*(G141+H141)*(H$80-G$80)) -> 0.0007440962983 | I142: =H142-0.5*(H141+I141)*(I$80-H$80) -> 0.002567840865 | J142: 0.003052402617 | K142: 0.004716631735 | L142: 0.006423021831 | M142: 0.007092438293 | N142: 0.007092438333 | O142: 0.00686786758 | P142: 0.006250259065 | Q142: 0.004908962256 | R142: 0.002830196313 | S142: -1.496273592e-06 | T142: -1.496273592e-06 | U142: -1.496273592e-06 | W142: et_revnet | Y142: =$AF$121 -> 0.00407249216 | Z142: =$AF$121 -> 0.00407249216 | AA142: 0.00407249216 | AB142: 0.00407249216 | AC142: 0.00407249216 | AD142: 0.00407249216 | AE142: 0.00407249216 | AF142: 0.00407249216 | AG142: 0.00407249216 | AH142: 0.00407249216 | AI142: 0.00407249216 | AJ142: 0.00407249216 | AK142: 0.00407249216 | AL142: 0.00407249216 | AM142: 0.00407249216
B143: Korrigeret moment | E143: =IF(E137=1,$D$34-F143,G139-F143) -> -0.002647149498 | F143: =G$110+G142*$D$3+IF($D$6>G$80,G142*$D$4,INDEX($G142:$U142,1+$D$82)*$D$4)-INDEX($G142:$U142,1+$D$82)*$D$4*G$80/$D$2 -> -0.1019872516 | G143: =G$110+$E143*($D$2-G$45)/$D$2+G142*$D$3+IF($D$6>G$80,G142*$D$4,INDEX($G142:$U142,1+$D$82)*$D$4)-INDEX($G142:$U142,1+$D$82)*$D$4*G$80/$D$2 -> -0.1046344011 | H143: -0.05833001613 | I143: -0.01510405322 | J143: -0.005965363686 | K143: 0.02388196526 | L143: 0.0587771028 | M143: 0.08951187199 | N143: 0.009012189281 | O143: 0.03912677489 | P143: 0.04483972124 | Q143: 0.04864854227 | R143: 0.04965862873 | S143: 0.04786225186 | T143: 0.04786225186 | U143: 0.04786225186
B144: h'' | G144: =Y$248+(G143-G$59)/G$113 -> -0.002359773685 | H144: -0.00131549123 | I144: -0.0003406350773 | J144: -0.0001345342267 | K144: 0.0005295739932 | L144: 0.001303361122 | M144: 0.001984893579 | N144: 0.0001711446265 | O144: 0.00074303114 | P144: 0.0008515219893 | Q144: 0.0009238528328 | R144: 0.0009430347279 | S144: 0.000908920903 | T144: 0.000908920903 | U144: 0.000908920903 | W144: Negative momenter
B145: a'' | G145: 0 | H145: =G145+0.5*(G144+H144)*(H$80-G$80) -> -0.001653869212 | I145: =H145+0.5*(H144+I144)*(I$80-H$80) -> -0.00239912605 | J145: -0.002446642981 | K145: -0.002308379062 | L145: -0.00148355826 | M145: -3.843644969e-06 | N145: -3.832864778e-06 | O145: 0.0004532504476 | P145: 0.001091071699 | Q145: =P145+0.5*(P144+Q144)*(Q$80-P$80) -> 0.001889990369 | R145: =Q145+0.5*(Q144+R144)*(R$80-Q$80) -> 0.002730089772 | S145: =R145+0.5*(R144+S144)*(S$80-R$80) -> 0.003563469805 | T145: =S145+0.5*(S144+T144)*(T$80-S$80) -> 0.003563469805 | U145: =T145+0.5*(T144+U144)*(U$80-T$80) -> 0.003563469805 | W145: M-nulpunkt | Y145: =Y131 -> 0 | Z145: 0 | AA145: 0 | AB145: 0 | AC145: 0 | AD145: 0 | AE145: 0 | AF145: 0 | AG145: 0 | AH145: 0 | AI145: 0 | AJ145: 0 | AK145: 0 | AL145: 0 | AM145: 0
B146: u'' | G146: 0 | H146: =G146-0.5*(G145+H145)*(H$80-G$80) -> 0.0007442411453 | I146: =H146-0.5*(H145+I145)*(I$80-H$80) -> 0.002568089013 | J146: 0.003052665916 | K146: 0.004716923631 | L146: 0.006423295427 | M146: 0.007092626284 | N146: 0.007092626322 | O146: 0.006867919778 | P146: 0.006250190919 | Q146: =P146-0.5*(P145+Q145)*(Q$80-P$80) -> 0.004908712989 | R146: =Q146-0.5*(Q145+R145)*(R$80-Q$80) -> 0.002829676925 | S146: =R146-0.5*(R145+S145)*(S$80-R$80) -> -2.424884519e-06 | T146: =S146-0.5*(S145+T145)*(T$80-S$80) -> -2.424884519e-06 | U146: =T146-0.5*(T145+U145)*(U$80-T$80) -> -2.424884519e-06 | W146: M (s_o = 0) | Y146: =-Y125*$X$123/$X$118 -> -0.1180811829 | Z146: -0.1180811829 | AA146: -0.1180811829 | AB146: -0.1180811829 | AC146: -0.1180811829 | AD146: -0.1180811829 | AE146: -0.1180811829 | AF146: -0.04920049289 | AG146: -0.04920049289 | AH146: -0.04920049289 | AI146: -0.04920049289 | AJ146: -0.04920049289 | AK146: -0.04920049289 | AL146: -0.04920049289 | AM146: -0.04920049289
B147: a' | E147: =IF(ABS(G149)>=ABS($D$34),1,0) -> 0 | G147: =IF(E137=1,0,G145+U146/$D$2) -> -2.694316132e-07 | H147: =IF(E137=1,H145+U146/($D$2-$H$80),G147+0.5*(G144+H144)*(H$80-G$80)) -> -0.001654138643 | I147: =H147+0.5*(H144+I144)*(I$80-H$80) -> -0.002399395482 | J147: -0.002446912412 | K147: -0.002308648494 | L147: -0.001483827692 | M147: -4.113076583e-06 | N147: -4.102296392e-06 | O147: 0.000452981016 | P147: 0.001090802268 | Q147: =P147+0.5*(P144+Q144)*(Q$80-P$80) -> 0.001889720938 | R147: =Q147+0.5*(Q144+R144)*(R$80-Q$80) -> 0.00272982034 | S147: =R147+0.5*(R144+S144)*(S$80-R$80) -> 0.003563200374 | T147: =S147+0.5*(S144+T144)*(T$80-S$80) -> 0.003563200374 | U147: =T147+0.5*(T144+U144)*(U$80-T$80) -> 0.003563200374 | W147: M (et = 0) | Y147: =-((0.5*$AA$117-Y148/3)*0.5*$AA$118*Y148*$Y$128+$Y$128*(0.5*$AA$117-$AA$122)*$X$117*$AA$121*(Y148-$AA$122)/Y148+$Y$128*(0.5*$AA$117-$AA$120)*$X$117*$AA$119*($AA$117-$AA$120-Y148)/Y148) -> -0.09555076552 | Z147: =-((0.5*$AA$117-Z148/3)*0.5*$AA$118*Z148*$Y$128+$Y$128*(0.5*$AA$117-$AA$122)*$X$117*$AA$121*(Z148-$AA$122)/Z148+$Y$128*(0.5*$AA$117-$AA$120)*$X$117*$AA$119*($AA$117-$AA$120-Z148)/Z148) -> -0.09555076552 | AA147: -0.09555076552 | AB147: -0.09555076552 | AC147: -0.09555076552 | AD147: -0.09555076552 | AE147: -0.09555076552 | AF147: -0.1430349994 | AG147: -0.1430349994 | AH147: -0.1430349994 | AI147: -0.1430349994 | AJ147: -0.1430349994 | AK147: -0.1430349994 | AL147: -0.1430349994 | AM147: -0.1430349994
G148: 0 | H148: =G148-0.5*(G147+H147)*(H$80-G$80) -> 0.0007444836337 | I148: =H148-0.5*(H147+I147)*(I$80-H$80) -> 0.00256857399 | J148: 0.00305320478 | K148: 0.004717651097 | L148: 0.00642426538 | M148: 0.007093838726 | N148: 0.007093838767 | O148: 0.006869401652 | P148: 0.006251888339 | Q148: =P148-0.5*(P147+Q147)*(Q$80-P$80) -> 0.004910652896 | R148: =Q148-0.5*(Q147+R147)*(R$80-Q$80) -> 0.002831859321 | S148: =R148-0.5*(R147+S147)*(S$80-R$80) -> 0 | T148: =S148-0.5*(S147+T147)*(T$80-S$80) -> 0 | U148: =T148-0.5*(T147+U147)*(U$80-T$80) -> 0 | W148: x( (et = 0) | Y148: =((-$X$117*$AA$119-$X$117*$AA$121+Y125/$Y$128)+((-$X$117*$AA$119-$X$117*$AA$121+Y125/$Y$128)^2+2*$AA$118*($X$117*$AA$121*$AA$122+$X$117*$AA$119*$AA$117-$X$117*$AA$119*$AA$120))^0.5)/$AA$118 -> 0.6075283068 | Z148: =((-$X$117*$AA$119-$X$117*$AA$121+Z125/$Y$128)+((-$X$117*$AA$119-$X$117*$AA$121+Z125/$Y$128)^2+2*$AA$118*($X$117*$AA$121*$AA$122+$X$117*$AA$119*$AA$117-$X$117*$AA$119*$AA$120))^0.5)/$AA$118 -> 0.6075283068 | AA148: 0.6075283068 | AB148: 0.6075283068 | AC148: 0.6075283068 | AD148: 0.6075283068 | AE148: 0.6075283068 | AF148: 0.2929563729 | AG148: 0.2929563729 | AH148: 0.2929563729 | AI148: 0.2929563729 | AJ148: 0.2929563729 | AK148: 0.2929563729 | AL148: 0.2929563729 | AM148: 0.2929563729
B149: M' | E149: =IF(AND($D$36=0,$D$37=0),0,IF(AND($D$36=1,$D$37=0),IF(E137=1,$D$34-G143,IF(ABS(3*$D$36*G147*$C$118/$D$2)>ABS($D$34-G143),$D$34-G143,3*$D$36*G147*$C$118/$D$2)))) -> -4.011483309e-06 | G149: =IF(AND($D$36=0,$D$37=0),G143,IF(AND($D$36=1,$D$37=0),G143+E149)) -> -0.1046384126 | H149: =$E149*($D$2-H$80)/$D$2+H143 -> -0.05833362646 | I149: =$E149*($D$2-I$80)/$D$2+I143 -> -0.0151072624 | J149: -0.005968483729 | K149: 0.02387915722 | L149: 0.05877469591 | M149: 0.08950986625 | N149: 0.009010183544 | O149: 0.03912521487 | P149: 0.04483851779 | Q149: =$E149*($D$2-Q$80)/$D$2+Q143 -> 0.04864773997 | R149: =$E149*($D$2-R$80)/$D$2+R143 -> 0.04965822758 | S149: =$E149*($D$2-S$80)/$D$2+S143 -> 0.04786225186 | T149: =$E149*($D$2-T$80)/$D$2+T143 -> 0.04786225186 | U149: =$E149*($D$2-U$80)/$D$2+U143 -> 0.04786225186 | W149: EI_rev | Y149: =(-Y147+Y$131)/($Y$128/(Y148*Stivheder!$U$2)) -> 92.29097315 | Z149: =(-Z147+Z$131)/($Y$128/(Z148*Stivheder!$U$2)) -> 92.29097315 | AA149: =(-AA147+AA$131)/($Y$128/(AA148*Stivheder!$U$2)) -> 92.29097315 | AB149: =(-AB147+AB$131)/($Y$128/(AB148*Stivheder!$U$2)) -> 92.29097315 | AC149: =(-AC147+AC$131)/($Y$128/(AC148*Stivheder!$U$2)) -> 92.29097315 | AD149: =(-AD147+AD$131)/($Y$128/(AD148*Stivheder!$U$2)) -> 92.29097315 | AE149: =(-AE147+AE$131)/($Y$128/(AE148*Stivheder!$U$2)) -> 92.29097315 | AF149: =(-AF147+AF$131)/($Y$128/(AF148*Stivheder!$U$2)) -> 66.61987373 | AG149: =(-AG147+AG$131)/($Y$128/(AG148*Stivheder!$U$2)) -> 66.61987373 | AH149: =(-AH147+AH$131)/($Y$128/(AH148*Stivheder!$U$2)) -> 66.61987373 | AI149: =(-AI147+AI$131)/($Y$128/(AI148*Stivheder!$U$2)) -> 66.61987373 | AJ149: =(-AJ147+AJ$131)/($Y$128/(AJ148*Stivheder!$U$2)) -> 66.61987373 | AK149: =(-AK147+AK$131)/($Y$128/(AK148*Stivheder!$U$2)) -> 66.61987373 | AL149: =(-AL147+AL$131)/($Y$128/(AL148*Stivheder!$U$2)) -> 66.61987373 | AM149: =(-AM147+AM$131)/($Y$128/(AM148*Stivheder!$U$2)) -> 66.61987373
B150: h' | G150: =G144+(G149-G143)/$C$118 -> -0.002359863495 | H150: -0.00131557206 | I150: -0.0003407069257 | J150: -0.0001346040794 | K150: 0.0005295111258 | L150: 0.001303307236 | M150: 0.001984848674 | N150: 0.0001710997214 | O150: 0.0007429962137 | P150: 0.0008514950461 | Q150: 0.0009238348707 | R150: 0.0009430257469 | S150: 0.000908920903 | T150: 0.000908920903 | U150: 0.000908920903 | W150: Termiske tøjninger i underside
B151: a' | G151: =IF(E147=1,0,G147-E149*$D$2/(3*$C$56)) -> -1.141822741e-08 | H151: =IF(E147=1,H145+(U146+U148)/($D$2-$H$80),G151+0.5*(G150+H150)*(H$80-G$80)) -> -0.001653957418 | I151: =H151+0.5*(H150+I150)*(I$80-H$80) -> -0.002399282962 | J151: -0.002446814062 | K151: -0.002308596596 | L151: -0.001483828333 | M151: -4.158173762e-06 | N151: -4.14739402e-06 | O151: 0.000452896003 | P151: 0.001090692507 | Q151: =P151+0.5*(P150+Q150)*(Q$80-P$80) -> 0.00188959097 | R151: =Q151+0.5*(Q150+R150)*(R$80-Q$80) -> 0.002729678247 | S151: =R151+0.5*(R150+S150)*(S$80-R$80) -> 0.00356305424 | T151: =S151+0.5*(S150+T150)*(T$80-S$80) -> 0.00356305424 | U151: =T151+0.5*(T150+U150)*(U$80-T$80) -> 0.00356305424 | W151: et (nulpunkt) | Y151: =$AF$120*(1-2.35*Y$126/Stivheder!$F$6) -> 0.001448216369 | Z151: =$AF$120*(1-2.35*Z$126/Stivheder!$F$6) -> 0.001448216369 | AA151: =$AF$120*(1-2.35*AA$126/Stivheder!$F$6) -> 0.001448216369 | AB151: =$AF$120*(1-2.35*AB$126/Stivheder!$F$6) -> 0.001448216369 | AC151: =$AF$120*(1-2.35*AC$126/Stivheder!$F$6) -> 0.001448216369 | AD151: =$AF$120*(1-2.35*AD$126/Stivheder!$F$6) -> 0.001448216369 | AE151: =$AF$120*(1-2.35*AE$126/Stivheder!$F$6) -> 0.001448216369 | AF151: =$AF$120*(1-2.35*AF$126/Stivheder!$F$6) -> 0.002806441907 | AG151: =$AF$120*(1-2.35*AG$126/Stivheder!$F$6) -> 0.002806441907 | AH151: =$AF$120*(1-2.35*AH$126/Stivheder!$F$6) -> 0.002806441907 | AI151: =$AF$120*(1-2.35*AI$126/Stivheder!$F$6) -> 0.002806441907 | AJ151: =$AF$120*(1-2.35*AJ$126/Stivheder!$F$6) -> 0.002806441907 | AK151: =$AF$120*(1-2.35*AK$126/Stivheder!$F$6) -> 0.002806441907 | AL151: =$AF$120*(1-2.35*AL$126/Stivheder!$F$6) -> 0.002806441907 | AM151: =$AF$120*(1-2.35*AM$126/Stivheder!$F$6) -> 0.002806441907
B152: u | D152: =E152/E142 -> 1.00014021 | E152: =MAX(ABS(MAX(G152:U152)),ABS(MIN(G152:U152))) -> 0.007093432767 | G152: 0 | H152: =IF(E147=1,H148,G152-0.5*(G151+H151)*(H$80-G$80)) -> 0.0007442859763 | I152: =H152-0.5*(H151+I151)*(I$80-H$80) -> 0.002568244147 | J152: 0.003052853849 | K152: 0.00471724758 | L152: 0.006423838798 | M152: 0.007093432726 | N152: 0.007093432767 | O152: 0.006869060707 | P152: 0.006251625303 | Q152: 0.004910497738 | R152: 0.002831826591 | S152: 9.697129199e-08 | T152: 9.697129199e-08 | U152: 9.697129199e-08 | W152: et (s_o = 0) | Y152: =MAX($AF$120*(1-2.35*Y$127/Stivheder!$F$6),0) -> 0 | Z152: =MAX($AF$120*(1-2.35*Z$127/Stivheder!$F$6),0) -> 0 | AA152: =MAX($AF$120*(1-2.35*AA$127/Stivheder!$F$6),0) -> 0 | AB152: =MAX($AF$120*(1-2.35*AB$127/Stivheder!$F$6),0) -> 0 | AC152: =MAX($AF$120*(1-2.35*AC$127/Stivheder!$F$6),0) -> 0 | AD152: =MAX($AF$120*(1-2.35*AD$127/Stivheder!$F$6),0) -> 0 | AE152: =MAX($AF$120*(1-2.35*AE$127/Stivheder!$F$6),0) -> 0 | AF152: =MAX($AF$120*(1-2.35*AF$127/Stivheder!$F$6),0) -> 0.001836280808 | AG152: =MAX($AF$120*(1-2.35*AG$127/Stivheder!$F$6),0) -> 0.001836280808 | AH152: =MAX($AF$120*(1-2.35*AH$127/Stivheder!$F$6),0) -> 0.001836280808 | AI152: =MAX($AF$120*(1-2.35*AI$127/Stivheder!$F$6),0) -> 0.001836280808 | AJ152: =MAX($AF$120*(1-2.35*AJ$127/Stivheder!$F$6),0) -> 0.001836280808 | AK152: =MAX($AF$120*(1-2.35*AK$127/Stivheder!$F$6),0) -> 0.001836280808 | AL152: =MAX($AF$120*(1-2.35*AL$127/Stivheder!$F$6),0) -> 0.001836280808 | AM152: =MAX($AF$120*(1-2.35*AM$127/Stivheder!$F$6),0) -> 0.001836280808
B153: Korrigeret moment | E153: =IF(E147=1,$D$34-F153,G149-F153) -> -0.002651160982 | F153: =G$110+G152*$D$3+IF($D$6>G$80,G152*$D$4,INDEX($G152:$U152,1+$D$82)*$D$4)-INDEX($G152:$U152,1+$D$82)*$D$4*G$80/$D$2 -> -0.1019872516 | G153: =G$110+$E153*($D$2-G$45)/$D$2+G152*$D$3+IF($D$6>G$80,G152*$D$4,INDEX($G152:$U152,1+$D$82)*$D$4)-INDEX($G152:$U152,1+$D$82)*$D$4*G$80/$D$2 -> -0.1046384126 | H153: -0.05833346846 | I153: -0.01510691769 | J153: -0.00596809694 | K153: 0.0238796874 | L153: 0.05877539783 | M153: 0.08951071152 | N153: 0.009011028812 | O153: 0.03912608214 | P153: 0.04483940974 | Q153: 0.04864864693 | R153: 0.04965911233 | S153: 0.04786304849 | T153: 0.04786304849 | U153: 0.04786304849 | W153: et (=0) | Y153: 0 | Z153: 0 | AA153: 0 | AB153: 0 | AC153: 0 | AD153: 0 | AE153: 0 | AF153: 0 | AG153: 0 | AH153: 0 | AI153: 0 | AJ153: 0 | AK153: 0 | AL153: 0 | AM153: 0
B154: h'' | G154: =Y$248+(G153-G$59)/G$113 -> -0.002359864154 | H154: -0.001315569089 | I154: -0.0003406996784 | J154: -0.0001345958686 | K154: 0.0005295234826 | L154: 0.001303323315 | M154: 0.001984867846 | N154: 0.0001711225888 | O154: 0.0007430179844 | P154: 0.0008515160739 | Q154: 0.0009238548204 | R154: 0.0009430439117 | S154: 0.0009089360312 | T154: 0.0009089360312 | U154: 0.0009089360312 | W154: Termiske tøjninger i overside
B155: a'' | G155: 0 | H155: =G155+0.5*(G154+H154)*(H$80-G$80) -> -0.001653944959 | I155: =H155+0.5*(H154+I154)*(I$80-H$80) -> -0.002399265905 | J155: -0.00244679546 | K155: -0.002308570795 | L155: -0.001483789736 | M155: -4.103713382e-06 | N155: -4.09293343e-06 | O155: 0.0004529727825 | P155: 0.001090786406 | Q155: =P155+0.5*(P154+Q154)*(Q$80-P$80) -> 0.001889703308 | R155: =Q155+0.5*(Q154+R154)*(R$80-Q$80) -> 0.002729807738 | S155: =R155+0.5*(R154+S154)*(S$80-R$80) -> 0.003563198712 | T155: =S155+0.5*(S154+T154)*(T$80-S$80) -> 0.003563198712 | U155: =T155+0.5*(T154+U154)*(U$80-T$80) -> 0.003563198712 | W155: et (nulpunkt) | Y155: =$AF$117*(1-2.35*Y$126/Stivheder!$F$6) -> 0.001448216369 | Z155: =$AF$117*(1-2.35*Z$126/Stivheder!$F$6) -> 0.001448216369 | AA155: =$AF$117*(1-2.35*AA$126/Stivheder!$F$6) -> 0.001448216369 | AB155: =$AF$117*(1-2.35*AB$126/Stivheder!$F$6) -> 0.001448216369 | AC155: =$AF$117*(1-2.35*AC$126/Stivheder!$F$6) -> 0.001448216369 | AD155: =$AF$117*(1-2.35*AD$126/Stivheder!$F$6) -> 0.001448216369 | AE155: =$AF$117*(1-2.35*AE$126/Stivheder!$F$6) -> 0.001448216369 | AF155: =$AF$117*(1-2.35*AF$126/Stivheder!$F$6) -> 0.002806441907 | AG155: =$AF$117*(1-2.35*AG$126/Stivheder!$F$6) -> 0.002806441907 | AH155: =$AF$117*(1-2.35*AH$126/Stivheder!$F$6) -> 0.002806441907 | AI155: =$AF$117*(1-2.35*AI$126/Stivheder!$F$6) -> 0.002806441907 | AJ155: =$AF$117*(1-2.35*AJ$126/Stivheder!$F$6) -> 0.002806441907 | AK155: =$AF$117*(1-2.35*AK$126/Stivheder!$F$6) -> 0.002806441907 | AL155: =$AF$117*(1-2.35*AL$126/Stivheder!$F$6) -> 0.002806441907 | AM155: =$AF$117*(1-2.35*AM$126/Stivheder!$F$6) -> 0.002806441907
B156: u'' | G156: 0 | H156: =G156-0.5*(G155+H155)*(H$80-G$80) -> 0.0007442752317 | I156: =H156-0.5*(H155+I155)*(I$80-H$80) -> 0.002568220121 | J156: 0.003052826257 | K156: 0.004717204446 | L156: 0.006423766685 | M156: 0.007093318737 | N156: 0.007093318778 | O156: 0.006868881098 | P156: 0.006251377423 | Q156: =P156-0.5*(P155+Q155)*(Q$80-P$80) -> 0.004910157051 | R156: =Q156-0.5*(Q155+R155)*(R$80-Q$80) -> 0.002831377081 | S156: =R156-0.5*(R155+S155)*(S$80-R$80) -> -4.758216362e-07 | T156: =S156-0.5*(S155+T155)*(T$80-S$80) -> -4.758216362e-07 | U156: =T156-0.5*(T155+U155)*(U$80-T$80) -> -4.758216362e-07 | W156: et_revnet | Y156: =$AF$118 -> 0.00407249216 | Z156: =$AF$118 -> 0.00407249216 | AA156: 0.00407249216 | AB156: 0.00407249216 | AC156: 0.00407249216 | AD156: 0.00407249216 | AE156: 0.00407249216 | AF156: 0.00407249216 | AG156: 0.00407249216 | AH156: 0.00407249216 | AI156: 0.00407249216 | AJ156: 0.00407249216 | AK156: 0.00407249216 | AL156: 0.00407249216 | AM156: 0.00407249216
B157: a' | E157: =IF(ABS(G159)>=ABS($D$34),1,0) -> 0 | G157: =IF(E147=1,0,G155+U156/$D$2) -> -5.286907069e-08 | H157: =IF(E147=1,H155+U156/($D$2-$H$80),G157+0.5*(G154+H154)*(H$80-G$80)) -> -0.001653997828 | I157: =H157+0.5*(H154+I154)*(I$80-H$80) -> -0.002399318774 | J157: -0.002446848329 | K157: -0.002308623664 | L157: -0.001483842605 | M157: -4.156582453e-06 | N157: -4.145802501e-06 | O157: 0.0004529199134 | P157: 0.001090733537 | Q157: =P157+0.5*(P154+Q154)*(Q$80-P$80) -> 0.001889650439 | R157: =Q157+0.5*(Q154+R154)*(R$80-Q$80) -> 0.002729754869 | S157: =R157+0.5*(R154+S154)*(S$80-R$80) -> 0.003563145843 | T157: =S157+0.5*(S154+T154)*(T$80-S$80) -> 0.003563145843 | U157: =T157+0.5*(T154+U154)*(U$80-T$80) -> 0.003563145843
G158: 0 | H158: =G158-0.5*(G157+H157)*(H$80-G$80) -> 0.0007443228139 | I158: =H158-0.5*(H157+I157)*(I$80-H$80) -> 0.002568315285 | J158: 0.003052931995 | K158: 0.004717347193 | L158: 0.006423957014 | M158: 0.007093556648 | N158: 0.007093556689 | O158: 0.006869171878 | P158: 0.006251710498 | Q158: =P158-0.5*(P157+Q157)*(Q$80-P$80) -> 0.004910537709 | R158: =Q158-0.5*(Q157+R157)*(R$80-Q$80) -> 0.00283180532 | S158: =R158-0.5*(R157+S157)*(S$80-R$80) -> 0 | T158: =S158-0.5*(S157+T157)*(T$80-S$80) -> 0 | U158: =T158-0.5*(T157+U157)*(U$80-T$80) -> 0 | W158: Brand | Y158: =IF(C21=1,0,1) -> 0
B159: M' | E159: =IF(AND($D$36=0,$D$37=0),0,IF(AND($D$36=1,$D$37=0),IF(E147=1,$D$34-G153,IF(ABS(3*$D$36*G157*$C$118/$D$2)>ABS($D$34-G153),$D$34-G153,3*$D$36*G157*$C$118/$D$2)))) -> -7.871511146e-07 | G159: =IF(AND($D$36=0,$D$37=0),G153,IF(AND($D$36=1,$D$37=0),G153+E159)) -> -0.1046391998 | H159: =$E159*($D$2-H$80)/$D$2+H153 -> -0.0583341769 | I159: =$E159*($D$2-I$80)/$D$2+I153 -> -0.01510754741 | J159: -0.005968709168 | K159: 0.0238791364 | L159: 0.05877492554 | M159: 0.08951031794 | N159: 0.009010635237 | O159: 0.03912577602 | P159: 0.0448391736 | Q159: =$E159*($D$2-Q$80)/$D$2+Q153 -> 0.0486484895 | R159: =$E159*($D$2-R$80)/$D$2+R153 -> 0.04965903361 | S159: =$E159*($D$2-S$80)/$D$2+S153 -> 0.04786304849 | T159: =$E159*($D$2-T$80)/$D$2+T153 -> 0.04786304849 | U159: =$E159*($D$2-U$80)/$D$2+U153 -> 0.04786304849 | W159: Termisk udvidelse, os | Y159: =Firsidig!$D$2*$Y$158*IF(OR(X161=1,X161=3),1,0) -> 0 | Z159: =Y159 -> 0 | AA159: =Z159 -> 0 | AB159: 0 | AC159: 0 | AD159: 0 | AE159: 0 | AF159: 0 | AG159: 0 | AH159: 0 | AI159: 0 | AJ159: 0 | AK159: 0 | AL159: 0 | AM159: 0
B160: h' | G160: =G154+(G159-G153)/$C$118 -> -0.002359881777 | H160: -0.00131558495 | I160: -0.0003407137768 | J160: -0.0001346095754 | K160: 0.0005295111464 | L160: 0.001303312741 | M160: 0.001984859034 | N160: 0.0001711137773 | O160: 0.000743011131 | P160: 0.000851510787 | Q160: 0.0009238512958 | R160: 0.0009430421494 | S160: 0.0009089360312 | T160: 0.0009089360312 | U160: 0.0009089360312 | W160: Termisk udvidelse, us | Y160: =Firsidig!$D$11*$Y$158*IF(OR(X161=1,X161=2),1,0) -> 0 | Z160: =Y160 -> 0 | AA160: =Z160 -> 0 | AB160: 0 | AC160: 0 | AD160: 0 | AE160: 0 | AF160: 0 | AG160: 0 | AH160: 0 | AI160: 0 | AJ160: 0 | AK160: 0 | AL160: 0 | AM160: 0
B161: a' | G161: =IF(E157=1,0,G157-E159*$D$2/(3*$C$56)) -> -2.240535419e-09 | H161: =IF(E157=1,H155+(U156+U158)/($D$2-$H$80),G161+0.5*(G160+H160)*(H$80-G$80)) -> -0.001653962268 | I161: =H161+0.5*(H160+I160)*(I$80-H$80) -> -0.002399296695 | J161: -0.00244682903 | K161: -0.00230861348 | L161: -0.001483842731 | M161: -4.165431622e-06 | N161: -4.154651758e-06 | O161: 0.0004529032318 | P161: 0.001090711999 | Q161: =P161+0.5*(P160+Q160)*(Q$80-P$80) -> 0.001889624936 | R161: =Q161+0.5*(Q160+R160)*(R$80-Q$80) -> 0.002729726987 | S161: =R161+0.5*(R160+S160)*(S$80-R$80) -> 0.003563117168 | T161: =S161+0.5*(S160+T160)*(T$80-S$80) -> 0.003563117168 | U161: =T161+0.5*(T160+U160)*(U$80-T$80) -> 0.003563117168 | W161: type | X161: =Brand!$BK$63 -> 2
B162: u | D162: =E162/E152 -> 1.000006239 | E162: =MAX(ABS(MAX(G162:U162)),ABS(MIN(G162:U162))) -> 0.007093477022 | G162: 0 | H162: =IF(E157=1,H158,G162-0.5*(G161+H161)*(H$80-G$80)) -> 0.0007442840287 | I162: =H162-0.5*(H161+I161)*(I$80-H$80) -> 0.002568250562 | J162: 0.003052863134 | K162: 0.004717268013 | L162: 0.006423873308 | M162: 0.007093476981 | N162: 0.007093477022 | O162: 0.006869104976 | P162: 0.006251658884 | Q162: 0.004910507263 | R162: 0.002831798898 | S162: 1.902813864e-08 | T162: 1.902813864e-08 | U162: 1.902813864e-08
B163: Korrigeret moment | E163: =IF(E157=1,$D$34-F163,G159-F163) -> -0.002651948133 | F163: =G$110+G162*$D$3+IF($D$6>G$80,G162*$D$4,INDEX($G162:$U162,1+$D$82)*$D$4)-INDEX($G162:$U162,1+$D$82)*$D$4*G$80/$D$2 -> -0.1019872516 | G163: =G$110+$E163*($D$2-G$45)/$D$2+G162*$D$3+IF($D$6>G$80,G162*$D$4,INDEX($G162:$U162,1+$D$82)*$D$4)-INDEX($G162:$U162,1+$D$82)*$D$4*G$80/$D$2 -> -0.1046391998 | H163: -0.05833418233 | I163: -0.01510754591 | J163: -0.005968704911 | K163: 0.02387915162 | L163: 0.05877495456 | M163: 0.08951035556 | N163: 0.009010672854 | O163: 0.03912581021 | P163: 0.04483919968 | Q163: 0.04864850046 | R163: 0.04965902286 | S163: 0.04786300951 | T163: 0.04786300951 | U163: 0.04786300951 | W163: x | Y163: =$G$80 -> 0 | Z163: =$H$80 -> 0.9 | AA163: =$I$80 -> 1.8 | AB163: =$J$80 -> 2 | AC163: =$K$80 -> 2.7 | AD163: =$L$80 -> 3.6 | AE163: =$M$80 -> 4.5 | AF163: =$N$80 -> 4.50001 | AG163: =$O$80 -> 5.5 | AH163: =$P$80 -> 6.3 | AI163: =$Q$80 -> 7.2 | AJ163: =$R$80 -> 8.1 | AK163: =$S$80 -> 9 | AL163: =$T$80 -> 9 | AM163: =$U$80 -> 9
B164: h'' | G164: =Y$248+(G163-G$59)/G$113 -> -0.002359881906 | H164: -0.001315585189 | I164: -0.0003407138464 | J164: -0.0001346095799 | K164: 0.0005295116018 | L164: 0.001303313486 | M164: 0.001984859952 | N164: 0.000171115829 | O164: 0.0007430128203 | P164: 0.0008515120848 | Q164: 0.0009238520388 | R164: 0.0009430422127 | S164: 0.0009089352911 | T164: 0.0009089352911 | U164: 0.0009089352911 | W164: sign(Mo) | Y164: =SIGN(Y165) -> -1 | Z164: =SIGN(Z165) -> -1 | AA164: -1 | AB164: -1 | AC164: 1 | AD164: 1 | AE164: 1 | AF164: 1 | AG164: 1 | AH164: 1 | AI164: 1 | AJ164: 1 | AK164: 1 | AL164: 1 | AM164: 1
B165: a'' | G165: 0 | H165: =G165+0.5*(G164+H164)*(H$80-G$80) -> -0.001653960193 | I165: =H165+0.5*(H164+I164)*(I$80-H$80) -> -0.002399294759 | J165: -0.002446827101 | K165: -0.002308611394 | L165: -0.001483840104 | M165: -4.162056983e-06 | N165: -4.151277104e-06 | O165: 0.0004529084769 | P165: 0.001090718439 | Q165: =P165+0.5*(P164+Q164)*(Q$80-P$80) -> 0.001889632295 | R165: =Q165+0.5*(Q164+R164)*(R$80-Q$80) -> 0.002729734708 | S165: =R165+0.5*(R164+S164)*(S$80-R$80) -> 0.003563124584 | T165: =S165+0.5*(S164+T164)*(T$80-S$80) -> 0.003563124584 | U165: =T165+0.5*(T164+U164)*(U$80-T$80) -> 0.003563124584 | W165: M0 (før brand og N) | Y165: =G$108+G$109 -> -0.1019872516 | Z165: =H$108+H$109 -> -0.05634402646 | AA165: -0.0150748013 | AB165: -0.006466084594 | AC165: 0.02156442387 | AD165: 0.05464364903 | AE165: 0.08480687419 | AF165: 0.004307194036 | AG165: 0.03479156881 | AH165: 0.04101932451 | AI165: 0.04573054968 | AJ165: 0.04801177484 | AK165: 0.047863 | AL165: 0.047863 | AM165: 0.047863
B166: u'' | G166: 0 | H166: =G166-0.5*(G165+H165)*(H$80-G$80) -> 0.0007442820867 | I166: =H166-0.5*(H165+I165)*(I$80-H$80) -> 0.002568246815 | J166: 0.003052859001 | K166: 0.004717262474 | L166: 0.006423865648 | M166: 0.007093466621 | N166: 0.007093466662 | O166: 0.006869090306 | P166: 0.00625163954 | Q166: =P166-0.5*(P165+Q165)*(Q$80-P$80) -> 0.00491048171 | R166: =Q166-0.5*(Q165+R165)*(R$80-Q$80) -> 0.002831766559 | S166: =R166-0.5*(R165+S165)*(S$80-R$80) -> -2.012285371e-08 | T166: =S166-0.5*(S165+T165)*(T$80-S$80) -> -2.012285371e-08 | U166: =T166-0.5*(T165+U165)*(U$80-T$80) -> -2.012285371e-08 | W166: e_os | Y166: =IF(Y164=1,IF(Y165<Y$132,Y$137+(Y$138-Y$137)*(Y165-Y$131)/(Y$132-Y$131),IF(Y165<Y$133,Y$138*(Y$133-Y165)/(Y$133-Y$132),0)),IF(Y165>Y$146,Y$156+(Y$155-Y$156)*(Y165-Y$146)/(Y$145-Y$146),Y$156))*Y$159 -> 0 | Z166: 0 | AA166: 0 | AB166: 0 | AC166: 0 | AD166: 0 | AE166: 0 | AF166: 0 | AG166: 0 | AH166: 0 | AI166: 0 | AJ166: 0 | AK166: 0 | AL166: 0 | AM166: 0
B167: a' | E167: =IF(ABS(G169)>=ABS($D$34),1,0) -> 0 | G167: =IF(E157=1,0,G165+U166/$D$2) -> -2.235872635e-09 | H167: =IF(E157=1,H165+U166/($D$2-$H$80),G167+0.5*(G164+H164)*(H$80-G$80)) -> -0.001653962429 | I167: =H167+0.5*(H164+I164)*(I$80-H$80) -> -0.002399296995 | J167: -0.002446829337 | K167: -0.00230861363 | L167: -0.00148384234 | M167: -4.164292856e-06 | N167: -4.153512977e-06 | O167: 0.0004529062411 | P167: 0.001090716203 | Q167: =P167+0.5*(P164+Q164)*(Q$80-P$80) -> 0.001889630059 | R167: =Q167+0.5*(Q164+R164)*(R$80-Q$80) -> 0.002729732472 | S167: =R167+0.5*(R164+S164)*(S$80-R$80) -> 0.003563122349 | T167: =S167+0.5*(S164+T164)*(T$80-S$80) -> 0.003563122349 | U167: =T167+0.5*(T164+U164)*(U$80-T$80) -> 0.003563122349 | W167: e_us | Y167: =IF(Y164=1,IF(Y165<Y$132,Y$142+(Y$141-Y$142)*(Y$132-Y165)/(Y$132-Y$131),Y$142),IF(Y165>Y$146,Y$152+(Y$151-Y$152)*(Y165-Y$146)/(Y$145-Y$146),IF(Y165>Y$147,Y$153+(Y$152-Y$153)*(Y165-Y$147)/(Y$146-Y$147),0)))*Y$160 -> 0 | Z167: 0 | AA167: 0 | AB167: 0 | AC167: 0 | AD167: 0 | AE167: 0 | AF167: 0 | AG167: 0 | AH167: 0 | AI167: 0 | AJ167: 0 | AK167: 0 | AL167: 0 | AM167: 0
G168: 0 | H168: =G168-0.5*(G167+H167)*(H$80-G$80) -> 0.000744284099 | I168: =H168-0.5*(H167+I167)*(I$80-H$80) -> 0.002568250839 | J168: 0.003052863473 | K168: 0.004717268511 | L168: 0.006423873697 | M168: 0.007093476682 | N168: 0.007093476724 | O168: 0.006869102603 | P168: 0.006251653626 | Q168: =P168-0.5*(P167+Q167)*(Q$80-P$80) -> 0.004910497808 | R168: =Q168-0.5*(Q167+R167)*(R$80-Q$80) -> 0.002831784669 | S168: =R168-0.5*(R167+S167)*(S$80-R$80) -> 0 | T168: =S168-0.5*(S167+T167)*(T$80-S$80) -> 0 | U168: =T168-0.5*(T167+U167)*(U$80-T$80) -> 0 | W168: EI | Y168: =IF(Y165<Y$146,Y$149,IF(Y165<Y$132,$X$121,Y$135)) -> 55.95584815 | Z168: =IF(Z165<Z$146,Z$149,IF(Z165<Z$132,$X$121,Z$135)) -> 55.95584815 | AA168: 55.95584815 | AB168: 55.95584815 | AC168: 55.95584815 | AD168: 55.95584815 | AE168: 55.95584815 | AF168: 55.95584815 | AG168: 55.95584815 | AH168: 55.95584815 | AI168: 55.95584815 | AJ168: 55.95584815 | AK168: 55.95584815 | AL168: 55.95584815 | AM168: 55.95584815
B169: M' | E169: =IF(AND($D$36=0,$D$37=0),0,IF(AND($D$36=1,$D$37=0),IF(E157=1,$D$34-G163,IF(ABS(3*$D$36*G167*$C$118/$D$2)>ABS($D$34-G163),$D$34-G163,3*$D$36*G167*$C$118/$D$2)))) -> -3.328921076e-08 | G169: =IF(AND($D$36=0,$D$37=0),G163,IF(AND($D$36=1,$D$37=0),G163+E169)) -> -0.104639233 | H169: =$E169*($D$2-H$80)/$D$2+H163 -> -0.05833421229 | I169: =$E169*($D$2-I$80)/$D$2+I163 -> -0.01510757254 | J169: -0.005968730802 | K169: 0.02387912832 | L169: 0.05877493459 | M169: 0.08951033891 | N169: 0.009010656209 | O169: 0.03912579726 | P169: 0.04483918969 | Q169: =$E169*($D$2-Q$80)/$D$2+Q163 -> 0.0486484938 | R169: =$E169*($D$2-R$80)/$D$2+R163 -> 0.04965901953 | S169: =$E169*($D$2-S$80)/$D$2+S163 -> 0.04786300951 | T169: =$E169*($D$2-T$80)/$D$2+T163 -> 0.04786300951 | U169: =$E169*($D$2-U$80)/$D$2+U163 -> 0.04786300951 | W169: k | Y169: =Y165/Y168-(Y166-Y167)/$AA$117 -> -0.001822637937 | Z169: =Z165/Z168-(Z166-Z167)/$AA$117 -> -0.001006937225 | AA169: -0.0002694052864 | AB169: -0.0001155569044 | AC169: 0.0003853828434 | AD169: 0.0009765493838 | AE169: 0.001515603409 | AF169: 7.697486821e-05 | AG169: 0.0006217682328 | AH169: 0.0007330659059 | AI169: 0.0008172613085 | AJ169: 0.0008580296149 | AK169: 0.0008553708251 | AL169: 0.0008553708251 | AM169: 0.0008553708251
B170: h' | G170: =G164+(G169-G163)/$C$118 -> -0.002359882651 | H170: -0.00131558586 | I170: -0.0003407144426 | J170: -0.0001346101596 | K170: 0.0005295110801 | L170: 0.001303313039 | M170: 0.00198485958 | N170: 0.0001711154564 | O170: 0.0007430125305 | P170: 0.0008515118612 | Q170: 0.0009238518898 | R170: 0.0009430421382 | S170: 0.0009089352911 | T170: 0.0009089352911 | U170: 0.0009089352911 | W170: a | Y170: 0 | Z170: =Y170+0.5*(Y169+Z169)*(Z$163-Y$163) -> -0.001273308823 | AA170: =Z170+0.5*(Z169+AA169)*(AA$163-Z$163) -> -0.001847662953 | AB170: -0.001886159172 | AC170: -0.001791720093 | AD170: -0.001178850591 | AE170: -5.738183454e-05 | AF170: -5.737387165e-05 | AG170: 0.0002919941851 | AH170: 0.0008339278406 | AI170: 0.001531575087 | AJ170: 0.002285456003 | AK170: 0.003056486201 | AL170: 0.003056486201 | AM170: 0.003056486201
B171: a' | G171: =IF(E167=1,0,G167-E169*$D$2/(3*$C$56)) -> -9.475392256e-11 | H171: =IF(E167=1,H165+(U166+U168)/($D$2-$H$80),G171+0.5*(G170+H170)*(H$80-G$80)) -> -0.001653960925 | I171: =H171+0.5*(H170+I170)*(I$80-H$80) -> -0.002399296061 | J171: -0.002446828521 | K171: -0.002308613199 | L171: -0.001483842345 | M171: -4.164667094e-06 | N171: -4.153887219e-06 | O171: 0.0004529055356 | P171: 0.001090715292 | Q171: =P171+0.5*(P170+Q170)*(Q$80-P$80) -> 0.00188962898 | R171: =Q171+0.5*(Q170+R170)*(R$80-Q$80) -> 0.002729731293 | S171: =R171+0.5*(R170+S170)*(S$80-R$80) -> 0.003563121136 | T171: =S171+0.5*(S170+T170)*(T$80-S$80) -> 0.003563121136 | U171: =T171+0.5*(T170+U170)*(U$80-T$80) -> 0.003563121136 | W171: u | Y171: 0 | Z171: =Y171-0.5*(Y170+Z170)*(Z$163-Y$163) -> 0.0005729889703 | AA171: 0.001977426269 | AB171: 0.002350808482 | AC171: 0.003638066225 | AD171: 0.004974823033 | AE171: 0.005531127625 | AF171: 0.005531128198 | AG171: 0.005413819215 | AH171: 0.004963450405 | AI171: 0.003898974087 | AJ171: 0.002181310097 | AK171: -0.0002225638949 | AL171: -0.0002225638949 | AM171: -0.0002225638949
B172: u | D172: =E172/E162 -> 0.9999994829 | E172: =MAX(ABS(MAX(G172:U172)),ABS(MIN(G172:U172))) -> 0.007093473355 | G172: 0 | H172: =IF(E167=1,H168,G172-0.5*(G171+H171)*(H$80-G$80)) -> 0.0007442824588 | I172: =H172-0.5*(H171+I171)*(I$80-H$80) -> 0.002568248102 | J172: 0.00305286056 | K172: 0.004717265162 | L172: 0.006423870157 | M172: 0.007093473313 | N172: 0.007093473355 | O172: 0.006869099774 | P172: 0.006251651443 | Q172: 0.00491049652 | R172: 0.002831784398 | S172: 8.047142484e-10 | T172: 8.047142484e-10 | U172: 8.047142484e-10 | W172: a | Y172: =AM171/$D$2 -> -2.472932166e-05 | Z172: =Y172+0.5*(Y169+Z169)*(Z$163-Y$163) -> -0.001298038145 | AA172: -0.001872392275 | AB172: -0.001910888494 | AC172: -0.001816449415 | AD172: -0.001203579913 | AE172: -8.21111562e-05 | AF172: -8.210319331e-05 | AG172: 0.0002672648635 | AH172: 0.0008091985189 | AI172: 0.001506845765 | AJ172: 0.002260726681 | AK172: 0.003031756879 | AL172: 0.003031756879 | AM172: 0.003031756879
B173: Korrigeret moment | E173: =IF(E167=1,$D$34-F173,G169-F173) -> -0.002651981422 | F173: =G$110+G172*$D$3+IF($D$6>G$80,G172*$D$4,INDEX($G172:$U172,1+$D$82)*$D$4)-INDEX($G172:$U172,1+$D$82)*$D$4*G$80/$D$2 -> -0.1019872516 | G173: =G$110+$E173*($D$2-G$45)/$D$2+G172*$D$3+IF($D$6>G$80,G172*$D$4,INDEX($G172:$U172,1+$D$82)*$D$4)-INDEX($G172:$U172,1+$D$82)*$D$4*G$80/$D$2 -> -0.104639233 | H173: -0.05833421392 | I173: -0.01510757498 | J173: -0.00596873332 | K173: 0.02387912567 | L173: 0.05877493184 | M173: 0.08951033579 | N173: 0.009010653092 | O173: 0.03912579366 | P173: 0.0448391852 | Q173: 0.04864848792 | R173: 0.04965901203 | S173: 0.0478630004 | T173: 0.0478630004 | U173: 0.0478630004 | W173: u | X173: =SUMPRODUCT(Y168:AM168,$G$43:$U$43)/$V$43 -> 55.95584815 | Y173: 0 | Z173: =Y173-0.5*(Y172+Z172)*(Z$163-Y$163) -> 0.0005952453598 | AA173: 0.002021939048 | AB173: 0.002400267125 | AC173: 0.003704835393 | AD173: 0.005063848591 | AE173: 0.005642409572 | AF173: 0.005642410393 | AG173: 0.005549830484 | AH173: 0.005119245131 | AI173: 0.004077025203 | AJ173: 0.002381617602 | AK173: 0 | AL173: 0 | AM173: 0
B174: h'' | G174: =Y$248+(G173-G$59)/G$113 -> -0.002359882657 | H174: -0.001315585901 | I174: -0.0003407145019 | J174: -0.0001346102206 | K174: 0.0005295110264 | L174: 0.001303312982 | M174: 0.001984859514 | N174: 0.0001711154537 | O174: 0.0007430125061 | P174: 0.0008515118098 | Q174: 0.0009238518006 | R174: 0.0009430420069 | S174: 0.000908935118 | T174: 0.000908935118 | U174: 0.000908935118 | W174: DM | X174: =3*$D$36*Y172*X173/$D$2 -> -0.0004612500558 | Y174: =$X174*($D$2-Y$163)/$D$2 -> -0.0004612500558 | Z174: =$X174*($D$2-Z$163)/$D$2 -> -0.0004151250502 | AA174: -0.0003690000447 | AB174: -0.0003587500434 | AC174: -0.0003228750391 | AD174: -0.0002767500335 | AE174: -0.0002306250279 | AF174: -0.0002306245154 | AG174: -0.0001793750217 | AH174: -0.0001383750167 | AI174: -9.225001117e-05 | AJ174: -4.612500558e-05 | AK174: 0 | AL174: 0 | AM174: 0
B175: a'' | G175: 0 | H175: =G175+0.5*(G174+H174)*(H$80-G$80) -> -0.001653960851 | I175: =H175+0.5*(H174+I174)*(I$80-H$80) -> -0.002399296033 | J175: -0.002446828505 | K175: -0.002308613223 | L175: -0.001483842419 | M175: -4.164796012e-06 | N175: -4.154016137e-06 | O175: 0.0004529053932 | P175: 0.00109071512 | Q175: =P175+0.5*(P174+Q174)*(Q$80-P$80) -> 0.001889628744 | R175: =Q175+0.5*(Q174+R174)*(R$80-Q$80) -> 0.002729730958 | S175: =R175+0.5*(R174+S174)*(S$80-R$80) -> 0.003563120664 | T175: =S175+0.5*(S174+T174)*(T$80-S$80) -> 0.003563120664 | U175: =T175+0.5*(T174+U174)*(U$80-T$80) -> 0.003563120664 | W175: k | Y175: =Y169+Y174/$X173 -> -0.001830881044 | Z175: =Z169+Z174/$X173 -> -0.001014356022 | AA175: =AA169+AA174/$X173 -> -0.0002759997722 | AB175: =AB169+AB174/$X173 -> -0.00012196821 | AC175: 0.0003796126684 | AD175: 0.0009716035195 | AE175: 0.001511481855 | AF175: 7.285332376e-05 | AG175: 0.00061856258 | AH175: 0.0007305929738 | AI175: 0.0008156126871 | AJ175: 0.0008572053042 | AK175: 0.0008553708251 | AL175: 0.0008553708251 | AM175: 0.0008553708251
B176: u'' | G176: 0 | H176: =G176-0.5*(G175+H175)*(H$80-G$80) -> 0.000744282383 | I176: =H176-0.5*(H175+I175)*(I$80-H$80) -> 0.002568247981 | J176: 0.003052860435 | K176: 0.004717265039 | L176: 0.006423870078 | M176: 0.007093473325 | N176: 0.007093473367 | O176: 0.006869099922 | P176: 0.006251651717 | Q176: =P176-0.5*(P175+Q175)*(Q$80-P$80) -> 0.004910496978 | R176: =Q176-0.5*(Q175+R175)*(R$80-Q$80) -> 0.002831785112 | S176: =R176-0.5*(R175+S175)*(S$80-R$80) -> 1.882652821e-09 | T176: =S176-0.5*(S175+T175)*(T$80-S$80) -> 1.882652821e-09 | U176: =T176-0.5*(T175+U175)*(U$80-T$80) -> 1.882652821e-09 | W176: a | Y176: =Y172-X174*$D$2/(3*$X$121) -> 0 | Z176: =Y176+0.5*(Y175+Z175)*(Z$163-Y$163) -> -0.00128035668 | AA176: =Z176+0.5*(Z175+AA175)*(AA$163-Z$163) -> -0.001861016787 | AB176: -0.001900813585 | AC176: -0.001810638025 | AD176: -0.00120259074 | AE176: -8.520232141e-05 | AF176: -8.519439973e-05 | AG176: =AF176+0.5*(AF175+AG175)*(AG$163-AF$163) -> 0.000260510095 | AH176: 0.0008001723165 | AI176: 0.001495964864 | AJ176: 0.00224873296 | AK176: 0.003019392218 | AL176: 0.003019392218 | AM176: 0.003019392218
B177: a' | E177: =IF(ABS(G179)>=ABS($D$34),1,0) -> 0 | G177: =IF(E167=1,0,G175+U176/$D$2) -> 2.091836468e-10 | H177: =IF(E167=1,H175+U176/($D$2-$H$80),G177+0.5*(G174+H174)*(H$80-G$80)) -> -0.001653960642 | I177: =H177+0.5*(H174+I174)*(I$80-H$80) -> -0.002399295824 | J177: -0.002446828296 | K177: -0.002308613014 | L177: -0.00148384221 | M177: -4.164586828e-06 | N177: -4.153806953e-06 | O177: 0.0004529056023 | P177: 0.001090715329 | Q177: =P177+0.5*(P174+Q174)*(Q$80-P$80) -> 0.001889628953 | R177: =Q177+0.5*(Q174+R174)*(R$80-Q$80) -> 0.002729731167 | S177: =R177+0.5*(R174+S174)*(S$80-R$80) -> 0.003563120873 | T177: =S177+0.5*(S174+T174)*(T$80-S$80) -> 0.003563120873 | U177: =T177+0.5*(T174+U174)*(U$80-T$80) -> 0.003563120873 | W177: u | Y177: 0 | Z177: =Y177-0.5*(Y176+Z176)*(Z$163-Y$163) -> 0.0005761605058 | AA177: =Z177-0.5*(Z176+AA176)*(AA$163-Z$163) -> 0.001989778566 | AB177: 0.002365961603 | AC177: 0.003664969666 | AD177: 0.00502092261 | AE177: 0.005600429488 | AF177: 0.00560043034 | AG177: 0.005512773369 | AH177: 0.005088500404 | AI177: 0.004055238673 | AJ177: 0.002370124652 | AK177: -5.316781259e-07 | AL177: -5.316781259e-07 | AM177: -5.316781259e-07
G178: 0 | H178: =G178-0.5*(G177+H177)*(H$80-G$80) -> 0.0007442821948 | I178: =H178-0.5*(H177+I177)*(I$80-H$80) -> 0.002568247604 | J178: 0.003052860016 | K178: 0.004717264474 | L178: 0.006423869325 | M178: 0.007093472384 | N178: 0.007093472425 | O178: 0.006869098771 | P178: 0.006251650399 | Q178: =P178-0.5*(P177+Q177)*(Q$80-P$80) -> 0.004910495472 | R178: =Q178-0.5*(Q177+R177)*(R$80-Q$80) -> 0.002831783418 | S178: =R178-0.5*(R177+S177)*(S$80-R$80) -> 0 | T178: =S178-0.5*(S177+T177)*(T$80-S$80) -> 0 | U178: =T178-0.5*(T177+U177)*(U$80-T$80) -> 0 | W178: sign(Mo) | Y178: =SIGN(Y179) -> -1 | Z178: -1 | AA178: -1 | AB178: -1 | AC178: 1 | AD178: 1 | AE178: 1 | AF178: 1 | AG178: 1 | AH178: 1 | AI178: 1 | AJ178: 1 | AK178: 1 | AL178: 1 | AM178: 1
B179: M' | E179: =IF(AND($D$36=0,$D$37=0),0,IF(AND($D$36=1,$D$37=0),IF(E167=1,$D$34-G173,IF(ABS(3*$D$36*G177*$C$118/$D$2)>ABS($D$34-G173),$D$34-G173,3*$D$36*G177*$C$118/$D$2)))) -> 3.114470116e-09 | G179: =IF(AND($D$36=0,$D$37=0),G173,IF(AND($D$36=1,$D$37=0),G173+E179)) -> -0.1046392299 | H179: =$E179*($D$2-H$80)/$D$2+H173 -> -0.05833421112 | I179: =$E179*($D$2-I$80)/$D$2+I173 -> -0.01510757248 | J179: -0.005968730898 | K179: 0.02387912785 | L179: 0.0587749337 | M179: 0.08951033735 | N179: 0.009010654649 | O179: 0.03912579487 | P179: 0.04483918614 | Q179: =$E179*($D$2-Q$80)/$D$2+Q173 -> 0.04864848854 | R179: =$E179*($D$2-R$80)/$D$2+R173 -> 0.04965901234 | S179: =$E179*($D$2-S$80)/$D$2+S173 -> 0.0478630004 | T179: =$E179*($D$2-T$80)/$D$2+T173 -> 0.0478630004 | U179: =$E179*($D$2-U$80)/$D$2+U173 -> 0.0478630004 | W179: M0 (før N) | X179: =0.3*X174+X165 -> -0.0001383750167 | Y179: =G$108+G$109+$X179*($D$2-Y$163)/$D$2+Y177*$D$3+IF(Y$163<$D$6,$D$4*Y177,0)+$D$4*INDEX($Y177:$AM177,$D$82)*Y$163/$D$2 -> -0.1021256266 | Z179: =H$108+H$109+$X179*($D$2-Z$163)/$D$2+Z177*$D$3+IF(Z$163<$D$6,$D$4*Z177,0)+$D$4*INDEX($Y177:$AM177,$D$82)*Z$163/$D$2 -> -0.05542570678 | AA179: =I$108+I$109+$X179*($D$2-AA$163)/$D$2+AA177*$D$3+IF(AA$163<$D$6,$D$4*AA177,0)+$D$4*INDEX($Y177:$AM177,$D$82)*AA$163/$D$2 -> -0.01209483787 | AB179: -0.002953523277 | AC179: 0.0269199187 | AD179: 0.06199158948 | AE179: 0.08929522434 | AF179: 0.00879554867 | AG179: 0.03964198211 | AH179: 0.04598231429 | AI179: 0.05054221067 | AJ179: 0.05234618091 | AK179: 0.05137737999 | AL179: 0.05137737999 | AM179: 0.05137737999
B180: h' | G180: =G174+(G179-G173)/$C$118 -> -0.002359882587 | H180: -0.001315585839 | I180: -0.0003407144462 | J180: -0.0001346101664 | K180: 0.0005295110752 | L180: 0.001303313024 | M180: 0.001984859549 | N180: 0.0001711154886 | O180: 0.0007430125332 | P180: 0.0008515118307 | Q180: 0.0009238518146 | R180: 0.0009430420139 | S180: 0.000908935118 | T180: 0.000908935118 | U180: 0.000908935118 | W180: e_os | Y180: =IF(Y178=1,IF(Y179<Y$132,Y$137+(Y$138-Y$137)*(Y179-Y$131)/(Y$132-Y$131),IF(Y179<Y$133,Y$138*(Y$133-Y179)/(Y$133-Y$132),0)),IF(Y179>Y$146,Y$156+(Y$155-Y$156)*(Y179-Y$146)/(Y$145-Y$146),Y$156))*Y$159 -> 0 | Z180: 0 | AA180: 0 | AB180: 0 | AC180: 0 | AD180: 0 | AE180: 0 | AF180: 0 | AG180: 0 | AH180: 0 | AI180: 0 | AJ180: 0 | AK180: 0 | AL180: 0 | AM180: 0
B181: a' | G181: =IF(E177=1,0,G177-E179*$D$2/(3*$C$56)) -> 8.864982181e-12 | H181: =IF(E177=1,H175+(U176+U178)/($D$2-$H$80),G181+0.5*(G180+H180)*(H$80-G$80)) -> -0.001653960783 | I181: =H181+0.5*(H180+I180)*(I$80-H$80) -> -0.002399295911 | J181: -0.002446828372 | K181: -0.002308613054 | L181: -0.00148384221 | M181: -4.164551815e-06 | N181: -4.15377194e-06 | O181: 0.0004529056683 | P181: 0.001090715414 | Q181: =P181+0.5*(P180+Q180)*(Q$80-P$80) -> 0.001889629054 | R181: =Q181+0.5*(Q180+R180)*(R$80-Q$80) -> 0.002729731277 | S181: =R181+0.5*(R180+S180)*(S$80-R$80) -> 0.003563120987 | T181: =S181+0.5*(S180+T180)*(T$80-S$80) -> 0.003563120987 | U181: =T181+0.5*(T180+U180)*(U$80-T$80) -> 0.003563120987 | W181: e_us | Y181: =IF(Y178=1,IF(Y179<Y$132,Y$142+(Y$141-Y$142)*(Y$132-Y179)/(Y$132-Y$131),Y$142),IF(Y179>Y$146,Y$152+(Y$151-Y$152)*(Y179-Y$146)/(Y$145-Y$146),IF(Y179>Y$147,Y$153+(Y$152-Y$153)*(Y179-Y$147)/(Y$146-Y$147),0)))*Y$160 -> 0 | Z181: 0 | AA181: 0 | AB181: 0 | AC181: 0 | AD181: 0 | AE181: 0 | AF181: 0 | AG181: 0 | AH181: 0 | AI181: 0 | AJ181: 0 | AK181: 0 | AL181: 0 | AM181: 0
B182: u | D182: =E182/E172 -> 0.9999999135 | E182: =MAX(ABS(MAX(G182:U182)),ABS(MIN(G182:U182))) -> 0.007093472741 | G182: 0 | H182: =IF(E177=1,H178,G182-0.5*(G181+H181)*(H$80-G$80)) -> 0.0007442823482 | I182: =H182-0.5*(H181+I181)*(I$80-H$80) -> 0.00256824786 | J182: 0.003052860289 | K182: 0.004717264788 | L182: 0.006423869656 | M182: 0.007093472699 | N182: 0.007093472741 | O182: 0.006869099036 | P182: 0.006251650603 | Q182: 0.004910495593 | R182: 0.002831783443 | S182: -7.528741693e-11 | T182: -7.528741693e-11 | U182: -7.528741693e-11 | W182: EI | Y182: =IF(Y179<Y$146,Y$149,IF(Y179<Y$132,$X$121,Y$135)) -> 55.95584815 | Z182: =IF(Z179<Z$146,Z$149,IF(Z179<Z$132,$X$121,Z$135)) -> 55.95584815 | AA182: 55.95584815 | AB182: 55.95584815 | AC182: 55.95584815 | AD182: 55.95584815 | AE182: 55.95584815 | AF182: 55.95584815 | AG182: 55.95584815 | AH182: 55.95584815 | AI182: 66.61987373 | AJ182: 66.61987373 | AK182: 66.61987373 | AL182: 66.61987373 | AM182: 66.61987373
B183: Korrigeret moment | C183: =H182*$D$3+IF($D$6>H$80,H182*$D$4,INDEX($G182:$U182,1+$D$82)*$D$4)-INDEX($G182:$U182,1+$D$82)*$D$4*H$80/$D$2 -> 0.0003965957289 | E183: =IF(E177=1,$D$34-F183,G179-F183) -> -0.002651978307 | F183: =G$110+G182*$D$3+IF($D$6>G$80,G182*$D$4,INDEX($G182:$U182,1+$D$82)*$D$4)-INDEX($G182:$U182,1+$D$82)*$D$4*G$80/$D$2 -> -0.1019872516 | G183: =G$110+$E183*($D$2-G$45)/$D$2+G182*$D$3+IF($D$6>G$80,G182*$D$4,INDEX($G182:$U182,1+$D$82)*$D$4)-INDEX($G182:$U182,1+$D$82)*$D$4*G$80/$D$2 -> -0.1046392299 | H183: -0.05833421121 | I183: -0.01510757269 | J183: -0.005968731129 | K183: 0.02387912753 | L183: 0.05877493328 | M183: 0.08951033683 | N183: 0.009010654127 | O183: 0.03912579434 | P183: 0.04483918559 | Q183: 0.04864848799 | R183: 0.04965901182 | S183: 0.04786299996 | T183: 0.04786299996 | U183: 0.04786299996 | W183: k | Y183: =Y179/Y182-(Y180-Y181)/$AA$117 -> -0.001825110869 | Z183: -0.0009905257202 | AA183: -0.0002161496656 | AB183: -5.278310267e-05 | AC183: 0.0004810921395 | AD183: 0.00110786614 | AE183: 0.00159581576 | AF183: 0.0001571872997 | AG183: 0.0007084510989 | AH183: 0.0008217606526 | AI183: 0.000758665663 | AJ183: 0.0007857442228 | AK183: 0.0007712020019 | AL183: 0.0007712020019 | AM183: 0.0007712020019
B184: h'' | G184: =Y$248+(G183-G$59)/G$113 -> -0.002359882587 | H184: -0.00131558584 | I184: -0.0003407144504 | J184: -0.0001346101712 | K184: 0.0005295110676 | L184: 0.001303313014 | M184: 0.001984859537 | N184: 0.0001711154734 | O184: 0.0007430125189 | P184: 0.0008515118171 | Q184: 0.000923851802 | R184: 0.000943042003 | S184: 0.0009089351097 | T184: 0.0009089351097 | U184: 0.0009089351097 | W184: a | Y184: 0 | Z184: =Y184+0.5*(Y183+Z183)*(Z$163-Y$163) -> -0.001267036465 | AA184: -0.001810040389 | AB184: -0.001836933666 | AC184: -0.001687025503 | AD184: -0.0009719942771 | AE184: 0.0002446625778 | AF184: 0.0002446713429 | AG184: 0.0006774862139 | AH184: 0.001289570915 | AI184: 0.002000762757 | AJ184: 0.002695747205 | AK184: 0.003396373006 | AL184: 0.003396373006 | AM184: 0.003396373006
B185: a'' | G185: 0 | H185: =G185+0.5*(G184+H184)*(H$80-G$80) -> -0.001653960792 | I185: =H185+0.5*(H184+I184)*(I$80-H$80) -> -0.002399295923 | J185: -0.002446828385 | K185: -0.002308613071 | L185: -0.001483842235 | M185: -4.164586672e-06 | N185: -4.153806797e-06 | O185: 0.0004529056187 | P185: 0.001090715353 | Q185: =P185+0.5*(P184+Q184)*(Q$80-P$80) -> 0.001889628982 | R185: =Q185+0.5*(Q184+R184)*(R$80-Q$80) -> 0.002729731194 | S185: =R185+0.5*(R184+S184)*(S$80-R$80) -> 0.003563120895 | T185: =S185+0.5*(S184+T184)*(T$80-S$80) -> 0.003563120895 | U185: =T185+0.5*(T184+U184)*(U$80-T$80) -> 0.003563120895 | W185: u | Y185: 0 | Z185: =Y185-0.5*(Y184+Z184)*(Z$163-Y$163) -> 0.0005701664093 | AA185: 0.001954850994 | AB185: 0.002319548399 | AC185: 0.003552934108 | AD185: 0.004749493009 | AE185: 0.005076792274 | AF185: 0.005076789827 | AG185: 0.004615715659 | AH185: 0.003828892808 | AI185: 0.002348242656 | AJ185: 0.000234813173 | AK185: -0.002506640922 | AL185: -0.002506640922 | AM185: -0.002506640922
B186: u'' | G186: 0 | H186: =G186-0.5*(G185+H185)*(H$80-G$80) -> 0.0007442823564 | I186: =H186-0.5*(H185+I185)*(I$80-H$80) -> 0.002568247878 | J186: 0.003052860309 | K186: 0.004717264819 | L186: 0.006423869706 | M186: 0.007093472776 | N186: 0.007093472817 | O186: 0.006869099155 | P186: 0.006251650766 | Q186: =P186-0.5*(P185+Q185)*(Q$80-P$80) -> 0.004910495816 | R186: =Q186-0.5*(Q185+R185)*(R$80-Q$80) -> 0.002831783736 | S186: =R186-0.5*(R185+S185)*(S$80-R$80) -> 2.96491129e-10 | T186: =S186-0.5*(S185+T185)*(T$80-S$80) -> 2.96491129e-10 | U186: =T186-0.5*(T185+U185)*(U$80-T$80) -> 2.96491129e-10 | W186: a | Y186: =AM185/$D$2 -> -0.000278515658 | Z186: =Y186+0.5*(Y183+Z183)*(Z$163-Y$163) -> -0.001545552123 | AA186: -0.002088556047 | AB186: -0.002115449324 | AC186: -0.001965541161 | AD186: -0.001250509935 | AE186: -3.385308017e-05 | AF186: -3.384431516e-05 | AG186: 0.0003989705559 | AH186: 0.001011055257 | AI186: 0.001722247099 | AJ186: 0.002417231547 | AK186: 0.003117857348 | AL186: 0.003117857348 | AM186: 0.003117857348
B187: a' | E187: =IF(ABS(G189)>=ABS($D$34),1,0) -> 0 | G187: =IF(E177=1,0,G185+U186/$D$2) -> 3.294345877e-11 | H187: =IF(E177=1,H185+U186/($D$2-$H$80),G187+0.5*(G184+H184)*(H$80-G$80)) -> -0.001653960759 | I187: =H187+0.5*(H184+I184)*(I$80-H$80) -> -0.00239929589 | J187: -0.002446828352 | K187: -0.002308613038 | L187: -0.001483842202 | M187: -4.164553728e-06 | N187: -4.153773853e-06 | O187: 0.0004529056517 | P187: 0.001090715386 | Q187: =P187+0.5*(P184+Q184)*(Q$80-P$80) -> 0.001889629015 | R187: =Q187+0.5*(Q184+R184)*(R$80-Q$80) -> 0.002729731227 | S187: =R187+0.5*(R184+S184)*(S$80-R$80) -> 0.003563120928 | T187: =S187+0.5*(S184+T184)*(T$80-S$80) -> 0.003563120928 | U187: =T187+0.5*(T184+U184)*(U$80-T$80) -> 0.003563120928 | W187: u | X187: =SUMPRODUCT(Y182:AM182,$G$43:$U$43)/$V$43 -> 56.59568968 | Y187: 0 | Z187: =Y187-0.5*(Y186+Z186)*(Z$163-Y$163) -> 0.0008208305015 | AA187: 0.002456179178 | AB187: 0.002876579715 | AC187: 0.004304926385 | AD187: 0.005752149378 | AE187: 0.006330112735 | AF187: 0.006330113073 | AG187: 0.006147551778 | AH187: 0.005583541453 | AI187: 0.004353555394 | AJ187: 0.002490790003 | AK187: 0 | AL187: 0 | AM187: 0
G188: 0 | H188: =G188-0.5*(G187+H187)*(H$80-G$80) -> 0.0007442823268 | I188: =H188-0.5*(H187+I187)*(I$80-H$80) -> 0.002568247819 | J188: 0.003052860243 | K188: 0.00471726473 | L188: 0.006423869588 | M188: 0.007093472627 | N188: 0.007093472669 | O188: 0.006869098974 | P188: 0.006251650559 | Q188: =P188-0.5*(P187+Q187)*(Q$80-P$80) -> 0.004910495578 | R188: =Q188-0.5*(Q187+R187)*(R$80-Q$80) -> 0.00283178347 | S188: =R188-0.5*(R187+S187)*(S$80-R$80) -> 0 | T188: =S188-0.5*(S187+T187)*(T$80-S$80) -> 0 | U188: =T188-0.5*(T187+U187)*(U$80-T$80) -> 0 | W188: DM | X188: =3*$D$36*Y186*X187/$D$2 -> -0.005254261917 | Y188: =$X188*($D$2-Y$163)/$D$2 -> -0.005254261917 | Z188: =$X188*($D$2-Z$163)/$D$2 -> -0.004728835726 | AA188: -0.004203409534 | AB188: -0.004086648158 | AC188: -0.003677983342 | AD188: -0.00315255715 | AE188: -0.002627130959 | AF188: -0.002627125121 | AG188: -0.002043324079 | AH188: -0.001576278575 | AI188: -0.001050852383 | AJ188: -0.0005254261917 | AK188: 0 | AL188: =$X188*($D$2-AL$163)/$D$2 -> 0 | AM188: =$X188*($D$2-AM$163)/$D$2 -> 0
B189: M' | D189: 1 | E189: =IF(AND($D$36=0,$D$37=0),0,IF(AND($D$36=1,$D$37=0),IF(E177=1,$D$34-G183,IF(ABS(3*$D$36*G187*$C$118/$D$2)>ABS($D$34-G183),$D$34-G183,3*$D$36*G187*$C$118/$D$2)))) -> 4.904848895e-10 | G189: =IF(AND($D$36=0,$D$37=0),G183,IF(AND($D$36=1,$D$37=0),G183+E189)) -> -0.1046392294 | H189: =$E189*($D$2-H$80)/$D$2+H183 -> -0.05833421076 | I189: =$E189*($D$2-I$80)/$D$2+I183 -> -0.0151075723 | J189: -0.005968730747 | K189: 0.02387912787 | L189: 0.05877493357 | M189: 0.08951033708 | N189: 0.009010654372 | O189: 0.03912579453 | P189: 0.04483918574 | Q189: =$E189*($D$2-Q$80)/$D$2+Q183 -> 0.04864848809 | R189: =$E189*($D$2-R$80)/$D$2+R183 -> 0.04965901187 | S189: =$E189*($D$2-S$80)/$D$2+S183 -> 0.04786299996 | T189: =$E189*($D$2-T$80)/$D$2+T183 -> 0.04786299996 | U189: =$E189*($D$2-U$80)/$D$2+U183 -> 0.04786299996 | W189: k | Y189: =Y183+Y188/$X187 -> -0.001917949422 | Z189: -0.001074080418 | AA189: -0.0002904205078 | AB189: -0.0001249908659 | AC189: 0.0004161051526 | AD189: 0.001052163008 | AE189: 0.001549396484 | AF189: 0.0001107681265 | AG189: 0.0006723472173 | AH189: 0.0007939090868 | AI189: 0.0007400979524 | AJ189: 0.0007764603675 | AK189: 0.0007712020019 | AL189: 0.0007712020019 | AM189: 0.0007712020019
B190: h' | G190: =G184+(G189-G183)/$C$118 -> -0.002359882576 | H190: -0.00131558583 | I190: -0.0003407144416 | J190: -0.0001346101627 | K190: 0.0005295110753 | L190: 0.00130331302 | M190: 0.001984859543 | N190: 0.0001711154789 | O190: 0.0007430125232 | P190: 0.0008515118204 | Q190: 0.0009238518042 | R190: 0.0009430420041 | S190: 0.0009089351097 | T190: 0.0009089351097 | U190: 0.0009089351097 | W190: a | Y190: =Y186-X188*$D$2/(3*$X$121) -> 3.184758914e-06 | Z190: =Y190+0.5*(Y189+Z189)*(Z$163-Y$163) -> -0.001343228669 | AA190: -0.001957254085 | AB190: -0.001998795223 | AC190: -0.001896905222 | AD190: -0.00123618455 | AE190: -6.548277851e-05 | AF190: -6.547447769e-05 | AG190: 0.0003260792786 | AH190: 0.0009125818003 | AI190: 0.001602884968 | AJ190: 0.002285336212 | AK190: 0.002981784278 | AL190: 0.002981784278 | AM190: 0.002981784278
B191: a | G191: =IF(E187=1,0,G187-E189*$D$2/(3*$C$56)) -> 1.396109015e-12 | H191: =IF(E187=1,H185+(U186+U188)/($D$2-$H$80),G191+0.5*(G190+H190)*(H$80-G$80)) -> -0.001653960781 | I191: =H191+0.5*(H190+I190)*(I$80-H$80) -> -0.002399295904 | J191: -0.002446828364 | K191: -0.002308613045 | L191: -0.001483842202 | M191: -4.164548214e-06 | N191: -4.153768339e-06 | O191: 0.0004529056621 | P191: 0.0010907154 | Q191: =P191+0.5*(P190+Q190)*(Q$80-P$80) -> 0.001889629031 | R191: =Q191+0.5*(Q190+R190)*(R$80-Q$80) -> 0.002729731244 | S191: =R191+0.5*(R190+S190)*(S$80-R$80) -> 0.003563120946 | T191: =S191+0.5*(S190+T190)*(T$80-S$80) -> 0.003563120946 | U191: =T191+0.5*(T190+U190)*(U$80-T$80) -> 0.003563120946 | W191: u | Y191: 0 | Z191: =Y191-0.5*(Y190+Z190)*(Z$163-Y$163) -> 0.0006030197594 | AA191: 0.002088236999 | AB191: 0.00248384193 | AC191: 0.003847337085 | AD191: 0.005257227483 | AE191: 0.00584297778 | AF191: 0.005842978435 | AG191: 0.005712677338 | AH191: 0.005217212906 | AI191: 0.00408525286 | AJ191: 0.002335553329 | AK191: -3.465089108e-05 | AL191: -3.465089108e-05 | AM191: -3.465089108e-05
B192: u | G192: 0 | H192: =IF(E187=1,H188,G192-0.5*(G191+H191)*(H$80-G$80)) -> 0.0007442823509 | I192: =H192-0.5*(H191+I191)*(I$80-H$80) -> 0.002568247859 | J192: =I192-0.5*(I191+J191)*(J$80-I$80) -> 0.003052860286 | K192: 0.004717264779 | L192: 0.00642386964 | M192: 0.007093472677 | N192: 0.007093472719 | O192: 0.006869099016 | P192: 0.006251650591 | Q192: 0.004910495597 | R192: 0.002831783474 | S192: -1.185669835e-11 | T192: -1.185669835e-11 | U192: -1.185669835e-11 | W192: sign(Mo) | Y192: =SIGN(Y193) -> -1 | Z192: -1 | AA192: -1 | AB192: -1 | AC192: 1 | AD192: 1 | AE192: 1 | AF192: 1 | AG192: 1 | AH192: 1 | AI192: 1 | AJ192: 1 | AK192: 1 | AL192: 1 | AM192: 1
B193: M' | D193: =IF(U186=0,0,D189+IF(U192=U186,0,U192/(U186-U192))) -> 0.9615476507 | E193: =IF(E187=1,E189,E189*D193) -> 4.716245932e-10 | G193: =IF(AND($D$36=0,$D$37=0),G183,IF(AND($D$36=1,$D$37=0),G183+E193)) -> -0.1046392295 | H193: =$E193*($D$2-H$80)/$D$2+H183 -> -0.05833421078 | I193: -0.01510757231 | J193: -0.005968730762 | K193: 0.02387912786 | L193: 0.05877493356 | M193: 0.08951033707 | N193: 0.009010654363 | O193: 0.03912579452 | P193: 0.04483918573 | Q193: =$E193*($D$2-Q$80)/$D$2+Q183 -> 0.04864848808 | R193: =$E193*($D$2-R$80)/$D$2+R183 -> 0.04965901186 | S193: =$E193*($D$2-S$80)/$D$2+S183 -> 0.04786299996 | T193: =$E193*($D$2-T$80)/$D$2+T183 -> 0.04786299996 | U193: =$E193*($D$2-U$80)/$D$2+U183 -> 0.04786299996 | W193: M0 | X193: =0.3*X188+X179 -> -0.001714653592 | Y193: =G$108+G$109+$X193*($D$2-Y$163)/$D$2+Y191*$D$3+IF(Y$163<$D$6,$D$4*Y191,0)+$D$4*INDEX($Y191:$AM191,$D$82)*Y$163/$D$2 -> -0.1037019052 | Z193: -0.05679558506 | AA193: -0.01320462792 | AB193: -0.004001302797 | AC193: 0.02608498862 | AD193: 0.06139555355 | AE193: 0.0887110659 | AF193: 0.008211392071 | AG193: 0.03923002284 | AH193: 0.04568957636 | AI193: 0.05037429278 | AJ193: 0.05232013946 | AK193: 0.05152573379 | AL193: 0.05152573379 | AM193: 0.05152573379
B194: h' | G194: =G190-(G193-G189)/G$113 -> -0.002359882575 | H194: =H190-(H193-H189)/H$113 -> -0.00131558583 | I194: -0.0003407144412 | J194: -0.0001346101623 | K194: 0.0005295110756 | L194: 0.001303313021 | M194: 0.001984859543 | N194: 0.0001711154791 | O194: 0.0007430125234 | P194: 0.0008515118205 | Q194: 0.0009238518043 | R194: 0.0009430420041 | S194: 0.0009089351097 | T194: 0.0009089351097 | U194: 0.0009089351097 | W194: e_os | Y194: =IF(Y192=1,IF(Y193<Y$132,Y$137+(Y$138-Y$137)*(Y193-Y$131)/(Y$132-Y$131),IF(Y193<Y$133,Y$138*(Y$133-Y193)/(Y$133-Y$132),0)),IF(Y193>Y$146,Y$156+(Y$155-Y$156)*(Y193-Y$146)/(Y$145-Y$146),Y$156))*Y$159 -> 0 | Z194: 0 | AA194: 0 | AB194: 0 | AC194: 0 | AD194: 0 | AE194: 0 | AF194: 0 | AG194: 0 | AH194: 0 | AI194: 0 | AJ194: 0 | AK194: 0 | AL194: 0 | AM194: 0
B195: a | G195: =IF($E$187=1,0,G187-E193*$D$2/(3*$C$56)) -> 2.609178726e-12 | H195: =IF($E$187=1,H191+U192/($D$2-$H$80),G195+0.5*(G194+H194)*(H$80-G$80)) -> -0.00165396078 | I195: =H195+0.5*(H194+I194)*(I$80-H$80) -> -0.002399295902 | J195: -0.002446828362 | K195: -0.002308613042 | L195: -0.001483842199 | M195: -4.164545575e-06 | N195: -4.1537657e-06 | O195: 0.0004529056649 | P195: 0.001090715402 | Q195: =P195+0.5*(P194+Q194)*(Q$80-P$80) -> 0.001889629034 | R195: =Q195+0.5*(Q194+R194)*(R$80-Q$80) -> 0.002729731247 | S195: =R195+0.5*(R194+S194)*(S$80-R$80) -> 0.003563120949 | T195: =S195+0.5*(S194+T194)*(T$80-S$80) -> 0.003563120949 | U195: =T195+0.5*(T194+U194)*(U$80-T$80) -> 0.003563120949 | W195: e_us | Y195: =IF(Y192=1,IF(Y193<Y$132,Y$142+(Y$141-Y$142)*(Y$132-Y193)/(Y$132-Y$131),Y$142),IF(Y193>Y$146,Y$152+(Y$151-Y$152)*(Y193-Y$146)/(Y$145-Y$146),IF(Y193>Y$147,Y$153+(Y$152-Y$153)*(Y193-Y$147)/(Y$146-Y$147),0)))*Y$160 -> 0 | Z195: 0 | AA195: 0 | AB195: 0 | AC195: 0 | AD195: 0 | AE195: 0 | AF195: 0 | AG195: 0 | AH195: 0 | AI195: 0 | AJ195: 0 | AK195: 0 | AL195: 0 | AM195: 0
B196: u | D196: 1 | E196: =MAX(ABS(MAX(G196:U196)),ABS(MIN(G196:U196))) -> 0.00709347271 | F196: =IF(MAX(G196:U196)>$D$2/20,1,0) -> 0 | G196: 0 | H196: =IF($E$187=1,H192+0.5*(H191-H195)*$H$80,(G196-0.5*(G195+H195)*(H$80-G$80)))*$D$196 -> 0.0007442823497 | I196: =(H196-0.5*(H195+I195)*(I$80-H$80))*$D$196 -> 0.002568247856 | J196: =(I196-0.5*(I195+J195)*(J$80-I$80))*$D$196 -> 0.003052860283 | K196: 0.004717264774 | L196: 0.006423869633 | M196: 0.007093472668 | N196: 0.00709347271 | O196: 0.006869099004 | P196: 0.006251650577 | Q196: 0.004910495581 | R196: 0.002831783454 | S196: -3.395337136e-11 | T196: -3.395337136e-11 | U196: -3.395337136e-11 | W196: EI | Y196: =IF(Y193<Y$146,Y$149,IF(Y193<Y$132,$X$121,Y$135)) -> 55.95584815 | Z196: =IF(Z193<Z$146,Z$149,IF(Z193<Z$132,$X$121,Z$135)) -> 55.95584815 | AA196: 55.95584815 | AB196: 55.95584815 | AC196: 55.95584815 | AD196: 55.95584815 | AE196: 55.95584815 | AF196: 55.95584815 | AG196: 55.95584815 | AH196: 55.95584815 | AI196: 66.61987373 | AJ196: 66.61987373 | AK196: 66.61987373 | AL196: 66.61987373 | AM196: 66.61987373
F197: =MAX(G197:U197,0.0333*ABS(D34)) -> 0.1046348449 | G197: =A0!$Q$78 -> 0.1046348449 | H197: =A0!$Q$178 -> 0.05873098807 | I197: =A0!$Q$278 -> 0.01564790172 | J197: =A0!$Q$378 -> 0.006434652388 | K197: =A0!$Q$478 -> 0.02433709246 | L197: =A0!$Q$578 -> 0.05915520863 | M197: =A0!$Q$678 -> 0.08952809726 | N197: =A0!$Q$778 -> 0.009474562781 | O197: =A0!$Q$878 -> 0.03916147289 | P197: =A0!$Q$978 -> 0.04483425451 | Q197: =A0!$Q$1078 -> 0.04864706256 | R197: =A0!$Q$1178 -> 0.04965959847 | S197: =A0!$Q$1278 -> 0.04785027053 | T197: =A0!$Q$1378 -> 0.04786294023 | U197: =A0!$Q$1478 -> 0.04785027053 | W197: k | Y197: =Y193/Y196-(Y194-Y195)/$AA$117 -> -0.001853280911 | Z197: -0.001015007134 | AA197: -0.0002359829823 | AB197: -7.15082146e-05 | AC197: 0.0004661709096 | AD197: 0.001097214243 | AE197: 0.001585376129 | AF197: 0.000146747701 | AG197: 0.0007010888789 | AH197: 0.0008165290648 | AI197: 0.0007561451254 | AJ197: 0.0007853533267 | AK197: 0.000773428872 | AL197: 0.000773428872 | AM197: 0.000773428872
F198: =MAX(G198:U198) -> 0 | G198: =IF(AND(ABS(G199)>=$F$200*MIN($E$24:$F$25),ABS(G199)-G197>0.03*$F$197),1,0) -> 0 | H198: =IF(AND(ABS(H199)>=$F$200*MIN($E$24:$F$25),ABS(H199)-H197>0.03*$F$197),1,0) -> 0 | I198: =IF(AND(ABS(I199)>=$F$200*MIN($E$24:$F$25),ABS(I199)-I197>0.03*$F$197),1,0) -> 0 | J198: 0 | K198: 0 | L198: 0 | M198: 0 | N198: 0 | O198: 0 | P198: 0 | Q198: 0 | R198: 0 | S198: 0 | T198: 0 | U198: 0 | W198: a | Y198: 0 | Z198: =Y198+0.5*(Y197+Z197)*(Z$163-Y$163) -> -0.00129072962 | AA198: -0.001853675172 | AB198: -0.001884424292 | AC198: -0.001746292349 | AD198: -0.00104276903 | AE198: 0.0001643966366 | AF198: 0.0001644052972 | AG198: 0.000588319348 | AH198: 0.001195366525 | AI198: 0.001903069911 | AJ198: 0.002596744215 | AK198: 0.003298196204 | AL198: 0.003298196204 | AM198: 0.003298196204
B199: Revurderet moment | E199: =IF(ABS(G193-F199)>ABS($D$34),$D$34-F199,G193-F199) -> -0.002651977836 | F199: =G$110+G196*$D$3+IF($D$6>G$80,G196*$D$4,INDEX($G196:$U196,1+$D$82)*$D$4)-INDEX($G196:$U196,1+$D$82)*$D$4*G$80/$D$2 -> -0.1019872516 | G199: =G$110+$E199*($D$2-G$45)/$D$2+G196*$D$3+IF($D$6>G$80,G196*$D$4,INDEX($G196:$U196,1+$D$82)*$D$4)-INDEX($G196:$U196,1+$D$82)*$D$4*G$80/$D$2 -> -0.1046392295 | H199: =H$110+$E199*($D$2-H$45)/$D$2+H196*$D$3+IF($D$6>H$80,H196*$D$4,INDEX($G196:$U196,1+$D$82)*$D$4)-INDEX($G196:$U196,1+$D$82)*$D$4*H$80/$D$2 -> -0.05833421078 | I199: -0.01510757231 | J199: -0.005968730764 | K199: 0.02387912785 | L199: 0.05877493354 | M199: 0.08951033704 | N199: 0.009010654337 | O199: 0.0391257945 | P199: 0.04483918571 | Q199: 0.04864848807 | R199: 0.04965901187 | S199: 0.04786299998 | T199: 0.04786299998 | U199: 0.04786299998 | W199: u | Y199: 0 | Z199: =Y199-0.5*(Y198+Z198)*(Z$163-Y$163) -> 0.0005808283291 | AA199: 0.001995810486 | AB199: 0.002369620432 | AC199: 0.003640371257 | AD199: 0.004895448877 | AE199: 0.005290716455 | AF199: 0.005290714811 | AG199: 0.004914356252 | AH199: 0.004200881902 | AI199: 0.002806585506 | AJ199: 0.0007816691492 | AK199: -0.001871054039 | AL199: -0.001871054039 | AM199: -0.001871054039
B200: h'' | D200: =F200*MIN($E$24:$F$25) -> 0.008179310223 | E200: =A0!L78/A0!O6 -> -0.07295336348 | F200: 0.2 | G200: =Y$248+IF(ABS(G199)<$F$200*MIN($E$24:$F$25),(G199-G$59)/$C$60,A0!$P$79) -> -0.002174520722 | H200: =Z$248+IF(ABS(H199)<$F$200*MIN($E$24:$F$25),(H199-H$59)/$C$60,A0!$P$179) -> -0.001218741969 | I200: =AA$248+IF(ABS(I199)<$F$200*MIN($E$24:$F$25),(I199-I$59)/$C$60,A0!$P$279) -> -0.0003245114716 | J200: =AB$248+IF(ABS(J199)<$F$200*MIN($E$24:$F$25),(J199-J$59)/$C$60,A0!$P$379) -> -0.0001294346753 | K200: =AC$248+IF(ABS(K199)<$F$200*MIN($E$24:$F$25),(K199-K$59)/$C$60,A0!$P$479) -> 0.0005047417909 | L200: =AD$248+IF(ABS(L199)<$F$200*MIN($E$24:$F$25),(L199-L$59)/$C$60,A0!$P$579) -> 0.001227557163 | M200: =AE$248+IF(ABS(M199)<$F$200*MIN($E$24:$F$25),(M199-M$59)/$C$60,A0!$P$679) -> 0.00185949389 | N200: =AF$248+IF(ABS(N199)<$F$200*MIN($E$24:$F$25),(N199-N$59)/$C$60,A0!$P$779) -> 0.0001753587277 | O200: =AG$248+IF(ABS(O199)<$F$200*MIN($E$24:$F$25),(O199-O$59)/$C$60,A0!$P$879) -> 0.0007249736722 | P200: =AH$248+IF(ABS(P199)<$F$200*MIN($E$24:$F$25),(P199-P$59)/$C$60,A0!$P$979) -> 0.0008300505582 | Q200: =AI$248+IF(ABS(Q199)<$F$200*MIN($E$24:$F$25),(Q199-Q$59)/$C$60,A0!$P$1079) -> 0.0009007778029 | R200: =AJ$248+IF(ABS(R199)<$F$200*MIN($E$24:$F$25),(R199-R$59)/$C$60,A0!$P$1179) -> 0.0009200781298 | S200: =AK$248+IF(ABS(S199)<$F$200*MIN($E$24:$F$25),(S199-S$59)/$C$60,A0!$P$1279) -> 0.0008859259052 | T200: =AL$248+IF(ABS(T199)<$F$200*MIN($E$24:$F$25),(T199-T$59)/$C$60,A0!$P$1379) -> 0.0008861606419 | U200: =AM$248+IF(ABS(U199)<$F$200*MIN($E$24:$F$25),(U199-U$59)/$C$60,A0!$P$1479) -> 0.0008859259052 | W200: a | Y200: =AM199/$D$2 -> -0.0002078948932 | Z200: =Y200+0.5*(Y197+Z197)*(Z$163-Y$163) -> -0.001498624513 | AA200: -0.002061570066 | AB200: -0.002092319185 | AC200: -0.001954187242 | AD200: -0.001250663924 | AE200: -4.34982566e-05 | AF200: -4.348959599e-05 | AG200: 0.0003804244548 | AH200: 0.0009874716322 | AI200: 0.001695175018 | AJ200: 0.002388849321 | AK200: 0.003090301311 | AL200: 0.003090301311 | AM200: 0.003090301311
B201: a'' | G201: 0 | H201: =G201+0.5*(G200+H200)*(H$80-G$80) -> -0.001526968211 | I201: -0.002221432259 | J201: -0.002266826874 | K201: -0.002135469383 | L201: -0.001355934854 | M201: 3.323811987e-05 | N201: 3.324829413e-05 | O201: 0.0004834099924 | P201: 0.001105419685 | Q201: =P201+0.5*(P200+Q200)*(Q$80-P$80) -> 0.001884292447 | R201: =Q201+0.5*(Q200+R200)*(R$80-Q$80) -> 0.002703677617 | S201: =R201+0.5*(R200+S200)*(S$80-R$80) -> 0.003516379433 | T201: =S201+0.5*(S200+T200)*(T$80-S$80) -> 0.003516379433 | U201: =T201+0.5*(T200+U200)*(U$80-T$80) -> 0.003516379433 | W201: u | X201: =SUMPRODUCT(Y196:AM196,$G$43:$U$43)/$V$43 -> 56.59568968 | Y201: 0 | Z201: =Y201-0.5*(Y200+Z200)*(Z$163-Y$163) -> 0.000767933733 | AA201: 0.002370021294 | AB201: 0.002785410219 | AC201: 0.004201687468 | AD201: 0.005643870493 | AE201: 0.006226243474 | AF201: 0.006226243909 | AG201: 0.006057778164 | AH201: 0.00551061973 | AI201: 0.004303428737 | AJ201: 0.002465617784 | AK201: 0 | AL201: 0 | AM201: 0
B202: u'' | G202: 0 | H202: =G202-0.5*(G201+H201)*(H$80-G$80) -> 0.0006871356949 | I202: =H202-0.5*(H201+I201)*(I$80-H$80) -> 0.002373915906 | J202: 0.00282274182 | K202: 0.00436354551 | L202: 0.005934677417 | M202: 0.006529890947 | N202: 0.006529890615 | O202: 0.006271564055 | P202: 0.005636032184 | Q202: =P202-0.5*(P201+Q201)*(Q$80-P$80) -> 0.004290661725 | R202: =Q202-0.5*(Q201+R201)*(R$80-Q$80) -> 0.002226075196 | S202: =R202-0.5*(R201+S201)*(S$80-R$80) -> -0.0005729504762 | T202: =S202-0.5*(S201+T201)*(T$80-S$80) -> -0.0005729504762 | U202: =T202-0.5*(T201+U201)*(U$80-T$80) -> -0.0005729504762 | W202: DM | X202: =3*$D$36*Y200*X201/$D$2 -> -0.003921984955 | Y202: =$X202*($D$2-Y$163)/$D$2 -> -0.003921984955 | Z202: =$X202*($D$2-Z$163)/$D$2 -> -0.003529786459 | AA202: -0.003137587964 | AB202: -0.003050432742 | AC202: -0.002745389468 | AD202: -0.002353190973 | AE202: -0.001960992477 | AF202: -0.001960988119 | AG202: -0.001525216371 | AH202: -0.001176595486 | AI202: -0.0007843969909 | AJ202: -0.0003921984955 | AK202: 0 | AL202: 0 | AM202: 0
B203: a' | E203: =IF(E187=1,1,IF(ABS(G205)>=ABS($D$34),1,0)) -> 0 | G203: =IF($E$187=1,0,G201+U202/$D$2) -> -6.366116402e-05 | H203: =IF($E$187=1,H201+U202/($D$2-H$80),G203+0.5*(G200+H200)*(H$80-G$80)) -> -0.001590629375 | I203: =H203+0.5*(H200+I200)*(I$80-H$80) -> -0.002285093423 | J203: -0.002330488038 | K203: -0.002199130547 | L203: -0.001419596018 | M203: -3.042304415e-05 | N203: -3.041286989e-05 | O203: 0.0004197488284 | P203: 0.001041758521 | Q203: =P203+0.5*(P200+Q200)*(Q$80-P$80) -> 0.001820631283 | R203: =Q203+0.5*(Q200+R200)*(R$80-Q$80) -> 0.002640016453 | S203: =R203+0.5*(R200+S200)*(S$80-R$80) -> 0.003452718268 | T203: =S203+0.5*(S200+T200)*(T$80-S$80) -> 0.003452718268 | U203: =T203+0.5*(T200+U200)*(U$80-T$80) -> 0.003452718268 | W203: k | Y203: =Y197+Y202/$X201 -> -0.001922579208 | Z203: -0.001077375602 | AA203: -0.0002914216205 | AB203: -0.0001254068906 | AC203: 0.0004176621011 | AD203: 0.001055635264 | AE203: 0.00155072698 | AF203: 0.0001120986291 | AG203: 0.0006741395409 | AH203: 0.0007957395755 | AI203: 0.0007422854659 | AJ203: 0.0007784234969 | AK203: 0.000773428872 | AL203: 0.000773428872 | AM203: 0.000773428872
... 99 more rows

Sheet Stivheder
B2: Tilstand: | C2: =Kold!AR48 -> 1 | E2: Navier: | F2: a= | G2: =0.5*(V6+Z6)*Q6/G6 -> 24.32378174 | H2: A= | I2: =C6*D6+G2*T6+G2*X6 -> 0.256143519 | J2: Sy= | K2: =-(0.5*C6-U6)*G2*T6+(0.5*C6-Y6)*G2*X6 -> 0 | L2: Iy= | M2: =D6*C6^3/12+(0.5*C6-U6)^2*G2*T6+(0.5*C6-Y6)^2*G2*X6 -> 0.006805289187 | N2: h= | O2: =K2/I2 -> 0 | P2: Io= | Q2: =M2-I2*O2^2 -> 0.006805289187 | R2: EIo= | S2: =Q2*G6/Q6 -> 55.95584815 | T2: E | U2: =1.4*F6/AD5 -> 12080.99341 | X2: EImax | Y2: =M2*V9/Q6 -> 45.09655981 | Z2: MNm2
B4: L | C4: h | D4: b | E4: fck | F4: fcd | G4: Ecd | H4: Ac | I4: ac | J4: Esc | K4: fyd_c | L4: At | M4: at | N4: Est | O4: fyd_t | P4: Modenhed | Q4: 1+f | R4: uterm | S4: g | T4: Ac | U4: ac | V4: Esc | W4: fyd_c | X4: At | Y4: at | Z4: Est | AA4: fyd_t | AB4: emax | AD4: =IF($C$2=1,0.0035,Firsidig!$G$21) -> 0.0035
B5: (m) | C5: (m) | D5: (m) | E5: (Mpa) | F5: (Mpa) | G5: (Mpa) | H5: (m2) | I5: (m) | J5: (Mpa) | K5: (Mpa) | L5: (m2) | M5: (m) | N5: (Mpa) | O5: (Mpa) | P5: (døgn) | R5: (m) | T5: (m2) | U5: (m) | V5: (Mpa) | W5: (Mpa) | X5: (m2) | Y5: (m) | Z5: (Mpa) | AA5: (Mpa) | AB5: e1 | AD5: =IF($C$2=1,0.7*(E6+8)^0.31/1000,Firsidig!$F$21) -> 0.002069366248
B6: =C6 -> 0.54 | C6: =IF($C$2=1,Kold!AQ$23,Brand!AQ$23) -> 0.54 | D6: =IF($C$2=1,Kold!AR$23,Brand!AR$23) -> 0.42 | E6: =IF($C$2=1,Kold!AS$23,Brand!AS$23) -> 25 | F6: =IF($C$2=1,Kold!AT$23,Brand!AT$23) -> 17.85714286 | G6: =IF($C$2=1,Kold!AU$23,1.4*F6/AD5) -> 22482.71872 | H6: =IF($W8<0,X6,T6) -> 0.0006031857895 | I6: =IF($W8<0,Y6,U6) -> 0.06 | J6: =IF($W8<0,Z6,V6) -> 200000 | K6: =IF($W8<0,AA6,W6) -> 458.3333333 | L6: =IF($W8<0,T6,X6) -> 0.0006031857895 | M6: =IF($W8<0,U6,Y6) -> 0.06 | N6: =IF($W8<0,V6,Z6) -> 200000 | O6: =IF($W8<0,W6,AA6) -> 458.3333333 | P6: =IF($C$2=1,Kold!BD$23,Brand!BD$23) -> 28 | Q6: =IF($C$2=1,Kold!BE$23,Brand!BE$23) -> 2.734323716 | R6: 0 | S6: =IF($C$2=1,Kold!BG$23,Brand!BG$23) -> 1.4 | T6: =IF($C$2=1,Kold!BH$23,Brand!BH$23) -> 0.0006031857895 | U6: =IF($C$2=1,Kold!BI$23,Brand!BI$23) -> 0.06 | V6: =IF($C$2=1,Kold!AX$23,Brand!AX$23) -> 200000 | W6: =IF($C$2=1,Kold!AY$23,Brand!AY$23) -> 458.3333333 | X6: =IF($C$2=1,Kold!BJ$23,Brand!BJ$23) -> 0.0006031857895 | Y6: =IF($C$2=1,Kold!BK$23,Brand!BK$23) -> 0.06 | Z6: =IF($C$2=1,Kold!BB$23,Brand!BB$23) -> 200000 | AA6: =IF($C$2=1,Kold!BC$23,Brand!BC$23) -> 458.3333333 | AB6: k | AD6: =1.05*G6*AD5/F6 -> 2.735668782
B8: Initialt | C8: elasttisk | D8: e_o | E8: sc_o/fcd | F8: sc_u/fcd | G8: sc_o | H8: sc_u | I8: hc | J8: elasttisk | K8: e_o | L8: sc_o/fcd | M8: sc_u/fcd | N8: sc_o | O8: sc_u | P8: hc | Q8: At | R8: Ac | S8: Ic | T8: Wt | U8: u_skøn | V8: E | W8: =Snitkræfter!C25 -> 0.08676666127 | X8: =Snitkræfter!C31 -> 0 | Y8: =0.5*(MAX(R11-H6*K6,0)+L6*O6)/(D6*F6) -> 0.08 | Z8: =(0.5*C6-Y8)*R11+(C6-M6-Y8)*L6*O6 -> 0.3385840614 | AA8: M_rev
B9: beregning | C9: skøn_1 | D9: =IF(C2=1,AD5*0.5*(-((AD6-2)*E9-AD6)-(((AD6-2)*E9-AD6)^2-4*E9)^0.5),G9/(1.4*F6/AD5)) -> 0.0005171078287 | E9: =MIN(0.9999,G9/F6) -> 0.5247058389 | F9: =H9/F6 -> 0 | G9: =R11/Q9+(Q11+$O$2*R11+R11*R6)/T9 -> 9.369747123 | H9: =R11/Q9-(Q11+$O$2*R11+R11*R6)/T9 -> 0 | I9: =IF(G9=H9,100*C6,C6*G9/(G9-H9)) -> 0.54 | J9: skøn_2 | K9: =IF(C2=1,AD5*0.5*(-((AD6-2)*L9-AD6)-(((AD6-2)*L9-AD6)^2-4*L9)^0.5),G9/(1.4*F6/AD5)) -> 0.0005173606362 | L9: =MIN(0.9999,N9/F6) -> 0.524896712 | M9: =O9/F6 -> -0.0001908731342 | N9: =R11/Q9+(Q11+$O$2*R11+R11*U9)/T9 -> 9.373155571 | O9: =R11/Q9-(Q11+$O$2*R11+R11*U9)/T9 -> -0.003408448825 | P9: =IF(N9=O9,100*C6,C6*N9/(N9-O9)) -> 0.5398037061 | Q9: =R9+Q6*(H6+L6)*N6/G6 -> 0.256143519 | R9: =C6*D6 -> 0.2268 | S9: =D6*C6^3/12 -> 0.00551124 | T9: =(S9+((0.5*C6-I6)^2*H6+(0.5*C6-M6)^2*L6)*Q6)/(0.5*C6) -> 0.02095077303 | U9: =Q11/(10*AA31/B6^2-R11)+R6 -> 5.950803144e-05 | V9: =G9/D9 -> 18119.52286 | AA9: =R11*T9/Q9+IF(SIGN(W8)=1,-R11*$O$2,+R11*$O$2) -> 0.09815172268
B10: hc | C10: e0 | D10: a' | E10: b' | F10: N' | G10: tN' | H10: t' | I10: Nc | J10: sac | K10: Nac | L10: sat | M10: Nat | N10: Mtot | O10: N | P10: u | Q10: Mo | R10: N | S10: A | T10: B1 | U10: B2 | V10: B3 | W10: C1 | X10: C2 | Y10: gættet x | Z10: beregnet x | AA10: EIt
B11: =I9 -> 0.54 | Q11: =MAX(MIN(ABS(W8),0.9*$Q$465,Z8),MIN($C$6*$D$6*0.025*$C$6*$F$6,$C$6*0.15*L6*K6),(0.01-$O$2)*R11,AA9) -> 0.09815172268 | R11: =Snitkræfter!D5 -> 1.2
B12: =0.5*(-(T12+U12+V12)+SQRT((T12+U12+V12)^2+4*S12*(W12+X12)))/S12 -> 0.4874455728 | C12: =MIN(D9,AD5) -> 0.0005171078287 | D12: =IF($C$2=1,C12/($AD$6*$AD$5),2^(1/3)*$AD$5/C12) -> 0.09134404442 | E12: =IF($C$2=1,-($AD$6-2)*C12/$AD$5,3*($AD$5/C12)^2) -> -0.1838341023 | F12: =IF($C$2=1,0.5*($AD$6*C12*$F$6/$AD$5)*(1-Y12^2+(D12-E12)*(E12^2*(1-Y12^2)+2*E12*(1-Y12)+2*LN((1-E12)/(1-E12*Y12)))/(E12^3)),$F$6*E12*(LN((1-D12+D12^2)/(1+D12)^2)/(6*D12)+ATAN((2-D12)/(D12*3^0.5))/(D12*3^0.5)-LN((Y12^2-D12*Y12+D12^2)/(Y12+D12)^2)/(6*D12)-ATAN((2*Y12-D12)/(D12*3^0.5))/(D12*3^0.5))) -> 5.118602473 | G12: =IF($C$2=1,($AD$6*C12*$F$6/$AD$5)*(1-Y12^3-(D12-E12)*(-2*E12^3*(1-Y12^3)-3*E12^2*(1-Y12^2)-6*E12*(1-Y12)-6*LN((1-E12)/(1-E12*Y12)))/(2*E12^4))/3,$F$6*E12*(LN((1+D12^3)/(D12^3+Y12^3)))/3) -> 3.336456454 | H12: =G12/F12 -> 0.651829571 | I12: =F12*B12*$D$6 -> 1.047916848 | J12: =MAX(MIN($K$6,$Q$6*$J$6*C12*(B12-$I$6)/B12),-$K$6) -> 247.9794719 | K12: =J12*$H$6 -> 0.1495776935 | L12: =MIN($O$6,$Q$6*$N$6*C12*(C$6-B12-$M$6)/B12) -> -4.319495482 | M12: =L12*$L$6 -> -0.002605458293 | N12: =(0.5*$C$6-B12+H12*B12)*I12+(0.5*$C$6-$I$6)*K12+(0.5*$C$6-$M$6)*M12 -> 0.1359554178 | O12: =I12+K12-M12 -> 1.2001 | P12: 0 | Q12: =N12-P12*O12 -> 0.1359554178 | R12: =$R$11 -> 1.2 | S12: =F12*$D$6 -> 2.149813039 | T12: =IF(ABS(J11)<$K$6,$Q$6*C12*$H$6*$J$6,IF(J11>0,1,-1)*$H$6*$K$6) -> 0.1705737271 | U12: =IF(L11<$O$6,$Q$6*C12*$L$6*$N$6,-$L$6*$O$6) -> 0.1705737271 | V12: =-(R12+0.0001) -> -1.2001 | W12: =IF(ABS(J11)<$K$6,$I$6*$Q$6*C12*$H$6*$J$6,0) -> 0.01023442363 | X12: =IF(L11<$O$6,($C$6-$M$6)*$Q$6*C12*$L$6*$N$6,0) -> 0.08187538902 | Y12: =IF(B11<$C$6,0,(B11-$C$6)/B11) -> 0 | Z12: =IF(AND(B12<=$C$6,B12>0),0,(B12-$C$6)/B12) -> 0
B13: 0.5088001673 | C13: =0.95*C12 -> 0.0004912524373 | D13: 0.0867768422 | E13: -0.1746423972 | F13: 4.904122128 | G13: 3.20020883 | H13: 0.6525548805 | I13: 1.047991627 | J13: =MAX(MIN($K$6,$Q$6*$J$6*C13*(B13-$I$6)/B13),-$K$6) -> 236.9683844 | K13: 0.1429359621 | L13: -15.20661 | M13: -0.009172411055 | N13: 0.1257839838 | O13: 1.2001 | P13: 0 | Q13: 0.1257839838 | R13: =$R$11 -> 1.2 | S13: =F13*$D$6 -> 2.059731294 | T13: =IF(ABS(J12)<$K$6,$Q$6*C13*$H$6*$J$6,IF(J12>0,1,-1)*$H$6*$K$6) -> 0.1620450408 | U13: 0.1620450408 | V13: =-(R13+0.0001) -> -1.2001 | W13: =IF(ABS(J12)<$K$6,$I$6*$Q$6*C13*$H$6*$J$6,0) -> 0.009722702446 | X13: 0.07778161957 | Y13: =Z12 -> 0 | Z13: =IF(AND(B13<=$C$6,B13>0),0,(B13-$C$6)/B13) -> 0
B14: 0.5571840308 | C14: =IF(ABS($Q$11-Q13)<0.00001*$Q$11,C13,MAX(0.9*C13,MIN($AD$4,1.05*C13,IF(C13=$AD$4,0.5*(C13+C12),C13+(C13-C12)*(Q13-$Q$11)/(Q12-Q13))))) -> 0.0004421271936 | D14: 0.07809915798 | E14: -0.1571781575 | F14: 4.485829246 | G14: 2.933447877 | H14: 0.6539365892 | I14: 1.049761617 | J14: 215.7474457 | K14: 0.1301357933 | L14: -33.49314631 | M14: -0.0202025899 | N14: 0.1041055181 | O14: 1.2001 | P14: 0 | Q14: 0.1041055181 | R14: 1.2 | S14: 1.884048283 | T14: 0.1458405367 | U14: 0.1458405367 | V14: -1.2001 | W14: 0.008750432202 | X14: 0.07000345761 | Y14: =Z13+IF(C12=C13,0,(C14-C13)*(Z13-Z12)/(C13-C12)) -> 0 | Z14: 0.03084085299
B15: 0.5735485625 | C15: 0.0004286353877 | D15: 0.07571591015 | E15: -0.1523817613 | F15: 4.360653526 | G15: 2.858131304 | H15: 0.6554364586 | I15: 1.050439556 | J15: 209.88397 | K15: 0.1265990281 | L15: -38.23269135 | M15: -0.02306141612 | N15: 0.0977695918 | O15: 1.2001 | P15: 0 | Q15: 0.0977695918 | R15: 1.2 | S15: 1.831474481 | T15: 0.1413901156 | U15: 0.1413901156 | V15: -1.2001 | W15: 0.008483406934 | X15: 0.06786725547 | Y15: =Z14+IF(C13=C14,0,(C15-C14)*(Z14-Z13)/(C14-C13)) -> 0.03931101555 | Z15: 0.05849297635
B16: 0.5735677025 | C16: 0.0004294491023 | D16: 0.07585964803 | E16: -0.1526710404 | F16: 4.359310146 | G16: 2.86227388 | H16: 0.6565887225 | I16: 1.050150992 | J16: 210.2832302 | K16: 0.1268398562 | L16: -38.3118304 | M16: -0.02310915167 | N16: 0.09847637664 | O16: 1.2001 | P16: 0 | Q16: 0.09847637664 | R16: 1.2 | S16: 1.830910262 | T16: 0.1416585283 | U16: 0.1416585283 | V16: -1.2001 | W16: 0.008499511699 | X16: 0.06799609359 | Y16: 0.05682522804 | Z16: 0.05852439444
B17: 0.5741246348 | C17: 0.0004290753314 | D17: 0.07579362359 | E17: -0.1525381632 | F17: 4.355086545 | G17: 2.86012733 | H17: 0.6567326046 | I17: 1.050152238 | J17: 210.1240212 | K17: 0.1267438236 | L17: -38.46897313 | M17: -0.02320393793 | N17: 0.09832229607 | O17: 1.2001 | P17: 0 | Q17: 0.09832229607 | R17: 1.2 | S17: =F17*$D$6 -> 1.829136349 | T17: 0.1415352358 | U17: 0.1415352358 | V17: =-(R17+0.0001) -> -1.2001 | W17: 0.00849211415 | X17: 0.0679369132 | Y17: 0.05850996288 | Z17: 0.05943767743
B18: 0.574751494 | C18: 0.0004286615518 | D18: 0.07572053189 | E18: -0.1523910628 | F18: 4.35033476 | G18: 2.857743869 | H18: 0.6569020608 | I18: 1.050151789 | J18: 209.9481073 | K18: 0.1266377148 | L18: -38.64563203 | M18: -0.02331049606 | N18: 0.09815391097 | O18: 1.2001 | P18: 0 | Q18: 0.09815391097 | R18: 1.2 | S18: 1.827140599 | T18: 0.1413987461 | U18: 0.1413987461 | V18: -1.2001 | W18: 0.008483924765 | X18: 0.06787139812 | Y18: 0.06044871844 | Z18: 0.06046351221
B19: =0.5*(-(T19+U19+V19)+SQRT((T19+U19+V19)^2+4*S19*(W19+X19)))/S19 -> 0.5747598855 | C19: 0.0004286561745 | D19: 0.075719582 | E19: -0.1523891511 | F19: 4.350271003 | G19: 2.857712754 | H19: =G19/F19 -> 0.6569045358 | I19: =F19*B19*$D$6 -> 1.050151731 | J19: =MAX(MIN($K$6,$Q$6*$J$6*C19*(B19-$I$6)/B19),-$K$6) -> 209.9458308 | K19: 0.1266363417 | L19: =MIN($O$6,$Q$6*$N$6*C19*(C$6-B19-$M$6)/B19) -> -38.6480055 | M19: -0.02331192771 | N19: =(0.5*$C$6-B19+H19*B19)*I19+(0.5*$C$6-$I$6)*K19+(0.5*$C$6-$M$6)*M19 -> 0.0981517881 | O19: =I19+K19-M19 -> 1.2001 | P19: 0 | Q19: =N19-P19*O19 -> 0.0981517881 | R19: 1.2 | S19: =F19*$D$6 -> 1.827113821 | T19: 0.1413969723 | U19: 0.1413969723 | V19: =-(R19+0.0001) -> -1.2001 | W19: 0.008483818338 | X19: 0.0678705467 | Y19: 0.0604768437 | Z19: 0.06047722945
B20: 0.5747599128 | C20: 0.0004286561745 | D20: 0.075719582 | E20: -0.1523891511 | F20: 4.35027077 | G20: 2.857712739 | H20: 0.6569045677 | I20: 1.050151724 | J20: 209.945832 | K20: 0.1266363424 | L20: -38.6480148 | M20: -0.02331193332 | N20: 0.09815179604 | O20: 1.2001 | P20: 0 | Q20: 0.09815179604 | R20: 1.2 | S20: 1.827113723 | T20: 0.1413969723 | U20: 0.1413969723 | V20: -1.2001 | W20: 0.008483818338 | X20: 0.0678705467 | Y20: 0.06047722945 | Z20: 0.06047727409
B21: 0.5747599159 | C21: 0.0004286561745 | D21: 0.075719582 | E21: -0.1523891511 | F21: 4.350270743 | G21: 2.857712738 | H21: 0.6569045714 | I21: 1.050151724 | J21: 209.9458321 | K21: 0.1266363425 | L21: -38.64801588 | M21: -0.02331193397 | N21: 0.09815179696 | O21: 1.2001 | P21: 0 | Q21: 0.09815179696 | R21: 1.2 | S21: 1.827113712 | T21: 0.1413969723 | U21: 0.1413969723 | V21: -1.2001 | W21: 0.008483818338 | X21: 0.0678705467 | Y21: 0.06047727409 | Z21: 0.06047727925
B22: 0.5747599163 | C22: 0.0004286561745 | D22: 0.075719582 | E22: -0.1523891511 | F22: 4.35027074 | G22: 2.857712738 | H22: 0.6569045718 | I22: 1.050151723 | J22: 209.9458322 | K22: 0.1266363425 | L22: -38.648016 | M22: -0.02331193405 | N22: 0.09815179707 | O22: 1.2001 | P22: 0 | Q22: 0.09815179707 | R22: 1.2 | S22: 1.827113711 | T22: 0.1413969723 | U22: 0.1413969723 | V22: -1.2001 | W22: 0.008483818338 | X22: 0.0678705467 | Y22: 0.06047727925 | Z22: 0.06047727985
B23: 0.5747599163 | C23: 0.0004286561745 | D23: 0.075719582 | E23: -0.1523891511 | F23: 4.350270739 | G23: 2.857712738 | H23: 0.6569045719 | I23: 1.050151723 | J23: 209.9458322 | K23: 0.1266363425 | L23: -38.64801602 | M23: -0.02331193405 | N23: 0.09815179708 | O23: 1.2001 | P23: 0 | Q23: 0.09815179708 | R23: 1.2 | S23: 1.827113711 | T23: 0.1413969723 | U23: 0.1413969723 | V23: -1.2001 | W23: 0.008483818338 | X23: 0.0678705467 | Y23: 0.06047727985 | Z23: 0.06047727992
B24: 0.5747599164 | C24: 0.0004286561745 | D24: 0.075719582 | E24: -0.1523891511 | F24: 4.350270739 | G24: 2.857712738 | H24: 0.6569045719 | I24: 1.050151723 | J24: 209.9458322 | K24: 0.1266363425 | L24: -38.64801602 | M24: -0.02331193406 | N24: 0.09815179708 | O24: 1.2001 | P24: 0 | Q24: 0.09815179708 | R24: 1.2 | S24: 1.827113711 | T24: 0.1413969723 | U24: 0.1413969723 | V24: -1.2001 | W24: 0.008483818338 | X24: 0.0678705467 | Y24: 0.06047727992 | Z24: 0.06047727993
B25: 0.5747599164 | C25: 0.0004286561745 | D25: 0.075719582 | E25: -0.1523891511 | F25: 4.350270739 | G25: 2.857712738 | H25: 0.6569045719 | I25: 1.050151723 | J25: 209.9458322 | K25: 0.1266363425 | L25: -38.64801602 | M25: -0.02331193406 | N25: 0.09815179708 | O25: 1.2001 | P25: 0 | Q25: 0.09815179708 | R25: 1.2 | S25: 1.827113711 | T25: 0.1413969723 | U25: 0.1413969723 | V25: -1.2001 | W25: 0.008483818338 | X25: 0.0678705467 | Y25: 0.06047727993 | Z25: 0.06047727993
B26: 0.5747599164 | C26: 0.0004286561745 | D26: 0.075719582 | E26: -0.1523891511 | F26: 4.350270739 | G26: 2.857712738 | H26: 0.6569045719 | I26: 1.050151723 | J26: 209.9458322 | K26: 0.1266363425 | L26: -38.64801602 | M26: -0.02331193406 | N26: 0.09815179708 | O26: 1.2001 | P26: 0 | Q26: 0.09815179708 | R26: 1.2 | S26: 1.827113711 | T26: 0.1413969723 | U26: 0.1413969723 | V26: -1.2001 | W26: 0.008483818338 | X26: 0.0678705467 | Y26: 0.06047727993 | Z26: 0.06047727993
B27: 0.5747599164 | C27: 0.0004286561745 | D27: 0.075719582 | E27: -0.1523891511 | F27: 4.350270739 | G27: 2.857712738 | H27: 0.6569045719 | I27: 1.050151723 | J27: 209.9458322 | K27: 0.1266363425 | L27: -38.64801602 | M27: -0.02331193406 | N27: 0.09815179708 | O27: 1.2001 | P27: 0 | Q27: 0.09815179708 | R27: 1.2 | S27: 1.827113711 | T27: 0.1413969723 | U27: 0.1413969723 | V27: -1.2001 | W27: 0.008483818338 | X27: 0.0678705467 | Y27: 0.06047727993 | Z27: 0.06047727993
B28: 0.5747599164 | C28: 0.0004286561745 | D28: 0.075719582 | E28: -0.1523891511 | F28: 4.350270739 | G28: 2.857712738 | H28: 0.6569045719 | I28: 1.050151723 | J28: 209.9458322 | K28: 0.1266363425 | L28: -38.64801602 | M28: -0.02331193406 | N28: 0.09815179708 | O28: 1.2001 | P28: 0 | Q28: 0.09815179708 | R28: 1.2 | S28: 1.827113711 | T28: 0.1413969723 | U28: 0.1413969723 | V28: -1.2001 | W28: 0.008483818338 | X28: 0.0678705467 | Y28: 0.06047727993 | Z28: 0.06047727993
B29: 0.5747599164 | C29: 0.0004286561745 | D29: 0.075719582 | E29: -0.1523891511 | F29: 4.350270739 | G29: 2.857712738 | H29: 0.6569045719 | I29: 1.050151723 | J29: 209.9458322 | K29: 0.1266363425 | L29: -38.64801602 | M29: -0.02331193406 | N29: 0.09815179708 | O29: 1.2001 | P29: 0 | Q29: 0.09815179708 | R29: 1.2 | S29: 1.827113711 | T29: 0.1413969723 | U29: 0.1413969723 | V29: -1.2001 | W29: 0.008483818338 | X29: 0.0678705467 | Y29: 0.06047727993 | Z29: 0.06047727993
B30: 0.5747599164 | C30: 0.0004286561745 | D30: 0.075719582 | E30: -0.1523891511 | F30: 4.350270739 | G30: 2.857712738 | H30: 0.6569045719 | I30: 1.050151723 | J30: 209.9458322 | K30: 0.1266363425 | L30: -38.64801602 | M30: -0.02331193406 | N30: 0.09815179708 | O30: 1.2001 | P30: 0 | Q30: 0.09815179708 | R30: 1.2 | S30: 1.827113711 | T30: 0.1413969723 | U30: 0.1413969723 | V30: -1.2001 | W30: 0.008483818338 | X30: 0.0678705467 | Y30: 0.06047727993 | Z30: 0.06047727993
AA31: =N30/($Q$6*C30/B30) -> 48.13109204
B32: =IF(B30<0,P9,0.5*(P9+B30)) -> 0.5572818112
B33: 0.5259729737 | C33: =0.5*(K9+C30) -> 0.0004730084053 | D33: =IF($C$2=1,C33/($AD$6*$AD$5),2^(1/3)*$AD$5/C33) -> 0.08355414169 | E33: =IF($C$2=1,-($AD$6-2)*C33/$AD$5,3*($AD$5/C33)^2) -> -0.1681565638 | F33: =IF($C$2=1,0.5*($AD$6*C33*$F$6/$AD$5)*(1-Y33^2+(D33-E33)*(E33^2*(1-Y33^2)+2*E33*(1-Y33)+2*LN((1-E33)/(1-E33*Y33)))/(E33^3)),$F$6*E33*(LN((1-D33+D33^2)/(1+D33)^2)/(6*D33)+ATAN((2-D33)/(D33*3^0.5))/(D33*3^0.5)-LN((Y33^2-D33*Y33+D33^2)/(Y33+D33)^2)/(6*D33)-ATAN((2*Y33-D33)/(D33*3^0.5))/(D33*3^0.5))) -> 4.745101658 | G33: =IF($C$2=1,($AD$6*C33*$F$6/$AD$5)*(1-Y33^3-(D33-E33)*(-2*E33^3*(1-Y33^3)-3*E33^2*(1-Y33^2)-6*E33*(1-Y33)-6*LN((1-E33)/(1-E33*Y33)))/(2*E33^4))/3,$F$6*E33*(LN((1+D33^3)/(D33^3+Y33^3)))/3) -> 3.10224931 | H33: 0.6537793147 | I33: 1.048233996 | J33: 229.1638355 | K33: 0.138228369 | L33: -22.6093434 | M33: -0.01363763465 | N33: 0.1183009678 | O33: 1.2001 | P33: =Snitkræfter!$D$44*0.1*$Q$6*C33*$B$6^2/B33+$R$6 -> 7.170391654e-05 | Q33: 0.1182149159 | R33: =$R$11 -> 1.2 | S33: 1.992942696 | T33: =IF(ABS(J32)<$K$6,$Q$6*C33*$H$6*$J$6,IF(J32>0,1,-1)*$H$6*$K$6) -> 0.1560270454 | U33: =IF(L32<$O$6,$Q$6*C33*$L$6*$N$6,-$L$6*$O$6) -> 0.1560270454 | V33: -1.2001 | W33: =IF(ABS(J32)<$K$6,$I$6*$Q$6*C33*$H$6*$J$6,0) -> 0.009361622723 | X33: =IF(L32<$O$6,($C$6-$M$6)*$Q$6*C33*$L$6*$N$6,0) -> 0.07489298178 | Y33: =IF(ABS(B32)<$C$6,0,(B32-$C$6)/B32) -> 0.03101090127 | Z33: =IF(AND(B33<=$C$6,B33>0),0,(B33-$C$6)/B33) -> 0
B34: 0.549320668 | C34: =IF(Z33>0,C33+0.5*($Q$11-Q33)/($T$9*$G$6),0.95*C33) -> 0.0004493579851 | D34: 0.0793764346 | E34: -0.1597487356 | F34: 4.548298644 | G34: 2.973372474 | H34: 0.6537329026 | I34: 1.049359269 | J34: 218.8971004 | K34: 0.1320356203 | L34: -31.01052995 | M34: -0.01870511099 | N34: 0.1075260271 | O34: 1.2001 | P34: =Snitkræfter!$D$44*0.1*$Q$6*C34*$B$6^2/B34+$R$6 -> 6.52234809e-05 | Q34: =N34-P34*O34 -> 0.1074477524 | R34: 1.2 | S34: 1.91028543 | T34: 0.1482256931 | U34: 0.1482256931 | V34: -1.2001 | W34: 0.008893541587 | X34: 0.0711483327 | Y34: =Z33 -> 0 | Z34: 0.01696762667
B35: 0.5594507322 | C35: =IF(OR(C34=C33,ABS($Q$11-Q34)<0.00005*$Q$11),C34,MAX(IF(Z34>0,0.98*C34,0.9*C34),MIN($AD$4,IF(Z34>0,1.005*C34,1.05*C34),IF(C34=$AD$4,0.5*(C34+C33),C34+(C34-C33)*(Q34-$Q$11)/(Q33-Q34))))) -> 0.0004403708254 | D35: 0.07778890591 | E35: -0.1565537609 | F35: 4.467768392 | G35: 2.923671024 | H35: 0.6543918054 | I35: 1.049788445 | J35: 214.9954514 | K35: 0.1296822011 | L35: -34.20066272 | M35: -0.02062935374 | N35: 0.103366587 | O35: 1.2001 | P35: =Snitkræfter!$D$44*0.1*$Q$6*C35*$B$6^2/B35+$R$6 -> 6.276161949e-05 | Q35: 0.1032912668 | R35: 1.2 | S35: 1.876462724 | T35: 0.1452611793 | U35: 0.1452611793 | V35: -1.2001 | W35: 0.008715670755 | X35: 0.06972536604 | Y35: =Z34+IF(C33=C34,0,(C35-C34)*(Z34-Z33)/(C34-C33)) -> 0.0234153248 | Z35: 0.03476755166
B36: =0.5*(-(T36+U36+V36)+SQRT((T36+U36+V36)^2+4*S36*(W36+X36)))/S36 -> 0.5707834207 | C36: =IF(OR(C35=C34,ABS($Q$11-Q35)<0.00005*$Q$11),C35,MAX(IF(Z35>0,0.98*C35,0.9*C35),MIN($AD$4,IF(Z35>0,1.005*C35,1.05*C35),IF(C35=$AD$4,0.5*(C35+C34),C35+(C35-C34)*(Q35-$Q$11)/(Q34-Q35))))) -> 0.0004315634089 | D36: 0.07623312779 | E36: -0.1534226857 | F36: 4.380222501 | G36: 2.874225726 | H36: =G36/F36 -> 0.6561825855 | I36: =F36*B36*$D$6 -> 1.050066521 | J36: =MAX(MIN($K$6,$Q$6*$J$6*C36*(B36-$I$6)/B36),-$K$6) -> 211.198088 | K36: 0.1273916855 | L36: =MIN($O$6,$Q$6*$N$6*C36*(C$6-B36-$M$6)/B36) -> -37.5370149 | M36: -0.02264179397 | N36: =(0.5*$C$6-B36+H36*B36)*I36+(0.5*$C$6-$I$6)*K36+(0.5*$C$6-$M$6)*M36 -> 0.09944483948 | O36: =I36+K36-M36 -> 1.2001 | P36: =Snitkræfter!$D$44*0.1*$Q$6*C36*$B$6^2/B36+$R$6 -> 6.028520109e-05 | Q36: =N36-P36*O36 -> 0.09937249121 | R36: 1.2 | S36: =F36*$D$6 -> 1.83969345 | T36: 0.1423559557 | U36: 0.1423559557 | V36: =-(R36+0.0001) -> -1.2001 | W36: 0.00854135734 | X36: 0.06833085872 | Y36: =MIN(Z35+IF(C34=C35,Y35-Z35,IF(ABS(Y35-Z35)<0.001,Y35-Z35,(C36-C35)*(Z35-Z34)/(C35-C34))),0.995) -> 0.05221147815 | Z36: 0.05393187605
B37: 0.5745247717 | C37: 0.0004288197415 | D37: 0.07574847515 | E37: -0.1524472999 | F37: 4.352039535 | G37: 2.858648733 | H37: 0.6568526571 | I37: 1.050148899 | J37: 210.015924 | K37: 0.1266786209 | L37: -38.5826074 | M37: -0.02327248051 | N37: 0.09822215598 | O37: 1.2001 | P37: =Snitkræfter!$D$44*0.1*$Q$6*C37*$B$6^2/B37+$R$6 -> 5.951185133e-05 | Q37: 0.0981507358 | R37: 1.2 | S37: 1.827856605 | T37: 0.1414509267 | U37: 0.1414509267 | V37: -1.2001 | W37: 0.008487055601 | X37: 0.06789644481 | Y37: =MIN(Z36+IF(C35=C36,Y36-Z36,IF(ABS(Y36-Z36)<0.001,Y36-Z36,(C37-C36)*(Z36-Z35)/(C36-C35))),0.995) -> 0.05990190505 | Z37: 0.0600927469
B38: 0.5745247717 | C38: 0.0004288197415 | D38: 0.07574847515 | E38: -0.1524472999 | F38: 4.352039535 | G38: 2.858648733 | H38: 0.6568526571 | I38: 1.050148899 | J38: 210.015924 | K38: 0.1266786209 | L38: -38.5826074 | M38: -0.02327248051 | N38: 0.09822215598 | O38: 1.2001 | P38: =Snitkræfter!$D$44*0.1*$Q$6*C38*$B$6^2/B38+$R$6 -> 5.951185133e-05 | Q38: 0.0981507358 | R38: 1.2 | S38: 1.827856605 | T38: 0.1414509267 | U38: 0.1414509267 | V38: -1.2001 | W38: 0.008487055601 | X38: 0.06789644481 | Y38: 0.05990190505 | Z38: 0.0600927469
B39: 0.5745247717 | C39: 0.0004288197415 | D39: 0.07574847515 | E39: -0.1524472999 | F39: 4.352039535 | G39: 2.858648733 | H39: 0.6568526571 | I39: 1.050148899 | J39: 210.015924 | K39: 0.1266786209 | L39: -38.5826074 | M39: -0.02327248051 | N39: 0.09822215598 | O39: 1.2001 | P39: =Snitkræfter!$D$44*0.1*$Q$6*C39*$B$6^2/B39+$R$6 -> 5.951185133e-05 | Q39: 0.0981507358 | R39: 1.2 | S39: 1.827856605 | T39: 0.1414509267 | U39: 0.1414509267 | V39: -1.2001 | W39: 0.008487055601 | X39: 0.06789644481 | Y39: 0.05990190505 | Z39: =IF(AND(B39<=$C$6,B39>0),0,(B39-$C$6)/B39) -> 0.0600927469
B40: 0.5745247717 | C40: 0.0004288197415 | D40: 0.07574847515 | E40: -0.1524472999 | F40: 4.352039535 | G40: 2.858648733 | H40: 0.6568526571 | I40: 1.050148899 | J40: 210.015924 | K40: 0.1266786209 | L40: -38.5826074 | M40: -0.02327248051 | N40: 0.09822215598 | O40: 1.2001 | P40: =Snitkræfter!$D$44*0.1*$Q$6*C40*$B$6^2/B40+$R$6 -> 5.951185133e-05 | Q40: 0.0981507358 | R40: 1.2 | S40: 1.827856605 | T40: 0.1414509267 | U40: 0.1414509267 | V40: -1.2001 | W40: 0.008487055601 | X40: 0.06789644481 | Y40: 0.05990190505 | Z40: 0.0600927469
B41: 0.5745247717 | C41: 0.0004288197415 | D41: 0.07574847515 | E41: -0.1524472999 | F41: 4.352039535 | G41: 2.858648733 | H41: 0.6568526571 | I41: 1.050148899 | J41: 210.015924 | K41: 0.1266786209 | L41: -38.5826074 | M41: -0.02327248051 | N41: 0.09822215598 | O41: 1.2001 | P41: =Snitkræfter!$D$44*0.1*$Q$6*C41*$B$6^2/B41+$R$6 -> 5.951185133e-05 | Q41: 0.0981507358 | R41: 1.2 | S41: 1.827856605 | T41: 0.1414509267 | U41: 0.1414509267 | V41: -1.2001 | W41: 0.008487055601 | X41: 0.06789644481 | Y41: 0.05990190505 | Z41: 0.0600927469
B42: 0.5745247717 | C42: 0.0004288197415 | D42: 0.07574847515 | E42: -0.1524472999 | F42: 4.352039535 | G42: 2.858648733 | H42: 0.6568526571 | I42: 1.050148899 | J42: 210.015924 | K42: 0.1266786209 | L42: -38.5826074 | M42: -0.02327248051 | N42: 0.09822215598 | O42: 1.2001 | P42: =Snitkræfter!$D$44*0.1*$Q$6*C42*$B$6^2/B42+$R$6 -> 5.951185133e-05 | Q42: 0.0981507358 | R42: 1.2 | S42: 1.827856605 | T42: 0.1414509267 | U42: 0.1414509267 | V42: -1.2001 | W42: 0.008487055601 | X42: 0.06789644481 | Y42: 0.05990190505 | Z42: 0.0600927469
B43: 0.5745247717 | C43: 0.0004288197415 | D43: 0.07574847515 | E43: -0.1524472999 | F43: 4.352039535 | G43: 2.858648733 | H43: 0.6568526571 | I43: 1.050148899 | J43: 210.015924 | K43: 0.1266786209 | L43: -38.5826074 | M43: -0.02327248051 | N43: 0.09822215598 | O43: 1.2001 | P43: =Snitkræfter!$D$44*0.1*$Q$6*C43*$B$6^2/B43+$R$6 -> 5.951185133e-05 | Q43: 0.0981507358 | R43: 1.2 | S43: 1.827856605 | T43: 0.1414509267 | U43: 0.1414509267 | V43: -1.2001 | W43: 0.008487055601 | X43: 0.06789644481 | Y43: 0.05990190505 | Z43: 0.0600927469
B44: 0.5745247717 | C44: 0.0004288197415 | D44: 0.07574847515 | E44: -0.1524472999 | F44: 4.352039535 | G44: 2.858648733 | H44: 0.6568526571 | I44: 1.050148899 | J44: 210.015924 | K44: 0.1266786209 | L44: -38.5826074 | M44: -0.02327248051 | N44: 0.09822215598 | O44: 1.2001 | P44: =Snitkræfter!$D$44*0.1*$Q$6*C44*$B$6^2/B44+$R$6 -> 5.951185133e-05 | Q44: 0.0981507358 | R44: 1.2 | S44: 1.827856605 | T44: 0.1414509267 | U44: 0.1414509267 | V44: -1.2001 | W44: 0.008487055601 | X44: 0.06789644481 | Y44: 0.05990190505 | Z44: 0.0600927469
B45: 0.5745247717 | C45: 0.0004288197415 | D45: 0.07574847515 | E45: -0.1524472999 | F45: 4.352039535 | G45: 2.858648733 | H45: 0.6568526571 | I45: 1.050148899 | J45: 210.015924 | K45: 0.1266786209 | L45: -38.5826074 | M45: -0.02327248051 | N45: 0.09822215598 | O45: 1.2001 | P45: =Snitkræfter!$D$44*0.1*$Q$6*C45*$B$6^2/B45+$R$6 -> 5.951185133e-05 | Q45: 0.0981507358 | R45: 1.2 | S45: 1.827856605 | T45: 0.1414509267 | U45: 0.1414509267 | V45: -1.2001 | W45: 0.008487055601 | X45: 0.06789644481 | Y45: 0.05990190505 | Z45: 0.0600927469
B46: 0.5745247717 | C46: 0.0004288197415 | D46: 0.07574847515 | E46: -0.1524472999 | F46: 4.352039535 | G46: 2.858648733 | H46: 0.6568526571 | I46: 1.050148899 | J46: 210.015924 | K46: 0.1266786209 | L46: -38.5826074 | M46: -0.02327248051 | N46: 0.09822215598 | O46: 1.2001 | P46: =Snitkræfter!$D$44*0.1*$Q$6*C46*$B$6^2/B46+$R$6 -> 5.951185133e-05 | Q46: 0.0981507358 | R46: 1.2 | S46: 1.827856605 | T46: 0.1414509267 | U46: 0.1414509267 | V46: -1.2001 | W46: 0.008487055601 | X46: 0.06789644481 | Y46: 0.05990190505 | Z46: 0.0600927469
B47: 0.5745247717 | C47: 0.0004288197415 | D47: 0.07574847515 | E47: -0.1524472999 | F47: 4.352039535 | G47: 2.858648733 | H47: 0.6568526571 | I47: 1.050148899 | J47: 210.015924 | K47: 0.1266786209 | L47: -38.5826074 | M47: -0.02327248051 | N47: 0.09822215598 | O47: 1.2001 | P47: =Snitkræfter!$D$44*0.1*$Q$6*C47*$B$6^2/B47+$R$6 -> 5.951185133e-05 | Q47: 0.0981507358 | R47: 1.2 | S47: 1.827856605 | T47: 0.1414509267 | U47: 0.1414509267 | V47: -1.2001 | W47: 0.008487055601 | X47: 0.06789644481 | Y47: 0.05990190505 | Z47: 0.0600927469
B48: 0.5745247717 | C48: 0.0004288197415 | D48: 0.07574847515 | E48: -0.1524472999 | F48: 4.352039535 | G48: 2.858648733 | H48: 0.6568526571 | I48: 1.050148899 | J48: 210.015924 | K48: 0.1266786209 | L48: -38.5826074 | M48: -0.02327248051 | N48: 0.09822215598 | O48: 1.2001 | P48: =Snitkræfter!$D$44*0.1*$Q$6*C48*$B$6^2/B48+$R$6 -> 5.951185133e-05 | Q48: 0.0981507358 | R48: 1.2 | S48: 1.827856605 | T48: 0.1414509267 | U48: 0.1414509267 | V48: -1.2001 | W48: 0.008487055601 | X48: 0.06789644481 | Y48: 0.05990190505 | Z48: 0.0600927469
B49: 0.5745247717 | C49: 0.0004288197415 | D49: 0.07574847515 | E49: -0.1524472999 | F49: 4.352039535 | G49: 2.858648733 | H49: 0.6568526571 | I49: 1.050148899 | J49: 210.015924 | K49: 0.1266786209 | L49: -38.5826074 | M49: -0.02327248051 | N49: 0.09822215598 | O49: 1.2001 | P49: =Snitkræfter!$D$44*0.1*$Q$6*C49*$B$6^2/B49+$R$6 -> 5.951185133e-05 | Q49: 0.0981507358 | R49: 1.2 | S49: 1.827856605 | T49: 0.1414509267 | U49: 0.1414509267 | V49: -1.2001 | W49: 0.008487055601 | X49: 0.06789644481 | Y49: =MIN(Z48+IF(C47=C48,Y48-Z48,IF(ABS(Y48-Z48)<0.001,Y48-Z48,(C49-C48)*(Z48-Z47)/(C48-C47))),0.995) -> 0.05990190505 | Z49: 0.0600927469
B50: 0.5745247717 | C50: 0.0004288197415 | D50: 0.07574847515 | E50: -0.1524472999 | F50: 4.352039535 | G50: 2.858648733 | H50: 0.6568526571 | I50: 1.050148899 | J50: 210.015924 | K50: 0.1266786209 | L50: -38.5826074 | M50: -0.02327248051 | N50: 0.09822215598 | O50: 1.2001 | P50: =Snitkræfter!$D$44*0.1*$Q$6*C50*$B$6^2/B50+$R$6 -> 5.951185133e-05 | Q50: 0.0981507358 | R50: 1.2 | S50: 1.827856605 | T50: 0.1414509267 | U50: 0.1414509267 | V50: -1.2001 | W50: 0.008487055601 | X50: 0.06789644481 | Y50: 0.05990190505 | Z50: 0.0600927469
B51: 0.5745247717 | C51: 0.0004288197415 | D51: 0.07574847515 | E51: -0.1524472999 | F51: 4.352039535 | G51: 2.858648733 | H51: 0.6568526571 | I51: 1.050148899 | J51: 210.015924 | K51: 0.1266786209 | L51: -38.5826074 | M51: -0.02327248051 | N51: 0.09822215598 | O51: 1.2001 | P51: =Snitkræfter!$D$44*0.1*$Q$6*C51*$B$6^2/B51+$R$6 -> 5.951185133e-05 | Q51: 0.0981507358 | R51: 1.2 | S51: 1.827856605 | T51: 0.1414509267 | U51: 0.1414509267 | V51: -1.2001 | W51: 0.008487055601 | X51: 0.06789644481 | Y51: 0.05990190505 | Z51: 0.0600927469
B52: 0.5745247717 | C52: 0.0004288197415 | D52: 0.07574847515 | E52: -0.1524472999 | F52: 4.352039535 | G52: 2.858648733 | H52: 0.6568526571 | I52: 1.050148899 | J52: 210.015924 | K52: 0.1266786209 | L52: -38.5826074 | M52: -0.02327248051 | N52: 0.09822215598 | O52: 1.2001 | P52: =Snitkræfter!$D$44*0.1*$Q$6*C52*$B$6^2/B52+$R$6 -> 5.951185133e-05 | Q52: 0.0981507358 | R52: 1.2 | S52: 1.827856605 | T52: 0.1414509267 | U52: 0.1414509267 | V52: -1.2001 | W52: 0.008487055601 | X52: 0.06789644481 | Y52: 0.05990190505 | Z52: 0.0600927469
B53: 0.5745247717 | C53: 0.0004288197415 | D53: 0.07574847515 | E53: -0.1524472999 | F53: 4.352039535 | G53: 2.858648733 | H53: 0.6568526571 | I53: 1.050148899 | J53: 210.015924 | K53: 0.1266786209 | L53: -38.5826074 | M53: -0.02327248051 | N53: 0.09822215598 | O53: 1.2001 | P53: =Snitkræfter!$D$44*0.1*$Q$6*C53*$B$6^2/B53+$R$6 -> 5.951185133e-05 | Q53: 0.0981507358 | R53: 1.2 | S53: 1.827856605 | T53: 0.1414509267 | U53: 0.1414509267 | V53: -1.2001 | W53: 0.008487055601 | X53: 0.06789644481 | Y53: 0.05990190505 | Z53: 0.0600927469
B54: 0.5745247717 | C54: 0.0004288197415 | D54: 0.07574847515 | E54: -0.1524472999 | F54: 4.352039535 | G54: 2.858648733 | H54: 0.6568526571 | I54: 1.050148899 | J54: 210.015924 | K54: 0.1266786209 | L54: -38.5826074 | M54: -0.02327248051 | N54: 0.09822215598 | O54: 1.2001 | P54: =Snitkræfter!$D$44*0.1*$Q$6*C54*$B$6^2/B54+$R$6 -> 5.951185133e-05 | Q54: 0.0981507358 | R54: 1.2 | S54: 1.827856605 | T54: 0.1414509267 | U54: 0.1414509267 | V54: -1.2001 | W54: 0.008487055601 | X54: 0.06789644481 | Y54: 0.05990190505 | Z54: 0.0600927469
B55: 0.5745247717 | C55: 0.0004288197415 | D55: 0.07574847515 | E55: -0.1524472999 | F55: 4.352039535 | G55: 2.858648733 | H55: 0.6568526571 | I55: 1.050148899 | J55: 210.015924 | K55: 0.1266786209 | L55: -38.5826074 | M55: -0.02327248051 | N55: 0.09822215598 | O55: 1.2001 | P55: =Snitkræfter!$D$44*0.1*$Q$6*C55*$B$6^2/B55+$R$6 -> 5.951185133e-05 | Q55: 0.0981507358 | R55: 1.2 | S55: 1.827856605 | T55: 0.1414509267 | U55: 0.1414509267 | V55: -1.2001 | W55: 0.008487055601 | X55: 0.06789644481 | Y55: 0.05990190505 | Z55: 0.0600927469
B56: 0.5745247717 | C56: 0.0004288197415 | D56: 0.07574847515 | E56: -0.1524472999 | F56: 4.352039535 | G56: 2.858648733 | H56: 0.6568526571 | I56: 1.050148899 | J56: 210.015924 | K56: 0.1266786209 | L56: -38.5826074 | M56: -0.02327248051 | N56: 0.09822215598 | O56: 1.2001 | P56: =Snitkræfter!$D$44*0.1*$Q$6*C56*$B$6^2/B56+$R$6 -> 5.951185133e-05 | Q56: 0.0981507358 | R56: 1.2 | S56: 1.827856605 | T56: 0.1414509267 | U56: 0.1414509267 | V56: -1.2001 | W56: 0.008487055601 | X56: 0.06789644481 | Y56: 0.05990190505 | Z56: 0.0600927469
B57: 0.5745247717 | C57: 0.0004288197415 | D57: 0.07574847515 | E57: -0.1524472999 | F57: 4.352039535 | G57: 2.858648733 | H57: 0.6568526571 | I57: 1.050148899 | J57: 210.015924 | K57: 0.1266786209 | L57: -38.5826074 | M57: -0.02327248051 | N57: 0.09822215598 | O57: 1.2001 | P57: =Snitkræfter!$D$44*0.1*$Q$6*C57*$B$6^2/B57+$R$6 -> 5.951185133e-05 | Q57: 0.0981507358 | R57: 1.2 | S57: =F57*$D$6 -> 1.827856605 | T57: 0.1414509267 | U57: 0.1414509267 | V57: -1.2001 | W57: 0.008487055601 | X57: 0.06789644481 | Y57: 0.05990190505 | Z57: 0.0600927469
B58: =0.5*(-(T58+U58+V58)+SQRT((T58+U58+V58)^2+4*S58*(W58+X58)))/S58 -> 0.5745247717 | C58: 0.0004288197415 | D58: 0.07574847515 | E58: -0.1524472999 | F58: 4.352039535 | G58: 2.858648733 | H58: 0.6568526571 | I58: 1.050148899 | J58: 210.015924 | K58: 0.1266786209 | L58: -38.5826074 | M58: -0.02327248051 | N58: 0.09822215598 | O58: 1.2001 | P58: =Snitkræfter!$D$44*0.1*$Q$6*C58*$B$6^2/B58+$R$6 -> 5.951185133e-05 | Q58: 0.0981507358 | R58: 1.2 | S58: 1.827856605 | T58: 0.1414509267 | U58: 0.1414509267 | V58: -1.2001 | W58: 0.008487055601 | X58: 0.06789644481 | Y58: 0.05990190505 | Z58: 0.0600927469
B59: 0.5745247717 | C59: 0.0004288197415 | D59: 0.07574847515 | E59: -0.1524472999 | F59: 4.352039535 | G59: 2.858648733 | H59: 0.6568526571 | I59: 1.050148899 | J59: 210.015924 | K59: 0.1266786209 | L59: -38.5826074 | M59: -0.02327248051 | N59: 0.09822215598 | O59: 1.2001 | P59: =Snitkræfter!$D$44*0.1*$Q$6*C59*$B$6^2/B59+$R$6 -> 5.951185133e-05 | Q59: 0.0981507358 | R59: 1.2 | S59: 1.827856605 | T59: 0.1414509267 | U59: 0.1414509267 | V59: -1.2001 | W59: 0.008487055601 | X59: 0.06789644481 | Y59: 0.05990190505 | Z59: 0.0600927469
B60: 0.5745247717 | C60: 0.0004288197415 | D60: 0.07574847515 | E60: -0.1524472999 | F60: 4.352039535 | G60: 2.858648733 | H60: 0.6568526571 | I60: 1.050148899 | J60: 210.015924 | K60: 0.1266786209 | L60: -38.5826074 | M60: -0.02327248051 | N60: 0.09822215598 | O60: 1.2001 | P60: =Snitkræfter!$D$44*0.1*$Q$6*C60*$B$6^2/B60+$R$6 -> 5.951185133e-05 | Q60: 0.0981507358 | R60: 1.2 | S60: 1.827856605 | T60: 0.1414509267 | U60: 0.1414509267 | V60: -1.2001 | W60: 0.008487055601 | X60: 0.06789644481 | Y60: 0.05990190505 | Z60: 0.0600927469
B61: 0.5745247717 | C61: 0.0004288197415 | D61: 0.07574847515 | E61: -0.1524472999 | F61: 4.352039535 | G61: 2.858648733 | H61: 0.6568526571 | I61: 1.050148899 | J61: 210.015924 | K61: 0.1266786209 | L61: -38.5826074 | M61: -0.02327248051 | N61: 0.09822215598 | O61: 1.2001 | P61: =Snitkræfter!$D$44*0.1*$Q$6*C61*$B$6^2/B61+$R$6 -> 5.951185133e-05 | Q61: 0.0981507358 | R61: 1.2 | S61: 1.827856605 | T61: 0.1414509267 | U61: 0.1414509267 | V61: -1.2001 | W61: 0.008487055601 | X61: 0.06789644481 | Y61: 0.05990190505 | Z61: 0.0600927469
B62: 0.5745247717 | C62: 0.0004288197415 | D62: 0.07574847515 | E62: -0.1524472999 | F62: 4.352039535 | G62: 2.858648733 | H62: 0.6568526571 | I62: 1.050148899 | J62: 210.015924 | K62: 0.1266786209 | L62: -38.5826074 | M62: -0.02327248051 | N62: 0.09822215598 | O62: 1.2001 | P62: =Snitkræfter!$D$44*0.1*$Q$6*C62*$B$6^2/B62+$R$6 -> 5.951185133e-05 | Q62: 0.0981507358 | R62: 1.2 | S62: 1.827856605 | T62: 0.1414509267 | U62: 0.1414509267 | V62: -1.2001 | W62: 0.008487055601 | X62: 0.06789644481 | Y62: 0.05990190505 | Z62: 0.0600927469
B63: 0.5745247717 | C63: 0.0004288197415 | D63: 0.07574847515 | E63: -0.1524472999 | F63: 4.352039535 | G63: 2.858648733 | H63: 0.6568526571 | I63: 1.050148899 | J63: 210.015924 | K63: 0.1266786209 | L63: -38.5826074 | M63: -0.02327248051 | N63: 0.09822215598 | O63: 1.2001 | P63: =Snitkræfter!$D$44*0.1*$Q$6*C63*$B$6^2/B63+$R$6 -> 5.951185133e-05 | Q63: 0.0981507358 | R63: 1.2 | S63: 1.827856605 | T63: 0.1414509267 | U63: 0.1414509267 | V63: -1.2001 | W63: 0.008487055601 | X63: 0.06789644481 | Y63: 0.05990190505 | Z63: 0.0600927469
B64: 0.5745247717 | C64: 0.0004288197415 | D64: 0.07574847515 | E64: -0.1524472999 | F64: 4.352039535 | G64: 2.858648733 | H64: 0.6568526571 | I64: 1.050148899 | J64: 210.015924 | K64: 0.1266786209 | L64: -38.5826074 | M64: -0.02327248051 | N64: 0.09822215598 | O64: 1.2001 | P64: =Snitkræfter!$D$44*0.1*$Q$6*C64*$B$6^2/B64+$R$6 -> 5.951185133e-05 | Q64: 0.0981507358 | R64: 1.2 | S64: 1.827856605 | T64: 0.1414509267 | U64: 0.1414509267 | V64: -1.2001 | W64: 0.008487055601 | X64: 0.06789644481 | Y64: 0.05990190505 | Z64: 0.0600927469
B65: 0.5745247717 | C65: 0.0004288197415 | D65: 0.07574847515 | E65: -0.1524472999 | F65: 4.352039535 | G65: 2.858648733 | H65: 0.6568526571 | I65: 1.050148899 | J65: 210.015924 | K65: 0.1266786209 | L65: -38.5826074 | M65: -0.02327248051 | N65: 0.09822215598 | O65: 1.2001 | P65: =Snitkræfter!$D$44*0.1*$Q$6*C65*$B$6^2/B65+$R$6 -> 5.951185133e-05 | Q65: 0.0981507358 | R65: 1.2 | S65: 1.827856605 | T65: 0.1414509267 | U65: 0.1414509267 | V65: -1.2001 | W65: 0.008487055601 | X65: 0.06789644481 | Y65: 0.05990190505 | Z65: 0.0600927469
B66: 0.5745247717 | C66: 0.0004288197415 | D66: 0.07574847515 | E66: -0.1524472999 | F66: 4.352039535 | G66: 2.858648733 | H66: 0.6568526571 | I66: 1.050148899 | J66: 210.015924 | K66: 0.1266786209 | L66: -38.5826074 | M66: -0.02327248051 | N66: 0.09822215598 | O66: 1.2001 | P66: =Snitkræfter!$D$44*0.1*$Q$6*C66*$B$6^2/B66+$R$6 -> 5.951185133e-05 | Q66: 0.0981507358 | R66: 1.2 | S66: 1.827856605 | T66: 0.1414509267 | U66: 0.1414509267 | V66: -1.2001 | W66: 0.008487055601 | X66: 0.06789644481 | Y66: 0.05990190505 | Z66: 0.0600927469
B67: 0.5745247717 | C67: 0.0004288197415 | D67: 0.07574847515 | E67: -0.1524472999 | F67: 4.352039535 | G67: 2.858648733 | H67: 0.6568526571 | I67: 1.050148899 | J67: 210.015924 | K67: 0.1266786209 | L67: -38.5826074 | M67: -0.02327248051 | N67: 0.09822215598 | O67: 1.2001 | P67: =Snitkræfter!$D$44*0.1*$Q$6*C67*$B$6^2/B67+$R$6 -> 5.951185133e-05 | Q67: 0.0981507358 | R67: 1.2 | S67: 1.827856605 | T67: 0.1414509267 | U67: 0.1414509267 | V67: -1.2001 | W67: 0.008487055601 | X67: 0.06789644481 | Y67: 0.05990190505 | Z67: 0.0600927469
B68: 0.5745247717 | C68: 0.0004288197415 | D68: 0.07574847515 | E68: -0.1524472999 | F68: 4.352039535 | G68: 2.858648733 | H68: 0.6568526571 | I68: 1.050148899 | J68: 210.015924 | K68: 0.1266786209 | L68: -38.5826074 | M68: -0.02327248051 | N68: 0.09822215598 | O68: 1.2001 | P68: =Snitkræfter!$D$44*0.1*$Q$6*C68*$B$6^2/B68+$R$6 -> 5.951185133e-05 | Q68: 0.0981507358 | R68: 1.2 | S68: =F68*$D$6 -> 1.827856605 | T68: 0.1414509267 | U68: 0.1414509267 | V68: -1.2001 | W68: 0.008487055601 | X68: 0.06789644481 | Y68: 0.05990190505 | Z68: 0.0600927469
B69: =0.5*(-(T69+U69+V69)+SQRT((T69+U69+V69)^2+4*S69*(W69+X69)))/S69 -> 0.5745247717 | C69: 0.0004288197415 | D69: 0.07574847515 | E69: -0.1524472999 | F69: 4.352039535 | G69: 2.858648733 | H69: =G69/F69 -> 0.6568526571 | I69: =F69*B69*$D$6 -> 1.050148899 | J69: =MAX(MIN($K$6,$Q$6*$J$6*C69*(B69-$I$6)/B69),-$K$6) -> 210.015924 | K69: 0.1266786209 | L69: =MIN($O$6,$Q$6*$N$6*C69*(C$6-B69-$M$6)/B69) -> -38.5826074 | M69: -0.02327248051 | N69: =(0.5*$C$6-B69+H69*B69)*I69+(0.5*$C$6-$I$6)*K69+(0.5*$C$6-$M$6)*M69 -> 0.09822215598 | O69: =I69+K69-M69 -> 1.2001 | P69: =Snitkræfter!$D$44*0.1*$Q$6*C69*$B$6^2/B69+$R$6 -> 5.951185133e-05 | Q69: =N69-P69*O69 -> 0.0981507358 | R69: 1.2 | S69: =F69*$D$6 -> 1.827856605 | T69: 0.1414509267 | U69: 0.1414509267 | V69: =-(R69+0.0001) -> -1.2001 | W69: 0.008487055601 | X69: 0.06789644481 | Y69: 0.05990190505 | Z69: 0.0600927469
B70: 0.5745247717 | C70: 0.0004288197415 | D70: 0.07574847515 | E70: -0.1524472999 | F70: 4.352039535 | G70: 2.858648733 | H70: 0.6568526571 | I70: 1.050148899 | J70: 210.015924 | K70: 0.1266786209 | L70: -38.5826074 | M70: -0.02327248051 | N70: 0.09822215598 | O70: 1.2001 | P70: =Snitkræfter!$D$44*0.1*$Q$6*C70*$B$6^2/B70+$R$6 -> 5.951185133e-05 | Q70: 0.0981507358 | R70: 1.2 | S70: 1.827856605 | T70: 0.1414509267 | U70: 0.1414509267 | V70: -1.2001 | W70: 0.008487055601 | X70: 0.06789644481 | Y70: 0.05990190505 | Z70: 0.0600927469
B71: 0.5745247717 | C71: 0.0004288197415 | D71: 0.07574847515 | E71: -0.1524472999 | F71: 4.352039535 | G71: 2.858648733 | H71: 0.6568526571 | I71: 1.050148899 | J71: 210.015924 | K71: 0.1266786209 | L71: -38.5826074 | M71: -0.02327248051 | N71: 0.09822215598 | O71: 1.2001 | P71: =Snitkræfter!$D$44*0.1*$Q$6*C71*$B$6^2/B71+$R$6 -> 5.951185133e-05 | Q71: 0.0981507358 | R71: 1.2 | S71: 1.827856605 | T71: 0.1414509267 | U71: 0.1414509267 | V71: -1.2001 | W71: 0.008487055601 | X71: 0.06789644481 | Y71: 0.05990190505 | Z71: 0.0600927469
B72: 0.5745247717 | C72: 0.0004288197415 | D72: 0.07574847515 | E72: -0.1524472999 | F72: 4.352039535 | G72: 2.858648733 | H72: 0.6568526571 | I72: 1.050148899 | J72: 210.015924 | K72: 0.1266786209 | L72: -38.5826074 | M72: -0.02327248051 | N72: 0.09822215598 | O72: 1.2001 | P72: =Snitkræfter!$D$44*0.1*$Q$6*C72*$B$6^2/B72+$R$6 -> 5.951185133e-05 | Q72: 0.0981507358 | R72: 1.2 | S72: 1.827856605 | T72: 0.1414509267 | U72: 0.1414509267 | V72: -1.2001 | W72: 0.008487055601 | X72: 0.06789644481 | Y72: 0.05990190505 | Z72: 0.0600927469
B73: 0.5745247717 | C73: 0.0004288197415 | D73: 0.07574847515 | E73: -0.1524472999 | F73: 4.352039535 | G73: 2.858648733 | H73: 0.6568526571 | I73: 1.050148899 | J73: 210.015924 | K73: 0.1266786209 | L73: -38.5826074 | M73: -0.02327248051 | N73: 0.09822215598 | O73: 1.2001 | P73: =Snitkræfter!$D$44*0.1*$Q$6*C73*$B$6^2/B73+$R$6 -> 5.951185133e-05 | Q73: 0.0981507358 | R73: 1.2 | S73: 1.827856605 | T73: 0.1414509267 | U73: 0.1414509267 | V73: -1.2001 | W73: 0.008487055601 | X73: 0.06789644481 | Y73: 0.05990190505 | Z73: 0.0600927469
B74: 0.5745247717 | C74: 0.0004288197415 | D74: 0.07574847515 | E74: -0.1524472999 | F74: 4.352039535 | G74: 2.858648733 | H74: 0.6568526571 | I74: 1.050148899 | J74: 210.015924 | K74: 0.1266786209 | L74: -38.5826074 | M74: -0.02327248051 | N74: 0.09822215598 | O74: 1.2001 | P74: =Snitkræfter!$D$44*0.1*$Q$6*C74*$B$6^2/B74+$R$6 -> 5.951185133e-05 | Q74: 0.0981507358 | R74: 1.2 | S74: 1.827856605 | T74: 0.1414509267 | U74: 0.1414509267 | V74: -1.2001 | W74: 0.008487055601 | X74: 0.06789644481 | Y74: 0.05990190505 | Z74: 0.0600927469
B75: 0.5745247717 | C75: 0.0004288197415 | D75: 0.07574847515 | E75: -0.1524472999 | F75: 4.352039535 | G75: 2.858648733 | H75: 0.6568526571 | I75: 1.050148899 | J75: 210.015924 | K75: 0.1266786209 | L75: -38.5826074 | M75: -0.02327248051 | N75: 0.09822215598 | O75: 1.2001 | P75: =Snitkræfter!$D$44*0.1*$Q$6*C75*$B$6^2/B75+$R$6 -> 5.951185133e-05 | Q75: 0.0981507358 | R75: 1.2 | S75: 1.827856605 | T75: 0.1414509267 | U75: 0.1414509267 | V75: -1.2001 | W75: 0.008487055601 | X75: 0.06789644481 | Y75: 0.05990190505 | Z75: 0.0600927469
B76: 0.5745247717 | C76: 0.0004288197415 | D76: 0.07574847515 | E76: -0.1524472999 | F76: 4.352039535 | G76: 2.858648733 | H76: 0.6568526571 | I76: 1.050148899 | J76: 210.015924 | K76: =J76*$H$6 -> 0.1266786209 | L76: -38.5826074 | M76: =L76*$L$6 -> -0.02327248051 | N76: 0.09822215598 | O76: 1.2001 | P76: =Snitkræfter!$D$44*0.1*$Q$6*C76*$B$6^2/B76+$R$6 -> 5.951185133e-05 | Q76: 0.0981507358 | R76: 1.2 | S76: 1.827856605 | T76: 0.1414509267 | U76: 0.1414509267 | V76: -1.2001 | W76: 0.008487055601 | X76: 0.06789644481 | Y76: 0.05990190505 | Z76: 0.0600927469
B77: 0.5745247717 | C77: 0.0004288197415 | D77: 0.07574847515 | E77: -0.1524472999 | F77: 4.352039535 | G77: 2.858648733 | H77: 0.6568526571 | I77: 1.050148899 | J77: 210.015924 | K77: =J77*$H$6 -> 0.1266786209 | L77: -38.5826074 | M77: =L77*$L$6 -> -0.02327248051 | N77: 0.09822215598 | O77: 1.2001 | P77: =Snitkræfter!$D$44*0.1*$Q$6*C77*$B$6^2/B77+$R$6 -> 5.951185133e-05 | Q77: 0.0981507358 | R77: 1.2 | S77: 1.827856605 | T77: 0.1414509267 | U77: 0.1414509267 | V77: -1.2001 | W77: 0.008487055601 | X77: 0.06789644481 | Y77: 0.05990190505 | Z77: 0.0600927469
B78: 0.5745247717 | C78: 0.0004288197415 | D78: 0.07574847515 | E78: -0.1524472999 | F78: 4.352039535 | G78: 2.858648733 | H78: 0.6568526571 | I78: 1.050148899 | J78: 210.015924 | K78: =J78*$H$6 -> 0.1266786209 | L78: -38.5826074 | M78: =L78*$L$6 -> -0.02327248051 | N78: 0.09822215598 | O78: 1.2001 | P78: =Snitkræfter!$D$44*0.1*$Q$6*C78*$B$6^2/B78+$R$6 -> 5.951185133e-05 | Q78: 0.0981507358 | R78: 1.2 | S78: 1.827856605 | T78: 0.1414509267 | U78: 0.1414509267 | V78: -1.2001 | W78: 0.008487055601 | X78: 0.06789644481 | Y78: 0.05990190505 | Z78: 0.0600927469
P79: =$Q$6*C78/B78 -> 0.002040872816 | AA79: =(N78+$O$2*R78)/($Q$6*C78/B78) -> 48.12752426
B80: =IF(L78=O6,B11,B78) -> 0.5745247717 | Q80: =0.9*Q78 -> 0.08833566222
B81: =0.5*(-(T81+U81+V81)+SQRT((T81+U81+V81)^2+4*S81*(W81+X81)))/S81 -> 0.5745381698 | C81: =IF(L78=O6,C12,C78) -> 0.0004288197415 | D81: =IF($C$2=1,C81/($AD$6*$AD$5),2^(1/3)*$AD$5/C81) -> 0.07574847515 | E81: =IF($C$2=1,-($AD$6-2)*C81/$AD$5,3*($AD$5/C81)^2) -> -0.1524472999 | F81: =IF($C$2=1,0.5*($AD$6*C81*$F$6/$AD$5)*(1-Y81^2+(D81-E81)*(E81^2*(1-Y81^2)+2*E81*(1-Y81)+2*LN((1-E81)/(1-E81*Y81)))/(E81^3)),$F$6*E81*(LN((1-D81+D81^2)/(1+D81)^2)/(6*D81)+ATAN((2-D81)/(D81*3^0.5))/(D81*3^0.5)-LN((Y81^2-D81*Y81+D81^2)/(Y81+D81)^2)/(6*D81)-ATAN((2*Y81-D81)/(D81*3^0.5))/(D81*3^0.5))) -> 4.351925199 | G81: =IF($C$2=1,($AD$6*C81*$F$6/$AD$5)*(1-Y81^3-(D81-E81)*(-2*E81^3*(1-Y81^3)-3*E81^2*(1-Y81^2)-6*E81*(1-Y81)-6*LN((1-E81)/(1-E81*Y81)))/(2*E81^4))/3,$F$6*E81*(LN((1+D81^3)/(D81^3+Y81^3)))/3) -> 2.858641873 | H81: =G81/F81 -> 0.6568683381 | I81: =F81*B81*$D$6 -> 1.050145798 | J81: =MAX(MIN($K$6,$Q$6*$J$6*C81*(B81-$I$6)/B81),-$K$6) -> 210.0164951 | K81: =J81*$H$6 -> 0.1266789654 | L81: =MIN($O$6,$Q$6*$N$6*C81*(C$6-B81-$M$6)/B81) -> -38.5871763 | M81: =L81*$L$6 -> -0.0232752364 | N81: =(0.5*$C$6-B81+H81*B81)*I81+(0.5*$C$6-$I$6)*K81+(0.5*$C$6-$M$6)*M81 -> 0.09822605676 | O81: =I81+K81-M81 -> 1.2001 | P81: =Snitkræfter!$D$44*0.1*$Q$6*C81*$B$6^2/B81+$R$6 -> 5.951046352e-05 | Q81: =N81-P81*O81 -> 0.09815463825 | R81: =R78 -> 1.2 | S81: =F81*$D$6 -> 1.827808583 | T81: =IF(ABS(J80)<$K$6,$Q$6*C81*$H$6*$J$6,IF(J80>0,1,-1)*$H$6*$K$6) -> 0.1414509267 | U81: =IF(L78<$O$6,$Q$6*C81*$L$6*$N$6,-$L$6*$O$6) -> 0.1414509267 | V81: =-(R81+0.0001) -> -1.2001 | W81: =IF(ABS(J80)<$K$6,$I$6*$Q$6*C81*$H$6*$J$6,0) -> 0.008487055601 | X81: =IF(L78<$O$6,($C$6-$M$6)*$Q$6*C81*$L$6*$N$6,0) -> 0.06789644481 | Y81: =IF(B80<$C$6,0,(B80-$C$6)/B80) -> 0.0600927469 | Z81: =IF(B81<=$C$6,0,(B81-$C$6)/B81) -> 0.0601146653
B82: =0.5*(-(T82+U82+V82)+SQRT((T82+U82+V82)^2+4*S82*(W82+X82)))/S82 -> 0.6317905831 | C82: =0.9*C81 -> 0.0003859377673 | D82: 0.06817362764 | E82: -0.1372025699 | F82: 3.973206083 | G82: 2.614578653 | H82: =G82/F82 -> 0.6580526152 | I82: 1.054298359 | J82: 191.0121774 | K82: 0.115215831 | L82: -50.70711314 | M82: -0.03058581007 | N82: 0.07466315303 | O82: =I82+K82-M82 -> 1.2001 | P82: =Snitkræfter!$D$44*0.1*$Q$6*C82*$B$6^2/B82+$R$6 -> 4.870590088e-05 | Q82: =N82-P82*O82 -> 0.07460470108 | R82: =R81 -> 1.2 | S82: 1.668746555 | T82: 0.127305834 | U82: =IF(L81<$O$6,$Q$6*C82*$L$6*$N$6,-$L$6*$O$6) -> 0.127305834 | V82: =-(R82+0.0001) -> -1.2001 | W82: 0.007638350041 | X82: =IF(L81<$O$6,($C$6-$M$6)*$Q$6*C82*$L$6*$N$6,0) -> 0.06110680033 | Y82: 0.0601146653 | Z82: 0.1452864059
B83: =0.5*(-(T83+U83+V83)+SQRT((T83+U83+V83)^2+4*S83*(W83+X83)))/S83 -> 0.6153071848 | C83: =IF(ABS(Q81-Q82)<=0.00001*Q$80,C82,MAX(0.9*C82,MIN($AD$4,1.05*C82,IF(C82=$AD$4,0.5*(C82+C81),C82+(C82-C81)*(Q82-Q$80)/(Q81-Q82))))) -> 0.0004052346557 | D83: 0.07158230902 | E83: -0.1440626984 | F83: 4.063277924 | G83: 2.716571902 | H83: =G83/F83 -> 0.668566599 | I83: 1.050068922 | J83: 199.9989937 | K83: 0.1206365509 | L83: -48.73212796 | M83: -0.02939452708 | N83: 0.0885353579 | O83: =I83+K83-M83 -> 1.2001 | P83: =Snitkræfter!$D$44*0.1*$Q$6*C83*$B$6^2/B83+$R$6 -> 5.251121195e-05 | Q83: =N83-P83*O83 -> 0.0884723392 | R83: =R82 -> 1.2 | S83: 1.706576728 | T83: 0.1336711257 | U83: 0.1336711257 | V83: =-(R83+0.0001) -> -1.2001 | W83: 0.008020267543 | X83: 0.06416214034 | Y83: 0.1452864059 | Z83: 0.1223895749
B84: 0.61171353 | C84: 0.000405044469 | D84: 0.07154871366 | E84: -0.1439950862 | F84: 4.090103854 | G84: 2.719311114 | H84: 0.664851361 | I84: 1.050828184 | J84: 199.7782383 | K84: 0.1205033944 | L84: -47.69413029 | M84: -0.02876842163 | N84: 0.08755245895 | O84: 1.2001 | P84: =Snitkræfter!$D$44*0.1*$Q$6*C84*$B$6^2/B84+$R$6 -> 5.27949118e-05 | Q84: 0.08748909978 | R84: 1.2 | S84: 1.717843619 | T84: 0.1336083905 | U84: 0.1336083905 | V84: -1.2001 | W84: 0.008016503432 | X84: 0.06413202746 | Y84: 0.1223895749 | Z84: 0.1172338463
B85: 0.6107174365 | C85: =IF(ABS(Q83-Q84)<=0.00001*Q$80,C84,MAX(0.9*C84,MIN($AD$4,1.05*C84,IF(C84=$AD$4,0.5*(C84+C83),C84+(C84-C83)*(Q84-Q$80)/(Q83-Q84))))) -> 0.0004052082185 | D85: 0.07157763903 | E85: -0.1440532998 | F85: 4.097289917 | G85: 2.720932802 | H85: 0.6640811018 | I85: 1.050960286 | J85: 199.8235533 | K85: 0.1205307278 | L85: -47.42980867 | M85: -0.02860898659 | N85: 0.08745673394 | O85: 1.2001 | P85: =Snitkræfter!$D$44*0.1*$Q$6*C85*$B$6^2/B85+$R$6 -> 5.290239994e-05 | Q85: 0.08739324577 | R85: 1.2 | S85: 1.720861765 | T85: 0.1336624051 | U85: 0.1336624051 | V85: -1.2001 | W85: 0.008019744306 | X85: 0.06415795445 | Y85: 0.1172338463 | Z85: 0.1157940354
B86: 0.6127091186 | C86: 0.0004035982683 | D86: 0.07129325084 | E86: -0.1434809555 | F86: 4.084786881 | G86: 2.711947066 | H86: 0.6639139679 | I86: 1.051170191 | J86: 199.1001123 | K86: 0.1200943584 | L86: -47.8052551 | M86: -0.02883545054 | N86: 0.08652022768 | O86: 1.2001 | P86: =Snitkræfter!$D$44*0.1*$Q$6*C86*$B$6^2/B86+$R$6 -> 5.252092899e-05 | Q86: 0.08645719732 | R86: 1.2 | S86: 1.71561049 | T86: 0.1331313452 | U86: 0.1331313452 | V86: -1.2001 | W86: 0.007987880715 | X86: 0.06390304572 | Y86: 0.1157940354 | Z86: 0.1186682495
B87: 0.6087302075 | C87: 0.0004068291212 | D87: 0.07186396194 | E87: -0.1446295379 | F87: 4.109847384 | G87: 2.729963819 | H87: 0.664249439 | I87: 1.050751065 | J87: 200.5515268 | K87: 0.120969831 | L87: -47.04869407 | M87: -0.02837910368 | N87: 0.08839275241 | O87: 1.2001 | P87: =Snitkræfter!$D$44*0.1*$Q$6*C87*$B$6^2/B87+$R$6 -> 5.328741193e-05 | Q87: 0.08832880219 | R87: 1.2 | S87: 1.726135901 | T87: 0.1341970778 | U87: 0.1341970778 | V87: -1.2001 | W87: 0.008051824667 | X87: 0.06441459734 | Y87: 0.1186682495 | Z87: 0.1129075026
B88: 0.6078842264 | C88: 0.0004068409634 | D88: 0.07186605378 | E88: -0.1446337478 | F88: 4.116198879 | G88: 2.730754735 | H88: 0.6634166171 | I88: 1.050912396 | J88: 200.5268455 | K88: 0.1209549436 | L88: -46.80591131 | M88: -0.02823266057 | N88: 0.08819743093 | O88: 1.2001 | P88: =Snitkræfter!$D$44*0.1*$Q$6*C88*$B$6^2/B88+$R$6 -> 5.336312429e-05 | Q88: 0.08813338984 | R88: 1.2 | S88: 1.728803529 | T88: 0.134200984 | U88: 0.134200984 | V88: -1.2001 | W88: 0.008052059042 | X88: 0.06441647234 | Y88: 0.1129075026 | Z88: 0.1116729526
B89: 0.6077284375 | C89: 0.0004068287055 | D89: 0.07186388851 | E89: -0.1446293901 | F89: 4.117391386 | G89: 2.730830982 | H89: 0.663242992 | I89: 1.05094745 | J89: 200.5151745 | K89: 0.1209479038 | L89: -46.75946724 | M89: -0.02820464617 | N89: 0.0881483427 | O89: 1.2001 | P89: =Snitkræfter!$D$44*0.1*$Q$6*C89*$B$6^2/B89+$R$6 -> 5.337519552e-05 | Q89: 0.08808428713 | R89: 1.2 | S89: 1.729304382 | T89: 0.1341969407 | U89: 0.1341969407 | V89: -1.2001 | W89: 0.008051816439 | X89: 0.06441453151 | Y89: 0.1116729526 | Z89: 0.1114452333
B90: 0.607612285 | C90: 0.000406891458 | D90: 0.07187497335 | E90: -0.1446516989 | F90: 4.118177658 | G90: 2.731214285 | H90: 0.6632094368 | I90: 1.050947241 | J90: 200.541904 | K90: 0.1209640267 | L90: -46.73308345 | M90: -0.02818873183 | N90: 0.08817473758 | O90: 1.2001 | P90: =Snitkræfter!$D$44*0.1*$Q$6*C90*$B$6^2/B90+$R$6 -> 5.339363342e-05 | Q90: 0.08811065988 | R90: 1.2 | S90: 1.729634616 | T90: 0.1342176402 | U90: 0.1342176402 | V90: -1.2001 | W90: 0.008053058414 | X90: 0.06442446731 | Y90: 0.1114452333 | Z90: 0.1112753753
B91: 0.6068683573 | C91: 0.0004074268379 | D91: 0.07196954506 | E91: -0.1448420288 | F91: 4.123030382 | G91: 2.734276841 | H91: 0.663171645 | I91: 1.050897404 | J91: 200.7788026 | K91: 0.1211069205 | L91: -46.57880919 | M91: -0.02809567579 | N91: 0.08846022765 | O91: 1.2001 | P91: =Snitkræfter!$D$44*0.1*$Q$6*C91*$B$6^2/B91+$R$6 -> 5.352942627e-05 | Q91: 0.08839598699 | R91: 1.2 | S91: 1.731672761 | T91: 0.1343942412 | U91: 0.1343942412 | V91: -1.2001 | W91: 0.008063654473 | X91: 0.06450923579 | Y91: 0.1112753753 | Z91: 0.1101859349
B92: 0.6068707904 | C92: 0.0004073136462 | D92: 0.07194955041 | E92: -0.1448017886 | F92: 4.1231746 | G92: 2.733759039 | H92: 0.6630228656 | I92: 1.050938376 | J92: 200.7231103 | K92: 0.1210733278 | L92: -46.56657495 | M92: -0.02808829628 | N92: 0.0883616599 | O92: 1.2001 | P92: =Snitkræfter!$D$44*0.1*$Q$6*C92*$B$6^2/B92+$R$6 -> 5.351434013e-05 | Q92: 0.08829743734 | R92: 1.2 | S92: 1.731733332 | T92: 0.1343569037 | U92: 0.1343569037 | V92: -1.2001 | W92: 0.008061414221 | X92: 0.06449131377 | Y92: 0.1101859349 | Z92: 0.1101895023
B93: 0.606812271 | C93: 0.0004073575503 | D93: 0.07195730582 | E93: -0.1448173968 | F93: 4.123554385 | G93: 2.734008137 | H93: 0.663022209 | I93: 1.050933828 | J93: 200.7426222 | K93: 0.121085097 | L93: -46.55460229 | M93: -0.02808107453 | N93: 0.08838565549 | O93: 1.2001 | P93: =Snitkræfter!$D$44*0.1*$Q$6*C93*$B$6^2/B93+$R$6 -> 5.352526975e-05 | Q93: 0.08832141981 | R93: 1.2 | S93: 1.731892842 | T93: 0.134371386 | U93: 0.134371386 | V93: -1.2001 | W93: 0.008062283157 | X93: 0.06449826526 | Y93: 0.1101895023 | Z93: 0.1101036914
B94: 0.6067655093 | C94: 0.0004073836236 | D94: 0.07196191151 | E94: -0.1448266659 | F94: 4.123870875 | G94: 2.734166083 | H94: 0.6630096251 | I94: 1.050933497 | J94: 200.7537732 | K94: 0.1210918232 | L94: -46.5440008 | M94: -0.02807467987 | N94: 0.08839692503 | O94: 1.2001 | P94: =Snitkræfter!$D$44*0.1*$Q$6*C94*$B$6^2/B94+$R$6 -> 5.353282099e-05 | Q94: 0.08833268029 | R94: 1.2 | S94: 1.732025768 | T94: 0.1343799865 | U94: 0.1343799865 | V94: -1.2001 | W94: 0.008062799191 | X94: 0.06450239353 | Y94: 0.1101036914 | Z94: 0.1100351095
B95: 0.6067468677 | C95: 0.0004073905282 | D95: 0.07196313116 | E95: -0.1448291205 | F95: 4.124002074 | G95: 2.734213123 | H95: 0.6629999388 | I95: 1.050934643 | J95: 200.7564988 | K95: 0.1210934672 | L95: -46.5393748 | M95: -0.02807188953 | N95: 0.08839835688 | O95: 1.2001 | P95: =Snitkræfter!$D$44*0.1*$Q$6*C95*$B$6^2/B95+$R$6 -> 5.353537306e-05 | Q95: 0.08833410908 | R95: 1.2 | S95: 1.732080871 | T95: 0.1343822641 | U95: 0.1343822641 | V95: -1.2001 | W95: 0.008062935843 | X95: 0.06450348675 | Y95: 0.1100351095 | Z95: 0.1100077664
B96: 0.606733052 | C96: 0.0004073980337 | D96: 0.07196445697 | E96: -0.1448317888 | F96: 4.124095884 | G96: 2.734258883 | H96: 0.6629959536 | I96: 1.050934618 | J96: 200.7596958 | K96: 0.1210953956 | L96: -46.53621885 | M96: -0.02806998591 | N96: 0.08840151192 | O96: 1.2001 | P96: =Snitkræfter!$D$44*0.1*$Q$6*C96*$B$6^2/B96+$R$6 -> 5.353757842e-05 | Q96: 0.08833726147 | R96: 1.2 | S96: 1.732120271 | T96: 0.1343847398 | U96: 0.1343847398 | V96: -1.2001 | W96: 0.00806308439 | X96: 0.06450467512 | Y96: 0.1100077664 | Z96: 0.1099875007
B97: 0.6067354022 | C97: 0.0004073942261 | D97: 0.07196378437 | E97: -0.1448304351 | F97: 4.124083561 | G97: 2.734239548 | H97: 0.6629932463 | I97: 1.050935549 | J97: 200.7579048 | K97: 0.1210943153 | L97: -46.53646665 | M97: -0.02807013537 | N97: 0.08839875596 | O97: 1.2001 | P97: =Snitkræfter!$D$44*0.1*$Q$6*C97*$B$6^2/B97+$R$6 -> 5.353687066e-05 | Q97: 0.08833450637 | R97: 1.2 | S97: 1.732115096 | T97: 0.1343834838 | U97: 0.1343834838 | V97: -1.2001 | W97: 0.008063009031 | X97: 0.06450407225 | Y97: 0.1099875007 | Z97: 0.1099909482
B98: 0.6067337265 | C98: 0.0004073958235 | D98: 0.07196406655 | E98: -0.144831003 | F98: 4.124093953 | G98: 2.734248234 | H98: 0.6629936819 | I98: 1.050935295 | J98: 200.7586311 | K98: 0.1210947534 | L98: -46.53616232 | M98: -0.02806995181 | N98: 0.08839974112 | O98: 1.2001 | P98: =Snitkræfter!$D$44*0.1*$Q$6*C98*$B$6^2/B98+$R$6 -> 5.353722845e-05 | Q98: 0.08833549109 | R98: 1.2 | S98: 1.73211946 | T98: 0.1343840108 | U98: 0.1343840108 | V98: -1.2001 | W98: 0.008063040647 | X98: 0.06450432517 | Y98: 0.1099909482 | Z98: 0.1099884901
P99: =$Q$6*C98/B98 -> 0.001835981771 | AA99: =(N98+$O$2*R98)/($Q$6*C98/B98) -> 48.14848518
B102: Tilstand: | C102: =C2 -> 1 | E102: Navier: | F102: a= | G102: =J106*Q106/G106 -> 24.32378174 | H102: A= | I102: =C106*D106+G102*H106+G102*L106 -> 0.256143519 | J102: Sy= | K102: =-(0.5*C106-I106)*G102*H106+(0.5*C106-M106)*G102*L106 -> 0 | L102: Iy= | M102: =D106*C106^3/12+(0.5*C106-I106)^2*G102*H106+(0.5*C106-M106)^2*G102*L106 -> 0.006805289187 | N102: h= | O102: =K102/I102 -> 0 | P102: Io= | Q102: =M102-I102*O102^2 -> 0.006805289187 | R102: EIo= | S102: =Q102*G106/Q106 -> 55.95584815 | X102: EImax | Y102: =M102*V109/Q106 -> 52.65832451 | Z102: MNm2
B104: L | C104: h | D104: b | E104: fck | F104: fcd | G104: Ecd | H104: Ac | I104: ac | J104: Esc | K104: fyd_c | L104: At | M104: at | N104: Est | O104: fyd_t | P104: Modenhed | Q104: 1+f | R104: uterm | S104: g | T104: Ac | U104: ac | V104: Esc | W104: fyd_c | X104: At | Y104: at | Z104: Est | AA104: fyd_t | AB104: emax | AD104: =IF($C$2=1,0.0035,Firsidig!$G$21) -> 0.0035
B105: (m) | C105: (m) | D105: (m) | E105: (Mpa) | F105: (Mpa) | G105: (Mpa) | H105: (m2) | I105: (m) | J105: (Mpa) | K105: (Mpa) | L105: (m2) | M105: (m) | N105: (Mpa) | O105: (Mpa) | P105: (døgn) | R105: (m) | T105: (m2) | U105: (m) | V105: (Mpa) | W105: (Mpa) | X105: (m2) | Y105: (m) | Z105: (Mpa) | AA105: (Mpa) | AB105: e1 | AD105: =IF($C$2=1,0.7*(E106+8)^0.31/1000,Firsidig!$F$21) -> 0.002069366248
B106: =B6 -> 0.54 | C106: =C6 -> 0.54 | D106: =D6 -> 0.42 | E106: =E6 -> 25 | F106: =F6 -> 17.85714286 | G106: =IF($C$2=1,Kold!AU$23,1.4*F106/AD105) -> 22482.71872 | H106: =IF($W108<0,X106,T106) -> 0.0006031857895 | I106: =IF($W108<0,Y106,U106) -> 0.06 | J106: =IF($W108<0,Z106,V106) -> 200000 | K106: =IF($W108<0,AA106,W106) -> 458.3333333 | L106: =IF($W108<0,T106,X106) -> 0.0006031857895 | M106: =IF($W108<0,U106,Y106) -> 0.06 | N106: =IF($W108<0,V106,Z106) -> 200000 | O106: =IF($W108<0,W106,AA106) -> 458.3333333 | P106: =P6 -> 28 | Q106: =Q6 -> 2.734323716 | R106: =R6 -> 0 | S106: =S6 -> 1.4 | T106: =T$6 -> 0.0006031857895 | U106: =U$6 -> 0.06 | V106: 200000 | W106: 458.3333333 | X106: 0.0006031857895 | Y106: 0.06 | Z106: 200000 | AA106: 458.3333333 | AB106: k | AD106: =1.05*G106*AD105/F106 -> 2.735668782
B108: Initialt | C108: elasttisk | D108: e_o | E108: sc_o/fcd | F108: sc_u/fcd | G108: sc_o | H108: sc_u | I108: hc | J108: elasttisk | K108: e_o | L108: sc_o/fcd | M108: sc_u/fcd | N108: sc_o | O108: sc_u | P108: hc | Q108: At | R108: Ac | S108: Ic | T108: Wt | U108: u_skøn | V108: E | W108: =Snitkræfter!C24 -> 0.05195567956 | X108: =Snitkræfter!C30 -> 0 | Y108: =0.5*(MAX(R111-H106*K106,0)+L106*O106)/(D106*F106) -> 0.03333333333 | Z108: =(0.5*C106-Y108)*R111+(C106-M106-Y108)*L106*O106 -> 0.2418188686 | AA108: M_rev
B109: beregning | C109: skøn_1 | D109: =IF(C102=1,AD105*0.5*(-((AD106-2)*E109-AD106)-(((AD106-2)*E109-AD106)^2-4*E109)^0.5),G109/(1.4*F106/AD105)) -> 0.0002094700367 | E109: =MIN(0.9999,G109/F106) -> 0.2481877356 | F109: =H109/F106 -> -0.0295603027 | G109: =R111/Q109+(Q111+$O$2*R111+R111*R106)/T109 -> 4.431923849 | H109: =R111/Q109-(Q111+$O$2*R111+R111*R106)/T109 -> -0.5278625482 | I109: =IF(G109=H109,100*C106,C106*G109/(G109-H109)) -> 0.4825286185 | J109: skøn_2 | K109: =IF(C102=1,AD105*0.5*(-((AD106-2)*L109-AD106)-(((AD106-2)*L109-AD106)^2-4*L109)^0.5),G109/(1.4*F106/AD105)) -> 0.0002095056459 | L109: =MIN(0.9999,N109/F106) -> 0.2482253806 | M109: =O109/F106 -> -0.02959794778 | N109: =R111/Q109+(Q111+$O$2*R111+R111*U109)/T109 -> 4.432596083 | O109: =R111/Q109-(Q111+$O$2*R111+R111*U109)/T109 -> -0.5285347818 | P109: =IF(N109=O109,100*C106,C106*N109/(N109-O109)) -> 0.4824710232 | Q109: =R109+Q106*(H106+L106)*N106/G106 -> 0.256143519 | R109: =C106*D106 -> 0.2268 | S109: =D106*C106^3/12 -> 0.00551124 | T109: =(S109+((0.5*C106-I106)^2*H106+(0.5*C106-M106)^2*L106)*Q106)/(0.5*C106) -> 0.02095077303 | U109: =Q111/(10*AA131/B106^2-R111)+R106 -> 2.81676263e-05 | V109: =G109/D109 -> 21157.79382 | AA109: =R111*T109/Q109+IF(SIGN(W108)=1,-R111*$O$2,+R111*$O$2) -> 0.04089655112
B110: hc | C110: e0 | D110: a' | E110: b' | F110: N' | G110: tN' | H110: t' | I110: Nc | J110: sac | K110: Nac | L110: sat | M110: Nat | N110: Mtot | O110: N | P110: u | Q110: Mo | R110: N | S110: A | T110: B1 | U110: B2 | V110: B3 | W110: C1 | X110: C2 | Y110: gættet x | Z110: beregnet x | AA110: EIt
B111: =I109 -> 0.4825286185 | Q111: =MAX(MIN(ABS(W108),Z108,0.9*$N$465),MIN($C$6*$D$6*0.025*$C$6*$F$6,$C$6*0.15*L106*K106),(0.01-$O$2)*R111,AA109) -> 0.05195567956 | R111: =Snitkræfter!D3 -> 0.5
B112: =0.5*(-(T112+U112+V112)+SQRT((T112+U112+V112)^2+4*S112*(W112+X112)))/S112 -> 0.4590954236 | C112: =MIN(D109,AD105) -> 0.0002094700367 | D112: =IF($C$2=1,C112/($AD$6*$AD$5),2^(1/3)*$AD$5/C112) -> 0.03700164507 | E112: =IF($C$2=1,-($AD$6-2)*C112/$AD$5,3*($AD$5/C112)^2) -> -0.07446751728 | F112: =IF($C$2=1,0.5*($AD$6*C112*$F$6/$AD$5)*(1-Y112^2+(D112-E112)*(E112^2*(1-Y112^2)+2*E112*(1-Y112)+2*LN((1-E112)/(1-E112*Y112)))/(E112^3)),$F$6*E112*(LN((1-D112+D112^2)/(1+D112)^2)/(6*D112)+ATAN((2-D112)/(D112*3^0.5))/(D112*3^0.5)-LN((Y112^2-D112*Y112+D112^2)/(Y112+D112)^2)/(6*D112)-ATAN((2*Y112-D112)/(D112*3^0.5))/(D112*3^0.5))) -> 2.298414754 | G112: =IF($C$2=1,($AD$6*C112*$F$6/$AD$5)*(1-Y112^3-(D112-E112)*(-2*E112^3*(1-Y112^3)-3*E112^2*(1-Y112^2)-6*E112*(1-Y112)-6*LN((1-E112)/(1-E112*Y112)))/(2*E112^4))/3,$F$6*E112*(LN((1+D112^3)/(D112^3+Y112^3)))/3) -> 1.518238295 | H112: =G112/F112 -> 0.6605588884 | I112: =F112*B112*$D$6 -> 0.4431805119 | J112: =MAX(MIN($K$106,$Q$106*$J$106*C112*(B112-$I$106)/B112),-$K$106) -> 99.58080161 | K112: =J112*$H$106 -> 0.06006572444 | L112: =MIN($O$106,$Q$106*$N$106*C112*(C$106-B112-$M$106)/B112) -> 5.216031943 | M112: =L112*$L$106 -> 0.003146236346 | N112: =(0.5*$C$6-B112+H112*B112)*I112+(0.5*$C$6-$I$106)*K112+(0.5*$C$6-$M$106)*M112 -> 0.06386983336 | O112: =I112+K112-M112 -> 0.5001 | P112: 0 | Q112: =N112-P112*O112 -> 0.06386983336 | R112: =$R$111 -> 0.5 | S112: =F112*$D$106 -> 0.9653341967 | T112: =IF(ABS(J111)<$K$106,$Q$106*C112*$H$106*$J$106,IF(J111>0,1,-1)*$H$106*$K$106) -> 0.06909600455 | U112: =IF(L111<$O$106,$Q$106*C112*$L$106*$N$106,-$L$106*$O$106) -> 0.06909600455 | V112: =-(R112+0.0001) -> -0.5001 | W112: =IF(ABS(J111)<$K$106,$I$106*$Q$106*C112*$H$106*$J$106,0) -> 0.004145760273 | X112: =IF(L111<$O$106,($C$106-$M$106)*$Q$106*C112*$L$106*$N$106,0) -> 0.03316608218 | Y112: =IF(B111<$C$6,0,(B111-$C$6)/B111) -> 0 | Z112: =IF(AND(B112<=$C$6,B112>0),0,(B112-$C$6)/B112) -> 0
B113: =0.5*(-(T113+U113+V113)+SQRT((T113+U113+V113)^2+4*S113*(W113+X113)))/S113 -> 0.4808271079 | C113: =0.95*C112 -> 0.0001989965349 | D113: 0.03515156281 | E113: -0.07074414141 | F113: 2.191347596 | G113: 1.448175287 | H113: 0.6608605997 | I113: 0.4425369174 | J113: =MAX(MIN($K$106,$Q$106*$J$106*C113*(B113-$I$106)/B113),-$K$106) -> 95.24456494 | K113: =J113*$H$106 -> 0.0574501681 | L113: =MIN($O$106,$Q$106*$N$106*C113*(C$106-B113-$M$106)/B113) -> -0.1871968965 | M113: =L113*$L$106 -> -0.0001129145078 | N113: 0.05936243891 | O113: 0.5001 | P113: 0 | Q113: 0.05936243891 | R113: =$R$111 -> 0.5 | S113: =F113*$D$106 -> 0.9203659905 | T113: =IF(ABS(J112)<$K$106,$Q$106*C113*$H$106*$J$106,IF(J112>0,1,-1)*$H$106*$K$106) -> 0.06564120432 | U113: 0.06564120432 | V113: =-(R113+0.0001) -> -0.5001 | W113: =IF(ABS(J112)<$K$106,$I$106*$Q$106*C113*$H$106*$J$106,0) -> 0.003938472259 | X113: 0.03150777807 | Y113: =Z112 -> 0 | Z113: =IF(AND(B113<=$C$6,B113>0),0,(B113-$C$6)/B113) -> 0
B114: 0.5227473387 | C114: =IF(ABS($Q$111-Q113)<0.00001*$Q$111,C113,MAX(0.9*C113,MIN($AD$4,1.05*C113,IF(C113=$AD$4,0.5*(C113+C112),C113+(C113-C112)*(Q113-$Q$111)/(Q112-Q113))))) -> 0.0001817859915 | D114: 0.03211142196 | E114: -0.06462571772 | F114: 2.013696702 | G114: 1.331772721 | H114: 0.6613571544 | I114: 0.4421149286 | J114: 88.00197875 | K114: 0.05308154303 | L114: -8.12938309 | M114: -0.004903528357 | N114: 0.05122317494 | O114: 0.5001 | P114: 0 | Q114: 0.05122317494 | R114: 0.5 | S114: 0.8457526149 | T114: 0.05996411656 | U114: 0.05996411656 | V114: -0.5001 | W114: 0.003597846993 | X114: 0.02878277595 | Y114: =Z113+IF(C112=C113,0,(C114-C113)*(Z113-Z112)/(C113-C112)) -> 0 | Z114: 0
B115: 0.5186119819 | C115: 0.0001833348788 | D115: 0.03238502375 | E115: -0.06517635395 | F115: 2.029772443 | G115: 1.34231374 | H115: 0.6613124266 | I115: 0.4421190099 | J115: 88.6600295 | K115: 0.05347846989 | L115: -7.4645661 | M115: -0.004502520196 | N115: 0.05200001264 | O115: 0.5001 | P115: 0 | Q115: 0.05200001264 | R115: 0.5 | S115: 0.852504426 | T115: 0.06047503413 | U115: 0.06047503413 | V115: -0.5001 | W115: 0.003628502048 | X115: 0.02902801638 | Y115: =Z114+IF(C113=C114,0,(C115-C114)*(Z114-Z113)/(C114-C113)) -> 0 | Z115: 0
B116: 0.5188458805 | C116: 0.0001832464859 | D116: 0.03236940966 | E116: -0.06514492988 | F116: 2.028855491 | G116: 1.341712526 | H116: 0.6613149789 | I116: 0.4421185917 | J116: 88.62250956 | K116: 0.0534558384 | L116: -7.502779387 | M116: -0.004525569908 | N116: 0.05195594162 | O116: 0.5001 | P116: 0 | Q116: 0.05195594162 | R116: 0.5 | S116: 0.8521193062 | T116: 0.06044587675 | U116: 0.06044587675 | V116: -0.5001 | W116: 0.003626752605 | X116: 0.02901402084 | Y116: 0 | Z116: 0
B117: 0.5188458805 | C117: 0.0001832464859 | D117: 0.03236940966 | E117: -0.06514492988 | F117: 2.028855491 | G117: 1.341712526 | H117: 0.6613149789 | I117: 0.4421185917 | J117: 88.62250956 | K117: 0.0534558384 | L117: -7.502779387 | M117: -0.004525569908 | N117: 0.05195594162 | O117: 0.5001 | P117: 0 | Q117: 0.05195594162 | R117: 0.5 | S117: 0.8521193062 | T117: 0.06044587675 | U117: 0.06044587675 | V117: -0.5001 | W117: 0.003626752605 | X117: 0.02901402084 | Y117: 0 | Z117: 0
B118: 0.5188458805 | C118: 0.0001832464859 | D118: 0.03236940966 | E118: -0.06514492988 | F118: 2.028855491 | G118: 1.341712526 | H118: 0.6613149789 | I118: 0.4421185917 | J118: 88.62250956 | K118: 0.0534558384 | L118: -7.502779387 | M118: -0.004525569908 | N118: 0.05195594162 | O118: 0.5001 | P118: 0 | Q118: 0.05195594162 | R118: 0.5 | S118: 0.8521193062 | T118: 0.06044587675 | U118: 0.06044587675 | V118: -0.5001 | W118: 0.003626752605 | X118: 0.02901402084 | Y118: 0 | Z118: 0
B119: 0.5188458805 | C119: 0.0001832464859 | D119: 0.03236940966 | E119: -0.06514492988 | F119: 2.028855491 | G119: 1.341712526 | H119: 0.6613149789 | I119: 0.4421185917 | J119: 88.62250956 | K119: 0.0534558384 | L119: -7.502779387 | M119: -0.004525569908 | N119: 0.05195594162 | O119: 0.5001 | P119: 0 | Q119: 0.05195594162 | R119: 0.5 | S119: 0.8521193062 | T119: 0.06044587675 | U119: 0.06044587675 | V119: -0.5001 | W119: 0.003626752605 | X119: 0.02901402084 | Y119: 0 | Z119: 0
B120: 0.5188458805 | C120: 0.0001832464859 | D120: 0.03236940966 | E120: -0.06514492988 | F120: 2.028855491 | G120: 1.341712526 | H120: 0.6613149789 | I120: 0.4421185917 | J120: 88.62250956 | K120: 0.0534558384 | L120: -7.502779387 | M120: -0.004525569908 | N120: 0.05195594162 | O120: 0.5001 | P120: 0 | Q120: 0.05195594162 | R120: 0.5 | S120: 0.8521193062 | T120: 0.06044587675 | U120: 0.06044587675 | V120: -0.5001 | W120: 0.003626752605 | X120: 0.02901402084 | Y120: 0 | Z120: 0
B121: 0.5188458805 | C121: 0.0001832464859 | D121: 0.03236940966 | E121: -0.06514492988 | F121: 2.028855491 | G121: 1.341712526 | H121: 0.6613149789 | I121: 0.4421185917 | J121: 88.62250956 | K121: 0.0534558384 | L121: -7.502779387 | M121: -0.004525569908 | N121: 0.05195594162 | O121: 0.5001 | P121: 0 | Q121: 0.05195594162 | R121: 0.5 | S121: 0.8521193062 | T121: 0.06044587675 | U121: 0.06044587675 | V121: -0.5001 | W121: 0.003626752605 | X121: 0.02901402084 | Y121: 0 | Z121: 0
B122: 0.5188458805 | C122: 0.0001832464859 | D122: 0.03236940966 | E122: -0.06514492988 | F122: 2.028855491 | G122: 1.341712526 | H122: 0.6613149789 | I122: 0.4421185917 | J122: 88.62250956 | K122: 0.0534558384 | L122: -7.502779387 | M122: -0.004525569908 | N122: 0.05195594162 | O122: 0.5001 | P122: 0 | Q122: 0.05195594162 | R122: 0.5 | S122: 0.8521193062 | T122: 0.06044587675 | U122: 0.06044587675 | V122: -0.5001 | W122: 0.003626752605 | X122: 0.02901402084 | Y122: 0 | Z122: 0
B123: 0.5188458805 | C123: 0.0001832464859 | D123: 0.03236940966 | E123: -0.06514492988 | F123: 2.028855491 | G123: 1.341712526 | H123: 0.6613149789 | I123: 0.4421185917 | J123: 88.62250956 | K123: 0.0534558384 | L123: -7.502779387 | M123: -0.004525569908 | N123: 0.05195594162 | O123: 0.5001 | P123: 0 | Q123: 0.05195594162 | R123: 0.5 | S123: 0.8521193062 | T123: 0.06044587675 | U123: 0.06044587675 | V123: -0.5001 | W123: 0.003626752605 | X123: 0.02901402084 | Y123: 0 | Z123: 0
B124: 0.5188458805 | C124: 0.0001832464859 | D124: 0.03236940966 | E124: -0.06514492988 | F124: 2.028855491 | G124: 1.341712526 | H124: 0.6613149789 | I124: 0.4421185917 | J124: 88.62250956 | K124: 0.0534558384 | L124: -7.502779387 | M124: -0.004525569908 | N124: 0.05195594162 | O124: 0.5001 | P124: 0 | Q124: 0.05195594162 | R124: 0.5 | S124: 0.8521193062 | T124: 0.06044587675 | U124: 0.06044587675 | V124: -0.5001 | W124: 0.003626752605 | X124: 0.02901402084 | Y124: 0 | Z124: 0
B125: 0.5188458805 | C125: 0.0001832464859 | D125: 0.03236940966 | E125: -0.06514492988 | F125: 2.028855491 | G125: 1.341712526 | H125: 0.6613149789 | I125: 0.4421185917 | J125: 88.62250956 | K125: 0.0534558384 | L125: -7.502779387 | M125: -0.004525569908 | N125: 0.05195594162 | O125: 0.5001 | P125: 0 | Q125: 0.05195594162 | R125: 0.5 | S125: 0.8521193062 | T125: 0.06044587675 | U125: 0.06044587675 | V125: -0.5001 | W125: 0.003626752605 | X125: 0.02901402084 | Y125: 0 | Z125: 0
B126: 0.5188458805 | C126: 0.0001832464859 | D126: 0.03236940966 | E126: -0.06514492988 | F126: 2.028855491 | G126: 1.341712526 | H126: 0.6613149789 | I126: 0.4421185917 | J126: 88.62250956 | K126: 0.0534558384 | L126: -7.502779387 | M126: -0.004525569908 | N126: 0.05195594162 | O126: 0.5001 | P126: 0 | Q126: 0.05195594162 | R126: 0.5 | S126: 0.8521193062 | T126: 0.06044587675 | U126: 0.06044587675 | V126: -0.5001 | W126: 0.003626752605 | X126: 0.02901402084 | Y126: 0 | Z126: 0
B127: 0.5188458805 | C127: 0.0001832464859 | D127: 0.03236940966 | E127: -0.06514492988 | F127: 2.028855491 | G127: 1.341712526 | H127: 0.6613149789 | I127: 0.4421185917 | J127: 88.62250956 | K127: 0.0534558384 | L127: -7.502779387 | M127: -0.004525569908 | N127: 0.05195594162 | O127: 0.5001 | P127: 0 | Q127: 0.05195594162 | R127: 0.5 | S127: 0.8521193062 | T127: 0.06044587675 | U127: 0.06044587675 | V127: -0.5001 | W127: 0.003626752605 | X127: 0.02901402084 | Y127: 0 | Z127: 0
B128: 0.5188458805 | C128: 0.0001832464859 | D128: 0.03236940966 | E128: -0.06514492988 | F128: 2.028855491 | G128: 1.341712526 | H128: 0.6613149789 | I128: 0.4421185917 | J128: 88.62250956 | K128: 0.0534558384 | L128: -7.502779387 | M128: -0.004525569908 | N128: 0.05195594162 | O128: 0.5001 | P128: 0 | Q128: 0.05195594162 | R128: 0.5 | S128: 0.8521193062 | T128: 0.06044587675 | U128: 0.06044587675 | V128: -0.5001 | W128: 0.003626752605 | X128: 0.02901402084 | Y128: 0 | Z128: 0
B129: 0.5188458805 | C129: 0.0001832464859 | D129: 0.03236940966 | E129: -0.06514492988 | F129: 2.028855491 | G129: 1.341712526 | H129: 0.6613149789 | I129: 0.4421185917 | J129: 88.62250956 | K129: 0.0534558384 | L129: -7.502779387 | M129: -0.004525569908 | N129: 0.05195594162 | O129: 0.5001 | P129: 0 | Q129: 0.05195594162 | R129: 0.5 | S129: 0.8521193062 | T129: 0.06044587675 | U129: 0.06044587675 | V129: -0.5001 | W129: 0.003626752605 | X129: 0.02901402084 | Y129: 0 | Z129: 0
B130: 0.5188458805 | C130: 0.0001832464859 | D130: 0.03236940966 | E130: -0.06514492988 | F130: 2.028855491 | G130: 1.341712526 | H130: 0.6613149789 | I130: 0.4421185917 | J130: 88.62250956 | K130: 0.0534558384 | L130: -7.502779387 | M130: -0.004525569908 | N130: 0.05195594162 | O130: 0.5001 | P130: 0 | Q130: 0.05195594162 | R130: 0.5 | S130: 0.8521193062 | T130: 0.06044587675 | U130: 0.06044587675 | V130: -0.5001 | W130: 0.003626752605 | X130: 0.02901402084 | Y130: 0 | Z130: 0
AA131: =N130/($Q$6*C130/B130) -> 53.80071022
B132: =IF(B130<0,P109,0.5*(P109+B130)) -> 0.5006584519
B133: =0.5*(-(T133+U133+V133)+SQRT((T133+U133+V133)^2+4*S133*(W133+X133)))/S133 -> 0.486677264 | C133: =0.5*(K109+C130) -> 0.0001963760659 | D133: =IF($C$2=1,C133/($AD$6*$AD$5),2^(1/3)*$AD$5/C133) -> 0.03468867244 | E133: =IF($C$2=1,-($AD$6-2)*C133/$AD$5,3*($AD$5/C133)^2) -> -0.06981255318 | F133: =IF($C$2=1,0.5*($AD$6*C133*$F$6/$AD$5)*(1-Y133^2+(D133-E133)*(E133^2*(1-Y133^2)+2*E133*(1-Y133)+2*LN((1-E133)/(1-E133*Y133)))/(E133^3)),$F$6*E133*(LN((1-D133+D133^2)/(1+D133)^2)/(6*D133)+ATAN((2-D133)/(D133*3^0.5))/(D133*3^0.5)-LN((Y133^2-D133*Y133+D133^2)/(Y133+D133)^2)/(6*D133)-ATAN((2*Y133-D133)/(D133*3^0.5))/(D133*3^0.5))) -> 2.16443648 | G133: =IF($C$2=1,($AD$6*C133*$F$6/$AD$5)*(1-Y133^3-(D133-E133)*(-2*E133^3*(1-Y133^3)-3*E133^2*(1-Y133^2)-6*E133*(1-Y133)-6*LN((1-E133)/(1-E133*Y133)))/(2*E133^4))/3,$F$6*E133*(LN((1+D133^3)/(D133^3+Y133^3)))/3) -> 1.430554298 | H133: =G133/F133 -> 0.6609361428 | I133: =F133*B133*$D$6 -> 0.4424204501 | J133: =MAX(MIN($K$106,$Q$106*$J$106*C133*(B133-$I$106)/B133),-$K$106) -> 94.15143073 | K133: =J133*$H$106 -> 0.05679080508 | L133: =MIN($O$106,$Q$106*$N$106*C133*(C$106-B133-$M$106)/B133) -> -1.473417991 | M133: =L133*$L$106 -> -0.0008887447941 | N133: =(0.5*$C$6-B133+H133*B133)*I133+(0.5*$C$6-$I$106)*K133+(0.5*$C$6-$M$106)*M133 -> 0.05818708947 | O133: =I133+K133-M133 -> 0.5001 | P133: =Snitkræfter!$D$44*0.1*$Q$6*C133*$B$6^2/B133+$R$6 -> 3.217251014e-05 | Q133: =N133-P133*O133 -> 0.058171 | R133: =$R$111 -> 0.5 | S133: =F133*$D$106 -> 0.9090633216 | T133: =IF(ABS(J132)<$K$106,$Q$106*C133*$H$106*$J$106,IF(J132>0,1,-1)*$H$106*$K$106) -> 0.06477681369 | U133: =IF(L132<$O$106,$Q$106*C133*$L$106*$N$106,-$L$106*$O$106) -> 0.06477681369 | V133: =-(R133+0.0001) -> -0.5001 | W133: =IF(ABS(J132)<$K$106,$I$106*$Q$106*C133*$H$106*$J$106,0) -> 0.003886608821 | X133: =IF(L132<$O$106,($C$106-$M$106)*$Q$106*C133*$L$106*$N$106,0) -> 0.03109287057 | Y133: =IF(ABS(B132)<$C$6,0,(B132-$C$6)/B132) -> 0 | Z133: =IF(AND(B133<=$C$6,B133>0),0,(B133-$C$6)/B133) -> 0
B134: 0.5102542016 | C134: =0.95*C133 -> 0.0001865572626 | D134: 0.03295423882 | E134: -0.06632192553 | F134: 2.063161411 | G134: 1.364202346 | H134: 0.6612193979 | I134: 0.442149447 | J134: 90.02502905 | K134: 0.05430181822 | L134: -6.049105966 | M134: -0.003648734758 | N134: 0.05358567646 | O134: 0.5001 | P134: =Snitkræfter!$D$44*0.1*$Q$6*C134*$B$6^2/B134+$R$6 -> 2.915164187e-05 | Q134: 0.05357109772 | R134: 0.5 | S134: 0.8665277927 | T134: 0.061537973 | U134: 0.061537973 | V134: -0.5001 | W134: 0.00369227838 | X134: 0.02953822704 | Y134: =Z133 -> 0 | Z134: 0
B135: 0.5192100727 | C135: =IF(OR(C134=C133,ABS($Q$111-Q134)<0.00005*$Q$111),C134,MAX(IF(Z134>0,0.98*C134,0.9*C134),MIN($AD$4,IF(Z134>0,1.005*C134,1.05*C134),IF(C134=$AD$4,0.5*(C134+C133),C134+(C134-C133)*(Q134-$Q$111)/(Q133-Q134))))) -> 0.000183109043 | D135: 0.03234513119 | E135: -0.06509606833 | F135: 2.027429602 | G135: 1.340777611 | H135: 0.6613189477 | I135: 0.4421179859 | J135: 88.5641613 | K135: 0.05342064356 | L135: -7.562132041 | M135: -0.004561370585 | N135: 0.05188735279 | O135: 0.5001 | P135: =Snitkræfter!$D$44*0.1*$Q$6*C135*$B$6^2/B135+$R$6 -> 2.811927587e-05 | Q135: 0.05187329034 | R135: 0.5 | S135: 0.8515204329 | T135: 0.06040053969 | U135: 0.06040053969 | V135: -0.5001 | W135: 0.003624032382 | X135: 0.02899225905 | Y135: =Z134+IF(C133=C134,0,(C135-C134)*(Z134-Z133)/(C134-C133)) -> 0 | Z135: 0
B136: 0.5187667641 | C136: =IF(OR(C135=C134,ABS($Q$111-Q135)<0.00005*$Q$111),C135,MAX(IF(Z135>0,0.98*C135,0.9*C135),MIN($AD$4,IF(Z135>0,1.005*C135,1.05*C135),IF(C135=$AD$4,0.5*(C135+C134),C135+(C135-C134)*(Q135-$Q$111)/(Q134-Q135))))) -> 0.0001832763742 | D136: 0.03237468925 | E136: -0.0651555553 | F136: 2.029165546 | G136: 1.341915819 | H136: 0.6613141159 | I136: 0.4421187306 | J136: 88.63519664 | K136: 0.05346349106 | L136: -7.489862019 | M136: -0.004517778335 | N136: 0.05197084687 | O136: 0.5001 | P136: =Snitkræfter!$D$44*0.1*$Q$6*C136*$B$6^2/B136+$R$6 -> 2.81690233e-05 | Q136: 0.05195675954 | R136: 0.5 | S136: 0.8522495294 | T136: 0.06045573573 | U136: 0.06045573573 | V136: -0.5001 | W136: 0.003627344144 | X136: 0.02901875315 | Y136: =MIN(Z135+IF(C134=C135,Y135-Z135,IF(ABS(Y135-Z135)<0.001,Y135-Z135,(C136-C135)*(Z135-Z134)/(C135-C134))),0.995) -> 0 | Z136: 0
B137: 0.5187667641 | C137: 0.0001832763742 | D137: 0.03237468925 | E137: -0.0651555553 | F137: 2.029165546 | G137: 1.341915819 | H137: 0.6613141159 | I137: 0.4421187306 | J137: 88.63519664 | K137: 0.05346349106 | L137: -7.489862019 | M137: -0.004517778335 | N137: 0.05197084687 | O137: 0.5001 | P137: =Snitkræfter!$D$44*0.1*$Q$6*C137*$B$6^2/B137+$R$6 -> 2.81690233e-05 | Q137: 0.05195675954 | R137: 0.5 | S137: 0.8522495294 | T137: 0.06045573573 | U137: 0.06045573573 | V137: -0.5001 | W137: 0.003627344144 | X137: 0.02901875315 | Y137: =MIN(Z136+IF(C135=C136,Y136-Z136,IF(ABS(Y136-Z136)<0.001,Y136-Z136,(C137-C136)*(Z136-Z135)/(C136-C135))),0.995) -> 0 | Z137: 0
B138: 0.5187667641 | C138: 0.0001832763742 | D138: 0.03237468925 | E138: -0.0651555553 | F138: 2.029165546 | G138: 1.341915819 | H138: 0.6613141159 | I138: 0.4421187306 | J138: 88.63519664 | K138: 0.05346349106 | L138: -7.489862019 | M138: -0.004517778335 | N138: 0.05197084687 | O138: 0.5001 | P138: =Snitkræfter!$D$44*0.1*$Q$6*C138*$B$6^2/B138+$R$6 -> 2.81690233e-05 | Q138: 0.05195675954 | R138: 0.5 | S138: 0.8522495294 | T138: 0.06045573573 | U138: 0.06045573573 | V138: -0.5001 | W138: 0.003627344144 | X138: 0.02901875315 | Y138: 0 | Z138: 0
B139: 0.5187667641 | C139: 0.0001832763742 | D139: 0.03237468925 | E139: -0.0651555553 | F139: 2.029165546 | G139: 1.341915819 | H139: 0.6613141159 | I139: 0.4421187306 | J139: 88.63519664 | K139: 0.05346349106 | L139: -7.489862019 | M139: -0.004517778335 | N139: 0.05197084687 | O139: 0.5001 | P139: =Snitkræfter!$D$44*0.1*$Q$6*C139*$B$6^2/B139+$R$6 -> 2.81690233e-05 | Q139: 0.05195675954 | R139: 0.5 | S139: 0.8522495294 | T139: 0.06045573573 | U139: 0.06045573573 | V139: -0.5001 | W139: 0.003627344144 | X139: 0.02901875315 | Y139: 0 | Z139: 0
B140: 0.5187667641 | C140: 0.0001832763742 | D140: 0.03237468925 | E140: -0.0651555553 | F140: 2.029165546 | G140: 1.341915819 | H140: 0.6613141159 | I140: 0.4421187306 | J140: 88.63519664 | K140: 0.05346349106 | L140: -7.489862019 | M140: -0.004517778335 | N140: 0.05197084687 | O140: 0.5001 | P140: =Snitkræfter!$D$44*0.1*$Q$6*C140*$B$6^2/B140+$R$6 -> 2.81690233e-05 | Q140: 0.05195675954 | R140: 0.5 | S140: 0.8522495294 | T140: 0.06045573573 | U140: 0.06045573573 | V140: -0.5001 | W140: 0.003627344144 | X140: 0.02901875315 | Y140: 0 | Z140: 0
B141: 0.5187667641 | C141: 0.0001832763742 | D141: 0.03237468925 | E141: -0.0651555553 | F141: 2.029165546 | G141: 1.341915819 | H141: 0.6613141159 | I141: 0.4421187306 | J141: 88.63519664 | K141: 0.05346349106 | L141: -7.489862019 | M141: -0.004517778335 | N141: 0.05197084687 | O141: 0.5001 | P141: =Snitkræfter!$D$44*0.1*$Q$6*C141*$B$6^2/B141+$R$6 -> 2.81690233e-05 | Q141: 0.05195675954 | R141: 0.5 | S141: 0.8522495294 | T141: 0.06045573573 | U141: 0.06045573573 | V141: -0.5001 | W141: 0.003627344144 | X141: 0.02901875315 | Y141: 0 | Z141: 0
B142: 0.5187667641 | C142: 0.0001832763742 | D142: 0.03237468925 | E142: -0.0651555553 | F142: 2.029165546 | G142: 1.341915819 | H142: 0.6613141159 | I142: 0.4421187306 | J142: 88.63519664 | K142: 0.05346349106 | L142: -7.489862019 | M142: -0.004517778335 | N142: 0.05197084687 | O142: 0.5001 | P142: =Snitkræfter!$D$44*0.1*$Q$6*C142*$B$6^2/B142+$R$6 -> 2.81690233e-05 | Q142: 0.05195675954 | R142: 0.5 | S142: 0.8522495294 | T142: 0.06045573573 | U142: 0.06045573573 | V142: -0.5001 | W142: 0.003627344144 | X142: 0.02901875315 | Y142: 0 | Z142: 0
B143: 0.5187667641 | C143: 0.0001832763742 | D143: 0.03237468925 | E143: -0.0651555553 | F143: 2.029165546 | G143: 1.341915819 | H143: 0.6613141159 | I143: 0.4421187306 | J143: 88.63519664 | K143: 0.05346349106 | L143: -7.489862019 | M143: -0.004517778335 | N143: 0.05197084687 | O143: 0.5001 | P143: =Snitkræfter!$D$44*0.1*$Q$6*C143*$B$6^2/B143+$R$6 -> 2.81690233e-05 | Q143: 0.05195675954 | R143: 0.5 | S143: 0.8522495294 | T143: 0.06045573573 | U143: 0.06045573573 | V143: -0.5001 | W143: 0.003627344144 | X143: 0.02901875315 | Y143: 0 | Z143: 0
B144: 0.5187667641 | C144: 0.0001832763742 | D144: 0.03237468925 | E144: -0.0651555553 | F144: 2.029165546 | G144: 1.341915819 | H144: 0.6613141159 | I144: 0.4421187306 | J144: 88.63519664 | K144: 0.05346349106 | L144: -7.489862019 | M144: -0.004517778335 | N144: 0.05197084687 | O144: 0.5001 | P144: =Snitkræfter!$D$44*0.1*$Q$6*C144*$B$6^2/B144+$R$6 -> 2.81690233e-05 | Q144: 0.05195675954 | R144: 0.5 | S144: 0.8522495294 | T144: 0.06045573573 | U144: 0.06045573573 | V144: -0.5001 | W144: 0.003627344144 | X144: 0.02901875315 | Y144: 0 | Z144: 0
B145: 0.5187667641 | C145: 0.0001832763742 | D145: 0.03237468925 | E145: -0.0651555553 | F145: 2.029165546 | G145: 1.341915819 | H145: 0.6613141159 | I145: 0.4421187306 | J145: 88.63519664 | K145: 0.05346349106 | L145: -7.489862019 | M145: -0.004517778335 | N145: 0.05197084687 | O145: 0.5001 | P145: =Snitkræfter!$D$44*0.1*$Q$6*C145*$B$6^2/B145+$R$6 -> 2.81690233e-05 | Q145: 0.05195675954 | R145: 0.5 | S145: 0.8522495294 | T145: 0.06045573573 | U145: 0.06045573573 | V145: -0.5001 | W145: 0.003627344144 | X145: 0.02901875315 | Y145: 0 | Z145: 0
B146: 0.5187667641 | C146: 0.0001832763742 | D146: 0.03237468925 | E146: -0.0651555553 | F146: 2.029165546 | G146: 1.341915819 | H146: 0.6613141159 | I146: 0.4421187306 | J146: 88.63519664 | K146: 0.05346349106 | L146: -7.489862019 | M146: -0.004517778335 | N146: 0.05197084687 | O146: 0.5001 | P146: =Snitkræfter!$D$44*0.1*$Q$6*C146*$B$6^2/B146+$R$6 -> 2.81690233e-05 | Q146: 0.05195675954 | R146: 0.5 | S146: 0.8522495294 | T146: 0.06045573573 | U146: 0.06045573573 | V146: -0.5001 | W146: 0.003627344144 | X146: 0.02901875315 | Y146: 0 | Z146: 0
B147: 0.5187667641 | C147: 0.0001832763742 | D147: 0.03237468925 | E147: -0.0651555553 | F147: 2.029165546 | G147: 1.341915819 | H147: 0.6613141159 | I147: 0.4421187306 | J147: 88.63519664 | K147: 0.05346349106 | L147: -7.489862019 | M147: -0.004517778335 | N147: 0.05197084687 | O147: 0.5001 | P147: =Snitkræfter!$D$44*0.1*$Q$6*C147*$B$6^2/B147+$R$6 -> 2.81690233e-05 | Q147: 0.05195675954 | R147: 0.5 | S147: 0.8522495294 | T147: 0.06045573573 | U147: 0.06045573573 | V147: -0.5001 | W147: 0.003627344144 | X147: 0.02901875315 | Y147: 0 | Z147: 0
B148: 0.5187667641 | C148: 0.0001832763742 | D148: 0.03237468925 | E148: -0.0651555553 | F148: 2.029165546 | G148: 1.341915819 | H148: 0.6613141159 | I148: 0.4421187306 | J148: 88.63519664 | K148: 0.05346349106 | L148: -7.489862019 | M148: -0.004517778335 | N148: 0.05197084687 | O148: 0.5001 | P148: =Snitkræfter!$D$44*0.1*$Q$6*C148*$B$6^2/B148+$R$6 -> 2.81690233e-05 | Q148: 0.05195675954 | R148: 0.5 | S148: 0.8522495294 | T148: 0.06045573573 | U148: 0.06045573573 | V148: -0.5001 | W148: 0.003627344144 | X148: 0.02901875315 | Y148: 0 | Z148: 0
B149: 0.5187667641 | C149: 0.0001832763742 | D149: 0.03237468925 | E149: -0.0651555553 | F149: 2.029165546 | G149: 1.341915819 | H149: 0.6613141159 | I149: 0.4421187306 | J149: 88.63519664 | K149: 0.05346349106 | L149: -7.489862019 | M149: -0.004517778335 | N149: 0.05197084687 | O149: 0.5001 | P149: =Snitkræfter!$D$44*0.1*$Q$6*C149*$B$6^2/B149+$R$6 -> 2.81690233e-05 | Q149: 0.05195675954 | R149: 0.5 | S149: 0.8522495294 | T149: 0.06045573573 | U149: 0.06045573573 | V149: -0.5001 | W149: 0.003627344144 | X149: 0.02901875315 | Y149: =MIN(Z148+IF(C147=C148,Y148-Z148,IF(ABS(Y148-Z148)<0.001,Y148-Z148,(C149-C148)*(Z148-Z147)/(C148-C147))),0.995) -> 0 | Z149: 0
B150: 0.5187667641 | C150: 0.0001832763742 | D150: 0.03237468925 | E150: -0.0651555553 | F150: 2.029165546 | G150: 1.341915819 | H150: 0.6613141159 | I150: 0.4421187306 | J150: 88.63519664 | K150: 0.05346349106 | L150: -7.489862019 | M150: -0.004517778335 | N150: 0.05197084687 | O150: 0.5001 | P150: =Snitkræfter!$D$44*0.1*$Q$6*C150*$B$6^2/B150+$R$6 -> 2.81690233e-05 | Q150: 0.05195675954 | R150: 0.5 | S150: 0.8522495294 | T150: 0.06045573573 | U150: 0.06045573573 | V150: -0.5001 | W150: 0.003627344144 | X150: 0.02901875315 | Y150: =MIN(Z149+IF(C148=C149,Y149-Z149,IF(ABS(Y149-Z149)<0.001,Y149-Z149,(C150-C149)*(Z149-Z148)/(C149-C148))),0.995) -> 0 | Z150: 0
B151: 0.5187667641 | C151: 0.0001832763742 | D151: 0.03237468925 | E151: -0.0651555553 | F151: 2.029165546 | G151: 1.341915819 | H151: 0.6613141159 | I151: 0.4421187306 | J151: 88.63519664 | K151: 0.05346349106 | L151: -7.489862019 | M151: -0.004517778335 | N151: 0.05197084687 | O151: 0.5001 | P151: =Snitkræfter!$D$44*0.1*$Q$6*C151*$B$6^2/B151+$R$6 -> 2.81690233e-05 | Q151: 0.05195675954 | R151: 0.5 | S151: 0.8522495294 | T151: 0.06045573573 | U151: 0.06045573573 | V151: -0.5001 | W151: 0.003627344144 | X151: 0.02901875315 | Y151: 0 | Z151: 0
B152: 0.5187667641 | C152: 0.0001832763742 | D152: 0.03237468925 | E152: -0.0651555553 | F152: 2.029165546 | G152: 1.341915819 | H152: 0.6613141159 | I152: 0.4421187306 | J152: 88.63519664 | K152: 0.05346349106 | L152: -7.489862019 | M152: -0.004517778335 | N152: 0.05197084687 | O152: 0.5001 | P152: =Snitkræfter!$D$44*0.1*$Q$6*C152*$B$6^2/B152+$R$6 -> 2.81690233e-05 | Q152: 0.05195675954 | R152: 0.5 | S152: 0.8522495294 | T152: 0.06045573573 | U152: 0.06045573573 | V152: -0.5001 | W152: 0.003627344144 | X152: 0.02901875315 | Y152: 0 | Z152: 0
B153: 0.5187667641 | C153: 0.0001832763742 | D153: 0.03237468925 | E153: -0.0651555553 | F153: 2.029165546 | G153: 1.341915819 | H153: 0.6613141159 | I153: 0.4421187306 | J153: 88.63519664 | K153: 0.05346349106 | L153: -7.489862019 | M153: -0.004517778335 | N153: 0.05197084687 | O153: 0.5001 | P153: =Snitkræfter!$D$44*0.1*$Q$6*C153*$B$6^2/B153+$R$6 -> 2.81690233e-05 | Q153: 0.05195675954 | R153: 0.5 | S153: 0.8522495294 | T153: 0.06045573573 | U153: 0.06045573573 | V153: -0.5001 | W153: 0.003627344144 | X153: 0.02901875315 | Y153: 0 | Z153: 0
B154: 0.5187667641 | C154: 0.0001832763742 | D154: 0.03237468925 | E154: -0.0651555553 | F154: 2.029165546 | G154: 1.341915819 | H154: 0.6613141159 | I154: 0.4421187306 | J154: 88.63519664 | K154: 0.05346349106 | L154: -7.489862019 | M154: -0.004517778335 | N154: 0.05197084687 | O154: 0.5001 | P154: =Snitkræfter!$D$44*0.1*$Q$6*C154*$B$6^2/B154+$R$6 -> 2.81690233e-05 | Q154: 0.05195675954 | R154: 0.5 | S154: 0.8522495294 | T154: 0.06045573573 | U154: 0.06045573573 | V154: -0.5001 | W154: 0.003627344144 | X154: 0.02901875315 | Y154: 0 | Z154: 0
B155: 0.5187667641 | C155: 0.0001832763742 | D155: 0.03237468925 | E155: -0.0651555553 | F155: 2.029165546 | G155: 1.341915819 | H155: 0.6613141159 | I155: 0.4421187306 | J155: 88.63519664 | K155: 0.05346349106 | L155: -7.489862019 | M155: -0.004517778335 | N155: 0.05197084687 | O155: 0.5001 | P155: =Snitkræfter!$D$44*0.1*$Q$6*C155*$B$6^2/B155+$R$6 -> 2.81690233e-05 | Q155: 0.05195675954 | R155: 0.5 | S155: 0.8522495294 | T155: 0.06045573573 | U155: 0.06045573573 | V155: -0.5001 | W155: 0.003627344144 | X155: 0.02901875315 | Y155: 0 | Z155: 0
B156: 0.5187667641 | C156: 0.0001832763742 | D156: 0.03237468925 | E156: -0.0651555553 | F156: 2.029165546 | G156: 1.341915819 | H156: 0.6613141159 | I156: 0.4421187306 | J156: 88.63519664 | K156: 0.05346349106 | L156: -7.489862019 | M156: -0.004517778335 | N156: 0.05197084687 | O156: 0.5001 | P156: =Snitkræfter!$D$44*0.1*$Q$6*C156*$B$6^2/B156+$R$6 -> 2.81690233e-05 | Q156: 0.05195675954 | R156: 0.5 | S156: 0.8522495294 | T156: 0.06045573573 | U156: 0.06045573573 | V156: -0.5001 | W156: 0.003627344144 | X156: 0.02901875315 | Y156: 0 | Z156: 0
B157: 0.5187667641 | C157: 0.0001832763742 | D157: 0.03237468925 | E157: -0.0651555553 | F157: 2.029165546 | G157: 1.341915819 | H157: 0.6613141159 | I157: 0.4421187306 | J157: 88.63519664 | K157: 0.05346349106 | L157: -7.489862019 | M157: -0.004517778335 | N157: 0.05197084687 | O157: 0.5001 | P157: =Snitkræfter!$D$44*0.1*$Q$6*C157*$B$6^2/B157+$R$6 -> 2.81690233e-05 | Q157: 0.05195675954 | R157: 0.5 | S157: 0.8522495294 | T157: 0.06045573573 | U157: 0.06045573573 | V157: -0.5001 | W157: 0.003627344144 | X157: 0.02901875315 | Y157: 0 | Z157: 0
B158: =0.5*(-(T158+U158+V158)+SQRT((T158+U158+V158)^2+4*S158*(W158+X158)))/S158 -> 0.5187667641 | C158: 0.0001832763742 | D158: 0.03237468925 | E158: -0.0651555553 | F158: 2.029165546 | G158: 1.341915819 | H158: 0.6613141159 | I158: 0.4421187306 | J158: 88.63519664 | K158: 0.05346349106 | L158: -7.489862019 | M158: -0.004517778335 | N158: 0.05197084687 | O158: 0.5001 | P158: =Snitkræfter!$D$44*0.1*$Q$6*C158*$B$6^2/B158+$R$6 -> 2.81690233e-05 | Q158: 0.05195675954 | R158: 0.5 | S158: 0.8522495294 | T158: 0.06045573573 | U158: 0.06045573573 | V158: -0.5001 | W158: 0.003627344144 | X158: 0.02901875315 | Y158: 0 | Z158: 0
B159: =0.5*(-(T159+U159+V159)+SQRT((T159+U159+V159)^2+4*S159*(W159+X159)))/S159 -> 0.5187667641 | C159: 0.0001832763742 | D159: 0.03237468925 | E159: -0.0651555553 | F159: 2.029165546 | G159: 1.341915819 | H159: 0.6613141159 | I159: 0.4421187306 | J159: 88.63519664 | K159: 0.05346349106 | L159: -7.489862019 | M159: -0.004517778335 | N159: 0.05197084687 | O159: 0.5001 | P159: =Snitkræfter!$D$44*0.1*$Q$6*C159*$B$6^2/B159+$R$6 -> 2.81690233e-05 | Q159: 0.05195675954 | R159: 0.5 | S159: 0.8522495294 | T159: 0.06045573573 | U159: 0.06045573573 | V159: -0.5001 | W159: 0.003627344144 | X159: 0.02901875315 | Y159: 0 | Z159: 0
B160: 0.5187667641 | C160: 0.0001832763742 | D160: 0.03237468925 | E160: -0.0651555553 | F160: 2.029165546 | G160: 1.341915819 | H160: 0.6613141159 | I160: 0.4421187306 | J160: 88.63519664 | K160: 0.05346349106 | L160: -7.489862019 | M160: -0.004517778335 | N160: 0.05197084687 | O160: 0.5001 | P160: =Snitkræfter!$D$44*0.1*$Q$6*C160*$B$6^2/B160+$R$6 -> 2.81690233e-05 | Q160: 0.05195675954 | R160: 0.5 | S160: 0.8522495294 | T160: 0.06045573573 | U160: 0.06045573573 | V160: -0.5001 | W160: 0.003627344144 | X160: 0.02901875315 | Y160: 0 | Z160: 0
B161: 0.5187667641 | C161: 0.0001832763742 | D161: 0.03237468925 | E161: -0.0651555553 | F161: 2.029165546 | G161: 1.341915819 | H161: 0.6613141159 | I161: 0.4421187306 | J161: 88.63519664 | K161: 0.05346349106 | L161: -7.489862019 | M161: -0.004517778335 | N161: 0.05197084687 | O161: 0.5001 | P161: =Snitkræfter!$D$44*0.1*$Q$6*C161*$B$6^2/B161+$R$6 -> 2.81690233e-05 | Q161: 0.05195675954 | R161: 0.5 | S161: 0.8522495294 | T161: 0.06045573573 | U161: 0.06045573573 | V161: -0.5001 | W161: 0.003627344144 | X161: 0.02901875315 | Y161: 0 | Z161: 0
B162: 0.5187667641 | C162: 0.0001832763742 | D162: 0.03237468925 | E162: -0.0651555553 | F162: 2.029165546 | G162: 1.341915819 | H162: 0.6613141159 | I162: 0.4421187306 | J162: 88.63519664 | K162: 0.05346349106 | L162: -7.489862019 | M162: -0.004517778335 | N162: 0.05197084687 | O162: 0.5001 | P162: =Snitkræfter!$D$44*0.1*$Q$6*C162*$B$6^2/B162+$R$6 -> 2.81690233e-05 | Q162: 0.05195675954 | R162: 0.5 | S162: 0.8522495294 | T162: 0.06045573573 | U162: 0.06045573573 | V162: -0.5001 | W162: 0.003627344144 | X162: 0.02901875315 | Y162: 0 | Z162: 0
B163: 0.5187667641 | C163: 0.0001832763742 | D163: 0.03237468925 | E163: -0.0651555553 | F163: 2.029165546 | G163: 1.341915819 | H163: 0.6613141159 | I163: 0.4421187306 | J163: 88.63519664 | K163: 0.05346349106 | L163: -7.489862019 | M163: -0.004517778335 | N163: 0.05197084687 | O163: 0.5001 | P163: =Snitkræfter!$D$44*0.1*$Q$6*C163*$B$6^2/B163+$R$6 -> 2.81690233e-05 | Q163: 0.05195675954 | R163: 0.5 | S163: 0.8522495294 | T163: 0.06045573573 | U163: 0.06045573573 | V163: -0.5001 | W163: 0.003627344144 | X163: 0.02901875315 | Y163: 0 | Z163: 0
B164: 0.5187667641 | C164: 0.0001832763742 | D164: 0.03237468925 | E164: -0.0651555553 | F164: 2.029165546 | G164: 1.341915819 | H164: 0.6613141159 | I164: 0.4421187306 | J164: 88.63519664 | K164: 0.05346349106 | L164: -7.489862019 | M164: -0.004517778335 | N164: 0.05197084687 | O164: 0.5001 | P164: =Snitkræfter!$D$44*0.1*$Q$6*C164*$B$6^2/B164+$R$6 -> 2.81690233e-05 | Q164: 0.05195675954 | R164: 0.5 | S164: 0.8522495294 | T164: 0.06045573573 | U164: 0.06045573573 | V164: -0.5001 | W164: 0.003627344144 | X164: 0.02901875315 | Y164: 0 | Z164: 0
B165: 0.5187667641 | C165: 0.0001832763742 | D165: 0.03237468925 | E165: -0.0651555553 | F165: 2.029165546 | G165: 1.341915819 | H165: 0.6613141159 | I165: 0.4421187306 | J165: 88.63519664 | K165: 0.05346349106 | L165: -7.489862019 | M165: -0.004517778335 | N165: =(0.5*$C$6-B165+H165*B165)*I165+(0.5*$C$6-$I$106)*K165+(0.5*$C$6-$M$106)*M165 -> 0.05197084687 | O165: 0.5001 | P165: =Snitkræfter!$D$44*0.1*$Q$6*C165*$B$6^2/B165+$R$6 -> 2.81690233e-05 | Q165: 0.05195675954 | R165: 0.5 | S165: 0.8522495294 | T165: 0.06045573573 | U165: 0.06045573573 | V165: -0.5001 | W165: 0.003627344144 | X165: 0.02901875315 | Y165: 0 | Z165: 0
B166: 0.5187667641 | C166: 0.0001832763742 | D166: 0.03237468925 | E166: -0.0651555553 | F166: 2.029165546 | G166: 1.341915819 | H166: 0.6613141159 | I166: 0.4421187306 | J166: 88.63519664 | K166: 0.05346349106 | L166: -7.489862019 | M166: -0.004517778335 | N166: 0.05197084687 | O166: 0.5001 | P166: =Snitkræfter!$D$44*0.1*$Q$6*C166*$B$6^2/B166+$R$6 -> 2.81690233e-05 | Q166: 0.05195675954 | R166: 0.5 | S166: 0.8522495294 | T166: 0.06045573573 | U166: 0.06045573573 | V166: -0.5001 | W166: 0.003627344144 | X166: 0.02901875315 | Y166: 0 | Z166: 0
B167: 0.5187667641 | C167: 0.0001832763742 | D167: 0.03237468925 | E167: -0.0651555553 | F167: 2.029165546 | G167: 1.341915819 | H167: 0.6613141159 | I167: 0.4421187306 | J167: 88.63519664 | K167: 0.05346349106 | L167: -7.489862019 | M167: -0.004517778335 | N167: 0.05197084687 | O167: 0.5001 | P167: =Snitkræfter!$D$44*0.1*$Q$6*C167*$B$6^2/B167+$R$6 -> 2.81690233e-05 | Q167: 0.05195675954 | R167: 0.5 | S167: 0.8522495294 | T167: 0.06045573573 | U167: 0.06045573573 | V167: -0.5001 | W167: 0.003627344144 | X167: 0.02901875315 | Y167: 0 | Z167: 0
B168: 0.5187667641 | C168: 0.0001832763742 | D168: 0.03237468925 | E168: -0.0651555553 | F168: 2.029165546 | G168: 1.341915819 | H168: 0.6613141159 | I168: 0.4421187306 | J168: 88.63519664 | K168: 0.05346349106 | L168: -7.489862019 | M168: -0.004517778335 | N168: 0.05197084687 | O168: 0.5001 | P168: =Snitkræfter!$D$44*0.1*$Q$6*C168*$B$6^2/B168+$R$6 -> 2.81690233e-05 | Q168: 0.05195675954 | R168: 0.5 | S168: 0.8522495294 | T168: 0.06045573573 | U168: 0.06045573573 | V168: -0.5001 | W168: 0.003627344144 | X168: 0.02901875315 | Y168: 0 | Z168: 0
B169: 0.5187667641 | C169: 0.0001832763742 | D169: 0.03237468925 | E169: -0.0651555553 | F169: 2.029165546 | G169: 1.341915819 | H169: 0.6613141159 | I169: 0.4421187306 | J169: 88.63519664 | K169: 0.05346349106 | L169: -7.489862019 | M169: -0.004517778335 | N169: 0.05197084687 | O169: 0.5001 | P169: =Snitkræfter!$D$44*0.1*$Q$6*C169*$B$6^2/B169+$R$6 -> 2.81690233e-05 | Q169: 0.05195675954 | R169: 0.5 | S169: 0.8522495294 | T169: 0.06045573573 | U169: 0.06045573573 | V169: -0.5001 | W169: 0.003627344144 | X169: 0.02901875315 | Y169: 0 | Z169: 0
B170: 0.5187667641 | C170: 0.0001832763742 | D170: 0.03237468925 | E170: -0.0651555553 | F170: 2.029165546 | G170: 1.341915819 | H170: 0.6613141159 | I170: 0.4421187306 | J170: 88.63519664 | K170: 0.05346349106 | L170: -7.489862019 | M170: -0.004517778335 | N170: 0.05197084687 | O170: 0.5001 | P170: =Snitkræfter!$D$44*0.1*$Q$6*C170*$B$6^2/B170+$R$6 -> 2.81690233e-05 | Q170: 0.05195675954 | R170: 0.5 | S170: 0.8522495294 | T170: 0.06045573573 | U170: 0.06045573573 | V170: -0.5001 | W170: 0.003627344144 | X170: 0.02901875315 | Y170: 0 | Z170: 0
B171: 0.5187667641 | C171: 0.0001832763742 | D171: 0.03237468925 | E171: -0.0651555553 | F171: 2.029165546 | G171: 1.341915819 | H171: 0.6613141159 | I171: 0.4421187306 | J171: 88.63519664 | K171: 0.05346349106 | L171: -7.489862019 | M171: -0.004517778335 | N171: 0.05197084687 | O171: 0.5001 | P171: =Snitkræfter!$D$44*0.1*$Q$6*C171*$B$6^2/B171+$R$6 -> 2.81690233e-05 | Q171: 0.05195675954 | R171: 0.5 | S171: 0.8522495294 | T171: 0.06045573573 | U171: 0.06045573573 | V171: -0.5001 | W171: 0.003627344144 | X171: 0.02901875315 | Y171: 0 | Z171: 0
B172: 0.5187667641 | C172: 0.0001832763742 | D172: 0.03237468925 | E172: -0.0651555553 | F172: 2.029165546 | G172: 1.341915819 | H172: 0.6613141159 | I172: 0.4421187306 | J172: 88.63519664 | K172: 0.05346349106 | L172: -7.489862019 | M172: -0.004517778335 | N172: 0.05197084687 | O172: 0.5001 | P172: =Snitkræfter!$D$44*0.1*$Q$6*C172*$B$6^2/B172+$R$6 -> 2.81690233e-05 | Q172: 0.05195675954 | R172: 0.5 | S172: 0.8522495294 | T172: 0.06045573573 | U172: 0.06045573573 | V172: -0.5001 | W172: 0.003627344144 | X172: 0.02901875315 | Y172: 0 | Z172: 0
B173: 0.5187667641 | C173: 0.0001832763742 | D173: 0.03237468925 | E173: -0.0651555553 | F173: 2.029165546 | G173: 1.341915819 | H173: 0.6613141159 | I173: 0.4421187306 | J173: 88.63519664 | K173: 0.05346349106 | L173: -7.489862019 | M173: -0.004517778335 | N173: 0.05197084687 | O173: 0.5001 | P173: =Snitkræfter!$D$44*0.1*$Q$6*C173*$B$6^2/B173+$R$6 -> 2.81690233e-05 | Q173: 0.05195675954 | R173: 0.5 | S173: 0.8522495294 | T173: 0.06045573573 | U173: 0.06045573573 | V173: -0.5001 | W173: 0.003627344144 | X173: 0.02901875315 | Y173: 0 | Z173: 0
B174: 0.5187667641 | C174: 0.0001832763742 | D174: 0.03237468925 | E174: -0.0651555553 | F174: 2.029165546 | G174: 1.341915819 | H174: 0.6613141159 | I174: 0.4421187306 | J174: 88.63519664 | K174: 0.05346349106 | L174: -7.489862019 | M174: -0.004517778335 | N174: 0.05197084687 | O174: 0.5001 | P174: =Snitkræfter!$D$44*0.1*$Q$6*C174*$B$6^2/B174+$R$6 -> 2.81690233e-05 | Q174: 0.05195675954 | R174: 0.5 | S174: 0.8522495294 | T174: 0.06045573573 | U174: 0.06045573573 | V174: -0.5001 | W174: 0.003627344144 | X174: 0.02901875315 | Y174: 0 | Z174: 0
B175: 0.5187667641 | C175: 0.0001832763742 | D175: 0.03237468925 | E175: -0.0651555553 | F175: 2.029165546 | G175: 1.341915819 | H175: 0.6613141159 | I175: 0.4421187306 | J175: 88.63519664 | K175: 0.05346349106 | L175: -7.489862019 | M175: -0.004517778335 | N175: 0.05197084687 | O175: 0.5001 | P175: =Snitkræfter!$D$44*0.1*$Q$6*C175*$B$6^2/B175+$R$6 -> 2.81690233e-05 | Q175: 0.05195675954 | R175: 0.5 | S175: 0.8522495294 | T175: 0.06045573573 | U175: 0.06045573573 | V175: -0.5001 | W175: 0.003627344144 | X175: 0.02901875315 | Y175: 0 | Z175: 0
B176: 0.5187667641 | C176: 0.0001832763742 | D176: 0.03237468925 | E176: -0.0651555553 | F176: 2.029165546 | G176: 1.341915819 | H176: 0.6613141159 | I176: 0.4421187306 | J176: 88.63519664 | K176: 0.05346349106 | L176: -7.489862019 | M176: -0.004517778335 | N176: 0.05197084687 | O176: 0.5001 | P176: =Snitkræfter!$D$44*0.1*$Q$6*C176*$B$6^2/B176+$R$6 -> 2.81690233e-05 | Q176: 0.05195675954 | R176: 0.5 | S176: 0.8522495294 | T176: 0.06045573573 | U176: 0.06045573573 | V176: -0.5001 | W176: 0.003627344144 | X176: 0.02901875315 | Y176: 0 | Z176: 0
B177: 0.5187667641 | C177: 0.0001832763742 | D177: 0.03237468925 | E177: -0.0651555553 | F177: 2.029165546 | G177: 1.341915819 | H177: 0.6613141159 | I177: 0.4421187306 | J177: 88.63519664 | K177: 0.05346349106 | L177: -7.489862019 | M177: -0.004517778335 | N177: 0.05197084687 | O177: 0.5001 | P177: =Snitkræfter!$D$44*0.1*$Q$6*C177*$B$6^2/B177+$R$6 -> 2.81690233e-05 | Q177: 0.05195675954 | R177: 0.5 | S177: 0.8522495294 | T177: 0.06045573573 | U177: 0.06045573573 | V177: -0.5001 | W177: 0.003627344144 | X177: 0.02901875315 | Y177: 0 | Z177: 0
B178: 0.5187667641 | C178: 0.0001832763742 | D178: 0.03237468925 | E178: -0.0651555553 | F178: 2.029165546 | G178: 1.341915819 | H178: 0.6613141159 | I178: 0.4421187306 | J178: 88.63519664 | K178: 0.05346349106 | L178: -7.489862019 | M178: -0.004517778335 | N178: 0.05197084687 | O178: 0.5001 | P178: =Snitkræfter!$D$44*0.1*$Q$6*C178*$B$6^2/B178+$R$6 -> 2.81690233e-05 | Q178: 0.05195675954 | R178: 0.5 | S178: 0.8522495294 | T178: 0.06045573573 | U178: 0.06045573573 | V178: -0.5001 | W178: 0.003627344144 | X178: 0.02901875315 | Y178: 0 | Z178: 0
P179: =$Q$6*C178/B178 -> 0.0009660158883 | AA179: =(N178+$O$2*R178)/($Q$6*C178/B178) -> 53.79916365
B180: =IF(L178=O106,B111,B178) -> 0.5187667641 | Q180: =0.9*Q178 -> 0.04676108358
B181: =0.5*(-(T181+U181+V181)+SQRT((T181+U181+V181)^2+4*S181*(W181+X181)))/S181 -> 0.5187667641 | C181: =IF(L178=O106,C112,C178) -> 0.0001832763742 | D181: =IF($C$2=1,C181/($AD$106*$AD$5),2^(1/3)*$AD$5/C181) -> 0.03237468925 | E181: =IF($C$2=1,-($AD$106-2)*C181/$AD$5,3*($AD$5/C181)^2) -> -0.0651555553 | F181: =IF($C$2=1,0.5*($AD$106*C181*$F$106/$AD$5)*(1-Y181^2+(D181-E181)*(E181^2*(1-Y181^2)+2*E181*(1-Y181)+2*LN((1-E181)/(1-E181*Y181)))/(E181^3)),$F$106*E181*(LN((1-D181+D181^2)/(1+D181)^2)/(6*D181)+ATAN((2-D181)/(D181*3^0.5))/(D181*3^0.5)-LN((Y181^2-D181*Y181+D181^2)/(Y181+D181)^2)/(6*D181)-ATAN((2*Y181-D181)/(D181*3^0.5))/(D181*3^0.5))) -> 2.029165546 | G181: =IF($C$2=1,($AD$106*C181*$F$106/$AD$5)*(1-Y181^3-(D181-E181)*(-2*E181^3*(1-Y181^3)-3*E181^2*(1-Y181^2)-6*E181*(1-Y181)-6*LN((1-E181)/(1-E181*Y181)))/(2*E181^4))/3,$F$106*E181*(LN((1+D181^3)/(D181^3+Y181^3)))/3) -> 1.341915819 | H181: =G181/F181 -> 0.6613141159 | I181: =F181*B181*$D$106 -> 0.4421187306 | J181: =MAX(MIN($K$106,$Q$106*$J$106*C181*(B181-$I$106)/B181),-$K$106) -> 88.63519664 | K181: =J181*$H$106 -> 0.05346349106 | L181: =MIN($O$106,$Q$106*$N$106*C181*(C$106-B181-$M$106)/B181) -> -7.489862019 | M181: =L181*$L$106 -> -0.004517778335 | N181: =(0.5*$C$106-B181+H181*B181)*I181+(0.5*$C$106-$I$106)*K181+(0.5*$C$106-$M$106)*M181 -> 0.05197084687 | O181: =I181+K181-M181 -> 0.5001 | P181: =Snitkræfter!$D$44*0.1*$Q$6*C181*$B$6^2/B181+$R$6 -> 2.81690233e-05 | Q181: =N181-P181*O181 -> 0.05195675954 | R181: =R178 -> 0.5 | S181: =F181*$D$106 -> 0.8522495294 | T181: =IF(ABS(J180)<$K$106,$Q$106*C181*$H$106*$J$106,IF(J180>0,1,-1)*$H$106*$K$106) -> 0.06045573573 | U181: =IF(L178<$O$106,$Q$106*C181*$L$106*$N$106,-$L$106*$O$106) -> 0.06045573573 | V181: =-(R181+0.0001) -> -0.5001 | W181: =IF(ABS(J180)<$K$106,$I$106*$Q$106*C181*$H$106*$J$106,0) -> 0.003627344144 | X181: =IF(L178<$O$106,($C$106-$M$106)*$Q$106*C181*$L$106*$N$106,0) -> 0.02901875315 | Y181: =IF(B180<$C$106,0,(B180-$C$106)/B180) -> 0 | Z181: =IF(B181<=$C$106,0,(B181-$C$106)/B181) -> 0
B182: =0.5*(-(T182+U182+V182)+SQRT((T182+U182+V182)^2+4*S182*(W182+X182)))/S182 -> 0.573310943 | C182: =0.9*C181 -> 0.0001649487368 | D182: 0.02913722033 | E182: -0.05863999977 | F182: 1.837814537 | G182: 1.216346312 | H182: =G182/F182 -> 0.6618438843 | I182: 0.4425284577 | J182: 80.76425853 | K182: 0.04871585304 | L182: -14.68152827 | M182: -0.008855689223 | N182: 0.04206094474 | O182: =I182+K182-M182 -> 0.5001 | P182: =Snitkræfter!$D$44*0.1*$Q$6*C182*$B$6^2/B182+$R$6 -> 2.294014779e-05 | Q182: =N182-P182*O182 -> 0.04204947237 | R182: =R181 -> 0.5 | S182: 0.7718821054 | T182: 0.05441016216 | U182: =IF(L181<$O$106,$Q$106*C182*$L$106*$N$106,-$L$106*$O$106) -> 0.05441016216 | V182: =-(R182+0.0001) -> -0.5001 | W182: 0.00326460973 | X182: =IF(L181<$O$106,($C$106-$M$106)*$Q$106*C182*$L$106*$N$106,0) -> 0.02611687784 | Y182: 0 | Z182: 0.05810275103
B183: =0.5*(-(T183+U183+V183)+SQRT((T183+U183+V183)^2+4*S183*(W183+X183)))/S183 -> 0.5489231588 | C183: =IF(ABS(Q181-Q182)<=0.00001*Q$180,C182,MAX(0.9*C182,MIN($AD$4,1.05*C182,IF(C182=$AD$4,0.5*(C182+C181),C182+(C182-C181)*(Q182-Q$180)/(Q181-Q182))))) -> 0.0001731961736 | D183: 0.03059408134 | E183: -0.06157199976 | F183: 1.917349757 | G183: 1.272812372 | H183: =G183/F183 -> 0.6638394312 | I183: 0.4420406277 | J183: 84.36207884 | K183: 0.05088600713 | L183: -11.89246378 | M183: -0.007173365152 | N183: 0.0469624934 | O183: =I183+K183-M183 -> 0.5001 | P183: =Snitkræfter!$D$44*0.1*$Q$6*C183*$B$6^2/B183+$R$6 -> 2.515730923e-05 | Q183: =N183-P183*O183 -> 0.04694991223 | R183: =R182 -> 0.5 | S183: 0.8052868979 | T183: 0.05713067027 | U183: 0.05713067027 | V183: =-(R183+0.0001) -> -0.5001 | W183: 0.003427840216 | X183: 0.02742272173 | Y183: 0.05810275103 | Z183: 0.01625575208
B184: 0.5482748899 | C184: 0.0001728783751 | D184: 0.03053794412 | E184: -0.061459021 | F184: 1.920367473 | G184: 1.270893597 | H184: 0.6617970859 | I184: 0.4422134912 | J184: 84.19506399 | K184: 0.05078526614 | L184: -11.77289442 | M184: -0.007101242615 | N184: 0.04657245112 | O184: 0.5001 | P184: =Snitkræfter!$D$44*0.1*$Q$6*C184*$B$6^2/B184+$R$6 -> 2.514083886e-05 | Q184: 0.04655987819 | R184: 0.5 | S184: 0.8065543386 | T184: 0.05702584093 | U184: 0.05702584093 | V184: -0.5001 | W184: 0.003421550456 | X184: 0.02737240365 | Y184: 0.01625575208 | Z184: 0.01509259331
B185: 0.5477623642 | C185: 0.0001730423166 | D185: 0.03056690342 | E185: -0.06151730293 | F185: 1.922154343 | G185: 1.272019 | H185: 0.6617673572 | I185: 0.4422111991 | J185: 84.26521696 | K185: 0.05082758142 | L185: -11.70654142 | M185: -0.007061219429 | N185: 0.04665899916 | O185: 0.5001 | P185: =Snitkræfter!$D$44*0.1*$Q$6*C185*$B$6^2/B185+$R$6 -> 2.518822594e-05 | Q185: 0.04664640253 | R185: 0.5 | S185: 0.8073048243 | T185: 0.05707991885 | U185: 0.05707991885 | V185: -0.5001 | W185: 0.003424795131 | X185: 0.02739836105 | Y185: 0.01509259331 | Z185: 0.0141710433
B186: 0.5470957066 | C186: 0.0001732596079 | D186: 0.03060528664 | E186: -0.06159455094 | F186: 1.924478994 | G186: 1.273509667 | H186: 0.6617425657 | I186: 0.4422071621 | J186: 84.35838315 | K186: 0.05088377794 | L186: -11.62006819 | M186: -0.007009060007 | N186: 0.04677512528 | O186: 0.5001 | P186: =Snitkræfter!$D$44*0.1*$Q$6*C186*$B$6^2/B186+$R$6 -> 2.525058648e-05 | Q186: 0.04676249746 | R186: 0.5 | S186: 0.8082811777 | T186: 0.05715159478 | U186: 0.05715159478 | V186: -0.5001 | W186: 0.003429095687 | X186: 0.0274327655 | Y186: 0.0141710433 | Z186: 0.01296977211
B187: 0.5470868563 | C187: 0.0001732569616 | D187: 0.03060481919 | E187: -0.06159361017 | F187: 1.924517947 | G187: 1.273492429 | H187: 0.6617202146 | I187: 0.4422089588 | J187: 84.35692659 | K187: 0.05088289936 | L187: -11.61854593 | M187: -0.007008141797 | N187: 0.04677120272 | O187: 0.5001 | P187: =Snitkræfter!$D$44*0.1*$Q$6*C187*$B$6^2/B187+$R$6 -> 2.525060929e-05 | Q187: 0.04675857489 | R187: 0.5 | S187: 0.8082975377 | T187: 0.05715072187 | U187: 0.05715072187 | V187: -0.5001 | W187: 0.003429043312 | X187: 0.0274323465 | Y187: 0.01296977211 | Z187: 0.01295380467
B188: 0.547081566 | C188: 0.0001732586541 | D188: 0.03060511815 | E188: -0.06159421184 | F188: 1.92453647 | G188: 1.273504043 | H188: 0.6617198807 | I188: 0.4422089388 | J188: 84.35765014 | K188: 0.0508833358 | L188: -11.61785556 | M188: -0.007007725377 | N188: 0.04677209072 | O188: 0.5001 | P188: =Snitkræfter!$D$44*0.1*$Q$6*C188*$B$6^2/B188+$R$6 -> 2.525110012e-05 | Q188: 0.04675946264 | R188: 0.5 | S188: 0.8083053173 | T188: 0.05715128015 | U188: 0.05715128015 | V188: -0.5001 | W188: 0.003429076809 | X188: 0.02743261447 | Y188: 0.01295380467 | Z188: 0.01294426002
B189: 0.5470721688 | C189: 0.0001732617444 | D189: 0.03060566403 | E189: -0.06159531044 | F189: 1.924569252 | G189: 1.273525236 | H189: 0.6617196212 | I189: 0.4422088753 | J189: 84.35897625 | K189: 0.05088413569 | L189: -11.61663478 | M189: -0.007006989018 | N189: 0.04677375091 | O189: 0.5001 | P189: =Snitkræfter!$D$44*0.1*$Q$6*C189*$B$6^2/B189+$R$6 -> 2.525198426e-05 | Q189: 0.04676112239 | R189: 0.5 | S189: 0.8083190857 | T189: 0.0571522995 | U189: 0.0571522995 | V189: -0.5001 | W189: 0.00342913797 | X189: 0.02743310376 | Y189: 0.01294426002 | Z189: 0.01292730501
B190: 0.5470721597 | C190: 0.0001732616721 | D190: 0.03060565126 | E190: -0.06159528476 | F190: 1.924569393 | G190: 1.273524752 | H190: 0.6617193213 | I190: 0.4422089004 | J190: 84.3589409 | K190: 0.05088411437 | L190: -11.61662854 | M190: -0.007006985259 | N190: 0.04677367815 | O190: 0.5001 | P190: =Snitkræfter!$D$44*0.1*$Q$6*C190*$B$6^2/B190+$R$6 -> 2.525197415e-05 | Q190: 0.04676104964 | R190: 0.5 | S190: 0.808319145 | T190: 0.05715227567 | U190: 0.05715227567 | V190: -0.5001 | W190: 0.00342913654 | X190: 0.02743309232 | Y190: 0.01292730501 | Z190: 0.01292728854
B191: 0.5470721594 | C191: 0.0001732616721 | D191: 0.03060565126 | E191: -0.06159528476 | F191: 1.924569394 | G191: 1.273524752 | H191: 0.661719321 | I191: 0.4422089004 | J191: 84.35894089 | K191: 0.05088411436 | L191: -11.61662851 | M191: -0.007006985239 | N191: 0.04677367812 | O191: 0.5001 | P191: =Snitkræfter!$D$44*0.1*$Q$6*C191*$B$6^2/B191+$R$6 -> 2.525197416e-05 | Q191: 0.04676104961 | R191: 0.5 | S191: 0.8083191454 | T191: 0.05715227567 | U191: 0.05715227567 | V191: -0.5001 | W191: 0.00342913654 | X191: 0.02743309232 | Y191: 0.01292728854 | Z191: 0.01292728814
B192: 0.5470721594 | C192: 0.0001732616721 | D192: 0.03060565126 | E192: -0.06159528476 | F192: 1.924569394 | G192: 1.273524752 | H192: 0.661719321 | I192: 0.4422089004 | J192: 84.35894089 | K192: 0.05088411436 | L192: -11.61662851 | M192: -0.007006985239 | N192: 0.04677367812 | O192: 0.5001 | P192: =Snitkræfter!$D$44*0.1*$Q$6*C192*$B$6^2/B192+$R$6 -> 2.525197416e-05 | Q192: 0.04676104961 | R192: 0.5 | S192: 0.8083191454 | T192: 0.05715227567 | U192: 0.05715227567 | V192: -0.5001 | W192: 0.00342913654 | X192: 0.02743309232 | Y192: 0.01292728814 | Z192: 0.01292728813
B193: 0.5470721594 | C193: 0.0001732616721 | D193: 0.03060565126 | E193: -0.06159528476 | F193: 1.924569394 | G193: 1.273524752 | H193: 0.661719321 | I193: 0.4422089004 | J193: 84.35894089 | K193: 0.05088411436 | L193: -11.61662851 | M193: -0.007006985239 | N193: 0.04677367812 | O193: 0.5001 | P193: =Snitkræfter!$D$44*0.1*$Q$6*C193*$B$6^2/B193+$R$6 -> 2.525197416e-05 | Q193: 0.04676104961 | R193: 0.5 | S193: 0.8083191454 | T193: 0.05715227567 | U193: 0.05715227567 | V193: -0.5001 | W193: 0.00342913654 | X193: 0.02743309232 | Y193: 0.01292728813 | Z193: 0.01292728813
B194: 0.5470721594 | C194: 0.0001732616721 | D194: 0.03060565126 | E194: -0.06159528476 | F194: 1.924569394 | G194: 1.273524752 | H194: 0.661719321 | I194: 0.4422089004 | J194: 84.35894089 | K194: 0.05088411436 | L194: -11.61662851 | M194: -0.007006985239 | N194: 0.04677367812 | O194: 0.5001 | P194: =Snitkræfter!$D$44*0.1*$Q$6*C194*$B$6^2/B194+$R$6 -> 2.525197416e-05 | Q194: 0.04676104961 | R194: 0.5 | S194: 0.8083191454 | T194: 0.05715227567 | U194: 0.05715227567 | V194: -0.5001 | W194: 0.00342913654 | X194: 0.02743309232 | Y194: 0.01292728813 | Z194: 0.01292728813
B195: 0.5470721594 | C195: 0.0001732616721 | D195: 0.03060565126 | E195: -0.06159528476 | F195: 1.924569394 | G195: 1.273524752 | H195: 0.661719321 | I195: 0.4422089004 | J195: 84.35894089 | K195: 0.05088411436 | L195: -11.61662851 | M195: -0.007006985239 | N195: 0.04677367812 | O195: 0.5001 | P195: =Snitkræfter!$D$44*0.1*$Q$6*C195*$B$6^2/B195+$R$6 -> 2.525197416e-05 | Q195: 0.04676104961 | R195: 0.5 | S195: 0.8083191454 | T195: 0.05715227567 | U195: 0.05715227567 | V195: -0.5001 | W195: 0.00342913654 | X195: 0.02743309232 | Y195: 0.01292728813 | Z195: 0.01292728813
B196: 0.5470721594 | C196: 0.0001732616721 | D196: 0.03060565126 | E196: -0.06159528476 | F196: 1.924569394 | G196: 1.273524752 | H196: 0.661719321 | I196: 0.4422089004 | J196: 84.35894089 | K196: 0.05088411436 | L196: -11.61662851 | M196: -0.007006985239 | N196: 0.04677367812 | O196: 0.5001 | P196: =Snitkræfter!$D$44*0.1*$Q$6*C196*$B$6^2/B196+$R$6 -> 2.525197416e-05 | Q196: 0.0467610496 | R196: 0.5 | S196: 0.8083191454 | T196: 0.05715227567 | U196: 0.05715227567 | V196: -0.5001 | W196: 0.00342913654 | X196: 0.02743309232 | Y196: 0.01292728813 | Z196: 0.01292728813
B197: 0.5470721594 | C197: 0.0001732616721 | D197: 0.03060565126 | E197: -0.06159528476 | F197: 1.924569394 | G197: 1.273524752 | H197: 0.661719321 | I197: 0.4422089004 | J197: 84.35894089 | K197: 0.05088411436 | L197: -11.61662851 | M197: -0.007006985239 | N197: 0.04677367812 | O197: 0.5001 | P197: =Snitkræfter!$D$44*0.1*$Q$6*C197*$B$6^2/B197+$R$6 -> 2.525197416e-05 | Q197: 0.04676104961 | R197: 0.5 | S197: 0.8083191454 | T197: 0.05715227567 | U197: 0.05715227567 | V197: -0.5001 | W197: 0.00342913654 | X197: 0.02743309232 | Y197: 0.01292728813 | Z197: 0.01292728813
B198: 0.5470721594 | C198: 0.0001732616721 | D198: 0.03060565126 | E198: -0.06159528476 | F198: 1.924569394 | G198: 1.273524752 | H198: 0.661719321 | I198: 0.4422089004 | J198: 84.35894089 | K198: 0.05088411436 | L198: -11.61662851 | M198: -0.007006985239 | N198: 0.04677367812 | O198: 0.5001 | P198: =Snitkræfter!$D$44*0.1*$Q$6*C198*$B$6^2/B198+$R$6 -> 2.525197416e-05 | Q198: 0.04676104961 | R198: 0.5 | S198: 0.8083191454 | T198: 0.05715227567 | U198: 0.05715227567 | V198: -0.5001 | W198: 0.00342913654 | X198: 0.02743309232 | Y198: 0.01292728813 | Z198: 0.01292728813
P199: =$Q$6*C198/B198 -> 0.0008659799093 | AA199: =(N198+$O$2*R198)/($Q$6*C198/B198) -> 54.01242871
B202: Tilstand: | C202: =C102 -> 1 | E202: Navier: | F202: a= | G202: =J206*Q206/G206 -> 24.32378174 | H202: A= | I202: =C206*D206+G202*H206+G202*L206 -> 0.256143519 | J202: Sy= | K202: =-(0.5*C206-I206)*G202*H206+(0.5*C206-M206)*G202*L206 -> 0 | L202: Iy= | M202: =D206*C206^3/12+(0.5*C206-I206)^2*G202*H206+(0.5*C206-M206)^2*G202*L206 -> 0.006805289187 | N202: h= | O202: =K202/I202 -> 0 | P202: Io= | Q202: =M202-I202*O202^2 -> 0.006805289187 | R202: EIo= | S202: =Q202*G206/Q206 -> 55.95584815 | X202: EImax | Y202: =M202*V209/Q206 -> 44.34086277 | Z202: MNm2
B204: L | C204: h | D204: b | E204: fck | F204: fcd | G204: Ecd | H204: Ac | I204: ac | J204: Esc | K204: fyd_c | L204: At | M204: at | N204: Est | O204: fyd_t | P204: Modenhed | Q204: 1+f | R204: uterm | S204: g | T204: Ac | U204: ac | V204: Esc | W204: fyd_c | X204: At | Y204: at | Z204: Est | AA204: fyd_t | AB204: emax | AD204: =IF($C$2=1,0.0035,Firsidig!$G$21) -> 0.0035
B205: (m) | C205: (m) | D205: (m) | E205: (Mpa) | F205: (Mpa) | G205: (Mpa) | H205: (m2) | I205: (m) | J205: (Mpa) | K205: (Mpa) | L205: (m2) | M205: (m) | N205: (Mpa) | O205: (Mpa) | P205: (døgn) | R205: (m) | T205: (m2) | U205: (m) | V205: (Mpa) | W205: (Mpa) | X205: (m2) | Y205: (m) | Z205: (Mpa) | AA205: (Mpa) | AB205: e1 | AD205: =IF($C$2=1,0.7*(E206+8)^0.31/1000,Firsidig!$F$21) -> 0.002069366248
B206: =B106 -> 0.54 | C206: =C106 -> 0.54 | D206: =D106 -> 0.42 | E206: =E106 -> 25 | F206: =F106 -> 17.85714286 | G206: =IF($C$2=1,Kold!AU$23,1.4*F206/AD205) -> 22482.71872 | H206: =IF($W208<0,X206,T206) -> 0.0006031857895 | I206: =IF($W208<0,Y206,U206) -> 0.06 | J206: =IF($W208<0,Z206,V206) -> 200000 | K206: =IF($W208<0,AA206,W206) -> 458.3333333 | L206: =IF($W208<0,T206,X206) -> 0.0006031857895 | M206: =IF($W208<0,U206,Y206) -> 0.06 | N206: =IF($W208<0,V206,Z206) -> 200000 | O206: =IF($W208<0,W206,AA206) -> 458.3333333 | P206: =P106 -> 28 | Q206: =Q106 -> 2.734323716 | R206: =R106 -> 0 | S206: =S106 -> 1.4 | T206: =T$6 -> 0.0006031857895 | U206: =U$6 -> 0.06 | V206: 200000 | W206: 458.3333333 | X206: 0.0006031857895 | Y206: 0.06 | Z206: 200000 | AA206: 458.3333333 | AB206: k | AD206: =1.05*G206*AD205/F206 -> 2.735668782
B208: Initialt | C208: elasttisk | D208: e_o | E208: sc_o/fcd | F208: sc_u/fcd | G208: sc_o | H208: sc_u | I208: hc | J208: elasttisk | K208: e_o | L208: sc_o/fcd | M208: sc_u/fcd | N208: sc_o | O208: sc_u | P208: hc | Q208: At | R208: Ac | S208: Ic | T208: Wt | U208: u_skøn | V208: E | W208: =Snitkræfter!D25 -> -0.1076356987 | X208: =-Snitkræfter!C31 -> 0 | Y208: =0.5*(MAX(R211-H206*K206,0)+L206*O206)/(D206*F206) -> 0.08 | Z208: =(0.5*C206-Y208)*R211+(C206-M206-Y208)*L206*O206 -> 0.3385840614 | AA208: M_rev
B209: beregning | C209: skøn_1 | D209: =IF(C202=1,AD205*0.5*(-((AD206-2)*E209-AD206)-(((AD206-2)*E209-AD206)^2-4*E209)^0.5),G209/(1.4*F206/AD205)) -> 0.0005513295748 | E209: =MIN(0.9999,G209/F206) -> 0.5500558657 | F209: =H209/F206 -> -0.02535002685 | G209: =R211/Q209+(Q211+$O$2*R211+R211*R206)/T209 -> 9.822426174 | H209: =R211/Q209-(Q211+$O$2*R211+R211*R206)/T209 -> -0.4526790509 | I209: =IF(G209=H209,100*C206,C206*G209/(G209-H209)) -> 0.5162098118 | J209: skøn_2 | K209: =IF(C202=1,AD205*0.5*(-((AD206-2)*L209-AD206)-(((AD206-2)*L209-AD206)^2-4*L209)^0.5),G209/(1.4*F206/AD205)) -> 0.0005516178331 | L209: =MIN(0.9999,N209/F206) -> 0.550265263 | M209: =O209/F206 -> -0.02555942413 | N209: =R211/Q209+(Q211+$O$2*R211+R211*U209)/T209 -> 9.826165411 | O209: =R211/Q209-(Q211+$O$2*R211+R211*U209)/T209 -> -0.456418288 | P209: =IF(N209=O209,100*C206,C206*N209/(N209-O209)) -> 0.5160307445 | Q209: =R209+Q206*(H206+L206)*N206/G206 -> 0.256143519 | R209: =C206*D206 -> 0.2268 | S209: =D206*C206^3/12 -> 0.00551124 | T209: =(S209+((0.5*C206-I206)^2*H206+(0.5*C206-M206)^2*L206)*Q206)/(0.5*C206) -> 0.02095077303 | U209: =Q211/(10*AA231/B206^2-R211)+R206 -> 6.528325519e-05 | V209: =G209/D209 -> 17815.88839 | AA209: =R211*T209/Q209+IF(SIGN(W208)=1,-R211*$O$2,+R211*$O$2) -> 0.09815172268
B210: hc | C210: e0 | D210: a' | E210: b' | F210: N' | G210: tN' | H210: t' | I210: Nc | J210: sac | K210: Nac | L210: sat | M210: Nat | N210: Mtot | O210: N | P210: u | Q210: Mo | R210: N | S210: A | T210: B1 | U210: B2 | V210: B3 | W210: C1 | X210: C2 | Y210: gættet x | Z210: beregnet x | AA210: EIt
B211: =I209 -> 0.5162098118 | Q211: =MAX(MIN(ABS(W208),Z208,0.9*$Q$433),MIN($C$6*$D$6*0.025*$C$6*$F$6,$C$6*0.15*L206*K206),(0.01-$O$2)*R211,AA209) -> 0.1076356987 | R211: =Snitkræfter!D5 -> 1.2
... 355 more rows

Sheet A0
B2: Tilstand: | C2: =Stivheder!$C$2 -> 1
B4: L | C4: h | D4: b | E4: fck | F4: fcd | G4: Ecd | H4: Ac | I4: ac | J4: Esc | K4: fyd_c | L4: At | M4: at | N4: Est | O4: fyd_t | P4: Modenhed | Q4: 1+f | R4: uterm | S4: g | T4: EI | U4: sc/fcd | V4: sc | W4: e | X4: emax | Z4: =Stivheder!$AD$4 -> 0.0035
B5: (m) | C5: (m) | D5: (m) | E5: (Mpa) | F5: (Mpa) | G5: (Mpa) | H5: (m2) | I5: (m) | J5: (Mpa) | K5: (Mpa) | L5: (m2) | M5: (m) | N5: (Mpa) | O5: (Mpa) | P5: (døgn) | R5: (m) | T5: (Mnm2) | V5: (MPa) | X5: e1 | Z5: =Stivheder!$AD$5 -> 0.002069366248
B6: =Stivheder!$B$6 -> 0.54 | C6: =Stivheder!$C$6 -> 0.54 | D6: =Stivheder!$D$6 -> 0.42 | E6: =Stivheder!$E$6 -> 25 | F6: =Stivheder!$F$6 -> 17.85714286 | G6: =IF(C2=1,1000*22*((E6+8)/10)^0.3/S6,1.4*F6/Z5) -> 22482.71872 | H6: =IF(P8<0,Stivheder!$X$6,Stivheder!$T$6) -> 0.0006031857895 | I6: =IF(P8<0,Stivheder!$Y$6,Stivheder!$U$6) -> 0.06 | J6: =IF(P8<0,Stivheder!$Z$6,Stivheder!$V$6) -> 200000 | K6: =IF(P8<0,Stivheder!$AA$6,Stivheder!$W$6) -> 458.3333333 | L6: =IF(P8<0,Stivheder!$T$6,Stivheder!$X$6) -> 0.0006031857895 | M6: =IF(P8<0,Stivheder!$U$6,Stivheder!$Y$6) -> 0.06 | N6: =IF(P8<0,Stivheder!$V$6,Stivheder!$Z$6) -> 200000 | O6: =IF(P8<0,Stivheder!$W$6,Stivheder!$AA$6) -> 458.3333333 | P6: =Stivheder!$P$6 -> 28 | Q6: =Stivheder!$Q$6 -> 2.734323716 | R6: =Stivheder!$R$6 -> 0 | S6: =Stivheder!$S$6 -> 1.4 | T6: =AA79 -> 48.11857797 | U6: 0.9999999 | V6: =U6*F6 -> 17.85714107 | W6: =Z4 -> 0.0035 | X6: k | Z6: =Stivheder!$AD$6 -> 2.735668782
B8: punkt | C8: elasttisk | D8: e_o | E8: sc_o/fcd | F8: sc_u/fcd | G8: sc_o | H8: sc_u | I8: hc | J8: At | K8: Ac | L8: Ic | M8: Wt | N8: E | P8: =SIGN(Q8) -> -1 | Q8: =INDEX(Snitkræfter!$G$199:$U$199,B9+1) -> -0.1046392295 | R8: =INDEX(Snitkræfter!$G$59:$U$59,B9+1)*P8 -> 0
B9: 0 | C9: skøn | D9: =IF(C2=1,Z5*0.5*(-((Z6-2)*E9-Z6)-(((Z6-2)*E9-Z6)^2-4*E9)^0.5),G9/(1.4*F6/Z5)) -> 0.000992905039 | E9: =MIN(0.9999,G9/F6) -> 0.8 | F9: =H9/F6 -> -0.01734066704 | G9: =IF(H9>0,R11/J9+MAX(Q11+Stivheder!$O$2*R11+R11*R6,D6*C6^2*0.003*E6)/M9,MIN(0.8*F6,2*(R11+Q11/(C6-M6-0.333*I9))/(((R11+L6*O6)/(F6*D6*0.5))*D6))) -> 14.28571429 | H9: =R11/J9-(Q11+Stivheder!$O$2*R11+R11*R6)/M9 -> -0.3096547686 | I9: =IF(H9>0,C6*G9/(G9-H9),(R11+L6*O6)/(F6*D6*0.5)) -> 0.3937227076 | J9: =K9+Q6*(H6+L6)*N6/G6 -> 0.256143519 | K9: =C6*D6 -> 0.2268 | L9: =D6*C6^3/12 -> 0.00551124 | M9: =(L9+((0.5*C6-I6)^2*H6+(0.5*C6-M6)^2*L6)*Q6)/(0.5*C6) -> 0.02095077303 | N9: =G9/D9 -> 14387.79513
B10: hc | C10: e0 | D10: a' | E10: b' | F10: N' | G10: tN' | H10: t' | I10: Nc | J10: sac | K10: Nac | L10: sat | M10: Nat | N10: Mtot | O10: N | Q10: Mo | R10: N | S10: A | T10: B1 | U10: B2 | V10: B3 | W10: C1 | X10: C2 | Y10: gættet x | Z10: beregnet x | AA10: EIt
B11: =I9 -> 0.3937227076 | Q11: =MAX(ABS(Q8),0.0000001) -> 0.1046392295 | R11: =INDEX(Snitkræfter!$G$52:$U$52,B9+1) -> 1.2
B12: =MIN(0.5*(-(T12+U12+V12)+SQRT((T12+U12+V12)^2+4*S12*(W12+X12)))/S12,1000*$C$6) -> 0.3129748681 | C12: =D9 -> 0.000992905039 | D12: =IF($C$2=1,C12/($Z$6*$Z$5),2^(1/3)*$Z$5/C12) -> 0.175390812 | E12: =IF($C$2=1,-($Z$6-2)*C12/$Z$5,3*($Z$5/C12)^2) -> -0.3529820985 | F12: =IF($C$2=1,0.5*($Z$6*C12*$F$6/$Z$5)*(1-Y12^2+(D12-E12)*(E12^2*(1-Y12^2)+2*E12*(1-Y12)+2*LN((1-E12)/(1-E12*Y12)))/(E12^3)),$F$6*E12*(LN((1-D12+D12^2)/(1+D12)^2)/(6*D12)+ATAN((2-D12)/(D12*3^0.5))/(D12*3^0.5)-LN((Y12^2-D12*Y12+D12^2)/(Y12+D12)^2)/(6*D12)-ATAN((2*Y12-D12)/(D12*3^0.5))/(D12*3^0.5))) -> 8.445495273 | G12: =IF($C$2=1,($Z$6*C12*$F$6/$Z$5)*(1-Y12^3-(D12-E12)*(-2*E12^3*(1-Y12^3)-3*E12^2*(1-Y12^2)-6*E12*(1-Y12)-6*LN((1-E12)/(1-E12*Y12)))/(2*E12^4))/3,$F$6*E12*(LN((1+D12^3)/(D12^3+Y12^3)))/3) -> 5.393580741 | H12: =G12/F12 -> 0.638634037 | I12: =F12*B12*$D$6 -> 1.110155663 | J12: =MAX(MIN($K$6,$Q$6*$J$6*C12*(B12-$I$6)/B12),-$K$6) -> 438.8898657 | K12: =J12*$H$6 -> 0.2647321301 | L12: =MIN($O$6,$Q$6*$N$6*C12*(C$6-B12-$M$6)/B12) -> 289.7743884 | M12: =L12*$L$6 -> 0.1747877933 | N12: =(0.5*$C$6-B12+H12*B12)*I12+(0.5*$C$6-$I$6)*K12+(0.5*$C$6-$M$6)*M12 -> 0.266484312 | O12: =I12+K12-M12 -> 1.2001 | Q12: =N12-P12*O12 -> 0.266484312 | R12: =R11 -> 1.2 | S12: =F12*$D$6 -> 3.547108015 | T12: =IF(ABS(J11)<$K$6,$Q$6*C12*$H$6*$J$6,IF(J11>0,1,-1)*$H$6*$K$6) -> 0.3275206906 | U12: =IF(L11<$O$6,$Q$6*C12*$L$6*$N$6,-$L$6*$O$6) -> 0.3275206906 | V12: =-(R12+0.0001) -> -1.2001 | W12: =IF(ABS(J11)<$K$6,$I$6*$Q$6*C12*$H$6*$J$6,0) -> 0.01965124144 | X12: =IF(L11<$O$6,($C$6-$M$6)*$Q$6*C12*$L$6*$N$6,0) -> 0.1572099315 | Y12: =IF(B11<$C$6,0,(B11-$C$6)/B11) -> 0 | Z12: =IF(B12<=$C$6,0,(B12-$C$6)/B12) -> 0
B13: =MIN(0.5*(-(T13+U13+V13)+SQRT((T13+U13+V13)^2+4*S13*(W13+X13)))/S13,1000*$C$6) -> 0.3162637567 | C13: =0.98*C12 -> 0.0009730469382 | D13: 0.1718829958 | E13: -0.3459224566 | F13: 8.327855521 | G13: 5.323012042 | H13: 0.6391816032 | I13: 1.106195526 | J13: =MAX(MIN($K$6,$Q$6*$J$6*C13*(B13-$I$6)/B13),-$K$6) -> 431.1729214 | K13: 0.260077379 | L13: 275.4920761 | M13: 0.1661729054 | N13: =(0.5*$C$6-B13+H13*B13)*I13+(0.5*$C$6-$I$6)*K13+(0.5*$C$6-$M$6)*M13 -> 0.2619531971 | O13: 1.2001 | Q13: =N13-P13*O13 -> 0.2619531971 | R13: =R11 -> 1.2 | S13: =F13*$D$6 -> 3.497699319 | T13: =IF(ABS(J12)<$K$6,$Q$6*C13*$H$6*$J$6,IF(J12>0,1,-1)*$H$6*$K$6) -> 0.3209702768 | U13: 0.3209702768 | V13: -1.2001 | W13: =IF(ABS(J12)<$K$6,$I$6*$Q$6*C13*$H$6*$J$6,0) -> 0.01925821661 | X13: 0.1540657329 | Y13: =Z12 -> 0 | Z13: 0
B14: =MIN(0.5*(-(T14+U14+V14)+SQRT((T14+U14+V14)^2+4*S14*(W14+X14)))/S14,1000*$C$6) -> 0.3351844354 | C14: =IF(ABS($Q$11-Q13)<=0.001*$Q$11,C13,MAX(0.9*C13,MIN($W$6,1.05*C13,IF(C13=$W$6,0.5*(C13+C12),C13+IF(C13=C12,0,(C13-C12)*(Q13-$Q$11)/(Q12-Q13)))))) -> 0.0008757422444 | D14: 0.1546946962 | E14: -0.3113302109 | F14: 7.726689265 | G14: 4.959501719 | H14: 0.6418663349 | I14: 1.087743711 | J14: =MAX(MIN($K$6,$Q$6*$J$6*C14*(B14-$I$6)/B14),-$K$6) -> 393.184372 | K14: 0.2371632259 | L14: 206.9129265 | M14: 0.1248069369 | N14: 0.2391308779 | O14: 1.2001 | Q14: 0.2391308779 | R14: =R11 -> 1.2 | S14: 3.245209491 | T14: 0.2888732491 | U14: 0.2888732491 | V14: -1.2001 | W14: 0.01733239495 | X14: 0.1386591596 | Y14: 0 | Z14: 0
B15: 0.3573562423 | C15: =IF(ABS($Q$11-Q14)<=0.001*$Q$11,C14,MAX(0.9*C14,MIN($W$6,1.05*C14,IF(C14=$W$6,0.5*(C14+C13),C14+IF(C14=C13,0,(C14-C13)*(Q14-$Q$11)/(Q13-Q14)))))) -> 0.00078816802 | D15: 0.1392252266 | E15: -0.2801971898 | F15: 7.149009562 | G15: 4.606012424 | H15: 0.6442867903 | I15: 1.072992141 | J15: 358.6529616 | K15: 0.2163343698 | L15: 147.9254196 | M15: 0.08922651101 | N15: 0.2174808336 | O15: 1.2001 | Q15: 0.2174808336 | R15: =R11 -> 1.2 | S15: 3.002584016 | T15: 0.2599859242 | U15: 0.2599859242 | V15: -1.2001 | W15: 0.01559915545 | X15: 0.1247932436 | Y15: 0 | Z15: 0
B16: 0.3831967191 | C16: 0.000709351218 | D16: 0.1253027039 | E16: -0.2521774708 | F16: 6.597753736 | G16: 4.265253628 | H16: 0.6464705714 | I16: 1.061859786 | J16: 327.1797416 | K16: 0.1973501708 | L16: 97.99626836 | M16: 0.0591099565 | N16: 0.1967072251 | O16: 1.2001 | Q16: 0.1967072251 | R16: =R11 -> 1.2 | S16: 2.771056569 | T16: 0.2339873318 | U16: 0.2339873318 | V16: -1.2001 | W16: 0.01403923991 | X16: 0.1123139193 | Y16: 0 | Z16: 0
B17: 0.4131594352 | C17: 0.0006384160962 | D17: 0.1127724335 | E17: -0.2269597238 | F17: 6.074919998 | G17: 3.939232122 | H17: 0.6484418105 | I17: 1.054162416 | J17: 298.4261607 | K17: 0.1800064193 | L17: 56.48149576 | M17: 0.03406883561 | N17: 0.1764630046 | O17: 1.2001 | Q17: 0.1764630046 | R17: =R11 -> 1.2 | S17: 2.551466399 | T17: 0.2105885986 | U17: 0.2105885986 | V17: -1.2001 | W17: 0.01263531592 | X17: 0.1010825273 | Y17: 0 | Z17: 0
B18: 0.4477324965 | C18: 0.0005745744866 | D18: 0.1014951902 | E18: -0.2042637514 | F18: 5.581713178 | G18: 3.62935143 | H18: 0.6502217714 | I18: 1.049628038 | J18: 272.1070834 | K18: 0.1641311259 | L18: 22.64503579 | M18: 0.01365916379 | N18: 0.1563563495 | O18: 1.2001 | Q18: 0.1563563495 | R18: =R11 -> 1.2 | S18: 2.344319535 | T18: 0.1895297387 | U18: 0.1895297387 | V18: -1.2001 | W18: 0.01137178432 | X18: 0.0909742746 | Y18: 0 | Z18: 0
B19: 0.4874383966 | C19: 0.0005171170379 | D19: 0.09134567117 | E19: -0.1838373762 | F19: 5.118678182 | G19: 3.336504482 | H19: 0.6518293129 | I19: 1.04791692 | J19: 247.9833757 | K19: 0.1495800482 | L19: -4.315472639 | M19: -0.002603031771 | N19: 0.1359589155 | O19: 1.2001 | Q19: 0.1359589155 | R19: =R11 -> 1.2 | S19: 2.149844836 | T19: 0.1705767649 | U19: 0.1705767649 | V19: -1.2001 | W19: 0.01023460589 | X19: 0.08187684714 | Y19: 0 | Z19: 0
B20: 0.5328359914 | C20: 0.0004654053341 | D20: 0.08221110405 | E20: -0.1654536386 | F20: 4.685820424 | G20: 3.061158625 | H20: 0.6532812502 | I20: 1.048644984 | J20: 225.8542441 | K20: 0.1362320705 | L20: -25.23757311 | M20: -0.01522294546 | N20: 0.1148149531 | O20: 1.2001 | Q20: 0.1148149531 | R20: =R11 -> 1.2 | S20: 1.968044578 | T20: 0.1535190884 | U20: 0.1535190884 | V20: -1.2001 | W20: 0.009211145303 | X20: 0.07368916243 | Y20: 0 | Z20: 0
B21: 0.5589722528 | C21: 0.0004405186078 | D21: 0.07781501081 | E21: -0.1566062982 | F21: 4.471889334 | G21: 2.92453476 | H21: 0.6539819171 | I21: 1.049858063 | J21: 215.0454849 | K21: 0.1297123806 | L21: -34.03521196 | M21: -0.0205295562 | N21: 0.1033322901 | O21: 1.2001 | Q21: 0.1033322901 | R21: =R11 -> 1.2 | S21: 1.87819352 | T21: 0.1453099269 | U21: 0.1453099269 | V21: -1.2001 | W21: 0.008718595615 | X21: 0.06974876492 | Y21: 0 | Z21: 0.03394131401
B22: 0.5564867352 | C22: 0.0004433511773 | D22: 0.07831536748 | E22: -0.1576132891 | F22: 4.490429276 | G22: 2.940086674 | H22: 0.6547451242 | I22: 1.049523018 | J22: 216.3120057 | K22: 0.1304763279 | L22: -33.32415132 | M22: -0.02010065452 | N22: 0.1049055021 | O22: 1.2001 | Q22: 0.1049055021 | R22: =R11 -> 1.2 | S22: 1.885980296 | T22: 0.1462442813 | U22: 0.1462442813 | V22: -1.2001 | W22: 0.008774656875 | X22: 0.070197255 | Y22: 0.03394131401 | Z22: 0.02962646568
